Workbook

Sheet GM-9doc4-Q7.1 Rentable RES
A1: Model to evaluate the profitability of projects - Version 2016-2017
A2: Rentable RES
A3: ($)
B5: Results
B6: IRR 40 years | E6: =$F$237 -> 8.30%
B7: Break point (impact on rates) | E7: =F246 -> 14.2 ans
B8: Impact on rates | D8: Annual | E8: Cumulative net present value.
B9: 1 year | D9: =I$243 -> 8,732 | E9: =I$245 -> 8,294
B10: 2 years | D10: =J$243 -> 5,826 | E10: =J$245 -> 13,550
B11: 3 years | D11: =K$243 -> 4,310 | E11: =K$245 -> 17,244
B12: 4 years | D12: =L$243 -> 2,473 | E12: =L$245 -> 19,257
B13: 5 years | D13: =M$243 -> 1,496 | E13: =M$245 -> 20,414
B14: 10 years | D14: =R$243 -> -2,185 | E14: =R$245 -> 18,508
B15: 15 years | D15: =W$243 -> -11,436 | E15: =W$245 -> -4,238
B16: 20 years | D16: =AB$243 -> -12,465 | E16: =AB$245 -> -28,117
B17: 30 years | D17: =AL$243 -> -16,194 | E17: =AL$245 -> -69,301
B18: 40 years | D18: =AV$243 -> -16,964 | E18: =AV$245 -> -96,275
A20: Section 1 - Inputs | H20: 0 | I20: 1 | J20: 2 | K20: 3 | L20: 4 | M20: 5 | N20: 6 | O20: 7 | P20: 8 | Q20: 9 | R20: 10 | S20: 11 | T20: 12 | U20: 13 | V20: 14 | W20: 15 | X20: 16 | Y20: 17 | Z20: 18 | AA20: 19 | AB20: 20 | AC20: 21 | AD20: 22 | AE20: 23 | AF20: 24 | AG20: 25 | AH20: 26 | AI20: 27 | AJ20: 28 | AK20: 29 | AL20: 30 | AM20: 31 | AN20: 32 | AO20: 33 | AP20: 34 | AQ20: 35 | AR20: 36 | AS20: 37 | AT20: 38 | AU20: 39 | AV20: 40
A22: 1.1 | B22: Clients - Volumes - Rates - Incomes | I22: 2018 | J22: =I22+1 -> 2019 | K22: =J22+1 -> 2020 | L22: 2021 | M22: 2022 | N22: 2023 | O22: 2024 | P22: 2025 | Q22: 2026 | R22: 2027 | S22: 2028 | T22: 2029 | U22: 2030 | V22: 2031 | W22: 2032 | X22: 2033 | Y22: 2034 | Z22: 2035 | AA22: 2036 | AB22: 2037 | AC22: 2038 | AD22: 2039 | AE22: 2040 | AF22: 2041 | AG22: 2042 | AH22: 2043 | AI22: 2044 | AJ22: 2045 | AK22: 2046 | AL22: 2047 | AM22: 2048 | AN22: 2049 | AO22: 2050 | AP22: 2051 | AQ22: 2052 | AR22: 2053 | AS22: 2054 | AT22: 2055 | AU22: 2056 | AV22: 2057
B24: Number de clients | I24: 7 | J24: 12 | K24: 16 | L24: 18 | M24: 20 | N24: =M24 -> 20 | O24: 20 | P24: 20 | Q24: 20 | R24: 20 | S24: 20 | T24: 20 | U24: 20 | V24: 20 | W24: 20 | X24: 20 | Y24: 20 | Z24: 20 | AA24: 20 | AB24: 20 | AC24: 20 | AD24: 20 | AE24: 20 | AF24: 20 | AG24: 20 | AH24: 20 | AI24: 20 | AJ24: 20 | AK24: 20 | AL24: 20 | AM24: 20 | AN24: 20 | AO24: 20 | AP24: 20 | AQ24: 20 | AR24: 20 | AS24: 20 | AT24: 20 | AU24: 20 | AV24: 20
B25: Volumes m3 | I25: 20,524 | J25: 46,883 | K25: 67,251 | L25: 80,724 | M25: 88,350 | N25: 88,350 | O25: 88,350 | P25: 88,350 | Q25: 88,350 | R25: 88,350 | S25: 88,350 | T25: 88,350 | U25: 88,350 | V25: 88,350 | W25: 88,350 | X25: 88,350 | Y25: 88,350 | Z25: 88,350 | AA25: 88,350 | AB25: 88,350 | AC25: 88,350 | AD25: 88,350 | AE25: 88,350 | AF25: 88,350 | AG25: 88,350 | AH25: 88,350 | AI25: 88,350 | AJ25: 88,350 | AK25: 88,350 | AL25: 88,350 | AM25: 88,350 | AN25: 88,350 | AO25: 88,350 | AP25: 88,350 | AQ25: 88,350 | AR25: 88,350 | AS25: 88,350 | AT25: 88,350 | AU25: 88,350 | AV25: 88,350
B26: Distribution rate ( ¢ / m3) | I26: 22.9520 | J26: 24.2230 | K26: 24.3938 | L26: 24.5513 | M26: 24.9253 | N26: 24.9253 | O26: 24.9253 | P26: 24.9253 | Q26: 24.9253 | R26: 24.9253 | S26: 24.9253 | T26: 24.9253 | U26: 24.9253 | V26: 24.9253 | W26: 24.9253 | X26: 24.9253 | Y26: 24.9253 | Z26: 24.9253 | AA26: 24.9253 | AB26: 24.9253 | AC26: 24.9253 | AD26: 24.9253 | AE26: 24.9253 | AF26: 24.9253 | AG26: 24.9253 | AH26: 24.9253 | AI26: 24.9253 | AJ26: 24.9253 | AK26: 24.9253 | AL26: 24.9253 | AM26: 24.9253 | AN26: 24.9253 | AO26: 24.9253 | AP26: 24.9253 | AQ26: 24.9253 | AR26: 24.9253 | AS26: 24.9253 | AT26: 24.9253 | AU26: 24.9253 | AV26: 24.9253
B27: Distribution income | I27: =I26*I25/100 -> 4,711 | J27: 11,357 | K27: 16,405 | L27: 19,819 | M27: 22,021 | N27: 22,021 | O27: 22,021 | P27: 22,021 | Q27: 22,021 | R27: 22,021 | S27: 22,021 | T27: 22,021 | U27: 22,021 | V27: 22,021 | W27: 22,021 | X27: 22,021 | Y27: 22,021 | Z27: 22,021 | AA27: 22,021 | AB27: 22,021 | AC27: 22,021 | AD27: 22,021 | AE27: 22,021 | AF27: 22,021 | AG27: 22,021 | AH27: 22,021 | AI27: 22,021 | AJ27: 22,021 | AK27: 22,021 | AL27: 22,021 | AM27: 22,021 | AN27: 22,021 | AO27: 22,021 | AP27: 22,021 | AQ27: 22,021 | AR27: 22,021 | AS27: 22,021 | AT27: 22,021 | AU27: 22,021 | AV27: 22,021
A29: 1.2 | B29: Capital costs (Capitalizable) | H29: =I29-1 -> 2017 | I29: =$I$22 -> 2018 | J29: =I29+1 -> 2019 | K29: =J29+1 -> 2020 | L29: 2021 | M29: 2022 | N29: 2023 | O29: 2024 | P29: 2025 | Q29: 2026 | R29: 2027 | S29: 2028 | T29: 2029 | U29: 2030 | V29: 2031 | W29: 2032 | X29: 2033 | Y29: 2034 | Z29: 2035 | AA29: 2036 | AB29: 2037 | AC29: 2038 | AD29: 2039 | AE29: 2040 | AF29: 2041 | AG29: 2042 | AH29: 2043 | AI29: 2044 | AJ29: 2045 | AK29: 2046 | AL29: 2047 | AM29: 2048 | AN29: 2049 | AO29: 2050 | AP29: 2051 | AQ29: 2052 | AR29: 2053 | AS29: 2054 | AT29: 2055 | AU29: 2056 | AV29: 2057
D31: Accounting | E31: Fiscal
D32: depreciation | E32: depreciation | F32: Capitalized general expenses
B33: Main line - Base | H33: 39,841 | I33: 0 | AV33: 0
B34: Main line - Contractors fees | H34: 7,203 | I34: 0 | AV34: 0
B35: Main line - Total | D35: =1/2.2538% -> 44 ans | E35: 6.0% | F35: 14.53% | H35: =H33+H34 -> 47,045 | I35: =I33+I34 -> 0 | J35: 0 | K35: 0 | L35: 0 | M35: 0 | N35: 0 | O35: 0 | P35: 0 | Q35: 0 | R35: 0 | S35: 0 | T35: 0 | U35: 0 | V35: 0 | W35: 0 | X35: 0 | Y35: 0 | Z35: 0 | AA35: 0 | AB35: 0 | AC35: 0 | AD35: 0 | AE35: 0 | AF35: 0 | AG35: 0 | AH35: 0 | AI35: 0 | AJ35: 0 | AK35: 0 | AL35: 0 | AM35: 0 | AN35: 0 | AO35: 0 | AP35: 0 | AQ35: 0 | AR35: 0 | AS35: 0 | AT35: 0 | AU35: 0 | AV35: 0
B37: Connection - Base | H37: 16,429 | I37: 7,832 | J37: 4,755 | K37: 2,745 | L37: 2,680 | M37: 588 | AV37: 0
B38: Connection - Contractors fees | H38: 2,024 | I38: 901 | J38: 593 | K38: 464 | L38: 466 | M38: 80 | AV38: 0
B39: Connection - Meters | H39: 1,290 | I39: 826 | J39: 625 | K39: 440 | L39: 452 | M39: 83 | AV39: 0
B40: Connection - Total | D40: =1/4.7554% -> 21 ans | E40: 6.0% | F40: 14.53% | H40: =H37+H38+H39 -> 19,743 | I40: =I37+I38+I39 -> 9,559 | J40: 5,972 | K40: 3,650 | L40: 3,598 | M40: 751 | N40: 0 | O40: 0 | P40: 0 | Q40: 0 | R40: 0 | S40: 0 | T40: 0 | U40: 0 | V40: 0 | W40: 0 | X40: 0 | Y40: 0 | Z40: 0 | AA40: 0 | AB40: 0 | AC40: 0 | AD40: 0 | AE40: 0 | AF40: 0 | AG40: 0 | AH40: 0 | AI40: 0 | AJ40: 0 | AK40: 0 | AL40: 0 | AM40: 0 | AN40: 0 | AO40: 0 | AP40: 0 | AQ40: 0 | AR40: 0 | AS40: 0 | AT40: 0 | AU40: 0 | AV40: 0
B41: Compression | D41: 20 ans | E41: 20.0% | F41: 14.53% | H41: 0 | I41: 0 | J41: 0 | K41: 0 | L41: 0 | M41: 0 | N41: 0 | O41: 0 | P41: 0 | Q41: 0 | R41: 0 | S41: 0 | T41: 0 | U41: 0 | V41: 0 | W41: 0 | X41: 0 | Y41: 0 | Z41: 0 | AA41: 0 | AB41: 0 | AC41: 0 | AD41: 0 | AE41: 0 | AF41: 0 | AG41: 0 | AH41: 0 | AI41: 0 | AJ41: 0 | AK41: 0 | AL41: 0 | AM41: 0 | AN41: 0 | AO41: 0 | AP41: 0 | AQ41: 0 | AR41: 0 | AS41: 0 | AT41: 0 | AU41: 0 | AV41: 0
B42: Servitude | D42: 65 ans | E42: 7.0% | F42: 14.53% | H42: 0 | I42: 0 | J42: 0 | K42: 0 | L42: 0 | M42: 0 | N42: 0 | O42: 0 | P42: 0 | Q42: 0 | R42: 0 | S42: 0 | T42: 0 | U42: 0 | V42: 0 | W42: 0 | X42: 0 | Y42: 0 | Z42: 0 | AA42: 0 | AB42: 0 | AC42: 0 | AD42: 0 | AE42: 0 | AF42: 0 | AG42: 0 | AH42: 0 | AI42: 0 | AJ42: 0 | AK42: 0 | AL42: 0 | AM42: 0 | AN42: 0 | AO42: 0 | AP42: 0 | AQ42: 0 | AR42: 0 | AS42: 0 | AT42: 0 | AU42: 0 | AV42: 0
B43: Transport | D43: 65 ans | E43: 8.0% | F43: 14.53% | H43: 0 | I43: 0 | J43: 0 | K43: 0 | L43: 0 | M43: 0 | N43: 0 | O43: 0 | P43: 0 | Q43: 0 | R43: 0 | S43: 0 | T43: 0 | U43: 0 | V43: 0 | W43: 0 | X43: 0 | Y43: 0 | Z43: 0 | AA43: 0 | AB43: 0 | AC43: 0 | AD43: 0 | AE43: 0 | AF43: 0 | AG43: 0 | AH43: 0 | AI43: 0 | AJ43: 0 | AK43: 0 | AL43: 0 | AM43: 0 | AN43: 0 | AO43: 0 | AP43: 0 | AQ43: 0 | AR43: 0 | AS43: 0 | AT43: 0 | AU43: 0 | AV43: 0
B44: Actif non amortissable (terrain) incluant frais généraux | F44: 0.00% | H44: 0 | I44: 0 | J44: 0 | K44: 0 | L44: 0 | M44: 0 | N44: 0 | O44: 0 | P44: 0 | Q44: 0 | R44: 0 | S44: 0 | T44: 0 | U44: 0 | V44: 0 | W44: 0 | X44: 0 | Y44: 0 | Z44: 0 | AA44: 0 | AB44: 0 | AC44: 0 | AD44: 0 | AE44: 0 | AF44: 0 | AG44: 0 | AH44: 0 | AI44: 0 | AJ44: 0 | AK44: 0 | AL44: 0 | AM44: 0 | AN44: 0 | AO44: 0 | AP44: 0 | AQ44: 0 | AR44: 0 | AS44: 0 | AT44: 0 | AU44: 0 | AV44: 0
B45: Fees related to agreements with municipalities | C45: 2.00% | F45: 14.53% | H45: =$C$45*(H33+H37) -> 1,125 | I45: 157 | J45: 95 | K45: 55 | L45: 54 | M45: 12 | N45: 0 | O45: 0 | P45: 0 | Q45: 0 | R45: 0 | S45: 0 | T45: 0 | U45: 0 | V45: 0 | W45: 0 | X45: 0 | Y45: 0 | Z45: 0 | AA45: 0 | AB45: 0 | AC45: 0 | AD45: 0 | AE45: 0 | AF45: 0 | AG45: 0 | AH45: 0 | AI45: 0 | AJ45: 0 | AK45: 0 | AL45: 0 | AM45: 0 | AN45: 0 | AO45: 0 | AP45: 0 | AQ45: 0 | AR45: 0 | AS45: 0 | AT45: 0 | AU45: 0 | AV45: 0
B46: Capitalized general expenses | H46: =$F$35*H35+SUMPRODUCT($F$40:$F$45,H40:H45) -> 9,868 | I46: 1,412 | J46: 882 | K46: 538 | L46: 531 | M46: 111 | N46: 0 | O46: 0 | P46: 0 | Q46: 0 | R46: 0 | S46: 0 | T46: 0 | U46: 0 | V46: 0 | W46: 0 | X46: 0 | Y46: 0 | Z46: 0 | AA46: 0 | AB46: 0 | AC46: 0 | AD46: 0 | AE46: 0 | AF46: 0 | AG46: 0 | AH46: 0 | AI46: 0 | AJ46: 0 | AK46: 0 | AL46: 0 | AM46: 0 | AN46: 0 | AO46: 0 | AP46: 0 | AQ46: 0 | AR46: 0 | AS46: 0 | AT46: 0 | AU46: 0 | AV46: 0
H47: =H35+SUM(H40:H46) -> 77,781 | I47: =I35+SUM(I40:I46) -> 11,128 | J47: =J35+SUM(J40:J46) -> 6,949 | K47: 4,243 | L47: 4,183 | M47: 874 | N47: 0 | O47: 0 | P47: 0 | Q47: 0 | R47: 0 | S47: 0 | T47: 0 | U47: 0 | V47: 0 | W47: 0 | X47: 0 | Y47: 0 | Z47: 0 | AA47: 0 | AB47: 0 | AC47: 0 | AD47: 0 | AE47: 0 | AF47: 0 | AG47: 0 | AH47: 0 | AI47: 0 | AJ47: 0 | AK47: 0 | AL47: 0 | AM47: 0 | AN47: 0 | AO47: 0 | AP47: 0 | AQ47: 0 | AR47: 0 | AS47: 0 | AT47: 0 | AU47: 0 | AV47: 0
B49: PRC - 5 years | D49: 5 ans | E49: 5 ans | AV49: 0
B50: PRC - 10 years | D50: 10 ans | E50: =D50 -> 10 ans | I50: 29,547 | J50: 14,111 | K50: 15,638 | L50: 7,410 | M50: 6,369 | AV50: 0
B51: CASEP - PRC 10 years | AV51: 0
B52: Contributions related to network connection | I52: -1,707 | J52: -1,552 | K52: -952 | L52: -610 | M52: -610 | AV52: 0
B53: CASEP - Capital | AV53: 0
B54: External contributions | AV54: 0
B55: Client contributions | H55: -7,393 | AV55: 0
B56: Total - Investissement | F56: =SUM(H56:AV56) -> 165,408 | H56: =SUM(H47:H55) -> 70,388 | I56: =SUM(I47:I55) -> 38,967 | J56: =SUM(J47:J55) -> 19,508 | K56: 18,929 | L56: 10,983 | M56: 6,632 | N56: 0 | O56: 0 | P56: 0 | Q56: 0 | R56: 0 | S56: 0 | T56: 0 | U56: 0 | V56: 0 | W56: 0 | X56: 0 | Y56: 0 | Z56: 0 | AA56: 0 | AB56: 0 | AC56: 0 | AD56: 0 | AE56: 0 | AF56: 0 | AG56: 0 | AH56: 0 | AI56: 0 | AJ56: 0 | AK56: 0 | AL56: 0 | AM56: 0 | AN56: 0 | AO56: 0 | AP56: 0 | AQ56: 0 | AR56: 0 | AS56: 0 | AT56: 0 | AU56: 0 | AV56: 0
A58: 1.3 | B58: O&M costs (3867, phase A) | I58: =$I$22 -> 2018 | J58: =I58+1 -> 2019 | K58: =J58+1 -> 2020 | L58: 2021 | M58: 2022 | N58: 2023 | O58: 2024 | P58: 2025 | Q58: 2026 | R58: 2027 | S58: 2028 | T58: 2029 | U58: 2030 | V58: 2031 | W58: 2032 | X58: 2033 | Y58: 2034 | Z58: 2035 | AA58: 2036 | AB58: 2037 | AC58: 2038 | AD58: 2039 | AE58: 2040 | AF58: 2041 | AG58: 2042 | AH58: 2043 | AI58: 2044 | AJ58: 2045 | AK58: 2046 | AL58: 2047 | AM58: 2048 | AN58: 2049 | AO58: 2050 | AP58: 2051 | AQ58: 2052 | AR58: 2053 | AS58: 2054 | AT58: 2055 | AU58: 2056 | AV58: 2057
B60: Opex #1 (157 $/client) | C60: 157 | D60: Statutaire | I60: =$C60*I$24 -> 1,099 | J60: 1,884 | K60: 2,512 | L60: 2,826 | M60: 3,140 | N60: 3,140 | O60: 3,140 | P60: 3,140 | Q60: 3,140 | R60: 3,140 | S60: 3,140 | T60: 3,140 | U60: 3,140 | V60: 3,140 | W60: 3,140 | X60: 3,140 | Y60: 3,140 | Z60: 3,140 | AA60: 3,140 | AB60: 3,140 | AC60: 3,140 | AD60: 3,140 | AE60: 3,140 | AF60: 3,140 | AG60: 3,140 | AH60: 3,140 | AI60: 3,140 | AJ60: 3,140 | AK60: 3,140 | AL60: 3,140 | AM60: 3,140 | AN60: 3,140 | AO60: 3,140 | AP60: 3,140 | AQ60: 3,140 | AR60: 3,140 | AS60: 3,140 | AT60: 3,140 | AU60: 3,140 | AV60: 3,140
B61: Opex #2 | I61: 0 | J61: =I61 -> 0 | K61: =J61 -> 0 | L61: 0 | M61: 0 | N61: 0 | O61: 0 | P61: 0 | Q61: 0 | R61: 0 | S61: 0 | T61: 0 | U61: 0 | V61: 0 | W61: 0 | X61: 0 | Y61: 0 | Z61: 0 | AA61: 0 | AB61: 0 | AC61: 0 | AD61: 0 | AE61: 0 | AF61: 0 | AG61: 0 | AH61: 0 | AI61: 0 | AJ61: 0 | AK61: 0 | AL61: 0 | AM61: 0 | AN61: 0 | AO61: 0 | AP61: 0 | AQ61: 0 | AR61: 0 | AS61: 0 | AT61: 0 | AU61: 0 | AV61: 0
B62: Opex #3 | I62: 0 | J62: 0 | K62: 0 | L62: 0 | M62: 0 | N62: 0 | O62: 0 | P62: 0 | Q62: 0 | R62: 0 | S62: 0 | T62: 0 | U62: 0 | V62: 0 | W62: 0 | X62: 0 | Y62: 0 | Z62: 0 | AA62: 0 | AB62: 0 | AC62: 0 | AD62: 0 | AE62: 0 | AF62: 0 | AG62: 0 | AH62: 0 | AI62: 0 | AJ62: 0 | AK62: 0 | AL62: 0 | AM62: 0 | AN62: 0 | AO62: 0 | AP62: 0 | AQ62: 0 | AR62: 0 | AS62: 0 | AT62: 0 | AU62: 0 | AV62: 0
B63: Opex #4 | I63: 0 | J63: 0 | K63: 0 | L63: 0 | M63: 0 | N63: 0 | O63: 0 | P63: 0 | Q63: 0 | R63: 0 | S63: 0 | T63: 0 | U63: 0 | V63: 0 | W63: 0 | X63: 0 | Y63: 0 | Z63: 0 | AA63: 0 | AB63: 0 | AC63: 0 | AD63: 0 | AE63: 0 | AF63: 0 | AG63: 0 | AH63: 0 | AI63: 0 | AJ63: 0 | AK63: 0 | AL63: 0 | AM63: 0 | AN63: 0 | AO63: 0 | AP63: 0 | AQ63: 0 | AR63: 0 | AS63: 0 | AT63: 0 | AU63: 0 | AV63: 0
B64: Opex #5 | I64: 0 | J64: 0 | K64: 0 | L64: 0 | M64: 0 | N64: 0 | O64: 0 | P64: 0 | Q64: 0 | R64: 0 | S64: 0 | T64: 0 | U64: 0 | V64: 0 | W64: 0 | X64: 0 | Y64: 0 | Z64: 0 | AA64: 0 | AB64: 0 | AC64: 0 | AD64: 0 | AE64: 0 | AF64: 0 | AG64: 0 | AH64: 0 | AI64: 0 | AJ64: 0 | AK64: 0 | AL64: 0 | AM64: 0 | AN64: 0 | AO64: 0 | AP64: 0 | AQ64: 0 | AR64: 0 | AS64: 0 | AT64: 0 | AU64: 0 | AV64: 0
B65: Total - O&M costs | I65: =SUM(I60:I64) -> 1,099 | J65: =SUM(J60:J64) -> 1,884 | K65: =SUM(K60:K64) -> 2,512 | L65: 2,826 | M65: 3,140 | N65: 3,140 | O65: 3,140 | P65: 3,140 | Q65: 3,140 | R65: 3,140 | S65: 3,140 | T65: 3,140 | U65: 3,140 | V65: 3,140 | W65: 3,140 | X65: 3,140 | Y65: 3,140 | Z65: 3,140 | AA65: 3,140 | AB65: 3,140 | AC65: 3,140 | AD65: 3,140 | AE65: 3,140 | AF65: 3,140 | AG65: 3,140 | AH65: 3,140 | AI65: 3,140 | AJ65: 3,140 | AK65: 3,140 | AL65: 3,140 | AM65: 3,140 | AN65: 3,140 | AO65: 3,140 | AP65: 3,140 | AQ65: 3,140 | AR65: 3,140 | AS65: 3,140 | AT65: 3,140 | AU65: 3,140 | AV65: 3,140
A67: 1.4 | B67: Other operation costs
B69: Tax on utilities | F69: 1.5%
B70: Royalty rate at the Régie de l'énergie ($/103m3) | F70: 0.60455
B71: Royalty rate at the Régie du bâtiment ($/103m3) | F71: 0.45600
B72: Tax rate (CAN. + QC) | F72: 26.9%
A74: 1.5 | B74: Structure of capital - Gaz Métro
B76: Cost of capital | F76: WACC prospective
J77: 2016-2017 parameters
B78: Structure and rate | E78: Structure | F78: Rates | J78: WACC | K78: WACC prospective
B79: Liability | E79: 54.0% | F79: =IF($F$76="WACC",$J$79,IF($F$76="WACC prospective",$K$79,$L$79)) -> 2.820% | I79: Liability | J79: 4.790% | K79: 2.820%
B80: Equity | E80: 46.0% | F80: =IF($F$76="WACC",$J$80,IF($F$76="WACC prospective",$K$80,$L$80)) -> 8.168% | I80: Equity | J80: 8.333% | K80: 8.168%
B81: Weighted average cost of capital (WACC) | F81: =$E79*F79+$E80*F80 -> 5.280% | I81: Weighted average cost of capital | J81: =$E79*J79+$E80*J80 -> 6.420% | K81: =$E79*K79+$E80*K80 -> 5.280%
A84: Section 2 - Calculations | H84: 0 | I84: 1 | J84: 2 | K84: 3 | L84: 4 | M84: 5 | N84: 6 | O84: 7 | P84: 8 | Q84: 9 | R84: 10 | S84: 11 | T84: 12 | U84: 13 | V84: 14 | W84: 15 | X84: 16 | Y84: 17 | Z84: 18 | AA84: 19 | AB84: 20 | AC84: 21 | AD84: 22 | AE84: 23 | AF84: 24 | AG84: 25 | AH84: 26 | AI84: 27 | AJ84: 28 | AK84: 29 | AL84: 30 | AM84: 31 | AN84: 32 | AO84: 33 | AP84: 34 | AQ84: 35 | AR84: 36 | AS84: 37 | AT84: 38 | AU84: 39 | AV84: 40
A86: 2.1 | B86: Cost of service | I86: =$I$22 -> 2018 | J86: =I86+1 -> 2019 | K86: =J86+1 -> 2020 | L86: 2021 | M86: 2022 | N86: 2023 | O86: 2024 | P86: 2025 | Q86: 2026 | R86: 2027 | S86: 2028 | T86: 2029 | U86: 2030 | V86: 2031 | W86: 2032 | X86: 2033 | Y86: 2034 | Z86: 2035 | AA86: 2036 | AB86: 2037 | AC86: 2038 | AD86: 2039 | AE86: 2040 | AF86: 2041 | AG86: 2042 | AH86: 2043 | AI86: 2044 | AJ86: 2045 | AK86: 2046 | AL86: 2047 | AM86: 2048 | AN86: 2049 | AO86: 2050 | AP86: 2051 | AQ86: 2052 | AR86: 2053 | AS86: 2054 | AT86: 2055 | AU86: 2056 | AV86: 2057
B88: OPEX distribution cost | I88: =I65 -> 1,099 | J88: =J65 -> 1,884 | K88: 2,512 | L88: 2,826 | M88: 3,140 | N88: 3,140 | O88: 3,140 | P88: 3,140 | Q88: 3,140 | R88: 3,140 | S88: 3,140 | T88: 3,140 | U88: 3,140 | V88: 3,140 | W88: 3,140 | X88: 3,140 | Y88: 3,140 | Z88: 3,140 | AA88: 3,140 | AB88: 3,140 | AC88: 3,140 | AD88: 3,140 | AE88: 3,140 | AF88: 3,140 | AG88: 3,140 | AH88: 3,140 | AI88: 3,140 | AJ88: 3,140 | AK88: 3,140 | AL88: 3,140 | AM88: 3,140 | AN88: 3,140 | AO88: 3,140 | AP88: 3,140 | AQ88: 3,140 | AR88: 3,140 | AS88: 3,140 | AT88: 3,140 | AU88: 3,140 | AV88: 3,140
B89: Tax on utilities | I89: =$F$69*I144 -> 1,424 | J89: =$F$69*J144 -> 1,673 | K89: 1,858 | L89: 1,875 | M89: 1,868 | N89: 1,715 | O89: 1,559 | P89: 1,402 | Q89: 1,246 | R89: 1,090 | S89: 978 | T89: 887 | U89: 819 | V89: 763 | W89: 716 | X89: 670 | Y89: 623 | Z89: 576 | AA89: 529 | AB89: 483 | AC89: 436 | AD89: 403 | AE89: 376 | AF89: 354 | AG89: 334 | AH89: 316 | AI89: 299 | AJ89: 282 | AK89: 265 | AL89: 247 | AM89: 230 | AN89: 213 | AO89: 196 | AP89: 179 | AQ89: 161 | AR89: 144 | AS89: 127 | AT89: 110 | AU89: 92 | AV89: 75
B90: Royalties | I90: =($F$70+$F$71)*I25/1000 -> 22 | J90: 50 | K90: 71 | L90: 86 | M90: 94 | N90: 94 | O90: 94 | P90: 94 | Q90: 94 | R90: 94 | S90: 94 | T90: 94 | U90: 94 | V90: 94 | W90: 94 | X90: 94 | Y90: 94 | Z90: 94 | AA90: 94 | AB90: 94 | AC90: 94 | AD90: 94 | AE90: 94 | AF90: 94 | AG90: 94 | AH90: 94 | AI90: 94 | AJ90: 94 | AK90: 94 | AL90: 94 | AM90: 94 | AN90: 94 | AO90: 94 | AP90: 94 | AQ90: 94 | AR90: 94 | AS90: 94 | AT90: 94 | AU90: 94 | AV90: 94
B91: Amortissement des immobilisations | I91: =-I141 -> 5,028 | J91: =-J141 -> 6,887 | K91: 8,707 | L91: 9,605 | M91: 10,411 | N91: 10,424 | O91: 10,424 | P91: 10,424 | Q91: 10,424 | R91: 10,424 | S91: 7,469 | T91: 6,058 | U91: 4,494 | V91: 3,753 | W91: 3,116 | X91: 3,116 | Y91: 3,116 | Z91: 3,116 | AA91: 3,116 | AB91: 3,116 | AC91: 3,116 | AD91: 2,218 | AE91: 1,757 | AF91: 1,494 | AG91: 1,335 | AH91: 1,166 | AI91: 1,148 | AJ91: 1,148 | AK91: 1,148 | AL91: 1,148 | AM91: 1,148 | AN91: 1,148 | AO91: 1,148 | AP91: 1,148 | AQ91: 1,148 | AR91: 1,148 | AS91: 1,148 | AT91: 1,148 | AU91: 1,148 | AV91: 1,148
B92: Tax | I92: =I171 -> 1,207 | J92: =J171 -> 846 | K92: 1,050 | L92: 1,169 | M92: 1,260 | N92: 1,207 | O92: 1,156 | P92: 1,102 | Q92: 1,042 | R92: 978 | S92: 929 | T92: 905 | U92: 899 | V92: 904 | W92: 914 | X92: 926 | Y92: 935 | Z92: 940 | AA92: 943 | AB92: 942 | AC92: 939 | AD92: 610 | AE92: 448 | AF92: 363 | AG92: 316 | AH92: 266 | AI92: 271 | AJ92: 281 | AK92: 290 | AL92: 297 | AM92: 303 | AN92: 307 | AO92: 311 | AP92: 313 | AQ92: 314 | AR92: 314 | AS92: 313 | AT92: 311 | AU92: 309 | AV92: 305
B93: Return of investment | I93: =$F$81*I105 -> 4,664 | J93: =$F$81*J105 -> 5,843 | K93: 6,517 | L93: 6,732 | M93: 6,745 | N93: 6,313 | O93: 5,762 | P93: 5,212 | Q93: 4,662 | R93: 4,111 | S93: 3,639 | T93: 3,282 | U93: 3,003 | V93: 2,785 | W93: 2,604 | X93: 2,439 | Y93: 2,275 | Z93: 2,110 | AA93: 1,946 | AB93: 1,781 | AC93: 1,617 | AD93: 1,476 | AE93: 1,371 | AF93: 1,285 | AG93: 1,210 | AH93: 1,144 | AI93: 1,083 | AJ93: 1,023 | AK93: 962 | AL93: 901 | AM93: 841 | AN93: 780 | AO93: 720 | AP93: 659 | AQ93: 598 | AR93: 538 | AS93: 477 | AT93: 416 | AU93: 356 | AV93: 295
B94: Total - Cost of service | I94: =SUM(I88:I93) -> 13,443 | J94: 17,182 | K94: 20,715 | L94: 22,292 | M94: 23,518 | N94: 22,893 | O94: 22,135 | P94: 21,374 | Q94: 20,608 | R94: 19,836 | S94: 16,248 | T94: 14,366 | U94: 12,449 | V94: 11,439 | W94: 10,585 | X94: 10,385 | Y94: 10,183 | Z94: 9,977 | AA94: 9,768 | AB94: 9,556 | AC94: 9,342 | AD94: 7,940 | AE94: 7,186 | AF94: 6,730 | AG94: 6,429 | AH94: 6,126 | AI94: 6,036 | AJ94: 5,968 | AK94: 5,899 | AL94: 5,828 | AM94: 5,756 | AN94: 5,682 | AO94: 5,608 | AP94: 5,532 | AQ94: 5,455 | AR94: 5,378 | AS94: 5,299 | AT94: 5,219 | AU94: 5,139 | AV94: 5,057
B96: Rate related to the cost of service (¢ / m3) | I96: =IFERROR(100*I94/I25,"-") -> 65.496 | J96: 36.649 | K96: 30.803 | L96: 27.615 | M96: 26.619 | N96: 25.912 | O96: 25.054 | P96: 24.192 | Q96: 23.325 | R96: 22.452 | S96: 18.391 | T96: 16.260 | U96: 14.091 | V96: 12.948 | W96: 11.981 | X96: 11.755 | Y96: 11.525 | Z96: 11.292 | AA96: 11.056 | AB96: 10.816 | AC96: 10.574 | AD96: 8.987 | AE96: 8.133 | AF96: 7.617 | AG96: 7.277 | AH96: 6.933 | AI96: 6.832 | AJ96: 6.755 | AK96: 6.676 | AL96: 6.596 | AM96: 6.515 | AN96: 6.432 | AO96: 6.347 | AP96: 6.262 | AQ96: 6.175 | AR96: 6.087 | AS96: 5.998 | AT96: 5.907 | AU96: 5.816 | AV96: 5.724
A98: 2.2 | B98: Rate base | I98: =$I$22 -> 2018 | J98: =I98+1 -> 2019 | K98: =J98+1 -> 2020 | L98: 2021 | M98: 2022 | N98: 2023 | O98: 2024 | P98: 2025 | Q98: 2026 | R98: 2027 | S98: 2028 | T98: 2029 | U98: 2030 | V98: 2031 | W98: 2032 | X98: 2033 | Y98: 2034 | Z98: 2035 | AA98: 2036 | AB98: 2037 | AC98: 2038 | AD98: 2039 | AE98: 2040 | AF98: 2041 | AG98: 2042 | AH98: 2043 | AI98: 2044 | AJ98: 2045 | AK98: 2046 | AL98: 2047 | AM98: 2048 | AN98: 2049 | AO98: 2050 | AP98: 2051 | AQ98: 2052 | AR98: 2053 | AS98: 2054 | AT98: 2055 | AU98: 2056 | AV98: 2057
B100: Equity decrease | I100: =-$E$80*I141/2-$E$80*I129*9/13-$E$80*I130*9/13-$E$80*I131*9/13 -> -8,253 | J100: =-$E$80*I$132+$E$80*I129*9/13+$E$80*I130*9/13+$E$80*I131*9/13-$E$80*I141/2-$E$80*J141/2-$E$80*J129*9/13-$E$80*J130*9/13-$E$80*J131*9/13 -> -10,269 | K100: =-$E$80*J$132+$E$80*J129*9/13+$E$80*J130*9/13+$E$80*J131*9/13-$E$80*J141/2-$E$80*K141/2-$E$80*K129*9/13-$E$80*K130*9/13-$E$80*K131*9/13 -> -5,874 | L100: -1,876 | M100: -117 | N100: 3,769 | O100: 4,795 | P100: 4,795 | Q100: 4,795 | R100: 4,795 | S100: 4,115 | T100: 3,111 | U100: 2,427 | V100: 1,897 | W100: 1,580 | X100: 1,434 | Y100: 1,434 | Z100: 1,434 | AA100: 1,434 | AB100: 1,434 | AC100: 1,434 | AD100: 1,227 | AE100: 914 | AF100: 748 | AG100: 651 | AH100: 575 | AI100: 532 | AJ100: 528 | AK100: 528 | AL100: 528 | AM100: 528 | AN100: 528 | AO100: 528 | AP100: 528 | AQ100: 528 | AR100: 528 | AS100: 528 | AT100: 528 | AU100: 528 | AV100: 528
B101: Liability reimbursement | I101: =-$E$79*I141/2-$E$79*I129*9/13-$E$79*I130*9/13-$E$79*I131*9/13 -> -9,688 | J101: =-$E$79*I$132+$E$79*I129*9/13+$E$79*I130*9/13+$E$79*I131*9/13-$E$79*I141/2-$E$79*J141/2-$E$79*J129*9/13-$E$79*J130*9/13-$E$79*J131*9/13 -> -12,055 | K101: =-$E$79*J$132+$E$79*J129*9/13+$E$79*J130*9/13+$E$79*J131*9/13-$E$79*J141/2-$E$79*K141/2-$E$79*K129*9/13-$E$79*K130*9/13-$E$79*K131*9/13 -> -6,895 | L101: -2,202 | M101: -137 | N101: 4,425 | O101: 5,629 | P101: 5,629 | Q101: 5,629 | R101: 5,629 | S101: 4,831 | T101: 3,652 | U101: 2,849 | V101: 2,227 | W101: 1,855 | X101: 1,683 | Y101: 1,683 | Z101: 1,683 | AA101: 1,683 | AB101: 1,683 | AC101: 1,683 | AD101: 1,440 | AE101: 1,073 | AF101: 878 | AG101: 764 | AH101: 675 | AI101: 625 | AJ101: 620 | AK101: 620 | AL101: 620 | AM101: 620 | AN101: 620 | AO101: 620 | AP101: 620 | AQ101: 620 | AR101: 620 | AS101: 620 | AT101: 620 | AU101: 620 | AV101: 620
B103: Equity | H103: =($H$132)*$E$80 -> 32,379 | I103: =H103-I100 -> 40,632 | J103: =I103-J100 -> 50,901 | K103: =J103-K100 -> 56,774 | L103: 58,650 | M103: 58,766 | N103: 54,997 | O103: 50,202 | P103: 45,407 | Q103: 40,612 | R103: 35,817 | S103: 31,702 | T103: 28,590 | U103: 26,163 | V103: 24,266 | W103: 22,686 | X103: 21,252 | Y103: 19,819 | Z103: 18,385 | AA103: 16,952 | AB103: 15,518 | AC103: 14,085 | AD103: 12,858 | AE103: 11,943 | AF103: 11,196 | AG103: 10,545 | AH103: 9,970 | AI103: 9,438 | AJ103: 8,909 | AK103: 8,381 | AL103: 7,853 | AM103: 7,325 | AN103: 6,797 | AO103: 6,269 | AP103: 5,741 | AQ103: 5,212 | AR103: 4,684 | AS103: 4,156 | AT103: 3,628 | AU103: 3,100 | AV103: 2,572
B104: Liability | H104: =($H$132)*$E$79 -> 38,010 | I104: =H104-I101 -> 47,698 | J104: 59,753 | K104: 66,648 | L104: 68,850 | M104: 68,987 | N104: 64,562 | O104: 58,933 | P104: 53,304 | Q104: 47,675 | R104: 42,046 | S104: 37,215 | T104: 33,562 | U104: 30,713 | V104: 28,486 | W104: 26,631 | X104: 24,949 | Y104: 23,266 | Z104: 21,583 | AA104: 19,900 | AB104: 18,217 | AC104: 16,534 | AD104: 15,094 | AE104: 14,021 | AF104: 13,143 | AG104: 12,379 | AH104: 11,704 | AI104: 11,079 | AJ104: 10,459 | AK104: 9,839 | AL104: 9,219 | AM104: 8,599 | AN104: 7,979 | AO104: 7,359 | AP104: 6,739 | AQ104: 6,119 | AR104: 5,499 | AS104: 4,879 | AT104: 4,259 | AU104: 3,639 | AV104: 3,019
B105: Total - Average rate base | H105: =H103+H104 -> 70,388 | I105: =I103+I104 -> 88,330 | J105: =J103+J104 -> 110,654 | K105: =K103+K104 -> 123,422 | L105: 127,500 | M105: 127,753 | N105: 119,559 | O105: 109,135 | P105: 98,711 | Q105: 88,287 | R105: 77,863 | S105: 68,916 | T105: 62,153 | U105: 56,876 | V105: 52,752 | W105: 49,318 | X105: 46,201 | Y105: 43,085 | Z105: 39,968 | AA105: 36,852 | AB105: 33,735 | AC105: 30,619 | AD105: 27,951 | AE105: 25,964 | AF105: 24,339 | AG105: 22,924 | AH105: 21,674 | AI105: 20,517 | AJ105: 19,368 | AK105: 18,220 | AL105: 17,072 | AM105: 15,924 | AN105: 14,776 | AO105: 13,628 | AP105: 12,480 | AQ105: 11,331 | AR105: 10,183 | AS105: 9,035 | AT105: 7,887 | AU105: 6,739 | AV105: 5,591
A107: 2.3 | B107: Accounting and fiscal depreciation | H107: =I107-1 -> 2017 | I107: =$I$22 -> 2018 | J107: =I107+1 -> 2019 | K107: =J107+1 -> 2020 | L107: 2021 | M107: 2022 | N107: 2023 | O107: 2024 | P107: 2025 | Q107: 2026 | R107: 2027 | S107: 2028 | T107: 2029 | U107: 2030 | V107: 2031 | W107: 2032 | X107: 2033 | Y107: 2034 | Z107: 2035 | AA107: 2036 | AB107: 2037 | AC107: 2038 | AD107: 2039 | AE107: 2040 | AF107: 2041 | AG107: 2042 | AH107: 2043 | AI107: 2044 | AJ107: 2045 | AK107: 2046 | AL107: 2047 | AM107: 2048 | AN107: 2049 | AO107: 2050 | AP107: 2051 | AQ107: 2052 | AR107: 2053 | AS107: 2054 | AT107: 2055 | AU107: 2056 | AV107: 2057
B109: Sharing of the capitalized general expenses and contributions
B111: Répartition UMQ - Conduite | H111: =IFERROR(H33/(H33+H37),0) -> 70.8% | I111: 0.0% | J111: 0.0% | K111: 0.0% | L111: 0.0% | M111: 0.0% | N111: 0.0% | O111: 0.0% | P111: 0.0% | Q111: 0.0% | R111: 0.0% | S111: 0.0% | T111: 0.0% | U111: 0.0% | V111: 0.0% | W111: 0.0% | X111: 0.0% | Y111: 0.0% | Z111: 0.0% | AA111: 0.0% | AB111: 0.0% | AC111: 0.0% | AD111: 0.0% | AE111: 0.0% | AF111: 0.0% | AG111: 0.0% | AH111: 0.0% | AI111: 0.0% | AJ111: 0.0% | AK111: 0.0% | AL111: 0.0% | AM111: 0.0% | AN111: 0.0% | AO111: 0.0% | AP111: 0.0% | AQ111: 0.0% | AR111: 0.0% | AS111: 0.0% | AT111: 0.0% | AU111: 0.0% | AV111: 0.0%
B112: Répartition UMQ - Branchement | H112: =IFERROR(H37/(H33+H37),0) -> 29.2% | I112: 100.0% | J112: 100.0% | K112: 100.0% | L112: 100.0% | M112: 100.0% | N112: 0.0% | O112: 0.0% | P112: 0.0% | Q112: 0.0% | R112: 0.0% | S112: 0.0% | T112: 0.0% | U112: 0.0% | V112: 0.0% | W112: 0.0% | X112: 0.0% | Y112: 0.0% | Z112: 0.0% | AA112: 0.0% | AB112: 0.0% | AC112: 0.0% | AD112: 0.0% | AE112: 0.0% | AF112: 0.0% | AG112: 0.0% | AH112: 0.0% | AI112: 0.0% | AJ112: 0.0% | AK112: 0.0% | AL112: 0.0% | AM112: 0.0% | AN112: 0.0% | AO112: 0.0% | AP112: 0.0% | AQ112: 0.0% | AR112: 0.0% | AS112: 0.0% | AT112: 0.0% | AU112: 0.0% | AV112: 0.0%
B114: Sharing of the capitalized general expenses - Main line | H114: =IFERROR((H33+H34+H45*H111)/(H33+H34+H37+H38+H39+H41+H42+H43+H45),0) -> 70.4% | I114: =IFERROR((I33+I34+I45*I111)/(I33+I34+I37+I38+I39+I45),0) -> 0.0% | J114: 0.0% | K114: 0.0% | L114: 0.0% | M114: 0.0% | N114: 0.0% | O114: 0.0% | P114: 0.0% | Q114: 0.0% | R114: 0.0% | S114: 0.0% | T114: 0.0% | U114: 0.0% | V114: 0.0% | W114: 0.0% | X114: 0.0% | Y114: 0.0% | Z114: 0.0% | AA114: 0.0% | AB114: 0.0% | AC114: 0.0% | AD114: 0.0% | AE114: 0.0% | AF114: 0.0% | AG114: 0.0% | AH114: 0.0% | AI114: 0.0% | AJ114: 0.0% | AK114: 0.0% | AL114: 0.0% | AM114: 0.0% | AN114: 0.0% | AO114: 0.0% | AP114: 0.0% | AQ114: 0.0% | AR114: 0.0% | AS114: 0.0% | AT114: 0.0% | AU114: 0.0% | AV114: 0.0%
B115: Sharing of the capitalized general expenses - Connection | H115: =IFERROR((H37+H38+H39+H45*H112)/(H33+H34+H37+H38+H39+H41+H42+H43+H45),0) -> 29.6% | I115: =IFERROR((I37+I38+I39+I45*I112)/(I33+I34+I37+I38+I39+I45),0) -> 100.0% | J115: 100.0% | K115: 100.0% | L115: 100.0% | M115: 100.0% | N115: 0.0% | O115: 0.0% | P115: 0.0% | Q115: 0.0% | R115: 0.0% | S115: 0.0% | T115: 0.0% | U115: 0.0% | V115: 0.0% | W115: 0.0% | X115: 0.0% | Y115: 0.0% | Z115: 0.0% | AA115: 0.0% | AB115: 0.0% | AC115: 0.0% | AD115: 0.0% | AE115: 0.0% | AF115: 0.0% | AG115: 0.0% | AH115: 0.0% | AI115: 0.0% | AJ115: 0.0% | AK115: 0.0% | AL115: 0.0% | AM115: 0.0% | AN115: 0.0% | AO115: 0.0% | AP115: 0.0% | AQ115: 0.0% | AR115: 0.0% | AS115: 0.0% | AT115: 0.0% | AU115: 0.0% | AV115: 0.0%
B116: ="Répartition Fais généraux - "&$B$41 -> Répartition Fais généraux - Compression | H116: =IFERROR(H$41/(H$33+H$34+H$37+H$38+H$39+H$41+H$42+H$43+H$45),0) -> 0.0% | I116: 0.0% | J116: 0.0% | K116: 0.0% | L116: 0.0% | M116: 0.0% | N116: 0.0% | O116: 0.0% | P116: 0.0% | Q116: 0.0% | R116: 0.0% | S116: 0.0% | T116: 0.0% | U116: 0.0% | V116: 0.0% | W116: 0.0% | X116: 0.0% | Y116: 0.0% | Z116: 0.0% | AA116: 0.0% | AB116: 0.0% | AC116: 0.0% | AD116: 0.0% | AE116: 0.0% | AF116: 0.0% | AG116: 0.0% | AH116: 0.0% | AI116: 0.0% | AJ116: 0.0% | AK116: 0.0% | AL116: 0.0% | AM116: 0.0% | AN116: 0.0% | AO116: 0.0% | AP116: 0.0% | AQ116: 0.0% | AR116: 0.0% | AS116: 0.0% | AT116: 0.0% | AU116: 0.0% | AV116: 0.0%
B117: ="Répartition Fais généraux - "&$B$42 -> Répartition Fais généraux - Servitude | H117: =IFERROR(H$42/(H$33+H$34+H$37+H$38+H$39+H$41+H$42+H$43+H$45),0) -> 0.0% | I117: 0.0% | J117: 0.0% | K117: 0.0% | L117: 0.0% | M117: 0.0% | N117: 0.0% | O117: 0.0% | P117: 0.0% | Q117: 0.0% | R117: 0.0% | S117: 0.0% | T117: 0.0% | U117: 0.0% | V117: 0.0% | W117: 0.0% | X117: 0.0% | Y117: 0.0% | Z117: 0.0% | AA117: 0.0% | AB117: 0.0% | AC117: 0.0% | AD117: 0.0% | AE117: 0.0% | AF117: 0.0% | AG117: 0.0% | AH117: 0.0% | AI117: 0.0% | AJ117: 0.0% | AK117: 0.0% | AL117: 0.0% | AM117: 0.0% | AN117: 0.0% | AO117: 0.0% | AP117: 0.0% | AQ117: 0.0% | AR117: 0.0% | AS117: 0.0% | AT117: 0.0% | AU117: 0.0% | AV117: 0.0%
B118: ="Répartition Fais généraux - "&$B$43 -> Répartition Fais généraux - Transport | H118: =IFERROR(H$43/(H$33+H$34+H$37+H$38+H$39+H$41+H$42+H$43+H$45),0) -> 0.0% | I118: 0.0% | J118: 0.0% | K118: 0.0% | L118: 0.0% | M118: 0.0% | N118: 0.0% | O118: 0.0% | P118: 0.0% | Q118: 0.0% | R118: 0.0% | S118: 0.0% | T118: 0.0% | U118: 0.0% | V118: 0.0% | W118: 0.0% | X118: 0.0% | Y118: 0.0% | Z118: 0.0% | AA118: 0.0% | AB118: 0.0% | AC118: 0.0% | AD118: 0.0% | AE118: 0.0% | AF118: 0.0% | AG118: 0.0% | AH118: 0.0% | AI118: 0.0% | AJ118: 0.0% | AK118: 0.0% | AL118: 0.0% | AM118: 0.0% | AN118: 0.0% | AO118: 0.0% | AP118: 0.0% | AQ118: 0.0% | AR118: 0.0% | AS118: 0.0% | AT118: 0.0% | AU118: 0.0% | AV118: 0.0%
B120: Sharing of the contributions - Main line | H120: =(SUM($H$35:$AV$35)+SUMPRODUCT($H$114:$AV$114,$H$46:$AV$46))/(SUM($H$35:$AV$35)+SUM($H$40:$AV$40)+SUM($H$46:$AV$46)) -> 52.1% | I120: 52.1% | J120: 52.1% | K120: 52.1% | L120: 52.1% | M120: 52.1% | N120: 52.1% | O120: 52.1% | P120: 52.1% | Q120: 52.1% | R120: 52.1% | S120: 52.1% | T120: 52.1% | U120: 52.1% | V120: 52.1% | W120: 52.1% | X120: 52.1% | Y120: 52.1% | Z120: 52.1% | AA120: 52.1% | AB120: 52.1% | AC120: 52.1% | AD120: 52.1% | AE120: 52.1% | AF120: 52.1% | AG120: 52.1% | AH120: 52.1% | AI120: 52.1% | AJ120: 52.1% | AK120: 52.1% | AL120: 52.1% | AM120: 52.1% | AN120: 52.1% | AO120: 52.1% | AP120: 52.1% | AQ120: 52.1% | AR120: 52.1% | AS120: 52.1% | AT120: 52.1% | AU120: 52.1% | AV120: 52.1%
B121: Sharing of the contributions - Connection | H121: =(SUM($H$40:$AV$40)+SUMPRODUCT($H$115:$AV$115,$H$46:$AV$46))/(SUM($H$35:$AV$35)+SUM($H$40:$AV$40)+SUM($H$46:$AV$46)) -> 47.9% | I121: 47.9% | J121: 47.9% | K121: 47.9% | L121: 47.9% | M121: 47.9% | N121: 47.9% | O121: 47.9% | P121: 47.9% | Q121: 47.9% | R121: 47.9% | S121: 47.9% | T121: 47.9% | U121: 47.9% | V121: 47.9% | W121: 47.9% | X121: 47.9% | Y121: 47.9% | Z121: 47.9% | AA121: 47.9% | AB121: 47.9% | AC121: 47.9% | AD121: 47.9% | AE121: 47.9% | AF121: 47.9% | AG121: 47.9% | AH121: 47.9% | AI121: 47.9% | AJ121: 47.9% | AK121: 47.9% | AL121: 47.9% | AM121: 47.9% | AN121: 47.9% | AO121: 47.9% | AP121: 47.9% | AQ121: 47.9% | AR121: 47.9% | AS121: 47.9% | AT121: 47.9% | AU121: 47.9% | AV121: 47.9%
F122: Total
B123: =B35 -> Main line - Total | F123: =SUM(H123:AV123) -> 50,942 | H123: =H35+H$111*H$45+H$114*H$46+H$120*(H$53+H$54+H$55) -> 50,942 | I123: 0 | J123: 0 | K123: 0 | L123: 0 | M123: 0 | N123: 0 | O123: 0 | P123: 0 | Q123: 0 | R123: 0 | S123: 0 | T123: 0 | U123: 0 | V123: 0 | W123: 0 | X123: 0 | Y123: 0 | Z123: 0 | AA123: 0 | AB123: 0 | AC123: 0 | AD123: 0 | AE123: 0 | AF123: 0 | AG123: 0 | AH123: 0 | AI123: 0 | AJ123: 0 | AK123: 0 | AL123: 0 | AM123: 0 | AN123: 0 | AO123: 0 | AP123: 0 | AQ123: 0 | AR123: 0 | AS123: 0 | AT123: 0 | AU123: 0 | AV123: 0
B124: =B40 -> Connection - Total | F124: =SUM(H124:AV124) -> 41,391 | H124: =H40+H$112*H$45+H$115*H$46+H$121*(H$53+H$54+H$55)+H$52 -> 19,446 | I124: 9,421 | J124: 5,397 | K124: 3,291 | L124: 3,572 | M124: 263 | N124: 0 | O124: 0 | P124: 0 | Q124: 0 | R124: 0 | S124: 0 | T124: 0 | U124: 0 | V124: 0 | W124: 0 | X124: 0 | Y124: 0 | Z124: 0 | AA124: 0 | AB124: 0 | AC124: 0 | AD124: 0 | AE124: 0 | AF124: 0 | AG124: 0 | AH124: 0 | AI124: 0 | AJ124: 0 | AK124: 0 | AL124: 0 | AM124: 0 | AN124: 0 | AO124: 0 | AP124: 0 | AQ124: 0 | AR124: 0 | AS124: 0 | AT124: 0 | AU124: 0 | AV124: 0
B125: =B41 -> Compression | F125: 0 | H125: =H41+H$116*H$46 -> 0 | I125: 0 | J125: 0 | K125: 0 | L125: 0 | M125: 0 | N125: 0 | O125: 0 | P125: 0 | Q125: 0 | R125: 0 | S125: 0 | T125: 0 | U125: 0 | V125: 0 | W125: 0 | X125: 0 | Y125: 0 | Z125: 0 | AA125: 0 | AB125: 0 | AC125: 0 | AD125: 0 | AE125: 0 | AF125: 0 | AG125: 0 | AH125: 0 | AI125: 0 | AJ125: 0 | AK125: 0 | AL125: 0 | AM125: 0 | AN125: 0 | AO125: 0 | AP125: 0 | AQ125: 0 | AR125: 0 | AS125: 0 | AT125: 0 | AU125: 0 | AV125: 0
B126: =B42 -> Servitude | F126: 0 | H126: =H42+H$117*H$46 -> 0 | I126: 0 | J126: 0 | K126: 0 | L126: 0 | M126: 0 | N126: 0 | O126: 0 | P126: 0 | Q126: 0 | R126: 0 | S126: 0 | T126: 0 | U126: 0 | V126: 0 | W126: 0 | X126: 0 | Y126: 0 | Z126: 0 | AA126: 0 | AB126: 0 | AC126: 0 | AD126: 0 | AE126: 0 | AF126: 0 | AG126: 0 | AH126: 0 | AI126: 0 | AJ126: 0 | AK126: 0 | AL126: 0 | AM126: 0 | AN126: 0 | AO126: 0 | AP126: 0 | AQ126: 0 | AR126: 0 | AS126: 0 | AT126: 0 | AU126: 0 | AV126: 0
B127: =B43 -> Transport | F127: 0 | H127: =H43+H$118*H$46 -> 0 | I127: 0 | J127: 0 | K127: 0 | L127: 0 | M127: 0 | N127: 0 | O127: 0 | P127: 0 | Q127: 0 | R127: 0 | S127: 0 | T127: 0 | U127: 0 | V127: 0 | W127: 0 | X127: 0 | Y127: 0 | Z127: 0 | AA127: 0 | AB127: 0 | AC127: 0 | AD127: 0 | AE127: 0 | AF127: 0 | AG127: 0 | AH127: 0 | AI127: 0 | AJ127: 0 | AK127: 0 | AL127: 0 | AM127: 0 | AN127: 0 | AO127: 0 | AP127: 0 | AQ127: 0 | AR127: 0 | AS127: 0 | AT127: 0 | AU127: 0 | AV127: 0
B128: Actif non amortissable (terrain) | F128: =SUM(H128:AV128) -> 0 | H128: =H44*(1+$F44) -> 0 | I128: =I44*(1+$F44) -> 0 | J128: =J44*(1+$F44) -> 0 | K128: 0 | L128: 0 | M128: 0 | N128: 0 | O128: 0 | P128: 0 | Q128: 0 | R128: 0 | S128: 0 | T128: 0 | U128: 0 | V128: 0 | W128: 0 | X128: 0 | Y128: 0 | Z128: 0 | AA128: 0 | AB128: 0 | AC128: 0 | AD128: 0 | AE128: 0 | AF128: 0 | AG128: 0 | AH128: 0 | AI128: 0 | AJ128: 0 | AK128: 0 | AL128: 0 | AM128: 0 | AN128: 0 | AO128: 0 | AP128: 0 | AQ128: 0 | AR128: 0 | AS128: 0 | AT128: 0 | AU128: 0 | AV128: 0
B129: PRC - 5 ans | F129: =SUM(H129:AV129) -> 0 | I129: =I49 -> 0 | J129: 0 | K129: 0 | L129: 0 | M129: 0 | N129: 0 | O129: 0 | P129: 0 | Q129: 0 | R129: 0 | S129: 0 | T129: 0 | U129: 0 | V129: 0 | W129: 0 | X129: 0 | Y129: 0 | Z129: 0 | AA129: 0 | AB129: 0 | AC129: 0 | AD129: 0 | AE129: 0 | AF129: 0 | AG129: 0 | AH129: 0 | AI129: 0 | AJ129: 0 | AK129: 0 | AL129: 0 | AM129: 0 | AN129: 0 | AO129: 0 | AP129: 0 | AQ129: 0 | AR129: 0 | AS129: 0 | AT129: 0 | AU129: 0 | AV129: 0
B130: PRC - 10 ans | F130: =SUM(H130:AV130) -> 73,075 | I130: 29,547 | J130: 14,111 | K130: 15,638 | L130: 7,410 | M130: 6,369 | N130: 0 | O130: 0 | P130: 0 | Q130: 0 | R130: 0 | S130: 0 | T130: 0 | U130: 0 | V130: 0 | W130: 0 | X130: 0 | Y130: 0 | Z130: 0 | AA130: 0 | AB130: 0 | AC130: 0 | AD130: 0 | AE130: 0 | AF130: 0 | AG130: 0 | AH130: 0 | AI130: 0 | AJ130: 0 | AK130: 0 | AL130: 0 | AM130: 0 | AN130: 0 | AO130: 0 | AP130: 0 | AQ130: 0 | AR130: 0 | AS130: 0 | AT130: 0 | AU130: 0 | AV130: 0
B131: CASEP PRC - 10 ans | F131: =SUM(H131:AV131) -> 0 | I131: 0 | J131: 0 | K131: 0 | L131: 0 | M131: 0 | N131: 0 | O131: 0 | P131: 0 | Q131: 0 | R131: 0 | S131: 0 | T131: 0 | U131: 0 | V131: 0 | W131: 0 | X131: 0 | Y131: 0 | Z131: 0 | AA131: 0 | AB131: 0 | AC131: 0 | AD131: 0 | AE131: 0 | AF131: 0 | AG131: 0 | AH131: 0 | AI131: 0 | AJ131: 0 | AK131: 0 | AL131: 0 | AM131: 0 | AN131: 0 | AO131: 0 | AP131: 0 | AQ131: 0 | AR131: 0 | AS131: 0 | AT131: 0 | AU131: 0 | AV131: 0
F132: =SUM(H132:AV132) -> 165,408 | H132: =SUM(H123:H131) -> 70,388 | I132: =SUM(I123:I131) -> 38,967 | J132: =SUM(J123:J131) -> 19,508 | K132: 18,929 | L132: 10,983 | M132: 6,632 | N132: 0 | O132: 0 | P132: 0 | Q132: 0 | R132: 0 | S132: 0 | T132: 0 | U132: 0 | V132: 0 | W132: 0 | X132: 0 | Y132: 0 | Z132: 0 | AA132: 0 | AB132: 0 | AC132: 0 | AD132: 0 | AE132: 0 | AF132: 0 | AG132: 0 | AH132: 0 | AI132: 0 | AJ132: 0 | AK132: 0 | AL132: 0 | AM132: 0 | AN132: 0 | AO132: 0 | AP132: 0 | AQ132: 0 | AR132: 0 | AS132: 0 | AT132: 0 | AU132: 0 | AV132: =SUM(AV123:AV131) -> 0
B133: Accounting depreciation
B134: ="Amort. - "&B35 -> Amort. - Main line - Total | F134: =D35 -> 44.4 ans | I134: =-SUM(OFFSET(H123,0,-MIN(I$84-1,ROUNDDOWN($F134-1,0))):H123)/$F134-IF(I$84>$F134,(OFFSET(H123,0,-ROUNDUP($F134-1,0))-(ROUNDDOWN($F134,0)*(OFFSET(H123,0,-ROUNDUP($F134-1,0))/$F134))),0) -> -1,148 | J134: =-SUM(OFFSET(I123,0,-MIN(J$84-1,ROUNDDOWN($F134-1,0))):I123)/$F134-IF(J$84>$F134,(OFFSET(I123,0,-ROUNDUP($F134-1,0))-(ROUNDDOWN($F134,0)*(OFFSET(I123,0,-ROUNDUP($F134-1,0))/$F134))),0) -> -1,148 | K134: =-SUM(OFFSET(J123,0,-MIN(K$84-1,ROUNDDOWN($F134-1,0))):J123)/$F134-IF(K$84>$F134,(OFFSET(J123,0,-ROUNDUP($F134-1,0))-(ROUNDDOWN($F134,0)*(OFFSET(J123,0,-ROUNDUP($F134-1,0))/$F134))),0) -> -1,148 | L134: =-SUM(OFFSET(K123,0,-MIN(L$84-1,ROUNDDOWN($F134-1,0))):K123)/$F134-IF(L$84>$F134,(OFFSET(K123,0,-ROUNDUP($F134-1,0))-(ROUNDDOWN($F134,0)*(OFFSET(K123,0,-ROUNDUP($F134-1,0))/$F134))),0) -> -1,148 | M134: =-SUM(OFFSET(L123,0,-MIN(M$84-1,ROUNDDOWN($F134-1,0))):L123)/$F134-IF(M$84>$F134,(OFFSET(L123,0,-ROUNDUP($F134-1,0))-(ROUNDDOWN($F134,0)*(OFFSET(L123,0,-ROUNDUP($F134-1,0))/$F134))),0) -> -1,148 | N134: =-SUM(OFFSET(M123,0,-MIN(N$84-1,ROUNDDOWN($F134-1,0))):M123)/$F134-IF(N$84>$F134,(OFFSET(M123,0,-ROUNDUP($F134-1,0))-(ROUNDDOWN($F134,0)*(OFFSET(M123,0,-ROUNDUP($F134-1,0))/$F134))),0) -> -1,148 | O134: =-SUM(OFFSET(N123,0,-MIN(O$84-1,ROUNDDOWN($F134-1,0))):N123)/$F134-IF(O$84>$F134,(OFFSET(N123,0,-ROUNDUP($F134-1,0))-(ROUNDDOWN($F134,0)*(OFFSET(N123,0,-ROUNDUP($F134-1,0))/$F134))),0) -> -1,148 | P134: =-SUM(OFFSET(O123,0,-MIN(P$84-1,ROUNDDOWN($F134-1,0))):O123)/$F134-IF(P$84>$F134,(OFFSET(O123,0,-ROUNDUP($F134-1,0))-(ROUNDDOWN($F134,0)*(OFFSET(O123,0,-ROUNDUP($F134-1,0))/$F134))),0) -> -1,148 | Q134: =-SUM(OFFSET(P123,0,-MIN(Q$84-1,ROUNDDOWN($F134-1,0))):P123)/$F134-IF(Q$84>$F134,(OFFSET(P123,0,-ROUNDUP($F134-1,0))-(ROUNDDOWN($F134,0)*(OFFSET(P123,0,-ROUNDUP($F134-1,0))/$F134))),0) -> -1,148 | R134: =-SUM(OFFSET(Q123,0,-MIN(R$84-1,ROUNDDOWN($F134-1,0))):Q123)/$F134-IF(R$84>$F134,(OFFSET(Q123,0,-ROUNDUP($F134-1,0))-(ROUNDDOWN($F134,0)*(OFFSET(Q123,0,-ROUNDUP($F134-1,0))/$F134))),0) -> -1,148 | S134: =-SUM(OFFSET(R123,0,-MIN(S$84-1,ROUNDDOWN($F134-1,0))):R123)/$F134-IF(S$84>$F134,(OFFSET(R123,0,-ROUNDUP($F134-1,0))-(ROUNDDOWN($F134,0)*(OFFSET(R123,0,-ROUNDUP($F134-1,0))/$F134))),0) -> -1,148 | T134: =-SUM(OFFSET(S123,0,-MIN(T$84-1,ROUNDDOWN($F134-1,0))):S123)/$F134-IF(T$84>$F134,(OFFSET(S123,0,-ROUNDUP($F134-1,0))-(ROUNDDOWN($F134,0)*(OFFSET(S123,0,-ROUNDUP($F134-1,0))/$F134))),0) -> -1,148 | U134: =-SUM(OFFSET(T123,0,-MIN(U$84-1,ROUNDDOWN($F134-1,0))):T123)/$F134-IF(U$84>$F134,(OFFSET(T123,0,-ROUNDUP($F134-1,0))-(ROUNDDOWN($F134,0)*(OFFSET(T123,0,-ROUNDUP($F134-1,0))/$F134))),0) -> -1,148 | V134: =-SUM(OFFSET(U123,0,-MIN(V$84-1,ROUNDDOWN($F134-1,0))):U123)/$F134-IF(V$84>$F134,(OFFSET(U123,0,-ROUNDUP($F134-1,0))-(ROUNDDOWN($F134,0)*(OFFSET(U123,0,-ROUNDUP($F134-1,0))/$F134))),0) -> -1,148 | W134: =-SUM(OFFSET(V123,0,-MIN(W$84-1,ROUNDDOWN($F134-1,0))):V123)/$F134-IF(W$84>$F134,(OFFSET(V123,0,-ROUNDUP($F134-1,0))-(ROUNDDOWN($F134,0)*(OFFSET(V123,0,-ROUNDUP($F134-1,0))/$F134))),0) -> -1,148 | X134: =-SUM(OFFSET(W123,0,-MIN(X$84-1,ROUNDDOWN($F134-1,0))):W123)/$F134-IF(X$84>$F134,(OFFSET(W123,0,-ROUNDUP($F134-1,0))-(ROUNDDOWN($F134,0)*(OFFSET(W123,0,-ROUNDUP($F134-1,0))/$F134))),0) -> -1,148 | Y134: =-SUM(OFFSET(X123,0,-MIN(Y$84-1,ROUNDDOWN($F134-1,0))):X123)/$F134-IF(Y$84>$F134,(OFFSET(X123,0,-ROUNDUP($F134-1,0))-(ROUNDDOWN($F134,0)*(OFFSET(X123,0,-ROUNDUP($F134-1,0))/$F134))),0) -> -1,148 | Z134: =-SUM(OFFSET(Y123,0,-MIN(Z$84-1,ROUNDDOWN($F134-1,0))):Y123)/$F134-IF(Z$84>$F134,(OFFSET(Y123,0,-ROUNDUP($F134-1,0))-(ROUNDDOWN($F134,0)*(OFFSET(Y123,0,-ROUNDUP($F134-1,0))/$F134))),0) -> -1,148 | AA134: =-SUM(OFFSET(Z123,0,-MIN(AA$84-1,ROUNDDOWN($F134-1,0))):Z123)/$F134-IF(AA$84>$F134,(OFFSET(Z123,0,-ROUNDUP($F134-1,0))-(ROUNDDOWN($F134,0)*(OFFSET(Z123,0,-ROUNDUP($F134-1,0))/$F134))),0) -> -1,148 | AB134: =-SUM(OFFSET(AA123,0,-MIN(AB$84-1,ROUNDDOWN($F134-1,0))):AA123)/$F134-IF(AB$84>$F134,(OFFSET(AA123,0,-ROUNDUP($F134-1,0))-(ROUNDDOWN($F134,0)*(OFFSET(AA123,0,-ROUNDUP($F134-1,0))/$F134))),0) -> -1,148 | AC134: =-SUM(OFFSET(AB123,0,-MIN(AC$84-1,ROUNDDOWN($F134-1,0))):AB123)/$F134-IF(AC$84>$F134,(OFFSET(AB123,0,-ROUNDUP($F134-1,0))-(ROUNDDOWN($F134,0)*(OFFSET(AB123,0,-ROUNDUP($F134-1,0))/$F134))),0) -> -1,148 | AD134: =-SUM(OFFSET(AC123,0,-MIN(AD$84-1,ROUNDDOWN($F134-1,0))):AC123)/$F134-IF(AD$84>$F134,(OFFSET(AC123,0,-ROUNDUP($F134-1,0))-(ROUNDDOWN($F134,0)*(OFFSET(AC123,0,-ROUNDUP($F134-1,0))/$F134))),0) -> -1,148 | AE134: =-SUM(OFFSET(AD123,0,-MIN(AE$84-1,ROUNDDOWN($F134-1,0))):AD123)/$F134-IF(AE$84>$F134,(OFFSET(AD123,0,-ROUNDUP($F134-1,0))-(ROUNDDOWN($F134,0)*(OFFSET(AD123,0,-ROUNDUP($F134-1,0))/$F134))),0) -> -1,148 | AF134: =-SUM(OFFSET(AE123,0,-MIN(AF$84-1,ROUNDDOWN($F134-1,0))):AE123)/$F134-IF(AF$84>$F134,(OFFSET(AE123,0,-ROUNDUP($F134-1,0))-(ROUNDDOWN($F134,0)*(OFFSET(AE123,0,-ROUNDUP($F134-1,0))/$F134))),0) -> -1,148 | AG134: =-SUM(OFFSET(AF123,0,-MIN(AG$84-1,ROUNDDOWN($F134-1,0))):AF123)/$F134-IF(AG$84>$F134,(OFFSET(AF123,0,-ROUNDUP($F134-1,0))-(ROUNDDOWN($F134,0)*(OFFSET(AF123,0,-ROUNDUP($F134-1,0))/$F134))),0) -> -1,148 | AH134: =-SUM(OFFSET(AG123,0,-MIN(AH$84-1,ROUNDDOWN($F134-1,0))):AG123)/$F134-IF(AH$84>$F134,(OFFSET(AG123,0,-ROUNDUP($F134-1,0))-(ROUNDDOWN($F134,0)*(OFFSET(AG123,0,-ROUNDUP($F134-1,0))/$F134))),0) -> -1,148 | AI134: =-SUM(OFFSET(AH123,0,-MIN(AI$84-1,ROUNDDOWN($F134-1,0))):AH123)/$F134-IF(AI$84>$F134,(OFFSET(AH123,0,-ROUNDUP($F134-1,0))-(ROUNDDOWN($F134,0)*(OFFSET(AH123,0,-ROUNDUP($F134-1,0))/$F134))),0) -> -1,148 | AJ134: =-SUM(OFFSET(AI123,0,-MIN(AJ$84-1,ROUNDDOWN($F134-1,0))):AI123)/$F134-IF(AJ$84>$F134,(OFFSET(AI123,0,-ROUNDUP($F134-1,0))-(ROUNDDOWN($F134,0)*(OFFSET(AI123,0,-ROUNDUP($F134-1,0))/$F134))),0) -> -1,148 | AK134: =-SUM(OFFSET(AJ123,0,-MIN(AK$84-1,ROUNDDOWN($F134-1,0))):AJ123)/$F134-IF(AK$84>$F134,(OFFSET(AJ123,0,-ROUNDUP($F134-1,0))-(ROUNDDOWN($F134,0)*(OFFSET(AJ123,0,-ROUNDUP($F134-1,0))/$F134))),0) -> -1,148 | AL134: =-SUM(OFFSET(AK123,0,-MIN(AL$84-1,ROUNDDOWN($F134-1,0))):AK123)/$F134-IF(AL$84>$F134,(OFFSET(AK123,0,-ROUNDUP($F134-1,0))-(ROUNDDOWN($F134,0)*(OFFSET(AK123,0,-ROUNDUP($F134-1,0))/$F134))),0) -> -1,148 | AM134: =-SUM(OFFSET(AL123,0,-MIN(AM$84-1,ROUNDDOWN($F134-1,0))):AL123)/$F134-IF(AM$84>$F134,(OFFSET(AL123,0,-ROUNDUP($F134-1,0))-(ROUNDDOWN($F134,0)*(OFFSET(AL123,0,-ROUNDUP($F134-1,0))/$F134))),0) -> -1,148 | AN134: =-SUM(OFFSET(AM123,0,-MIN(AN$84-1,ROUNDDOWN($F134-1,0))):AM123)/$F134-IF(AN$84>$F134,(OFFSET(AM123,0,-ROUNDUP($F134-1,0))-(ROUNDDOWN($F134,0)*(OFFSET(AM123,0,-ROUNDUP($F134-1,0))/$F134))),0) -> -1,148 | AO134: =-SUM(OFFSET(AN123,0,-MIN(AO$84-1,ROUNDDOWN($F134-1,0))):AN123)/$F134-IF(AO$84>$F134,(OFFSET(AN123,0,-ROUNDUP($F134-1,0))-(ROUNDDOWN($F134,0)*(OFFSET(AN123,0,-ROUNDUP($F134-1,0))/$F134))),0) -> -1,148 | AP134: =-SUM(OFFSET(AO123,0,-MIN(AP$84-1,ROUNDDOWN($F134-1,0))):AO123)/$F134-IF(AP$84>$F134,(OFFSET(AO123,0,-ROUNDUP($F134-1,0))-(ROUNDDOWN($F134,0)*(OFFSET(AO123,0,-ROUNDUP($F134-1,0))/$F134))),0) -> -1,148 | AQ134: =-SUM(OFFSET(AP123,0,-MIN(AQ$84-1,ROUNDDOWN($F134-1,0))):AP123)/$F134-IF(AQ$84>$F134,(OFFSET(AP123,0,-ROUNDUP($F134-1,0))-(ROUNDDOWN($F134,0)*(OFFSET(AP123,0,-ROUNDUP($F134-1,0))/$F134))),0) -> -1,148 | AR134: =-SUM(OFFSET(AQ123,0,-MIN(AR$84-1,ROUNDDOWN($F134-1,0))):AQ123)/$F134-IF(AR$84>$F134,(OFFSET(AQ123,0,-ROUNDUP($F134-1,0))-(ROUNDDOWN($F134,0)*(OFFSET(AQ123,0,-ROUNDUP($F134-1,0))/$F134))),0) -> -1,148 | AS134: =-SUM(OFFSET(AR123,0,-MIN(AS$84-1,ROUNDDOWN($F134-1,0))):AR123)/$F134-IF(AS$84>$F134,(OFFSET(AR123,0,-ROUNDUP($F134-1,0))-(ROUNDDOWN($F134,0)*(OFFSET(AR123,0,-ROUNDUP($F134-1,0))/$F134))),0) -> -1,148 | AT134: =-SUM(OFFSET(AS123,0,-MIN(AT$84-1,ROUNDDOWN($F134-1,0))):AS123)/$F134-IF(AT$84>$F134,(OFFSET(AS123,0,-ROUNDUP($F134-1,0))-(ROUNDDOWN($F134,0)*(OFFSET(AS123,0,-ROUNDUP($F134-1,0))/$F134))),0) -> -1,148 | AU134: =-SUM(OFFSET(AT123,0,-MIN(AU$84-1,ROUNDDOWN($F134-1,0))):AT123)/$F134-IF(AU$84>$F134,(OFFSET(AT123,0,-ROUNDUP($F134-1,0))-(ROUNDDOWN($F134,0)*(OFFSET(AT123,0,-ROUNDUP($F134-1,0))/$F134))),0) -> -1,148 | AV134: =-SUM(OFFSET(AU123,0,-MIN(AV$84-1,ROUNDDOWN($F134-1,0))):AU123)/$F134-IF(AV$84>$F134,(OFFSET(AU123,0,-ROUNDUP($F134-1,0))-(ROUNDDOWN($F134,0)*(OFFSET(AU123,0,-ROUNDUP($F134-1,0))/$F134))),0) -> -1,148
B135: ="Amort. - "&B40 -> Amort. - Connection - Total | F135: =D40 -> 21.0 ans | I135: =-SUM(OFFSET(H124,0,-MIN(I$84-1,ROUNDDOWN($F135-1,0))):H124)/$F135-IF(I$84>$F135,(OFFSET(H124,0,-ROUNDUP($F135-1,0))-(ROUNDDOWN($F135,0)*(OFFSET(H124,0,-ROUNDUP($F135-1,0))/$F135))),0) -> -925 | J135: =-SUM(OFFSET(I124,0,-MIN(J$84-1,ROUNDDOWN($F135-1,0))):I124)/$F135-IF(J$84>$F135,(OFFSET(I124,0,-ROUNDUP($F135-1,0))-(ROUNDDOWN($F135,0)*(OFFSET(I124,0,-ROUNDUP($F135-1,0))/$F135))),0) -> -1,373 | K135: =-SUM(OFFSET(J124,0,-MIN(K$84-1,ROUNDDOWN($F135-1,0))):J124)/$F135-IF(K$84>$F135,(OFFSET(J124,0,-ROUNDUP($F135-1,0))-(ROUNDDOWN($F135,0)*(OFFSET(J124,0,-ROUNDUP($F135-1,0))/$F135))),0) -> -1,629 | L135: =-SUM(OFFSET(K124,0,-MIN(L$84-1,ROUNDDOWN($F135-1,0))):K124)/$F135-IF(L$84>$F135,(OFFSET(K124,0,-ROUNDUP($F135-1,0))-(ROUNDDOWN($F135,0)*(OFFSET(K124,0,-ROUNDUP($F135-1,0))/$F135))),0) -> -1,786 | M135: =-SUM(OFFSET(L124,0,-MIN(M$84-1,ROUNDDOWN($F135-1,0))):L124)/$F135-IF(M$84>$F135,(OFFSET(L124,0,-ROUNDUP($F135-1,0))-(ROUNDDOWN($F135,0)*(OFFSET(L124,0,-ROUNDUP($F135-1,0))/$F135))),0) -> -1,956 | N135: =-SUM(OFFSET(M124,0,-MIN(N$84-1,ROUNDDOWN($F135-1,0))):M124)/$F135-IF(N$84>$F135,(OFFSET(M124,0,-ROUNDUP($F135-1,0))-(ROUNDDOWN($F135,0)*(OFFSET(M124,0,-ROUNDUP($F135-1,0))/$F135))),0) -> -1,968 | O135: =-SUM(OFFSET(N124,0,-MIN(O$84-1,ROUNDDOWN($F135-1,0))):N124)/$F135-IF(O$84>$F135,(OFFSET(N124,0,-ROUNDUP($F135-1,0))-(ROUNDDOWN($F135,0)*(OFFSET(N124,0,-ROUNDUP($F135-1,0))/$F135))),0) -> -1,968 | P135: =-SUM(OFFSET(O124,0,-MIN(P$84-1,ROUNDDOWN($F135-1,0))):O124)/$F135-IF(P$84>$F135,(OFFSET(O124,0,-ROUNDUP($F135-1,0))-(ROUNDDOWN($F135,0)*(OFFSET(O124,0,-ROUNDUP($F135-1,0))/$F135))),0) -> -1,968 | Q135: =-SUM(OFFSET(P124,0,-MIN(Q$84-1,ROUNDDOWN($F135-1,0))):P124)/$F135-IF(Q$84>$F135,(OFFSET(P124,0,-ROUNDUP($F135-1,0))-(ROUNDDOWN($F135,0)*(OFFSET(P124,0,-ROUNDUP($F135-1,0))/$F135))),0) -> -1,968 | R135: =-SUM(OFFSET(Q124,0,-MIN(R$84-1,ROUNDDOWN($F135-1,0))):Q124)/$F135-IF(R$84>$F135,(OFFSET(Q124,0,-ROUNDUP($F135-1,0))-(ROUNDDOWN($F135,0)*(OFFSET(Q124,0,-ROUNDUP($F135-1,0))/$F135))),0) -> -1,968 | S135: =-SUM(OFFSET(R124,0,-MIN(S$84-1,ROUNDDOWN($F135-1,0))):R124)/$F135-IF(S$84>$F135,(OFFSET(R124,0,-ROUNDUP($F135-1,0))-(ROUNDDOWN($F135,0)*(OFFSET(R124,0,-ROUNDUP($F135-1,0))/$F135))),0) -> -1,968 | T135: =-SUM(OFFSET(S124,0,-MIN(T$84-1,ROUNDDOWN($F135-1,0))):S124)/$F135-IF(T$84>$F135,(OFFSET(S124,0,-ROUNDUP($F135-1,0))-(ROUNDDOWN($F135,0)*(OFFSET(S124,0,-ROUNDUP($F135-1,0))/$F135))),0) -> -1,968 | U135: =-SUM(OFFSET(T124,0,-MIN(U$84-1,ROUNDDOWN($F135-1,0))):T124)/$F135-IF(U$84>$F135,(OFFSET(T124,0,-ROUNDUP($F135-1,0))-(ROUNDDOWN($F135,0)*(OFFSET(T124,0,-ROUNDUP($F135-1,0))/$F135))),0) -> -1,968 | V135: =-SUM(OFFSET(U124,0,-MIN(V$84-1,ROUNDDOWN($F135-1,0))):U124)/$F135-IF(V$84>$F135,(OFFSET(U124,0,-ROUNDUP($F135-1,0))-(ROUNDDOWN($F135,0)*(OFFSET(U124,0,-ROUNDUP($F135-1,0))/$F135))),0) -> -1,968 | W135: =-SUM(OFFSET(V124,0,-MIN(W$84-1,ROUNDDOWN($F135-1,0))):V124)/$F135-IF(W$84>$F135,(OFFSET(V124,0,-ROUNDUP($F135-1,0))-(ROUNDDOWN($F135,0)*(OFFSET(V124,0,-ROUNDUP($F135-1,0))/$F135))),0) -> -1,968 | X135: =-SUM(OFFSET(W124,0,-MIN(X$84-1,ROUNDDOWN($F135-1,0))):W124)/$F135-IF(X$84>$F135,(OFFSET(W124,0,-ROUNDUP($F135-1,0))-(ROUNDDOWN($F135,0)*(OFFSET(W124,0,-ROUNDUP($F135-1,0))/$F135))),0) -> -1,968 | Y135: =-SUM(OFFSET(X124,0,-MIN(Y$84-1,ROUNDDOWN($F135-1,0))):X124)/$F135-IF(Y$84>$F135,(OFFSET(X124,0,-ROUNDUP($F135-1,0))-(ROUNDDOWN($F135,0)*(OFFSET(X124,0,-ROUNDUP($F135-1,0))/$F135))),0) -> -1,968 | Z135: =-SUM(OFFSET(Y124,0,-MIN(Z$84-1,ROUNDDOWN($F135-1,0))):Y124)/$F135-IF(Z$84>$F135,(OFFSET(Y124,0,-ROUNDUP($F135-1,0))-(ROUNDDOWN($F135,0)*(OFFSET(Y124,0,-ROUNDUP($F135-1,0))/$F135))),0) -> -1,968 | AA135: =-SUM(OFFSET(Z124,0,-MIN(AA$84-1,ROUNDDOWN($F135-1,0))):Z124)/$F135-IF(AA$84>$F135,(OFFSET(Z124,0,-ROUNDUP($F135-1,0))-(ROUNDDOWN($F135,0)*(OFFSET(Z124,0,-ROUNDUP($F135-1,0))/$F135))),0) -> -1,968 | AB135: =-SUM(OFFSET(AA124,0,-MIN(AB$84-1,ROUNDDOWN($F135-1,0))):AA124)/$F135-IF(AB$84>$F135,(OFFSET(AA124,0,-ROUNDUP($F135-1,0))-(ROUNDDOWN($F135,0)*(OFFSET(AA124,0,-ROUNDUP($F135-1,0))/$F135))),0) -> -1,968 | AC135: =-SUM(OFFSET(AB124,0,-MIN(AC$84-1,ROUNDDOWN($F135-1,0))):AB124)/$F135-IF(AC$84>$F135,(OFFSET(AB124,0,-ROUNDUP($F135-1,0))-(ROUNDDOWN($F135,0)*(OFFSET(AB124,0,-ROUNDUP($F135-1,0))/$F135))),0) -> -1,968 | AD135: =-SUM(OFFSET(AC124,0,-MIN(AD$84-1,ROUNDDOWN($F135-1,0))):AC124)/$F135-IF(AD$84>$F135,(OFFSET(AC124,0,-ROUNDUP($F135-1,0))-(ROUNDDOWN($F135,0)*(OFFSET(AC124,0,-ROUNDUP($F135-1,0))/$F135))),0) -> -1,070 | AE135: =-SUM(OFFSET(AD124,0,-MIN(AE$84-1,ROUNDDOWN($F135-1,0))):AD124)/$F135-IF(AE$84>$F135,(OFFSET(AD124,0,-ROUNDUP($F135-1,0))-(ROUNDDOWN($F135,0)*(OFFSET(AD124,0,-ROUNDUP($F135-1,0))/$F135))),0) -> -608 | AF135: =-SUM(OFFSET(AE124,0,-MIN(AF$84-1,ROUNDDOWN($F135-1,0))):AE124)/$F135-IF(AF$84>$F135,(OFFSET(AE124,0,-ROUNDUP($F135-1,0))-(ROUNDDOWN($F135,0)*(OFFSET(AE124,0,-ROUNDUP($F135-1,0))/$F135))),0) -> -346 | AG135: =-SUM(OFFSET(AF124,0,-MIN(AG$84-1,ROUNDDOWN($F135-1,0))):AF124)/$F135-IF(AG$84>$F135,(OFFSET(AF124,0,-ROUNDUP($F135-1,0))-(ROUNDDOWN($F135,0)*(OFFSET(AF124,0,-ROUNDUP($F135-1,0))/$F135))),0) -> -187 | AH135: =-SUM(OFFSET(AG124,0,-MIN(AH$84-1,ROUNDDOWN($F135-1,0))):AG124)/$F135-IF(AH$84>$F135,(OFFSET(AG124,0,-ROUNDUP($F135-1,0))-(ROUNDDOWN($F135,0)*(OFFSET(AG124,0,-ROUNDUP($F135-1,0))/$F135))),0) -> -17 | AI135: =-SUM(OFFSET(AH124,0,-MIN(AI$84-1,ROUNDDOWN($F135-1,0))):AH124)/$F135-IF(AI$84>$F135,(OFFSET(AH124,0,-ROUNDUP($F135-1,0))-(ROUNDDOWN($F135,0)*(OFFSET(AH124,0,-ROUNDUP($F135-1,0))/$F135))),0) -> -0 | AJ135: =-SUM(OFFSET(AI124,0,-MIN(AJ$84-1,ROUNDDOWN($F135-1,0))):AI124)/$F135-IF(AJ$84>$F135,(OFFSET(AI124,0,-ROUNDUP($F135-1,0))-(ROUNDDOWN($F135,0)*(OFFSET(AI124,0,-ROUNDUP($F135-1,0))/$F135))),0) -> 0 | AK135: =-SUM(OFFSET(AJ124,0,-MIN(AK$84-1,ROUNDDOWN($F135-1,0))):AJ124)/$F135-IF(AK$84>$F135,(OFFSET(AJ124,0,-ROUNDUP($F135-1,0))-(ROUNDDOWN($F135,0)*(OFFSET(AJ124,0,-ROUNDUP($F135-1,0))/$F135))),0) -> 0 | AL135: =-SUM(OFFSET(AK124,0,-MIN(AL$84-1,ROUNDDOWN($F135-1,0))):AK124)/$F135-IF(AL$84>$F135,(OFFSET(AK124,0,-ROUNDUP($F135-1,0))-(ROUNDDOWN($F135,0)*(OFFSET(AK124,0,-ROUNDUP($F135-1,0))/$F135))),0) -> 0 | AM135: =-SUM(OFFSET(AL124,0,-MIN(AM$84-1,ROUNDDOWN($F135-1,0))):AL124)/$F135-IF(AM$84>$F135,(OFFSET(AL124,0,-ROUNDUP($F135-1,0))-(ROUNDDOWN($F135,0)*(OFFSET(AL124,0,-ROUNDUP($F135-1,0))/$F135))),0) -> 0 | AN135: =-SUM(OFFSET(AM124,0,-MIN(AN$84-1,ROUNDDOWN($F135-1,0))):AM124)/$F135-IF(AN$84>$F135,(OFFSET(AM124,0,-ROUNDUP($F135-1,0))-(ROUNDDOWN($F135,0)*(OFFSET(AM124,0,-ROUNDUP($F135-1,0))/$F135))),0) -> 0 | AO135: =-SUM(OFFSET(AN124,0,-MIN(AO$84-1,ROUNDDOWN($F135-1,0))):AN124)/$F135-IF(AO$84>$F135,(OFFSET(AN124,0,-ROUNDUP($F135-1,0))-(ROUNDDOWN($F135,0)*(OFFSET(AN124,0,-ROUNDUP($F135-1,0))/$F135))),0) -> 0 | AP135: =-SUM(OFFSET(AO124,0,-MIN(AP$84-1,ROUNDDOWN($F135-1,0))):AO124)/$F135-IF(AP$84>$F135,(OFFSET(AO124,0,-ROUNDUP($F135-1,0))-(ROUNDDOWN($F135,0)*(OFFSET(AO124,0,-ROUNDUP($F135-1,0))/$F135))),0) -> 0 | AQ135: =-SUM(OFFSET(AP124,0,-MIN(AQ$84-1,ROUNDDOWN($F135-1,0))):AP124)/$F135-IF(AQ$84>$F135,(OFFSET(AP124,0,-ROUNDUP($F135-1,0))-(ROUNDDOWN($F135,0)*(OFFSET(AP124,0,-ROUNDUP($F135-1,0))/$F135))),0) -> 0 | AR135: =-SUM(OFFSET(AQ124,0,-MIN(AR$84-1,ROUNDDOWN($F135-1,0))):AQ124)/$F135-IF(AR$84>$F135,(OFFSET(AQ124,0,-ROUNDUP($F135-1,0))-(ROUNDDOWN($F135,0)*(OFFSET(AQ124,0,-ROUNDUP($F135-1,0))/$F135))),0) -> 0 | AS135: =-SUM(OFFSET(AR124,0,-MIN(AS$84-1,ROUNDDOWN($F135-1,0))):AR124)/$F135-IF(AS$84>$F135,(OFFSET(AR124,0,-ROUNDUP($F135-1,0))-(ROUNDDOWN($F135,0)*(OFFSET(AR124,0,-ROUNDUP($F135-1,0))/$F135))),0) -> 0 | AT135: =-SUM(OFFSET(AS124,0,-MIN(AT$84-1,ROUNDDOWN($F135-1,0))):AS124)/$F135-IF(AT$84>$F135,(OFFSET(AS124,0,-ROUNDUP($F135-1,0))-(ROUNDDOWN($F135,0)*(OFFSET(AS124,0,-ROUNDUP($F135-1,0))/$F135))),0) -> 0 | AU135: =-SUM(OFFSET(AT124,0,-MIN(AU$84-1,ROUNDDOWN($F135-1,0))):AT124)/$F135-IF(AU$84>$F135,(OFFSET(AT124,0,-ROUNDUP($F135-1,0))-(ROUNDDOWN($F135,0)*(OFFSET(AT124,0,-ROUNDUP($F135-1,0))/$F135))),0) -> 0 | AV135: =-SUM(OFFSET(AU124,0,-MIN(AV$84-1,ROUNDDOWN($F135-1,0))):AU124)/$F135-IF(AV$84>$F135,(OFFSET(AU124,0,-ROUNDUP($F135-1,0))-(ROUNDDOWN($F135,0)*(OFFSET(AU124,0,-ROUNDUP($F135-1,0))/$F135))),0) -> 0
B136: ="Amort. - "&B41 -> Amort. - Compression | F136: =D41 -> 20.0 ans | I136: =-SUM(OFFSET(H125,0,-MIN(I$84-1,ROUNDDOWN($F136-1,0))):H125)/$F136-IF(I$84>$F136,(OFFSET(H125,0,-ROUNDUP($F136-1,0))-(ROUNDDOWN($F136,0)*(OFFSET(H125,0,-ROUNDUP($F136-1,0))/$F136))),0) -> 0 | J136: =-SUM(OFFSET(I125,0,-MIN(J$84-1,ROUNDDOWN($F136-1,0))):I125)/$F136-IF(J$84>$F136,(OFFSET(I125,0,-ROUNDUP($F136-1,0))-(ROUNDDOWN($F136,0)*(OFFSET(I125,0,-ROUNDUP($F136-1,0))/$F136))),0) -> 0 | K136: =-SUM(OFFSET(J125,0,-MIN(K$84-1,ROUNDDOWN($F136-1,0))):J125)/$F136-IF(K$84>$F136,(OFFSET(J125,0,-ROUNDUP($F136-1,0))-(ROUNDDOWN($F136,0)*(OFFSET(J125,0,-ROUNDUP($F136-1,0))/$F136))),0) -> 0 | L136: =-SUM(OFFSET(K125,0,-MIN(L$84-1,ROUNDDOWN($F136-1,0))):K125)/$F136-IF(L$84>$F136,(OFFSET(K125,0,-ROUNDUP($F136-1,0))-(ROUNDDOWN($F136,0)*(OFFSET(K125,0,-ROUNDUP($F136-1,0))/$F136))),0) -> 0 | M136: =-SUM(OFFSET(L125,0,-MIN(M$84-1,ROUNDDOWN($F136-1,0))):L125)/$F136-IF(M$84>$F136,(OFFSET(L125,0,-ROUNDUP($F136-1,0))-(ROUNDDOWN($F136,0)*(OFFSET(L125,0,-ROUNDUP($F136-1,0))/$F136))),0) -> 0 | N136: =-SUM(OFFSET(M125,0,-MIN(N$84-1,ROUNDDOWN($F136-1,0))):M125)/$F136-IF(N$84>$F136,(OFFSET(M125,0,-ROUNDUP($F136-1,0))-(ROUNDDOWN($F136,0)*(OFFSET(M125,0,-ROUNDUP($F136-1,0))/$F136))),0) -> 0 | O136: =-SUM(OFFSET(N125,0,-MIN(O$84-1,ROUNDDOWN($F136-1,0))):N125)/$F136-IF(O$84>$F136,(OFFSET(N125,0,-ROUNDUP($F136-1,0))-(ROUNDDOWN($F136,0)*(OFFSET(N125,0,-ROUNDUP($F136-1,0))/$F136))),0) -> 0 | P136: =-SUM(OFFSET(O125,0,-MIN(P$84-1,ROUNDDOWN($F136-1,0))):O125)/$F136-IF(P$84>$F136,(OFFSET(O125,0,-ROUNDUP($F136-1,0))-(ROUNDDOWN($F136,0)*(OFFSET(O125,0,-ROUNDUP($F136-1,0))/$F136))),0) -> 0 | Q136: =-SUM(OFFSET(P125,0,-MIN(Q$84-1,ROUNDDOWN($F136-1,0))):P125)/$F136-IF(Q$84>$F136,(OFFSET(P125,0,-ROUNDUP($F136-1,0))-(ROUNDDOWN($F136,0)*(OFFSET(P125,0,-ROUNDUP($F136-1,0))/$F136))),0) -> 0 | R136: =-SUM(OFFSET(Q125,0,-MIN(R$84-1,ROUNDDOWN($F136-1,0))):Q125)/$F136-IF(R$84>$F136,(OFFSET(Q125,0,-ROUNDUP($F136-1,0))-(ROUNDDOWN($F136,0)*(OFFSET(Q125,0,-ROUNDUP($F136-1,0))/$F136))),0) -> 0 | S136: =-SUM(OFFSET(R125,0,-MIN(S$84-1,ROUNDDOWN($F136-1,0))):R125)/$F136-IF(S$84>$F136,(OFFSET(R125,0,-ROUNDUP($F136-1,0))-(ROUNDDOWN($F136,0)*(OFFSET(R125,0,-ROUNDUP($F136-1,0))/$F136))),0) -> 0 | T136: =-SUM(OFFSET(S125,0,-MIN(T$84-1,ROUNDDOWN($F136-1,0))):S125)/$F136-IF(T$84>$F136,(OFFSET(S125,0,-ROUNDUP($F136-1,0))-(ROUNDDOWN($F136,0)*(OFFSET(S125,0,-ROUNDUP($F136-1,0))/$F136))),0) -> 0 | U136: =-SUM(OFFSET(T125,0,-MIN(U$84-1,ROUNDDOWN($F136-1,0))):T125)/$F136-IF(U$84>$F136,(OFFSET(T125,0,-ROUNDUP($F136-1,0))-(ROUNDDOWN($F136,0)*(OFFSET(T125,0,-ROUNDUP($F136-1,0))/$F136))),0) -> 0 | V136: =-SUM(OFFSET(U125,0,-MIN(V$84-1,ROUNDDOWN($F136-1,0))):U125)/$F136-IF(V$84>$F136,(OFFSET(U125,0,-ROUNDUP($F136-1,0))-(ROUNDDOWN($F136,0)*(OFFSET(U125,0,-ROUNDUP($F136-1,0))/$F136))),0) -> 0 | W136: =-SUM(OFFSET(V125,0,-MIN(W$84-1,ROUNDDOWN($F136-1,0))):V125)/$F136-IF(W$84>$F136,(OFFSET(V125,0,-ROUNDUP($F136-1,0))-(ROUNDDOWN($F136,0)*(OFFSET(V125,0,-ROUNDUP($F136-1,0))/$F136))),0) -> 0 | X136: =-SUM(OFFSET(W125,0,-MIN(X$84-1,ROUNDDOWN($F136-1,0))):W125)/$F136-IF(X$84>$F136,(OFFSET(W125,0,-ROUNDUP($F136-1,0))-(ROUNDDOWN($F136,0)*(OFFSET(W125,0,-ROUNDUP($F136-1,0))/$F136))),0) -> 0 | Y136: =-SUM(OFFSET(X125,0,-MIN(Y$84-1,ROUNDDOWN($F136-1,0))):X125)/$F136-IF(Y$84>$F136,(OFFSET(X125,0,-ROUNDUP($F136-1,0))-(ROUNDDOWN($F136,0)*(OFFSET(X125,0,-ROUNDUP($F136-1,0))/$F136))),0) -> 0 | Z136: =-SUM(OFFSET(Y125,0,-MIN(Z$84-1,ROUNDDOWN($F136-1,0))):Y125)/$F136-IF(Z$84>$F136,(OFFSET(Y125,0,-ROUNDUP($F136-1,0))-(ROUNDDOWN($F136,0)*(OFFSET(Y125,0,-ROUNDUP($F136-1,0))/$F136))),0) -> 0 | AA136: =-SUM(OFFSET(Z125,0,-MIN(AA$84-1,ROUNDDOWN($F136-1,0))):Z125)/$F136-IF(AA$84>$F136,(OFFSET(Z125,0,-ROUNDUP($F136-1,0))-(ROUNDDOWN($F136,0)*(OFFSET(Z125,0,-ROUNDUP($F136-1,0))/$F136))),0) -> 0 | AB136: =-SUM(OFFSET(AA125,0,-MIN(AB$84-1,ROUNDDOWN($F136-1,0))):AA125)/$F136-IF(AB$84>$F136,(OFFSET(AA125,0,-ROUNDUP($F136-1,0))-(ROUNDDOWN($F136,0)*(OFFSET(AA125,0,-ROUNDUP($F136-1,0))/$F136))),0) -> 0 | AC136: =-SUM(OFFSET(AB125,0,-MIN(AC$84-1,ROUNDDOWN($F136-1,0))):AB125)/$F136-IF(AC$84>$F136,(OFFSET(AB125,0,-ROUNDUP($F136-1,0))-(ROUNDDOWN($F136,0)*(OFFSET(AB125,0,-ROUNDUP($F136-1,0))/$F136))),0) -> 0 | AD136: =-SUM(OFFSET(AC125,0,-MIN(AD$84-1,ROUNDDOWN($F136-1,0))):AC125)/$F136-IF(AD$84>$F136,(OFFSET(AC125,0,-ROUNDUP($F136-1,0))-(ROUNDDOWN($F136,0)*(OFFSET(AC125,0,-ROUNDUP($F136-1,0))/$F136))),0) -> 0 | AE136: =-SUM(OFFSET(AD125,0,-MIN(AE$84-1,ROUNDDOWN($F136-1,0))):AD125)/$F136-IF(AE$84>$F136,(OFFSET(AD125,0,-ROUNDUP($F136-1,0))-(ROUNDDOWN($F136,0)*(OFFSET(AD125,0,-ROUNDUP($F136-1,0))/$F136))),0) -> 0 | AF136: =-SUM(OFFSET(AE125,0,-MIN(AF$84-1,ROUNDDOWN($F136-1,0))):AE125)/$F136-IF(AF$84>$F136,(OFFSET(AE125,0,-ROUNDUP($F136-1,0))-(ROUNDDOWN($F136,0)*(OFFSET(AE125,0,-ROUNDUP($F136-1,0))/$F136))),0) -> 0 | AG136: =-SUM(OFFSET(AF125,0,-MIN(AG$84-1,ROUNDDOWN($F136-1,0))):AF125)/$F136-IF(AG$84>$F136,(OFFSET(AF125,0,-ROUNDUP($F136-1,0))-(ROUNDDOWN($F136,0)*(OFFSET(AF125,0,-ROUNDUP($F136-1,0))/$F136))),0) -> 0 | AH136: =-SUM(OFFSET(AG125,0,-MIN(AH$84-1,ROUNDDOWN($F136-1,0))):AG125)/$F136-IF(AH$84>$F136,(OFFSET(AG125,0,-ROUNDUP($F136-1,0))-(ROUNDDOWN($F136,0)*(OFFSET(AG125,0,-ROUNDUP($F136-1,0))/$F136))),0) -> 0 | AI136: =-SUM(OFFSET(AH125,0,-MIN(AI$84-1,ROUNDDOWN($F136-1,0))):AH125)/$F136-IF(AI$84>$F136,(OFFSET(AH125,0,-ROUNDUP($F136-1,0))-(ROUNDDOWN($F136,0)*(OFFSET(AH125,0,-ROUNDUP($F136-1,0))/$F136))),0) -> 0 | AJ136: =-SUM(OFFSET(AI125,0,-MIN(AJ$84-1,ROUNDDOWN($F136-1,0))):AI125)/$F136-IF(AJ$84>$F136,(OFFSET(AI125,0,-ROUNDUP($F136-1,0))-(ROUNDDOWN($F136,0)*(OFFSET(AI125,0,-ROUNDUP($F136-1,0))/$F136))),0) -> 0 | AK136: =-SUM(OFFSET(AJ125,0,-MIN(AK$84-1,ROUNDDOWN($F136-1,0))):AJ125)/$F136-IF(AK$84>$F136,(OFFSET(AJ125,0,-ROUNDUP($F136-1,0))-(ROUNDDOWN($F136,0)*(OFFSET(AJ125,0,-ROUNDUP($F136-1,0))/$F136))),0) -> 0 | AL136: =-SUM(OFFSET(AK125,0,-MIN(AL$84-1,ROUNDDOWN($F136-1,0))):AK125)/$F136-IF(AL$84>$F136,(OFFSET(AK125,0,-ROUNDUP($F136-1,0))-(ROUNDDOWN($F136,0)*(OFFSET(AK125,0,-ROUNDUP($F136-1,0))/$F136))),0) -> 0 | AM136: =-SUM(OFFSET(AL125,0,-MIN(AM$84-1,ROUNDDOWN($F136-1,0))):AL125)/$F136-IF(AM$84>$F136,(OFFSET(AL125,0,-ROUNDUP($F136-1,0))-(ROUNDDOWN($F136,0)*(OFFSET(AL125,0,-ROUNDUP($F136-1,0))/$F136))),0) -> 0 | AN136: =-SUM(OFFSET(AM125,0,-MIN(AN$84-1,ROUNDDOWN($F136-1,0))):AM125)/$F136-IF(AN$84>$F136,(OFFSET(AM125,0,-ROUNDUP($F136-1,0))-(ROUNDDOWN($F136,0)*(OFFSET(AM125,0,-ROUNDUP($F136-1,0))/$F136))),0) -> 0 | AO136: =-SUM(OFFSET(AN125,0,-MIN(AO$84-1,ROUNDDOWN($F136-1,0))):AN125)/$F136-IF(AO$84>$F136,(OFFSET(AN125,0,-ROUNDUP($F136-1,0))-(ROUNDDOWN($F136,0)*(OFFSET(AN125,0,-ROUNDUP($F136-1,0))/$F136))),0) -> 0 | AP136: =-SUM(OFFSET(AO125,0,-MIN(AP$84-1,ROUNDDOWN($F136-1,0))):AO125)/$F136-IF(AP$84>$F136,(OFFSET(AO125,0,-ROUNDUP($F136-1,0))-(ROUNDDOWN($F136,0)*(OFFSET(AO125,0,-ROUNDUP($F136-1,0))/$F136))),0) -> 0 | AQ136: =-SUM(OFFSET(AP125,0,-MIN(AQ$84-1,ROUNDDOWN($F136-1,0))):AP125)/$F136-IF(AQ$84>$F136,(OFFSET(AP125,0,-ROUNDUP($F136-1,0))-(ROUNDDOWN($F136,0)*(OFFSET(AP125,0,-ROUNDUP($F136-1,0))/$F136))),0) -> 0 | AR136: =-SUM(OFFSET(AQ125,0,-MIN(AR$84-1,ROUNDDOWN($F136-1,0))):AQ125)/$F136-IF(AR$84>$F136,(OFFSET(AQ125,0,-ROUNDUP($F136-1,0))-(ROUNDDOWN($F136,0)*(OFFSET(AQ125,0,-ROUNDUP($F136-1,0))/$F136))),0) -> 0 | AS136: =-SUM(OFFSET(AR125,0,-MIN(AS$84-1,ROUNDDOWN($F136-1,0))):AR125)/$F136-IF(AS$84>$F136,(OFFSET(AR125,0,-ROUNDUP($F136-1,0))-(ROUNDDOWN($F136,0)*(OFFSET(AR125,0,-ROUNDUP($F136-1,0))/$F136))),0) -> 0 | AT136: =-SUM(OFFSET(AS125,0,-MIN(AT$84-1,ROUNDDOWN($F136-1,0))):AS125)/$F136-IF(AT$84>$F136,(OFFSET(AS125,0,-ROUNDUP($F136-1,0))-(ROUNDDOWN($F136,0)*(OFFSET(AS125,0,-ROUNDUP($F136-1,0))/$F136))),0) -> 0 | AU136: =-SUM(OFFSET(AT125,0,-MIN(AU$84-1,ROUNDDOWN($F136-1,0))):AT125)/$F136-IF(AU$84>$F136,(OFFSET(AT125,0,-ROUNDUP($F136-1,0))-(ROUNDDOWN($F136,0)*(OFFSET(AT125,0,-ROUNDUP($F136-1,0))/$F136))),0) -> 0 | AV136: =-SUM(OFFSET(AU125,0,-MIN(AV$84-1,ROUNDDOWN($F136-1,0))):AU125)/$F136-IF(AV$84>$F136,(OFFSET(AU125,0,-ROUNDUP($F136-1,0))-(ROUNDDOWN($F136,0)*(OFFSET(AU125,0,-ROUNDUP($F136-1,0))/$F136))),0) -> 0
B137: ="Amort. - "&B42 -> Amort. - Servitude | F137: =D42 -> 65.0 ans | I137: =-SUM(OFFSET(H126,0,-MIN(I$84-1,$F137-1)):H126)/$F137 -> 0 | J137: =-SUM(OFFSET(I126,0,-MIN(J$84-1,$F137-1)):I126)/$F137 -> 0 | K137: =-SUM(OFFSET(J126,0,-MIN(K$84-1,$F137-1)):J126)/$F137 -> 0 | L137: =-SUM(OFFSET(K126,0,-MIN(L$84-1,ROUNDDOWN($F137-1,0))):K126)/$F137-IF(L$84>$F137,(OFFSET(K126,0,-ROUNDUP($F137-1,0))-(ROUNDDOWN($F137,0)*(OFFSET(K126,0,-ROUNDUP($F137-1,0))/$F137))),0) -> 0 | M137: =-SUM(OFFSET(L126,0,-MIN(M$84-1,ROUNDDOWN($F137-1,0))):L126)/$F137-IF(M$84>$F137,(OFFSET(L126,0,-ROUNDUP($F137-1,0))-(ROUNDDOWN($F137,0)*(OFFSET(L126,0,-ROUNDUP($F137-1,0))/$F137))),0) -> 0 | N137: =-SUM(OFFSET(M126,0,-MIN(N$84-1,ROUNDDOWN($F137-1,0))):M126)/$F137-IF(N$84>$F137,(OFFSET(M126,0,-ROUNDUP($F137-1,0))-(ROUNDDOWN($F137,0)*(OFFSET(M126,0,-ROUNDUP($F137-1,0))/$F137))),0) -> 0 | O137: =-SUM(OFFSET(N126,0,-MIN(O$84-1,ROUNDDOWN($F137-1,0))):N126)/$F137-IF(O$84>$F137,(OFFSET(N126,0,-ROUNDUP($F137-1,0))-(ROUNDDOWN($F137,0)*(OFFSET(N126,0,-ROUNDUP($F137-1,0))/$F137))),0) -> 0 | P137: =-SUM(OFFSET(O126,0,-MIN(P$84-1,ROUNDDOWN($F137-1,0))):O126)/$F137-IF(P$84>$F137,(OFFSET(O126,0,-ROUNDUP($F137-1,0))-(ROUNDDOWN($F137,0)*(OFFSET(O126,0,-ROUNDUP($F137-1,0))/$F137))),0) -> 0 | Q137: =-SUM(OFFSET(P126,0,-MIN(Q$84-1,ROUNDDOWN($F137-1,0))):P126)/$F137-IF(Q$84>$F137,(OFFSET(P126,0,-ROUNDUP($F137-1,0))-(ROUNDDOWN($F137,0)*(OFFSET(P126,0,-ROUNDUP($F137-1,0))/$F137))),0) -> 0 | R137: =-SUM(OFFSET(Q126,0,-MIN(R$84-1,ROUNDDOWN($F137-1,0))):Q126)/$F137-IF(R$84>$F137,(OFFSET(Q126,0,-ROUNDUP($F137-1,0))-(ROUNDDOWN($F137,0)*(OFFSET(Q126,0,-ROUNDUP($F137-1,0))/$F137))),0) -> 0 | S137: =-SUM(OFFSET(R126,0,-MIN(S$84-1,ROUNDDOWN($F137-1,0))):R126)/$F137-IF(S$84>$F137,(OFFSET(R126,0,-ROUNDUP($F137-1,0))-(ROUNDDOWN($F137,0)*(OFFSET(R126,0,-ROUNDUP($F137-1,0))/$F137))),0) -> 0 | T137: =-SUM(OFFSET(S126,0,-MIN(T$84-1,ROUNDDOWN($F137-1,0))):S126)/$F137-IF(T$84>$F137,(OFFSET(S126,0,-ROUNDUP($F137-1,0))-(ROUNDDOWN($F137,0)*(OFFSET(S126,0,-ROUNDUP($F137-1,0))/$F137))),0) -> 0 | U137: =-SUM(OFFSET(T126,0,-MIN(U$84-1,ROUNDDOWN($F137-1,0))):T126)/$F137-IF(U$84>$F137,(OFFSET(T126,0,-ROUNDUP($F137-1,0))-(ROUNDDOWN($F137,0)*(OFFSET(T126,0,-ROUNDUP($F137-1,0))/$F137))),0) -> 0 | V137: =-SUM(OFFSET(U126,0,-MIN(V$84-1,ROUNDDOWN($F137-1,0))):U126)/$F137-IF(V$84>$F137,(OFFSET(U126,0,-ROUNDUP($F137-1,0))-(ROUNDDOWN($F137,0)*(OFFSET(U126,0,-ROUNDUP($F137-1,0))/$F137))),0) -> 0 | W137: =-SUM(OFFSET(V126,0,-MIN(W$84-1,ROUNDDOWN($F137-1,0))):V126)/$F137-IF(W$84>$F137,(OFFSET(V126,0,-ROUNDUP($F137-1,0))-(ROUNDDOWN($F137,0)*(OFFSET(V126,0,-ROUNDUP($F137-1,0))/$F137))),0) -> 0 | X137: =-SUM(OFFSET(W126,0,-MIN(X$84-1,ROUNDDOWN($F137-1,0))):W126)/$F137-IF(X$84>$F137,(OFFSET(W126,0,-ROUNDUP($F137-1,0))-(ROUNDDOWN($F137,0)*(OFFSET(W126,0,-ROUNDUP($F137-1,0))/$F137))),0) -> 0 | Y137: =-SUM(OFFSET(X126,0,-MIN(Y$84-1,ROUNDDOWN($F137-1,0))):X126)/$F137-IF(Y$84>$F137,(OFFSET(X126,0,-ROUNDUP($F137-1,0))-(ROUNDDOWN($F137,0)*(OFFSET(X126,0,-ROUNDUP($F137-1,0))/$F137))),0) -> 0 | Z137: =-SUM(OFFSET(Y126,0,-MIN(Z$84-1,ROUNDDOWN($F137-1,0))):Y126)/$F137-IF(Z$84>$F137,(OFFSET(Y126,0,-ROUNDUP($F137-1,0))-(ROUNDDOWN($F137,0)*(OFFSET(Y126,0,-ROUNDUP($F137-1,0))/$F137))),0) -> 0 | AA137: =-SUM(OFFSET(Z126,0,-MIN(AA$84-1,ROUNDDOWN($F137-1,0))):Z126)/$F137-IF(AA$84>$F137,(OFFSET(Z126,0,-ROUNDUP($F137-1,0))-(ROUNDDOWN($F137,0)*(OFFSET(Z126,0,-ROUNDUP($F137-1,0))/$F137))),0) -> 0 | AB137: =-SUM(OFFSET(AA126,0,-MIN(AB$84-1,ROUNDDOWN($F137-1,0))):AA126)/$F137-IF(AB$84>$F137,(OFFSET(AA126,0,-ROUNDUP($F137-1,0))-(ROUNDDOWN($F137,0)*(OFFSET(AA126,0,-ROUNDUP($F137-1,0))/$F137))),0) -> 0 | AC137: =-SUM(OFFSET(AB126,0,-MIN(AC$84-1,ROUNDDOWN($F137-1,0))):AB126)/$F137-IF(AC$84>$F137,(OFFSET(AB126,0,-ROUNDUP($F137-1,0))-(ROUNDDOWN($F137,0)*(OFFSET(AB126,0,-ROUNDUP($F137-1,0))/$F137))),0) -> 0 | AD137: =-SUM(OFFSET(AC126,0,-MIN(AD$84-1,ROUNDDOWN($F137-1,0))):AC126)/$F137-IF(AD$84>$F137,(OFFSET(AC126,0,-ROUNDUP($F137-1,0))-(ROUNDDOWN($F137,0)*(OFFSET(AC126,0,-ROUNDUP($F137-1,0))/$F137))),0) -> 0 | AE137: =-SUM(OFFSET(AD126,0,-MIN(AE$84-1,ROUNDDOWN($F137-1,0))):AD126)/$F137-IF(AE$84>$F137,(OFFSET(AD126,0,-ROUNDUP($F137-1,0))-(ROUNDDOWN($F137,0)*(OFFSET(AD126,0,-ROUNDUP($F137-1,0))/$F137))),0) -> 0 | AF137: =-SUM(OFFSET(AE126,0,-MIN(AF$84-1,ROUNDDOWN($F137-1,0))):AE126)/$F137-IF(AF$84>$F137,(OFFSET(AE126,0,-ROUNDUP($F137-1,0))-(ROUNDDOWN($F137,0)*(OFFSET(AE126,0,-ROUNDUP($F137-1,0))/$F137))),0) -> 0 | AG137: =-SUM(OFFSET(AF126,0,-MIN(AG$84-1,ROUNDDOWN($F137-1,0))):AF126)/$F137-IF(AG$84>$F137,(OFFSET(AF126,0,-ROUNDUP($F137-1,0))-(ROUNDDOWN($F137,0)*(OFFSET(AF126,0,-ROUNDUP($F137-1,0))/$F137))),0) -> 0 | AH137: =-SUM(OFFSET(AG126,0,-MIN(AH$84-1,ROUNDDOWN($F137-1,0))):AG126)/$F137-IF(AH$84>$F137,(OFFSET(AG126,0,-ROUNDUP($F137-1,0))-(ROUNDDOWN($F137,0)*(OFFSET(AG126,0,-ROUNDUP($F137-1,0))/$F137))),0) -> 0 | AI137: =-SUM(OFFSET(AH126,0,-MIN(AI$84-1,ROUNDDOWN($F137-1,0))):AH126)/$F137-IF(AI$84>$F137,(OFFSET(AH126,0,-ROUNDUP($F137-1,0))-(ROUNDDOWN($F137,0)*(OFFSET(AH126,0,-ROUNDUP($F137-1,0))/$F137))),0) -> 0 | AJ137: =-SUM(OFFSET(AI126,0,-MIN(AJ$84-1,ROUNDDOWN($F137-1,0))):AI126)/$F137-IF(AJ$84>$F137,(OFFSET(AI126,0,-ROUNDUP($F137-1,0))-(ROUNDDOWN($F137,0)*(OFFSET(AI126,0,-ROUNDUP($F137-1,0))/$F137))),0) -> 0 | AK137: =-SUM(OFFSET(AJ126,0,-MIN(AK$84-1,ROUNDDOWN($F137-1,0))):AJ126)/$F137-IF(AK$84>$F137,(OFFSET(AJ126,0,-ROUNDUP($F137-1,0))-(ROUNDDOWN($F137,0)*(OFFSET(AJ126,0,-ROUNDUP($F137-1,0))/$F137))),0) -> 0 | AL137: =-SUM(OFFSET(AK126,0,-MIN(AL$84-1,ROUNDDOWN($F137-1,0))):AK126)/$F137-IF(AL$84>$F137,(OFFSET(AK126,0,-ROUNDUP($F137-1,0))-(ROUNDDOWN($F137,0)*(OFFSET(AK126,0,-ROUNDUP($F137-1,0))/$F137))),0) -> 0 | AM137: =-SUM(OFFSET(AL126,0,-MIN(AM$84-1,ROUNDDOWN($F137-1,0))):AL126)/$F137-IF(AM$84>$F137,(OFFSET(AL126,0,-ROUNDUP($F137-1,0))-(ROUNDDOWN($F137,0)*(OFFSET(AL126,0,-ROUNDUP($F137-1,0))/$F137))),0) -> 0 | AN137: =-SUM(OFFSET(AM126,0,-MIN(AN$84-1,ROUNDDOWN($F137-1,0))):AM126)/$F137-IF(AN$84>$F137,(OFFSET(AM126,0,-ROUNDUP($F137-1,0))-(ROUNDDOWN($F137,0)*(OFFSET(AM126,0,-ROUNDUP($F137-1,0))/$F137))),0) -> 0 | AO137: =-SUM(OFFSET(AN126,0,-MIN(AO$84-1,ROUNDDOWN($F137-1,0))):AN126)/$F137-IF(AO$84>$F137,(OFFSET(AN126,0,-ROUNDUP($F137-1,0))-(ROUNDDOWN($F137,0)*(OFFSET(AN126,0,-ROUNDUP($F137-1,0))/$F137))),0) -> 0 | AP137: =-SUM(OFFSET(AO126,0,-MIN(AP$84-1,ROUNDDOWN($F137-1,0))):AO126)/$F137-IF(AP$84>$F137,(OFFSET(AO126,0,-ROUNDUP($F137-1,0))-(ROUNDDOWN($F137,0)*(OFFSET(AO126,0,-ROUNDUP($F137-1,0))/$F137))),0) -> 0 | AQ137: =-SUM(OFFSET(AP126,0,-MIN(AQ$84-1,ROUNDDOWN($F137-1,0))):AP126)/$F137-IF(AQ$84>$F137,(OFFSET(AP126,0,-ROUNDUP($F137-1,0))-(ROUNDDOWN($F137,0)*(OFFSET(AP126,0,-ROUNDUP($F137-1,0))/$F137))),0) -> 0 | AR137: =-SUM(OFFSET(AQ126,0,-MIN(AR$84-1,ROUNDDOWN($F137-1,0))):AQ126)/$F137-IF(AR$84>$F137,(OFFSET(AQ126,0,-ROUNDUP($F137-1,0))-(ROUNDDOWN($F137,0)*(OFFSET(AQ126,0,-ROUNDUP($F137-1,0))/$F137))),0) -> 0 | AS137: =-SUM(OFFSET(AR126,0,-MIN(AS$84-1,ROUNDDOWN($F137-1,0))):AR126)/$F137-IF(AS$84>$F137,(OFFSET(AR126,0,-ROUNDUP($F137-1,0))-(ROUNDDOWN($F137,0)*(OFFSET(AR126,0,-ROUNDUP($F137-1,0))/$F137))),0) -> 0 | AT137: =-SUM(OFFSET(AS126,0,-MIN(AT$84-1,ROUNDDOWN($F137-1,0))):AS126)/$F137-IF(AT$84>$F137,(OFFSET(AS126,0,-ROUNDUP($F137-1,0))-(ROUNDDOWN($F137,0)*(OFFSET(AS126,0,-ROUNDUP($F137-1,0))/$F137))),0) -> 0 | AU137: =-SUM(OFFSET(AT126,0,-MIN(AU$84-1,ROUNDDOWN($F137-1,0))):AT126)/$F137-IF(AU$84>$F137,(OFFSET(AT126,0,-ROUNDUP($F137-1,0))-(ROUNDDOWN($F137,0)*(OFFSET(AT126,0,-ROUNDUP($F137-1,0))/$F137))),0) -> 0 | AV137: =-SUM(OFFSET(AU126,0,-MIN(AV$84-1,ROUNDDOWN($F137-1,0))):AU126)/$F137-IF(AV$84>$F137,(OFFSET(AU126,0,-ROUNDUP($F137-1,0))-(ROUNDDOWN($F137,0)*(OFFSET(AU126,0,-ROUNDUP($F137-1,0))/$F137))),0) -> 0
B138: ="Amort. - "&B43 -> Amort. - Transport | F138: =D43 -> 65.0 ans | I138: =-SUM(OFFSET(H127,0,-MIN(I$84-1,$F138-1)):H127)/$F138 -> 0 | J138: =-SUM(OFFSET(I127,0,-MIN(J$84-1,$F138-1)):I127)/$F138 -> 0 | K138: =-SUM(OFFSET(J127,0,-MIN(K$84-1,$F138-1)):J127)/$F138 -> 0 | L138: =-SUM(OFFSET(K127,0,-MIN(L$84-1,ROUNDDOWN($F138-1,0))):K127)/$F138-IF(L$84>$F138,(OFFSET(K127,0,-ROUNDUP($F138-1,0))-(ROUNDDOWN($F138,0)*(OFFSET(K127,0,-ROUNDUP($F138-1,0))/$F138))),0) -> 0 | M138: =-SUM(OFFSET(L127,0,-MIN(M$84-1,ROUNDDOWN($F138-1,0))):L127)/$F138-IF(M$84>$F138,(OFFSET(L127,0,-ROUNDUP($F138-1,0))-(ROUNDDOWN($F138,0)*(OFFSET(L127,0,-ROUNDUP($F138-1,0))/$F138))),0) -> 0 | N138: =-SUM(OFFSET(M127,0,-MIN(N$84-1,ROUNDDOWN($F138-1,0))):M127)/$F138-IF(N$84>$F138,(OFFSET(M127,0,-ROUNDUP($F138-1,0))-(ROUNDDOWN($F138,0)*(OFFSET(M127,0,-ROUNDUP($F138-1,0))/$F138))),0) -> 0 | O138: =-SUM(OFFSET(N127,0,-MIN(O$84-1,ROUNDDOWN($F138-1,0))):N127)/$F138-IF(O$84>$F138,(OFFSET(N127,0,-ROUNDUP($F138-1,0))-(ROUNDDOWN($F138,0)*(OFFSET(N127,0,-ROUNDUP($F138-1,0))/$F138))),0) -> 0 | P138: =-SUM(OFFSET(O127,0,-MIN(P$84-1,ROUNDDOWN($F138-1,0))):O127)/$F138-IF(P$84>$F138,(OFFSET(O127,0,-ROUNDUP($F138-1,0))-(ROUNDDOWN($F138,0)*(OFFSET(O127,0,-ROUNDUP($F138-1,0))/$F138))),0) -> 0 | Q138: =-SUM(OFFSET(P127,0,-MIN(Q$84-1,ROUNDDOWN($F138-1,0))):P127)/$F138-IF(Q$84>$F138,(OFFSET(P127,0,-ROUNDUP($F138-1,0))-(ROUNDDOWN($F138,0)*(OFFSET(P127,0,-ROUNDUP($F138-1,0))/$F138))),0) -> 0 | R138: =-SUM(OFFSET(Q127,0,-MIN(R$84-1,ROUNDDOWN($F138-1,0))):Q127)/$F138-IF(R$84>$F138,(OFFSET(Q127,0,-ROUNDUP($F138-1,0))-(ROUNDDOWN($F138,0)*(OFFSET(Q127,0,-ROUNDUP($F138-1,0))/$F138))),0) -> 0 | S138: =-SUM(OFFSET(R127,0,-MIN(S$84-1,ROUNDDOWN($F138-1,0))):R127)/$F138-IF(S$84>$F138,(OFFSET(R127,0,-ROUNDUP($F138-1,0))-(ROUNDDOWN($F138,0)*(OFFSET(R127,0,-ROUNDUP($F138-1,0))/$F138))),0) -> 0 | T138: =-SUM(OFFSET(S127,0,-MIN(T$84-1,ROUNDDOWN($F138-1,0))):S127)/$F138-IF(T$84>$F138,(OFFSET(S127,0,-ROUNDUP($F138-1,0))-(ROUNDDOWN($F138,0)*(OFFSET(S127,0,-ROUNDUP($F138-1,0))/$F138))),0) -> 0 | U138: =-SUM(OFFSET(T127,0,-MIN(U$84-1,ROUNDDOWN($F138-1,0))):T127)/$F138-IF(U$84>$F138,(OFFSET(T127,0,-ROUNDUP($F138-1,0))-(ROUNDDOWN($F138,0)*(OFFSET(T127,0,-ROUNDUP($F138-1,0))/$F138))),0) -> 0 | V138: =-SUM(OFFSET(U127,0,-MIN(V$84-1,ROUNDDOWN($F138-1,0))):U127)/$F138-IF(V$84>$F138,(OFFSET(U127,0,-ROUNDUP($F138-1,0))-(ROUNDDOWN($F138,0)*(OFFSET(U127,0,-ROUNDUP($F138-1,0))/$F138))),0) -> 0 | W138: =-SUM(OFFSET(V127,0,-MIN(W$84-1,ROUNDDOWN($F138-1,0))):V127)/$F138-IF(W$84>$F138,(OFFSET(V127,0,-ROUNDUP($F138-1,0))-(ROUNDDOWN($F138,0)*(OFFSET(V127,0,-ROUNDUP($F138-1,0))/$F138))),0) -> 0 | X138: =-SUM(OFFSET(W127,0,-MIN(X$84-1,ROUNDDOWN($F138-1,0))):W127)/$F138-IF(X$84>$F138,(OFFSET(W127,0,-ROUNDUP($F138-1,0))-(ROUNDDOWN($F138,0)*(OFFSET(W127,0,-ROUNDUP($F138-1,0))/$F138))),0) -> 0 | Y138: =-SUM(OFFSET(X127,0,-MIN(Y$84-1,ROUNDDOWN($F138-1,0))):X127)/$F138-IF(Y$84>$F138,(OFFSET(X127,0,-ROUNDUP($F138-1,0))-(ROUNDDOWN($F138,0)*(OFFSET(X127,0,-ROUNDUP($F138-1,0))/$F138))),0) -> 0 | Z138: =-SUM(OFFSET(Y127,0,-MIN(Z$84-1,ROUNDDOWN($F138-1,0))):Y127)/$F138-IF(Z$84>$F138,(OFFSET(Y127,0,-ROUNDUP($F138-1,0))-(ROUNDDOWN($F138,0)*(OFFSET(Y127,0,-ROUNDUP($F138-1,0))/$F138))),0) -> 0 | AA138: =-SUM(OFFSET(Z127,0,-MIN(AA$84-1,ROUNDDOWN($F138-1,0))):Z127)/$F138-IF(AA$84>$F138,(OFFSET(Z127,0,-ROUNDUP($F138-1,0))-(ROUNDDOWN($F138,0)*(OFFSET(Z127,0,-ROUNDUP($F138-1,0))/$F138))),0) -> 0 | AB138: =-SUM(OFFSET(AA127,0,-MIN(AB$84-1,ROUNDDOWN($F138-1,0))):AA127)/$F138-IF(AB$84>$F138,(OFFSET(AA127,0,-ROUNDUP($F138-1,0))-(ROUNDDOWN($F138,0)*(OFFSET(AA127,0,-ROUNDUP($F138-1,0))/$F138))),0) -> 0 | AC138: =-SUM(OFFSET(AB127,0,-MIN(AC$84-1,ROUNDDOWN($F138-1,0))):AB127)/$F138-IF(AC$84>$F138,(OFFSET(AB127,0,-ROUNDUP($F138-1,0))-(ROUNDDOWN($F138,0)*(OFFSET(AB127,0,-ROUNDUP($F138-1,0))/$F138))),0) -> 0 | AD138: =-SUM(OFFSET(AC127,0,-MIN(AD$84-1,ROUNDDOWN($F138-1,0))):AC127)/$F138-IF(AD$84>$F138,(OFFSET(AC127,0,-ROUNDUP($F138-1,0))-(ROUNDDOWN($F138,0)*(OFFSET(AC127,0,-ROUNDUP($F138-1,0))/$F138))),0) -> 0 | AE138: =-SUM(OFFSET(AD127,0,-MIN(AE$84-1,ROUNDDOWN($F138-1,0))):AD127)/$F138-IF(AE$84>$F138,(OFFSET(AD127,0,-ROUNDUP($F138-1,0))-(ROUNDDOWN($F138,0)*(OFFSET(AD127,0,-ROUNDUP($F138-1,0))/$F138))),0) -> 0 | AF138: =-SUM(OFFSET(AE127,0,-MIN(AF$84-1,ROUNDDOWN($F138-1,0))):AE127)/$F138-IF(AF$84>$F138,(OFFSET(AE127,0,-ROUNDUP($F138-1,0))-(ROUNDDOWN($F138,0)*(OFFSET(AE127,0,-ROUNDUP($F138-1,0))/$F138))),0) -> 0 | AG138: =-SUM(OFFSET(AF127,0,-MIN(AG$84-1,ROUNDDOWN($F138-1,0))):AF127)/$F138-IF(AG$84>$F138,(OFFSET(AF127,0,-ROUNDUP($F138-1,0))-(ROUNDDOWN($F138,0)*(OFFSET(AF127,0,-ROUNDUP($F138-1,0))/$F138))),0) -> 0 | AH138: =-SUM(OFFSET(AG127,0,-MIN(AH$84-1,ROUNDDOWN($F138-1,0))):AG127)/$F138-IF(AH$84>$F138,(OFFSET(AG127,0,-ROUNDUP($F138-1,0))-(ROUNDDOWN($F138,0)*(OFFSET(AG127,0,-ROUNDUP($F138-1,0))/$F138))),0) -> 0 | AI138: =-SUM(OFFSET(AH127,0,-MIN(AI$84-1,ROUNDDOWN($F138-1,0))):AH127)/$F138-IF(AI$84>$F138,(OFFSET(AH127,0,-ROUNDUP($F138-1,0))-(ROUNDDOWN($F138,0)*(OFFSET(AH127,0,-ROUNDUP($F138-1,0))/$F138))),0) -> 0 | AJ138: =-SUM(OFFSET(AI127,0,-MIN(AJ$84-1,ROUNDDOWN($F138-1,0))):AI127)/$F138-IF(AJ$84>$F138,(OFFSET(AI127,0,-ROUNDUP($F138-1,0))-(ROUNDDOWN($F138,0)*(OFFSET(AI127,0,-ROUNDUP($F138-1,0))/$F138))),0) -> 0 | AK138: =-SUM(OFFSET(AJ127,0,-MIN(AK$84-1,ROUNDDOWN($F138-1,0))):AJ127)/$F138-IF(AK$84>$F138,(OFFSET(AJ127,0,-ROUNDUP($F138-1,0))-(ROUNDDOWN($F138,0)*(OFFSET(AJ127,0,-ROUNDUP($F138-1,0))/$F138))),0) -> 0 | AL138: =-SUM(OFFSET(AK127,0,-MIN(AL$84-1,ROUNDDOWN($F138-1,0))):AK127)/$F138-IF(AL$84>$F138,(OFFSET(AK127,0,-ROUNDUP($F138-1,0))-(ROUNDDOWN($F138,0)*(OFFSET(AK127,0,-ROUNDUP($F138-1,0))/$F138))),0) -> 0 | AM138: =-SUM(OFFSET(AL127,0,-MIN(AM$84-1,ROUNDDOWN($F138-1,0))):AL127)/$F138-IF(AM$84>$F138,(OFFSET(AL127,0,-ROUNDUP($F138-1,0))-(ROUNDDOWN($F138,0)*(OFFSET(AL127,0,-ROUNDUP($F138-1,0))/$F138))),0) -> 0 | AN138: =-SUM(OFFSET(AM127,0,-MIN(AN$84-1,ROUNDDOWN($F138-1,0))):AM127)/$F138-IF(AN$84>$F138,(OFFSET(AM127,0,-ROUNDUP($F138-1,0))-(ROUNDDOWN($F138,0)*(OFFSET(AM127,0,-ROUNDUP($F138-1,0))/$F138))),0) -> 0 | AO138: =-SUM(OFFSET(AN127,0,-MIN(AO$84-1,ROUNDDOWN($F138-1,0))):AN127)/$F138-IF(AO$84>$F138,(OFFSET(AN127,0,-ROUNDUP($F138-1,0))-(ROUNDDOWN($F138,0)*(OFFSET(AN127,0,-ROUNDUP($F138-1,0))/$F138))),0) -> 0 | AP138: =-SUM(OFFSET(AO127,0,-MIN(AP$84-1,ROUNDDOWN($F138-1,0))):AO127)/$F138-IF(AP$84>$F138,(OFFSET(AO127,0,-ROUNDUP($F138-1,0))-(ROUNDDOWN($F138,0)*(OFFSET(AO127,0,-ROUNDUP($F138-1,0))/$F138))),0) -> 0 | AQ138: =-SUM(OFFSET(AP127,0,-MIN(AQ$84-1,ROUNDDOWN($F138-1,0))):AP127)/$F138-IF(AQ$84>$F138,(OFFSET(AP127,0,-ROUNDUP($F138-1,0))-(ROUNDDOWN($F138,0)*(OFFSET(AP127,0,-ROUNDUP($F138-1,0))/$F138))),0) -> 0 | AR138: =-SUM(OFFSET(AQ127,0,-MIN(AR$84-1,ROUNDDOWN($F138-1,0))):AQ127)/$F138-IF(AR$84>$F138,(OFFSET(AQ127,0,-ROUNDUP($F138-1,0))-(ROUNDDOWN($F138,0)*(OFFSET(AQ127,0,-ROUNDUP($F138-1,0))/$F138))),0) -> 0 | AS138: =-SUM(OFFSET(AR127,0,-MIN(AS$84-1,ROUNDDOWN($F138-1,0))):AR127)/$F138-IF(AS$84>$F138,(OFFSET(AR127,0,-ROUNDUP($F138-1,0))-(ROUNDDOWN($F138,0)*(OFFSET(AR127,0,-ROUNDUP($F138-1,0))/$F138))),0) -> 0 | AT138: =-SUM(OFFSET(AS127,0,-MIN(AT$84-1,ROUNDDOWN($F138-1,0))):AS127)/$F138-IF(AT$84>$F138,(OFFSET(AS127,0,-ROUNDUP($F138-1,0))-(ROUNDDOWN($F138,0)*(OFFSET(AS127,0,-ROUNDUP($F138-1,0))/$F138))),0) -> 0 | AU138: =-SUM(OFFSET(AT127,0,-MIN(AU$84-1,ROUNDDOWN($F138-1,0))):AT127)/$F138-IF(AU$84>$F138,(OFFSET(AT127,0,-ROUNDUP($F138-1,0))-(ROUNDDOWN($F138,0)*(OFFSET(AT127,0,-ROUNDUP($F138-1,0))/$F138))),0) -> 0 | AV138: =-SUM(OFFSET(AU127,0,-MIN(AV$84-1,ROUNDDOWN($F138-1,0))):AU127)/$F138-IF(AV$84>$F138,(OFFSET(AU127,0,-ROUNDUP($F138-1,0))-(ROUNDDOWN($F138,0)*(OFFSET(AU127,0,-ROUNDUP($F138-1,0))/$F138))),0) -> 0
B139: Amort. - PRC 5ans | F139: =D49 -> 5.0 ans | I139: =-SUM(OFFSET(I129,0,-MIN(I$84-1,$F139-1)):I129)/$F139 -> 0 | J139: =-SUM(OFFSET(J129,0,-MIN(J$84-1,$F139-1)):J129)/$F139 -> 0 | K139: =-SUM(OFFSET(K129,0,-MIN(K$84-1,$F139-1)):K129)/$F139 -> 0 | L139: =-SUM(OFFSET(L129,0,-MIN(L$84-1,$F139-1)):L129)/$F139 -> 0 | M139: =-SUM(OFFSET(M129,0,-MIN(M$84-1,$F139-1)):M129)/$F139 -> 0 | N139: =-SUM(OFFSET(N129,0,-MIN(N$84-1,$F139-1)):N129)/$F139 -> 0 | O139: =-SUM(OFFSET(O129,0,-MIN(O$84-1,$F139-1)):O129)/$F139 -> 0 | P139: =-SUM(OFFSET(P129,0,-MIN(P$84-1,$F139-1)):P129)/$F139 -> 0 | Q139: =-SUM(OFFSET(Q129,0,-MIN(Q$84-1,$F139-1)):Q129)/$F139 -> 0 | R139: =-SUM(OFFSET(R129,0,-MIN(R$84-1,$F139-1)):R129)/$F139 -> 0 | S139: =-SUM(OFFSET(S129,0,-MIN(S$84-1,$F139-1)):S129)/$F139 -> 0 | T139: =-SUM(OFFSET(T129,0,-MIN(T$84-1,$F139-1)):T129)/$F139 -> 0 | U139: =-SUM(OFFSET(U129,0,-MIN(U$84-1,$F139-1)):U129)/$F139 -> 0 | V139: =-SUM(OFFSET(V129,0,-MIN(V$84-1,$F139-1)):V129)/$F139 -> 0 | W139: =-SUM(OFFSET(W129,0,-MIN(W$84-1,$F139-1)):W129)/$F139 -> 0 | X139: =-SUM(OFFSET(X129,0,-MIN(X$84-1,$F139-1)):X129)/$F139 -> 0 | Y139: =-SUM(OFFSET(Y129,0,-MIN(Y$84-1,$F139-1)):Y129)/$F139 -> 0 | Z139: =-SUM(OFFSET(Z129,0,-MIN(Z$84-1,$F139-1)):Z129)/$F139 -> 0 | AA139: =-SUM(OFFSET(AA129,0,-MIN(AA$84-1,$F139-1)):AA129)/$F139 -> 0 | AB139: =-SUM(OFFSET(AB129,0,-MIN(AB$84-1,$F139-1)):AB129)/$F139 -> 0 | AC139: =-SUM(OFFSET(AC129,0,-MIN(AC$84-1,$F139-1)):AC129)/$F139 -> 0 | AD139: =-SUM(OFFSET(AD129,0,-MIN(AD$84-1,$F139-1)):AD129)/$F139 -> 0 | AE139: =-SUM(OFFSET(AE129,0,-MIN(AE$84-1,$F139-1)):AE129)/$F139 -> 0 | AF139: =-SUM(OFFSET(AF129,0,-MIN(AF$84-1,$F139-1)):AF129)/$F139 -> 0 | AG139: =-SUM(OFFSET(AG129,0,-MIN(AG$84-1,$F139-1)):AG129)/$F139 -> 0 | AH139: =-SUM(OFFSET(AH129,0,-MIN(AH$84-1,$F139-1)):AH129)/$F139 -> 0 | AI139: =-SUM(OFFSET(AI129,0,-MIN(AI$84-1,$F139-1)):AI129)/$F139 -> 0 | AJ139: =-SUM(OFFSET(AJ129,0,-MIN(AJ$84-1,$F139-1)):AJ129)/$F139 -> 0 | AK139: =-SUM(OFFSET(AK129,0,-MIN(AK$84-1,$F139-1)):AK129)/$F139 -> 0 | AL139: =-SUM(OFFSET(AL129,0,-MIN(AL$84-1,$F139-1)):AL129)/$F139 -> 0 | AM139: =-SUM(OFFSET(AM129,0,-MIN(AM$84-1,$F139-1)):AM129)/$F139 -> 0 | AN139: =-SUM(OFFSET(AN129,0,-MIN(AN$84-1,$F139-1)):AN129)/$F139 -> 0 | AO139: =-SUM(OFFSET(AO129,0,-MIN(AO$84-1,$F139-1)):AO129)/$F139 -> 0 | AP139: =-SUM(OFFSET(AP129,0,-MIN(AP$84-1,$F139-1)):AP129)/$F139 -> 0 | AQ139: =-SUM(OFFSET(AQ129,0,-MIN(AQ$84-1,$F139-1)):AQ129)/$F139 -> 0 | AR139: =-SUM(OFFSET(AR129,0,-MIN(AR$84-1,$F139-1)):AR129)/$F139 -> 0 | AS139: =-SUM(OFFSET(AS129,0,-MIN(AS$84-1,$F139-1)):AS129)/$F139 -> 0 | AT139: =-SUM(OFFSET(AT129,0,-MIN(AT$84-1,$F139-1)):AT129)/$F139 -> 0 | AU139: =-SUM(OFFSET(AU129,0,-MIN(AU$84-1,$F139-1)):AU129)/$F139 -> 0 | AV139: =-SUM(OFFSET(AV129,0,-MIN(AV$84-1,$F139-1)):AV129)/$F139 -> 0
B140: Amort. - PRC 10 ans (including CASEP PRC - 10 ans) | F140: =D50 -> 10.0 ans | I140: =-SUM(OFFSET(I130,0,-MIN(I$84-1,$F140-1)):I130)/$F140-SUM(OFFSET(I131,0,-MIN(I$84-1,$F140-1)):I131)/$F140 -> -2,955 | J140: =-SUM(OFFSET(J130,0,-MIN(J$84-1,$F140-1)):J130)/$F140-SUM(OFFSET(J131,0,-MIN(J$84-1,$F140-1)):J131)/$F140 -> -4,366 | K140: =-SUM(OFFSET(K130,0,-MIN(K$84-1,$F140-1)):K130)/$F140-SUM(OFFSET(K131,0,-MIN(K$84-1,$F140-1)):K131)/$F140 -> -5,930 | L140: =-SUM(OFFSET(L130,0,-MIN(L$84-1,$F140-1)):L130)/$F140-SUM(OFFSET(L131,0,-MIN(L$84-1,$F140-1)):L131)/$F140 -> -6,671 | M140: =-SUM(OFFSET(M130,0,-MIN(M$84-1,$F140-1)):M130)/$F140-SUM(OFFSET(M131,0,-MIN(M$84-1,$F140-1)):M131)/$F140 -> -7,307 | N140: =-SUM(OFFSET(N130,0,-MIN(N$84-1,$F140-1)):N130)/$F140-SUM(OFFSET(N131,0,-MIN(N$84-1,$F140-1)):N131)/$F140 -> -7,307 | O140: =-SUM(OFFSET(O130,0,-MIN(O$84-1,$F140-1)):O130)/$F140-SUM(OFFSET(O131,0,-MIN(O$84-1,$F140-1)):O131)/$F140 -> -7,307 | P140: =-SUM(OFFSET(P130,0,-MIN(P$84-1,$F140-1)):P130)/$F140-SUM(OFFSET(P131,0,-MIN(P$84-1,$F140-1)):P131)/$F140 -> -7,307 | Q140: =-SUM(OFFSET(Q130,0,-MIN(Q$84-1,$F140-1)):Q130)/$F140-SUM(OFFSET(Q131,0,-MIN(Q$84-1,$F140-1)):Q131)/$F140 -> -7,307 | R140: =-SUM(OFFSET(R130,0,-MIN(R$84-1,$F140-1)):R130)/$F140-SUM(OFFSET(R131,0,-MIN(R$84-1,$F140-1)):R131)/$F140 -> -7,307 | S140: =-SUM(OFFSET(S130,0,-MIN(S$84-1,$F140-1)):S130)/$F140-SUM(OFFSET(S131,0,-MIN(S$84-1,$F140-1)):S131)/$F140 -> -4,353 | T140: =-SUM(OFFSET(T130,0,-MIN(T$84-1,$F140-1)):T130)/$F140-SUM(OFFSET(T131,0,-MIN(T$84-1,$F140-1)):T131)/$F140 -> -2,942 | U140: =-SUM(OFFSET(U130,0,-MIN(U$84-1,$F140-1)):U130)/$F140-SUM(OFFSET(U131,0,-MIN(U$84-1,$F140-1)):U131)/$F140 -> -1,378 | V140: =-SUM(OFFSET(V130,0,-MIN(V$84-1,$F140-1)):V130)/$F140-SUM(OFFSET(V131,0,-MIN(V$84-1,$F140-1)):V131)/$F140 -> -637 | W140: =-SUM(OFFSET(W130,0,-MIN(W$84-1,$F140-1)):W130)/$F140-SUM(OFFSET(W131,0,-MIN(W$84-1,$F140-1)):W131)/$F140 -> 0 | X140: =-SUM(OFFSET(X130,0,-MIN(X$84-1,$F140-1)):X130)/$F140-SUM(OFFSET(X131,0,-MIN(X$84-1,$F140-1)):X131)/$F140 -> 0 | Y140: =-SUM(OFFSET(Y130,0,-MIN(Y$84-1,$F140-1)):Y130)/$F140-SUM(OFFSET(Y131,0,-MIN(Y$84-1,$F140-1)):Y131)/$F140 -> 0 | Z140: =-SUM(OFFSET(Z130,0,-MIN(Z$84-1,$F140-1)):Z130)/$F140-SUM(OFFSET(Z131,0,-MIN(Z$84-1,$F140-1)):Z131)/$F140 -> 0 | AA140: =-SUM(OFFSET(AA130,0,-MIN(AA$84-1,$F140-1)):AA130)/$F140-SUM(OFFSET(AA131,0,-MIN(AA$84-1,$F140-1)):AA131)/$F140 -> 0 | AB140: =-SUM(OFFSET(AB130,0,-MIN(AB$84-1,$F140-1)):AB130)/$F140-SUM(OFFSET(AB131,0,-MIN(AB$84-1,$F140-1)):AB131)/$F140 -> 0 | AC140: =-SUM(OFFSET(AC130,0,-MIN(AC$84-1,$F140-1)):AC130)/$F140-SUM(OFFSET(AC131,0,-MIN(AC$84-1,$F140-1)):AC131)/$F140 -> 0 | AD140: =-SUM(OFFSET(AD130,0,-MIN(AD$84-1,$F140-1)):AD130)/$F140-SUM(OFFSET(AD131,0,-MIN(AD$84-1,$F140-1)):AD131)/$F140 -> 0 | AE140: =-SUM(OFFSET(AE130,0,-MIN(AE$84-1,$F140-1)):AE130)/$F140-SUM(OFFSET(AE131,0,-MIN(AE$84-1,$F140-1)):AE131)/$F140 -> 0 | AF140: =-SUM(OFFSET(AF130,0,-MIN(AF$84-1,$F140-1)):AF130)/$F140-SUM(OFFSET(AF131,0,-MIN(AF$84-1,$F140-1)):AF131)/$F140 -> 0 | AG140: =-SUM(OFFSET(AG130,0,-MIN(AG$84-1,$F140-1)):AG130)/$F140-SUM(OFFSET(AG131,0,-MIN(AG$84-1,$F140-1)):AG131)/$F140 -> 0 | AH140: =-SUM(OFFSET(AH130,0,-MIN(AH$84-1,$F140-1)):AH130)/$F140-SUM(OFFSET(AH131,0,-MIN(AH$84-1,$F140-1)):AH131)/$F140 -> 0 | AI140: =-SUM(OFFSET(AI130,0,-MIN(AI$84-1,$F140-1)):AI130)/$F140-SUM(OFFSET(AI131,0,-MIN(AI$84-1,$F140-1)):AI131)/$F140 -> 0 | AJ140: =-SUM(OFFSET(AJ130,0,-MIN(AJ$84-1,$F140-1)):AJ130)/$F140-SUM(OFFSET(AJ131,0,-MIN(AJ$84-1,$F140-1)):AJ131)/$F140 -> 0 | AK140: =-SUM(OFFSET(AK130,0,-MIN(AK$84-1,$F140-1)):AK130)/$F140-SUM(OFFSET(AK131,0,-MIN(AK$84-1,$F140-1)):AK131)/$F140 -> 0 | AL140: =-SUM(OFFSET(AL130,0,-MIN(AL$84-1,$F140-1)):AL130)/$F140-SUM(OFFSET(AL131,0,-MIN(AL$84-1,$F140-1)):AL131)/$F140 -> 0 | AM140: =-SUM(OFFSET(AM130,0,-MIN(AM$84-1,$F140-1)):AM130)/$F140-SUM(OFFSET(AM131,0,-MIN(AM$84-1,$F140-1)):AM131)/$F140 -> 0 | AN140: =-SUM(OFFSET(AN130,0,-MIN(AN$84-1,$F140-1)):AN130)/$F140-SUM(OFFSET(AN131,0,-MIN(AN$84-1,$F140-1)):AN131)/$F140 -> 0 | AO140: =-SUM(OFFSET(AO130,0,-MIN(AO$84-1,$F140-1)):AO130)/$F140-SUM(OFFSET(AO131,0,-MIN(AO$84-1,$F140-1)):AO131)/$F140 -> 0 | AP140: =-SUM(OFFSET(AP130,0,-MIN(AP$84-1,$F140-1)):AP130)/$F140-SUM(OFFSET(AP131,0,-MIN(AP$84-1,$F140-1)):AP131)/$F140 -> 0 | AQ140: =-SUM(OFFSET(AQ130,0,-MIN(AQ$84-1,$F140-1)):AQ130)/$F140-SUM(OFFSET(AQ131,0,-MIN(AQ$84-1,$F140-1)):AQ131)/$F140 -> 0 | AR140: =-SUM(OFFSET(AR130,0,-MIN(AR$84-1,$F140-1)):AR130)/$F140-SUM(OFFSET(AR131,0,-MIN(AR$84-1,$F140-1)):AR131)/$F140 -> 0 | AS140: =-SUM(OFFSET(AS130,0,-MIN(AS$84-1,$F140-1)):AS130)/$F140-SUM(OFFSET(AS131,0,-MIN(AS$84-1,$F140-1)):AS131)/$F140 -> 0 | AT140: =-SUM(OFFSET(AT130,0,-MIN(AT$84-1,$F140-1)):AT130)/$F140-SUM(OFFSET(AT131,0,-MIN(AT$84-1,$F140-1)):AT131)/$F140 -> 0 | AU140: =-SUM(OFFSET(AU130,0,-MIN(AU$84-1,$F140-1)):AU130)/$F140-SUM(OFFSET(AU131,0,-MIN(AU$84-1,$F140-1)):AU131)/$F140 -> 0 | AV140: =-SUM(OFFSET(AV130,0,-MIN(AV$84-1,$F140-1)):AV130)/$F140-SUM(OFFSET(AV131,0,-MIN(AV$84-1,$F140-1)):AV131)/$F140 -> 0
I141: =SUM(I134:I140) -> -5,028 | J141: =SUM(J134:J140) -> -6,887 | K141: -8,707 | L141: -9,605 | M141: -10,411 | N141: -10,424 | O141: -10,424 | P141: -10,424 | Q141: -10,424 | R141: -10,424 | S141: -7,469 | T141: -6,058 | U141: -4,494 | V141: -3,753 | W141: -3,116 | X141: -3,116 | Y141: -3,116 | Z141: -3,116 | AA141: -3,116 | AB141: -3,116 | AC141: -3,116 | AD141: -2,218 | AE141: -1,757 | AF141: -1,494 | AG141: -1,335 | AH141: -1,166 | AI141: -1,148 | AJ141: -1,148 | AK141: -1,148 | AL141: -1,148 | AM141: -1,148 | AN141: -1,148 | AO141: -1,148 | AP141: -1,148 | AQ141: -1,148 | AR141: -1,148 | AS141: -1,148 | AT141: -1,148 | AU141: -1,148 | AV141: -1,148
B143: Net amortized balance | H143: =+H132 -> 70,388 | I143: =H143+I132+I141 -> 104,328 | J143: =I143+J132+J141 -> 116,949 | K143: 127,172 | L143: 128,550 | M143: 124,771 | N143: 114,347 | O143: 103,923 | P143: 93,499 | Q143: 83,075 | R143: 72,651 | S143: 65,182 | T143: 59,123 | U143: 54,629 | V143: 50,876 | W143: 47,759 | X143: 44,643 | Y143: 41,526 | Z143: 38,410 | AA143: 35,294 | AB143: 32,177 | AC143: 29,061 | AD143: 26,842 | AE143: 25,086 | AF143: 23,591 | AG143: 22,256 | AH143: 21,091 | AI143: 19,942 | AJ143: 18,794 | AK143: 17,646 | AL143: 16,498 | AM143: 15,350 | AN143: 14,202 | AO143: 13,054 | AP143: 11,905 | AQ143: 10,757 | AR143: 9,609 | AS143: 8,461 | AT143: 7,313 | AU143: 6,165 | AV143: 5,017
B144: Immobilisations nettes finales pour calcul de la TSP | I144: =H144+SUM(H123:H127)+I129+I130+I131+I141 -> 94,907 | J144: =I144+SUM(I123:I127)+J129+J130+J131+J141 -> 111,552 | K144: =J144+SUM(J123:J127)+K129+K130+K131+K141 -> 123,881 | L144: 124,977 | M144: 124,507 | N144: 114,347 | O144: 103,923 | P144: 93,499 | Q144: 83,075 | R144: 72,651 | S144: 65,182 | T144: 59,123 | U144: 54,629 | V144: 50,876 | W144: 47,759 | X144: 44,643 | Y144: 41,526 | Z144: 38,410 | AA144: 35,294 | AB144: 32,177 | AC144: 29,061 | AD144: 26,842 | AE144: 25,086 | AF144: 23,591 | AG144: 22,256 | AH144: 21,091 | AI144: 19,942 | AJ144: 18,794 | AK144: 17,646 | AL144: 16,498 | AM144: 15,350 | AN144: 14,202 | AO144: 13,054 | AP144: 11,905 | AQ144: 10,757 | AR144: 9,609 | AS144: 8,461 | AT144: 7,313 | AU144: 6,165 | AV144: 5,017
B146: ="FNACC - "&B35 -> FNACC - Main line - Total | H146: =H123 -> 50,942 | I146: =H146+I153 -> 49,413 | J146: =I146+J153+I123 -> 46,449 | K146: 43,662 | L146: 41,042 | M146: 38,580 | N146: 36,265 | O146: 34,089 | P146: 32,044 | Q146: 30,121 | R146: 28,314 | S146: 26,615 | T146: 25,018 | U146: 23,517 | V146: 22,106 | W146: 20,780 | X146: 19,533 | Y146: 18,361 | Z146: 17,259 | AA146: 16,224 | AB146: 15,250 | AC146: 14,335 | AD146: 13,475 | AE146: 12,667 | AF146: 11,907 | AG146: 11,192 | AH146: 10,521 | AI146: 9,889 | AJ146: 9,296 | AK146: 8,738 | AL146: 8,214 | AM146: 7,721 | AN146: 7,258 | AO146: 6,822 | AP146: 6,413 | AQ146: 6,028 | AR146: 5,667 | AS146: 5,327 | AT146: 5,007 | AU146: 4,707 | AV146: 4,424
B147: ="FNACC - "&B40 -> FNACC - Connection - Total | H147: =H124 -> 19,446 | I147: =H147+I154 -> 18,863 | J147: 26,869 | K147: 30,493 | L147: 31,855 | M147: 33,409 | N147: 31,660 | O147: 29,761 | P147: 27,975 | Q147: 26,296 | R147: 24,719 | S147: 23,236 | T147: 21,841 | U147: 20,531 | V147: 19,299 | W147: 18,141 | X147: 17,053 | Y147: 16,030 | Z147: 15,068 | AA147: 14,164 | AB147: 13,314 | AC147: 12,515 | AD147: 11,764 | AE147: 11,058 | AF147: 10,395 | AG147: 9,771 | AH147: 9,185 | AI147: 8,634 | AJ147: 8,116 | AK147: 7,629 | AL147: 7,171 | AM147: 6,741 | AN147: 6,336 | AO147: 5,956 | AP147: 5,599 | AQ147: 5,263 | AR147: 4,947 | AS147: 4,650 | AT147: 4,371 | AU147: 4,109 | AV147: 3,862
B148: ="FNACC - "&B41 -> FNACC - Compression | H148: =H125 -> 0 | I148: =H148+I155 -> 0 | J148: 0 | K148: 0 | L148: 0 | M148: 0 | N148: 0 | O148: 0 | P148: 0 | Q148: 0 | R148: 0 | S148: 0 | T148: 0 | U148: 0 | V148: 0 | W148: 0 | X148: 0 | Y148: 0 | Z148: 0 | AA148: 0 | AB148: 0 | AC148: 0 | AD148: 0 | AE148: 0 | AF148: 0 | AG148: 0 | AH148: 0 | AI148: 0 | AJ148: 0 | AK148: 0 | AL148: 0 | AM148: 0 | AN148: 0 | AO148: 0 | AP148: 0 | AQ148: 0 | AR148: 0 | AS148: 0 | AT148: 0 | AU148: 0 | AV148: 0
B149: ="FNACC - "&B42 -> FNACC - Servitude | H149: =H126*$E$156 -> 0 | I149: =H149+I156 -> 0 | J149: =I149+J156+$E$156*I126 -> 0 | K149: 0 | L149: 0 | M149: 0 | N149: 0 | O149: 0 | P149: 0 | Q149: 0 | R149: 0 | S149: 0 | T149: 0 | U149: 0 | V149: 0 | W149: 0 | X149: 0 | Y149: 0 | Z149: 0 | AA149: 0 | AB149: 0 | AC149: 0 | AD149: 0 | AE149: 0 | AF149: 0 | AG149: 0 | AH149: 0 | AI149: 0 | AJ149: 0 | AK149: 0 | AL149: 0 | AM149: 0 | AN149: 0 | AO149: 0 | AP149: 0 | AQ149: 0 | AR149: 0 | AS149: 0 | AT149: 0 | AU149: 0 | AV149: 0
B150: ="FNACC - "&B43 -> FNACC - Transport | H150: =H127 -> 0 | I150: =H150+I157 -> 0 | J150: =I150+J157+I127 -> 0 | K150: 0 | L150: 0 | M150: 0 | N150: 0 | O150: 0 | P150: 0 | Q150: 0 | R150: 0 | S150: 0 | T150: 0 | U150: 0 | V150: 0 | W150: 0 | X150: 0 | Y150: 0 | Z150: 0 | AA150: 0 | AB150: 0 | AC150: 0 | AD150: 0 | AE150: 0 | AF150: 0 | AG150: 0 | AH150: 0 | AI150: 0 | AJ150: 0 | AK150: 0 | AL150: 0 | AM150: 0 | AN150: 0 | AO150: 0 | AP150: 0 | AQ150: 0 | AR150: 0 | AS150: 0 | AT150: 0 | AU150: 0 | AV150: 0
H151: =SUM(H146:H150) -> 70,388 | I151: 68,276 | J151: 73,318 | K151: 74,154 | L151: 72,897 | M151: 71,989 | N151: 67,925 | O151: 63,849 | P151: 60,018 | Q151: 56,417 | R151: 53,032 | S151: 49,850 | T151: 46,859 | U151: 44,048 | V151: 41,405 | W151: 38,921 | X151: 36,585 | Y151: 34,390 | Z151: 32,327 | AA151: 30,387 | AB151: 28,564 | AC151: 26,850 | AD151: 25,239 | AE151: 23,725 | AF151: 22,301 | AG151: 20,963 | AH151: 19,705 | AI151: 18,523 | AJ151: 17,412 | AK151: 16,367 | AL151: 15,385 | AM151: 14,462 | AN151: 13,594 | AO151: 12,779 | AP151: 12,012 | AQ151: 11,291 | AR151: 10,614 | AS151: 9,977 | AT151: 9,378 | AU151: 8,816 | AV151: 8,287
B152: Fiscal depreciation | E152: Base d'imposition | F152: Rate
B153: ="Amort. fiscal - "&B35 -> Amort. fiscal - Main line - Total | E153: =IFERROR(IF(SEARCH("servit",$B$35,1),75%,100%),100%) -> 100.0% | F153: =E35 -> 6.0% | I153: =-H146*$F153/2 -> -1,528 | J153: =-I146*$F153-I123*$F153/2 -> -2,965 | K153: -2,787 | L153: -2,620 | M153: -2,463 | N153: -2,315 | O153: -2,176 | P153: -2,045 | Q153: -1,923 | R153: -1,807 | S153: -1,699 | T153: -1,597 | U153: -1,501 | V153: -1,411 | W153: -1,326 | X153: -1,247 | Y153: -1,172 | Z153: -1,102 | AA153: -1,036 | AB153: -973 | AC153: -915 | AD153: -860 | AE153: -809 | AF153: -760 | AG153: -714 | AH153: -672 | AI153: -631 | AJ153: -593 | AK153: -558 | AL153: -524 | AM153: -493 | AN153: -463 | AO153: -435 | AP153: -409 | AQ153: -385 | AR153: -362 | AS153: -340 | AT153: -320 | AU153: -300 | AV153: -282
B154: ="Amort. fiscal - "&B40 -> Amort. fiscal - Connection - Total | E154: =IFERROR(IF(SEARCH("servit",$B$40,1),75%,100%),100%) -> 100.0% | F154: =E40 -> 6.0% | I154: =-H147*$F154/2 -> -583 | J154: -1,414 | K154: -1,774 | L154: -1,928 | M154: -2,018 | N154: -2,012 | O154: -1,900 | P154: -1,786 | Q154: -1,678 | R154: -1,578 | S154: -1,483 | T154: -1,394 | U154: -1,310 | V154: -1,232 | W154: -1,158 | X154: -1,088 | Y154: -1,023 | Z154: -962 | AA154: -904 | AB154: -850 | AC154: -799 | AD154: -751 | AE154: -706 | AF154: -663 | AG154: -624 | AH154: -586 | AI154: -551 | AJ154: -518 | AK154: -487 | AL154: -458 | AM154: -430 | AN154: -404 | AO154: -380 | AP154: -357 | AQ154: -336 | AR154: -316 | AS154: -297 | AT154: -279 | AU154: -262 | AV154: -247
B155: ="Amort. fiscal - "&B41 -> Amort. fiscal - Compression | E155: =IFERROR(IF(SEARCH("servit",$B$41,1),75%,100%),100%) -> 100.0% | F155: =E41 -> 20.0% | I155: =-H148*$F155/2 -> 0 | J155: 0 | K155: 0 | L155: 0 | M155: 0 | N155: 0 | O155: 0 | P155: 0 | Q155: 0 | R155: 0 | S155: 0 | T155: 0 | U155: 0 | V155: 0 | W155: 0 | X155: 0 | Y155: 0 | Z155: 0 | AA155: 0 | AB155: 0 | AC155: 0 | AD155: 0 | AE155: 0 | AF155: 0 | AG155: 0 | AH155: 0 | AI155: 0 | AJ155: 0 | AK155: 0 | AL155: 0 | AM155: 0 | AN155: 0 | AO155: 0 | AP155: 0 | AQ155: 0 | AR155: 0 | AS155: 0 | AT155: 0 | AU155: 0 | AV155: 0
B156: ="Amort. fiscal - "&B42 -> Amort. fiscal - Servitude | E156: =IFERROR(IF(SEARCH("servit",$B$42,1),75%,100%),100%) -> 75.0% | F156: =E42 -> 7.0% | I156: =-H149*$F156/2 -> 0 | J156: =-I149*$F156-$E$156*I126*$F156/2 -> 0 | K156: 0 | L156: 0 | M156: 0 | N156: 0 | O156: 0 | P156: 0 | Q156: 0 | R156: 0 | S156: 0 | T156: 0 | U156: 0 | V156: 0 | W156: 0 | X156: 0 | Y156: 0 | Z156: 0 | AA156: 0 | AB156: 0 | AC156: 0 | AD156: 0 | AE156: 0 | AF156: 0 | AG156: 0 | AH156: 0 | AI156: 0 | AJ156: 0 | AK156: 0 | AL156: 0 | AM156: 0 | AN156: 0 | AO156: 0 | AP156: 0 | AQ156: 0 | AR156: 0 | AS156: 0 | AT156: 0 | AU156: 0 | AV156: 0
B157: ="Amort. fiscal - "&B43 -> Amort. fiscal - Transport | E157: =IFERROR(IF(SEARCH("servit",$B$43,1),75%,100%),100%) -> 100.0% | F157: =E43 -> 8.0% | I157: =-H150*$F157/2 -> 0 | J157: =-I150*$F157-I127*$F157/2 -> 0 | K157: 0 | L157: 0 | M157: 0 | N157: 0 | O157: 0 | P157: 0 | Q157: 0 | R157: 0 | S157: 0 | T157: 0 | U157: 0 | V157: 0 | W157: 0 | X157: 0 | Y157: 0 | Z157: 0 | AA157: 0 | AB157: 0 | AC157: 0 | AD157: 0 | AE157: 0 | AF157: 0 | AG157: 0 | AH157: 0 | AI157: 0 | AJ157: 0 | AK157: 0 | AL157: 0 | AM157: 0 | AN157: 0 | AO157: 0 | AP157: 0 | AQ157: 0 | AR157: 0 | AS157: 0 | AT157: 0 | AU157: 0 | AV157: 0
B158: Amort. fiscal - PRC 5 ans | F158: =E49 -> 5.0 ans | I158: =I139 -> 0 | J158: =J139 -> 0 | K158: 0 | L158: 0 | M158: 0 | N158: 0 | O158: 0 | P158: 0 | Q158: 0 | R158: 0 | S158: 0 | T158: 0 | U158: 0 | V158: 0 | W158: 0 | X158: 0 | Y158: 0 | Z158: 0 | AA158: 0 | AB158: 0 | AC158: 0 | AD158: 0 | AE158: 0 | AF158: 0 | AG158: 0 | AH158: 0 | AI158: 0 | AJ158: 0 | AK158: 0 | AL158: 0 | AM158: 0 | AN158: 0 | AO158: 0 | AP158: 0 | AQ158: 0 | AR158: 0 | AS158: 0 | AT158: 0 | AU158: 0 | AV158: 0
B159: Amort. fiscal - PRC 10 ans | F159: =E50 -> 10.0 ans | I159: =I140 -> -2,955 | J159: -4,366 | K159: -5,930 | L159: -6,671 | M159: -7,307 | N159: -7,307 | O159: -7,307 | P159: -7,307 | Q159: -7,307 | R159: -7,307 | S159: -4,353 | T159: -2,942 | U159: -1,378 | V159: -637 | W159: 0 | X159: 0 | Y159: 0 | Z159: 0 | AA159: 0 | AB159: 0 | AC159: 0 | AD159: 0 | AE159: 0 | AF159: 0 | AG159: 0 | AH159: 0 | AI159: 0 | AJ159: 0 | AK159: 0 | AL159: 0 | AM159: 0 | AN159: 0 | AO159: 0 | AP159: 0 | AQ159: 0 | AR159: 0 | AS159: 0 | AT159: 0 | AU159: 0 | AV159: 0
I160: =SUM(I153:I159) -> -5,066 | J160: =SUM(J153:J159) -> -8,745 | K160: -10,491 | L160: -11,219 | M160: -11,788 | N160: -11,635 | O160: -11,383 | P160: -11,138 | Q160: -10,909 | R160: -10,693 | S160: -7,535 | T160: -5,933 | U160: -4,189 | V160: -3,280 | W160: -2,484 | X160: -2,335 | Y160: -2,195 | Z160: -2,063 | AA160: -1,940 | AB160: -1,823 | AC160: -1,714 | AD160: -1,611 | AE160: -1,514 | AF160: -1,423 | AG160: -1,338 | AH160: -1,258 | AI160: -1,182 | AJ160: -1,111 | AK160: -1,045 | AL160: -982 | AM160: -923 | AN160: -868 | AO160: -816 | AP160: -767 | AQ160: -721 | AR160: -677 | AS160: -637 | AT160: -599 | AU160: -563 | AV160: -529
A162: 2.4 | B162: Tax | I162: =$I$22 -> 2018 | J162: =I162+1 -> 2019 | K162: =J162+1 -> 2020 | L162: 2021 | M162: 2022 | N162: 2023 | O162: 2024 | P162: 2025 | Q162: 2026 | R162: 2027 | S162: 2028 | T162: 2029 | U162: 2030 | V162: 2031 | W162: 2032 | X162: 2033 | Y162: 2034 | Z162: 2035 | AA162: 2036 | AB162: 2037 | AC162: 2038 | AD162: 2039 | AE162: 2040 | AF162: 2041 | AG162: 2042 | AH162: 2043 | AI162: 2044 | AJ162: 2045 | AK162: 2046 | AL162: 2047 | AM162: 2048 | AN162: 2049 | AO162: 2050 | AP162: 2051 | AQ162: 2052 | AR162: 2053 | AS162: 2054 | AT162: 2055 | AU162: 2056 | AV162: 2057
B164: Net income | I164: =$F$80*I103 -> 3,319 | J164: 4,157 | K164: 4,637 | L164: 4,790 | M164: 4,800 | N164: 4,492 | O164: 4,100 | P164: 3,709 | Q164: 3,317 | R164: 2,925 | S164: 2,589 | T164: 2,335 | U164: 2,137 | V164: 1,982 | W164: 1,853 | X164: 1,736 | Y164: 1,619 | Z164: 1,502 | AA164: 1,385 | AB164: 1,268 | AC164: 1,150 | AD164: 1,050 | AE164: 976 | AF164: 914 | AG164: 861 | AH164: 814 | AI164: 771 | AJ164: 728 | AK164: 685 | AL164: 641 | AM164: 598 | AN164: 555 | AO164: 512 | AP164: 469 | AQ164: 426 | AR164: 383 | AS164: 339 | AT164: 296 | AU164: 253 | AV164: 210
B166: Accounting depreciation | I166: =+I141 -> -5,028 | J166: -6,887 | K166: -8,707 | L166: -9,605 | M166: -10,411 | N166: -10,424 | O166: -10,424 | P166: -10,424 | Q166: -10,424 | R166: -10,424 | S166: -7,469 | T166: -6,058 | U166: -4,494 | V166: -3,753 | W166: -3,116 | X166: -3,116 | Y166: -3,116 | Z166: -3,116 | AA166: -3,116 | AB166: -3,116 | AC166: -3,116 | AD166: -2,218 | AE166: -1,757 | AF166: -1,494 | AG166: -1,335 | AH166: -1,166 | AI166: -1,148 | AJ166: -1,148 | AK166: -1,148 | AL166: -1,148 | AM166: -1,148 | AN166: -1,148 | AO166: -1,148 | AP166: -1,148 | AQ166: -1,148 | AR166: -1,148 | AS166: -1,148 | AT166: -1,148 | AU166: -1,148 | AV166: -1,148
B167: Fiscal depreciation | I167: =I160 -> -5,066 | J167: -8,745 | K167: -10,491 | L167: -11,219 | M167: -11,788 | N167: -11,635 | O167: -11,383 | P167: -11,138 | Q167: -10,909 | R167: -10,693 | S167: -7,535 | T167: -5,933 | U167: -4,189 | V167: -3,280 | W167: -2,484 | X167: -2,335 | Y167: -2,195 | Z167: -2,063 | AA167: -1,940 | AB167: -1,823 | AC167: -1,714 | AD167: -1,611 | AE167: -1,514 | AF167: -1,423 | AG167: -1,338 | AH167: -1,258 | AI167: -1,182 | AJ167: -1,111 | AK167: -1,045 | AL167: -982 | AM167: -923 | AN167: -868 | AO167: -816 | AP167: -767 | AQ167: -721 | AR167: -677 | AS167: -637 | AT167: -599 | AU167: -563 | AV167: -529
B169: 1 - Tax rate | I169: =1-$F$72 -> 73.10% | J169: =I169 -> 73.10% | K169: =J169 -> 73.10% | L169: =K169 -> 73.10% | M169: 73.10% | N169: 73.10% | O169: 73.10% | P169: 73.10% | Q169: 73.10% | R169: 73.10% | S169: 73.10% | T169: 73.10% | U169: 73.10% | V169: 73.10% | W169: 73.10% | X169: 73.10% | Y169: 73.10% | Z169: 73.10% | AA169: 73.10% | AB169: 73.10% | AC169: 73.10% | AD169: 73.10% | AE169: 73.10% | AF169: 73.10% | AG169: 73.10% | AH169: 73.10% | AI169: 73.10% | AJ169: 73.10% | AK169: 73.10% | AL169: 73.10% | AM169: 73.10% | AN169: 73.10% | AO169: 73.10% | AP169: 73.10% | AQ169: 73.10% | AR169: 73.10% | AS169: 73.10% | AT169: 73.10% | AU169: 73.10% | AV169: 73.10%
B171: Tax (gross up) | I171: =((I164-I166+I167)/I169)-(I164-I166+I167) -> 1,207 | J171: =((J164-J166+J167)/J169)-(J164-J166+J167) -> 846 | K171: =((K164-K166+K167)/K169)-(K164-K166+K167) -> 1,050 | L171: 1,169 | M171: 1,260 | N171: 1,207 | O171: 1,156 | P171: 1,102 | Q171: 1,042 | R171: 978 | S171: 929 | T171: 905 | U171: 899 | V171: 904 | W171: 914 | X171: 926 | Y171: 935 | Z171: 940 | AA171: 943 | AB171: 942 | AC171: 939 | AD171: 610 | AE171: 448 | AF171: 363 | AG171: 316 | AH171: 266 | AI171: 271 | AJ171: 281 | AK171: 290 | AL171: 297 | AM171: 303 | AN171: 307 | AO171: 311 | AP171: 313 | AQ171: 314 | AR171: 314 | AS171: 313 | AT171: 311 | AU171: 309 | AV171: 305
B172: Tax (without liability) | I172: =(1-I$169)*(I27-I88-I89-I90+I167) -> -780 | J172: -268 | K172: 396 | L172: 1,026 | M172: 1,380 | N172: 1,463 | O172: 1,573 | P172: 1,680 | Q172: 1,784 | R172: 1,884 | S172: 2,764 | T172: 3,219 | U172: 3,706 | V172: 3,966 | W172: 4,193 | X172: 4,246 | Y172: 4,296 | Z172: 4,344 | AA172: 4,390 | AB172: 4,434 | AC172: 4,476 | AD172: 4,512 | AE172: 4,545 | AF172: 4,576 | AG172: 4,604 | AH172: 4,630 | AI172: 4,655 | AJ172: 4,679 | AK172: 4,702 | AL172: 4,723 | AM172: 4,744 | AN172: 4,763 | AO172: 4,782 | AP172: 4,800 | AQ172: 4,817 | AR172: 4,833 | AS172: 4,848 | AT172: 4,863 | AU172: 4,878 | AV172: 4,891
B174: États financiers pro forma
A176: Section 3 - Financial statement | H176: 0 | I176: 1 | J176: 2 | K176: 3 | L176: 4 | M176: 5 | N176: 6 | O176: 7 | P176: 8 | Q176: 9 | R176: 10 | S176: 11 | T176: 12 | U176: 13 | V176: 14 | W176: 15 | X176: 16 | Y176: 17 | Z176: 18 | AA176: 19 | AB176: 20 | AC176: 21 | AD176: 22 | AE176: 23 | AF176: 24 | AG176: 25 | AH176: 26 | AI176: 27 | AJ176: 28 | AK176: 29 | AL176: 30 | AM176: 31 | AN176: 32 | AO176: 33 | AP176: 34 | AQ176: 35 | AR176: 36 | AS176: 37 | AT176: 38 | AU176: 39 | AV176: 40
A178: 3.1 | B178: Income statement | I178: =$I$22 -> 2018 | J178: =+I178+1 -> 2019 | K178: 2020 | L178: 2021 | M178: 2022 | N178: 2023 | O178: 2024 | P178: 2025 | Q178: 2026 | R178: 2027 | S178: 2028 | T178: 2029 | U178: 2030 | V178: 2031 | W178: 2032 | X178: 2033 | Y178: 2034 | Z178: 2035 | AA178: 2036 | AB178: 2037 | AC178: 2038 | AD178: 2039 | AE178: 2040 | AF178: 2041 | AG178: 2042 | AH178: 2043 | AI178: 2044 | AJ178: 2045 | AK178: 2046 | AL178: 2047 | AM178: 2048 | AN178: 2049 | AO178: 2050 | AP178: 2051 | AQ178: 2052 | AR178: 2053 | AS178: 2054 | AT178: 2055 | AU178: 2056 | AV178: 2057
B180: Income of the project | E180: Rev. requis ou Rev. tarifaire ? | F180: Revenu requis | I180: =I27 -> 4,711 | J180: 11,357 | K180: 16,405 | L180: 19,819 | M180: 22,021 | N180: 22,021 | O180: 22,021 | P180: 22,021 | Q180: 22,021 | R180: 22,021 | S180: 22,021 | T180: 22,021 | U180: 22,021 | V180: 22,021 | W180: 22,021 | X180: 22,021 | Y180: 22,021 | Z180: 22,021 | AA180: 22,021 | AB180: 22,021 | AC180: 22,021 | AD180: 22,021 | AE180: 22,021 | AF180: 22,021 | AG180: 22,021 | AH180: 22,021 | AI180: 22,021 | AJ180: 22,021 | AK180: 22,021 | AL180: 22,021 | AM180: 22,021 | AN180: 22,021 | AO180: 22,021 | AP180: 22,021 | AQ180: 22,021 | AR180: 22,021 | AS180: 22,021 | AT180: 22,021 | AU180: 22,021 | AV180: 22,021
B181: Revenu requirement needed | I181: =I94-I180 -> 8,732 | J181: 5,826 | K181: 4,310 | L181: 2,473 | M181: 1,496 | N181: 872 | O181: 113 | P181: -648 | Q181: -1,414 | R181: -2,185 | S181: -5,773 | T181: -7,656 | U181: -9,572 | V181: -10,582 | W181: -11,436 | X181: -11,636 | Y181: -11,839 | Z181: -12,045 | AA181: -12,254 | AB181: -12,465 | AC181: -12,679 | AD181: -14,081 | AE181: -14,836 | AF181: -15,292 | AG181: -15,593 | AH181: -15,896 | AI181: -15,986 | AJ181: -16,054 | AK181: -16,123 | AL181: -16,194 | AM181: -16,266 | AN181: -16,339 | AO181: -16,413 | AP181: -16,489 | AQ181: -16,566 | AR181: -16,644 | AS181: -16,723 | AT181: -16,802 | AU181: -16,883 | AV181: -16,964
B182: OPEX | I182: =-(I88+I89+I90) -> -2,544 | J182: -3,607 | K182: -4,442 | L182: -4,786 | M182: -5,101 | N182: -4,949 | O182: -4,793 | P182: -4,636 | Q182: -4,480 | R182: -4,323 | S182: -4,211 | T182: -4,121 | U182: -4,053 | V182: -3,997 | W182: -3,950 | X182: -3,903 | Y182: -3,857 | Z182: -3,810 | AA182: -3,763 | AB182: -3,716 | AC182: -3,670 | AD182: -3,636 | AE182: -3,610 | AF182: -3,588 | AG182: -3,568 | AH182: -3,550 | AI182: -3,533 | AJ182: -3,516 | AK182: -3,498 | AL182: -3,481 | AM182: -3,464 | AN182: -3,447 | AO182: -3,430 | AP182: -3,412 | AQ182: -3,395 | AR182: -3,378 | AS182: -3,361 | AT182: -3,343 | AU182: -3,326 | AV182: -3,309
B183: EBITDA | I183: =+I180+I181+I182 -> 10,898 | J183: =+J180+J181+J182 -> 13,575 | K183: 16,274 | L183: 17,506 | M183: 18,416 | N183: 17,944 | O183: 17,342 | P183: 16,738 | Q183: 16,128 | R183: 15,513 | S183: 12,037 | T183: 10,245 | U183: 8,396 | V183: 7,442 | W183: 6,635 | X183: 6,482 | Y183: 6,326 | Z183: 6,167 | AA183: 6,005 | AB183: 5,840 | AC183: 5,673 | AD183: 4,304 | AE183: 3,576 | AF183: 3,142 | AG183: 2,861 | AH183: 2,576 | AI183: 2,503 | AJ183: 2,452 | AK183: 2,400 | AL183: 2,347 | AM183: 2,292 | AN183: 2,236 | AO183: 2,178 | AP183: 2,120 | AQ183: 2,060 | AR183: 2,000 | AS183: 1,938 | AT183: 1,876 | AU183: 1,813 | AV183: 1,748
B184: Depreciation | I184: =-I91 -> -5,028 | J184: -6,887 | K184: -8,707 | L184: -9,605 | M184: -10,411 | N184: -10,424 | O184: -10,424 | P184: -10,424 | Q184: -10,424 | R184: -10,424 | S184: -7,469 | T184: -6,058 | U184: -4,494 | V184: -3,753 | W184: -3,116 | X184: -3,116 | Y184: -3,116 | Z184: -3,116 | AA184: -3,116 | AB184: -3,116 | AC184: -3,116 | AD184: -2,218 | AE184: -1,757 | AF184: -1,494 | AG184: -1,335 | AH184: -1,166 | AI184: -1,148 | AJ184: -1,148 | AK184: -1,148 | AL184: -1,148 | AM184: -1,148 | AN184: -1,148 | AO184: -1,148 | AP184: -1,148 | AQ184: -1,148 | AR184: -1,148 | AS184: -1,148 | AT184: -1,148 | AU184: -1,148 | AV184: -1,148
B185: EBIT | I185: =+I183+I184 -> 5,871 | J185: =+J183+J184 -> 6,689 | K185: 7,567 | L185: 7,901 | M185: 8,005 | N185: 7,520 | O185: 6,918 | P185: 6,314 | Q185: 5,704 | R185: 5,089 | S185: 4,568 | T185: 4,187 | U185: 3,902 | V185: 3,689 | W185: 3,518 | X185: 3,366 | Y185: 3,210 | Z185: 3,050 | AA185: 2,888 | AB185: 2,724 | AC185: 2,556 | AD185: 2,086 | AE185: 1,819 | AF185: 1,648 | AG185: 1,526 | AH185: 1,410 | AI185: 1,354 | AJ185: 1,304 | AK185: 1,252 | AL185: 1,199 | AM185: 1,144 | AN185: 1,088 | AO185: 1,030 | AP185: 972 | AQ185: 912 | AR185: 852 | AS185: 790 | AT185: 728 | AU185: 664 | AV185: 600
B186: Interests on the liability | I186: =-$F$79*$E$79*I105 -> -1,345 | J186: -1,685 | K186: -1,879 | L186: -1,942 | M186: -1,945 | N186: -1,821 | O186: -1,662 | P186: -1,503 | Q186: -1,344 | R186: -1,186 | S186: -1,049 | T186: -946 | U186: -866 | V186: -803 | W186: -751 | X186: -704 | Y186: -656 | Z186: -609 | AA186: -561 | AB186: -514 | AC186: -466 | AD186: -426 | AE186: -395 | AF186: -371 | AG186: -349 | AH186: -330 | AI186: -312 | AJ186: -295 | AK186: -277 | AL186: -260 | AM186: -242 | AN186: -225 | AO186: -208 | AP186: -190 | AQ186: -173 | AR186: -155 | AS186: -138 | AT186: -120 | AU186: -103 | AV186: -85
B187: Tax | I187: =-I171 -> -1,207 | J187: =-J171 -> -846 | K187: -1,050 | L187: -1,169 | M187: -1,260 | N187: -1,207 | O187: -1,156 | P187: -1,102 | Q187: -1,042 | R187: -978 | S187: -929 | T187: -905 | U187: -899 | V187: -904 | W187: -914 | X187: -926 | Y187: -935 | Z187: -940 | AA187: -943 | AB187: -942 | AC187: -939 | AD187: -610 | AE187: -448 | AF187: -363 | AG187: -316 | AH187: -266 | AI187: -271 | AJ187: -281 | AK187: -290 | AL187: -297 | AM187: -303 | AN187: -307 | AO187: -311 | AP187: -313 | AQ187: -314 | AR187: -314 | AS187: -313 | AT187: -311 | AU187: -309 | AV187: -305
B188: Net income | I188: =+I185+I186+I187 -> 3,319 | J188: =+J185+J186+J187 -> 4,157 | K188: 4,637 | L188: 4,790 | M188: 4,800 | N188: 4,492 | O188: 4,100 | P188: 3,709 | Q188: 3,317 | R188: 2,925 | S188: 2,589 | T188: 2,335 | U188: 2,137 | V188: 1,982 | W188: 1,853 | X188: 1,736 | Y188: 1,619 | Z188: 1,502 | AA188: 1,385 | AB188: 1,268 | AC188: 1,150 | AD188: 1,050 | AE188: 976 | AF188: 914 | AG188: 861 | AH188: 814 | AI188: 771 | AJ188: 728 | AK188: 685 | AL188: 641 | AM188: 598 | AN188: 555 | AO188: 512 | AP188: 469 | AQ188: 426 | AR188: 383 | AS188: 339 | AT188: 296 | AU188: 253 | AV188: 210
B190: ROE -Proof | I190: =IFERROR(I188/(I105*$E$80),"-") -> 8.17% | J190: 8.17% | K190: 8.17% | L190: 8.17% | M190: 8.17% | N190: 8.17% | O190: 8.17% | P190: 8.17% | Q190: 8.17% | R190: 8.17% | S190: 8.17% | T190: 8.17% | U190: 8.17% | V190: 8.17% | W190: 8.17% | X190: 8.17% | Y190: 8.17% | Z190: 8.17% | AA190: 8.17% | AB190: 8.17% | AC190: 8.17% | AD190: 8.17% | AE190: 8.17% | AF190: 8.17% | AG190: 8.17% | AH190: 8.17% | AI190: 8.17% | AJ190: 8.17% | AK190: 8.17% | AL190: 8.17% | AM190: 8.17% | AN190: 8.17% | AO190: 8.17% | AP190: 8.17% | AQ190: 8.17% | AR190: 8.17% | AS190: 8.17% | AT190: 8.17% | AU190: 8.17% | AV190: 8.17%
A192: 3.2 | B192: Balance sheet | H192: =I192-1 -> 2017 | I192: =$I$22 -> 2018 | J192: =I192+1 -> 2019 | K192: =J192+1 -> 2020 | L192: 2021 | M192: 2022 | N192: 2023 | O192: 2024 | P192: 2025 | Q192: 2026 | R192: 2027 | S192: 2028 | T192: 2029 | U192: 2030 | V192: 2031 | W192: 2032 | X192: 2033 | Y192: 2034 | Z192: 2035 | AA192: 2036 | AB192: 2037 | AC192: 2038 | AD192: 2039 | AE192: 2040 | AF192: 2041 | AG192: 2042 | AH192: 2043 | AI192: 2044 | AJ192: 2045 | AK192: 2046 | AL192: 2047 | AM192: 2048 | AN192: 2049 | AO192: 2050 | AP192: 2051 | AQ192: 2052 | AR192: 2053 | AS192: 2054 | AT192: 2055 | AU192: 2056 | AV192: 2057
B194: Assets
B195: Cash | H195: 0 | I195: =H195+I227 -> 0 | J195: 0 | K195: 0 | L195: 0 | M195: 0 | N195: 0 | O195: 0 | P195: 0 | Q195: 0 | R195: 0 | S195: 0 | T195: 0 | U195: 0 | V195: 0 | W195: 0 | X195: 0 | Y195: 0 | Z195: 0 | AA195: 0 | AB195: 0 | AC195: 0 | AD195: 0 | AE195: 0 | AF195: 0 | AG195: 0 | AH195: 0 | AI195: 0 | AJ195: 0 | AK195: 0 | AL195: 0 | AM195: 0 | AN195: 0 | AO195: 0 | AP195: 0 | AQ195: 0 | AR195: 0 | AS195: 0 | AT195: 0 | AU195: 0 | AV195: 0
B196: Investments | H196: =$H143 -> 70,388 | I196: =H196+I132 -> 109,356 | J196: 128,864 | K196: 147,793 | L196: 158,775 | M196: 165,408 | N196: 165,408 | O196: 165,408 | P196: 165,408 | Q196: 165,408 | R196: 165,408 | S196: 165,408 | T196: 165,408 | U196: 165,408 | V196: 165,408 | W196: 165,408 | X196: 165,408 | Y196: 165,408 | Z196: 165,408 | AA196: 165,408 | AB196: 165,408 | AC196: 165,408 | AD196: 165,408 | AE196: 165,408 | AF196: 165,408 | AG196: 165,408 | AH196: 165,408 | AI196: 165,408 | AJ196: 165,408 | AK196: 165,408 | AL196: 165,408 | AM196: 165,408 | AN196: 165,408 | AO196: 165,408 | AP196: 165,408 | AQ196: 165,408 | AR196: 165,408 | AS196: 165,408 | AT196: 165,408 | AU196: 165,408 | AV196: 165,408
B197: Cumulative depreciation | H197: 0 | I197: =+H197+I184 -> -5,028 | J197: =+I197+J184 -> -11,914 | K197: -20,621 | L197: -30,226 | M197: -40,637 | N197: -51,061 | O197: -61,485 | P197: -71,909 | Q197: -82,333 | R197: -92,757 | S197: -100,226 | T197: -106,284 | U197: -110,779 | V197: -114,532 | W197: -117,649 | X197: -120,765 | Y197: -123,881 | Z197: -126,998 | AA197: -130,114 | AB197: -133,231 | AC197: -136,347 | AD197: -138,566 | AE197: -140,322 | AF197: -141,816 | AG197: -143,152 | AH197: -144,317 | AI197: -145,466 | AJ197: -146,614 | AK197: -147,762 | AL197: -148,910 | AM197: -150,058 | AN197: -151,206 | AO197: -152,354 | AP197: -153,502 | AQ197: -154,651 | AR197: -155,799 | AS197: -156,947 | AT197: -158,095 | AU197: -159,243 | AV197: -160,391
B198: Net investments | H198: =+H196+H197 -> 70,388 | I198: =+I196+I197 -> 104,328 | J198: 116,949 | K198: 127,172 | L198: 128,550 | M198: 124,771 | N198: 114,347 | O198: 103,923 | P198: 93,499 | Q198: 83,075 | R198: 72,651 | S198: 65,182 | T198: 59,123 | U198: 54,629 | V198: 50,876 | W198: 47,759 | X198: 44,643 | Y198: 41,526 | Z198: 38,410 | AA198: 35,294 | AB198: 32,177 | AC198: 29,061 | AD198: 26,842 | AE198: 25,086 | AF198: 23,591 | AG198: 22,256 | AH198: 21,091 | AI198: 19,942 | AJ198: 18,794 | AK198: 17,646 | AL198: 16,498 | AM198: 15,350 | AN198: 14,202 | AO198: 13,054 | AP198: 11,905 | AQ198: 10,757 | AR198: 9,609 | AS198: 8,461 | AT198: 7,313 | AU198: 6,165 | AV198: 5,017
B200: Total - Assets | H200: =+H195+H198 -> 70,388 | I200: 104,328 | J200: 116,949 | K200: 127,172 | L200: 128,550 | M200: 124,771 | N200: 114,347 | O200: 103,923 | P200: 93,499 | Q200: 83,075 | R200: 72,651 | S200: 65,182 | T200: 59,123 | U200: 54,629 | V200: 50,876 | W200: 47,759 | X200: 44,643 | Y200: 41,526 | Z200: 38,410 | AA200: 35,294 | AB200: 32,177 | AC200: 29,061 | AD200: 26,842 | AE200: 25,086 | AF200: 23,591 | AG200: 22,256 | AH200: 21,091 | AI200: 19,942 | AJ200: 18,794 | AK200: 17,646 | AL200: 16,498 | AM200: 15,350 | AN200: 14,202 | AO200: 13,054 | AP200: 11,905 | AQ200: 10,757 | AR200: 9,609 | AS200: 8,461 | AT200: 7,313 | AU200: 6,165 | AV200: 5,017
B202: Liability and equity
B203: Liability | H203: =$E$79*(H196+H197) -> 38,010 | I203: 56,337 | J203: 63,153 | K203: 68,673 | L203: 69,417 | M203: 67,376 | N203: 61,747 | O203: 56,118 | P203: 50,489 | Q203: 44,860 | R203: 39,232 | S203: 35,198 | T203: 31,927 | U203: 29,500 | V203: 27,473 | W203: 25,790 | X203: 24,107 | Y203: 22,424 | Z203: 20,741 | AA203: 19,058 | AB203: 17,376 | AC203: 15,693 | AD203: 14,495 | AE203: 13,546 | AF203: 12,739 | AG203: 12,018 | AH203: 11,389 | AI203: 10,769 | AJ203: 10,149 | AK203: 9,529 | AL203: 8,909 | AM203: 8,289 | AN203: 7,669 | AO203: 7,049 | AP203: 6,429 | AQ203: 5,809 | AR203: 5,189 | AS203: 4,569 | AT203: 3,949 | AU203: 3,329 | AV203: 2,709
B204: Equity | H204: =$E$80*(H196+H197) -> 32,379 | I204: =H204+I188+I224 -> 47,991 | J204: =I204+J188+J224 -> 53,797 | K204: 58,499 | L204: 59,133 | M204: 57,394 | N204: 52,599 | O204: 47,804 | P204: 43,009 | Q204: 38,214 | R204: 33,419 | S204: 29,984 | T204: 27,197 | U204: 25,129 | V204: 23,403 | W204: 21,969 | X204: 20,536 | Y204: 19,102 | Z204: 17,669 | AA204: 16,235 | AB204: 14,801 | AC204: 13,368 | AD204: 12,347 | AE204: 11,539 | AF204: 10,852 | AG204: 10,238 | AH204: 9,702 | AI204: 9,173 | AJ204: 8,645 | AK204: 8,117 | AL204: 7,589 | AM204: 7,061 | AN204: 6,533 | AO204: 6,005 | AP204: 5,477 | AQ204: 4,948 | AR204: 4,420 | AS204: 3,892 | AT204: 3,364 | AU204: 2,836 | AV204: 2,308
B206: Total - Liability and equity | H206: =+H203+H204 -> 70,388 | I206: =+I203+I204 -> 104,328 | J206: =+J203+J204 -> 116,949 | K206: 127,172 | L206: 128,550 | M206: 124,771 | N206: 114,347 | O206: 103,923 | P206: 93,499 | Q206: 83,075 | R206: 72,651 | S206: 65,182 | T206: 59,123 | U206: 54,629 | V206: 50,876 | W206: 47,759 | X206: 44,643 | Y206: 41,526 | Z206: 38,410 | AA206: 35,294 | AB206: 32,177 | AC206: 29,061 | AD206: 26,842 | AE206: 25,086 | AF206: 23,591 | AG206: 22,256 | AH206: 21,091 | AI206: 19,942 | AJ206: 18,794 | AK206: 17,646 | AL206: 16,498 | AM206: 15,350 | AN206: 14,202 | AO206: 13,054 | AP206: 11,905 | AQ206: 10,757 | AR206: 9,609 | AS206: 8,461 | AT206: 7,313 | AU206: 6,165 | AV206: 5,017
E207: Contrôle | F207: =IF(SUM(H207:AV207)=0,"ok",SUM(H207:AV207)) -> ok | H207: =+H200-H206 -> 0 | I207: 0 | J207: 0 | K207: 0 | L207: 0 | M207: 0 | N207: 0 | O207: 0 | P207: 0 | Q207: 0 | R207: 0 | S207: 0 | T207: 0 | U207: 0 | V207: 0 | W207: 0 | X207: 0 | Y207: 0 | Z207: 0 | AA207: 0 | AB207: 0 | AC207: 0 | AD207: 0 | AE207: 0 | AF207: 0 | AG207: 0 | AH207: 0 | AI207: 0 | AJ207: 0 | AK207: 0 | AL207: 0 | AM207: 0 | AN207: 0 | AO207: 0 | AP207: 0 | AQ207: 0 | AR207: 0 | AS207: 0 | AT207: 0 | AU207: 0 | AV207: 0
B208: Financial structure liability - proof | H208: =IFERROR(H203/(H$203+H$204),"-") -> 54.00% | I208: =IFERROR(I203/(I$203+I$204),"-") -> 54.00% | J208: 54.00% | K208: =IFERROR(K203/(K$203+K$204),"-") -> 54.00% | L208: 54.00% | M208: 54.00% | N208: 54.00% | O208: 54.00% | P208: 54.00% | Q208: 54.00% | R208: 54.00% | S208: 54.00% | T208: 54.00% | U208: 54.00% | V208: 54.00% | W208: 54.00% | X208: 54.00% | Y208: 54.00% | Z208: 54.00% | AA208: 54.00% | AB208: 54.00% | AC208: 54.00% | AD208: 54.00% | AE208: 54.00% | AF208: 54.00% | AG208: 54.00% | AH208: 54.00% | AI208: 54.00% | AJ208: 54.00% | AK208: 54.00% | AL208: 54.00% | AM208: 54.00% | AN208: 54.00% | AO208: 54.00% | AP208: 54.00% | AQ208: 54.00% | AR208: 54.00% | AS208: 54.00% | AT208: 54.00% | AU208: 54.00% | AV208: 54.00%
B209: Financial structure equity - proof | H209: =IFERROR(H204/(H$203+H$204),"-") -> 46.00% | I209: 46.00% | J209: 46.00% | K209: 46.00% | L209: 46.00% | M209: 46.00% | N209: 46.00% | O209: 46.00% | P209: 46.00% | Q209: 46.00% | R209: 46.00% | S209: 46.00% | T209: 46.00% | U209: 46.00% | V209: 46.00% | W209: 46.00% | X209: 46.00% | Y209: 46.00% | Z209: 46.00% | AA209: 46.00% | AB209: 46.00% | AC209: 46.00% | AD209: 46.00% | AE209: 46.00% | AF209: 46.00% | AG209: 46.00% | AH209: 46.00% | AI209: 46.00% | AJ209: 46.00% | AK209: 46.00% | AL209: 46.00% | AM209: 46.00% | AN209: 46.00% | AO209: 46.00% | AP209: 46.00% | AQ209: 46.00% | AR209: 46.00% | AS209: 46.00% | AT209: 46.00% | AU209: 46.00% | AV209: 46.00%
A211: 3.3 | B211: Cash flow statement | I211: =$I$22 -> 2018 | J211: =I211+1 -> 2019 | K211: =J211+1 -> 2020 | L211: 2021 | M211: 2022 | N211: 2023 | O211: 2024 | P211: 2025 | Q211: 2026 | R211: 2027 | S211: 2028 | T211: 2029 | U211: 2030 | V211: 2031 | W211: 2032 | X211: 2033 | Y211: 2034 | Z211: 2035 | AA211: 2036 | AB211: 2037 | AC211: 2038 | AD211: 2039 | AE211: 2040 | AF211: 2041 | AG211: 2042 | AH211: 2043 | AI211: 2044 | AJ211: 2045 | AK211: 2046 | AL211: 2047 | AM211: 2048 | AN211: 2049 | AO211: 2050 | AP211: 2051 | AQ211: 2052 | AR211: 2053 | AS211: 2054 | AT211: 2055 | AU211: 2056 | AV211: 2057
B213: Operations
B214: Net income | I214: =+I188 -> 3,319 | J214: =+J188 -> 4,157 | K214: 4,637 | L214: 4,790 | M214: 4,800 | N214: 4,492 | O214: 4,100 | P214: 3,709 | Q214: 3,317 | R214: 2,925 | S214: 2,589 | T214: 2,335 | U214: 2,137 | V214: 1,982 | W214: 1,853 | X214: 1,736 | Y214: 1,619 | Z214: 1,502 | AA214: 1,385 | AB214: 1,268 | AC214: 1,150 | AD214: 1,050 | AE214: 976 | AF214: 914 | AG214: 861 | AH214: 814 | AI214: 771 | AJ214: 728 | AK214: 685 | AL214: 641 | AM214: 598 | AN214: 555 | AO214: 512 | AP214: 469 | AQ214: 426 | AR214: 383 | AS214: 339 | AT214: 296 | AU214: 253 | AV214: 210
B215: Plus: Depreciation | I215: =-I184 -> 5,028 | J215: =-J184 -> 6,887 | K215: 8,707 | L215: 9,605 | M215: 10,411 | N215: 10,424 | O215: 10,424 | P215: 10,424 | Q215: 10,424 | R215: 10,424 | S215: 7,469 | T215: 6,058 | U215: 4,494 | V215: 3,753 | W215: 3,116 | X215: 3,116 | Y215: 3,116 | Z215: 3,116 | AA215: 3,116 | AB215: 3,116 | AC215: 3,116 | AD215: 2,218 | AE215: 1,757 | AF215: 1,494 | AG215: 1,335 | AH215: 1,166 | AI215: 1,148 | AJ215: 1,148 | AK215: 1,148 | AL215: 1,148 | AM215: 1,148 | AN215: 1,148 | AO215: 1,148 | AP215: 1,148 | AQ215: 1,148 | AR215: 1,148 | AS215: 1,148 | AT215: 1,148 | AU215: 1,148 | AV215: 1,148
B216: Total - Operation | I216: =SUM(I214:I215) -> 8,346 | J216: =SUM(J214:J215) -> 11,044 | K216: 13,344 | L216: 14,395 | M216: 15,211 | N216: 14,916 | O216: 14,524 | P216: 14,133 | Q216: 13,741 | R216: 13,349 | S216: 10,059 | T216: 8,393 | U216: 6,631 | V216: 5,735 | W216: 4,969 | X216: 4,852 | Y216: 4,735 | Z216: 4,618 | AA216: 4,501 | AB216: 4,384 | AC216: 4,267 | AD216: 3,268 | AE216: 2,732 | AF216: 2,409 | AG216: 2,196 | AH216: 1,980 | AI216: 1,919 | AJ216: 1,876 | AK216: 1,833 | AL216: 1,790 | AM216: 1,746 | AN216: 1,703 | AO216: 1,660 | AP216: 1,617 | AQ216: 1,574 | AR216: 1,531 | AS216: 1,488 | AT216: 1,444 | AU216: 1,401 | AV216: 1,358
B218: Investing activities | I218: =-I132 -> -38,967 | J218: =-J132 -> -19,508 | K218: -18,929 | L218: -10,983 | M218: -6,632 | N218: 0 | O218: 0 | P218: 0 | Q218: 0 | R218: 0 | S218: 0 | T218: 0 | U218: 0 | V218: 0 | W218: 0 | X218: 0 | Y218: 0 | Z218: 0 | AA218: 0 | AB218: 0 | AC218: 0 | AD218: 0 | AE218: 0 | AF218: 0 | AG218: 0 | AH218: 0 | AI218: 0 | AJ218: 0 | AK218: 0 | AL218: 0 | AM218: 0 | AN218: 0 | AO218: 0 | AP218: 0 | AQ218: 0 | AR218: 0 | AS218: 0 | AT218: 0 | AU218: 0 | AV218: 0
B220: Financing activities
B221: Liability variation | I221: =I203-H203 -> 18,328 | J221: 6,816 | K221: 5,520 | L221: 744 | M221: -2,041 | N221: -5,629 | O221: -5,629 | P221: -5,629 | Q221: -5,629 | R221: -5,629 | S221: -4,033 | T221: -3,271 | U221: -2,427 | V221: -2,027 | W221: -1,683 | X221: -1,683 | Y221: -1,683 | Z221: -1,683 | AA221: -1,683 | AB221: -1,683 | AC221: -1,683 | AD221: -1,198 | AE221: -949 | AF221: -807 | AG221: -721 | AH221: -629 | AI221: -620 | AJ221: -620 | AK221: -620 | AL221: -620 | AM221: -620 | AN221: -620 | AO221: -620 | AP221: -620 | AQ221: -620 | AR221: -620 | AS221: -620 | AT221: -620 | AU221: -620 | AV221: -620
B222: Distributable to shareholders | I222: =I216+I218+I221 -> -12,294 | J222: =J216+J218+J221 -> -1,648 | K222: =K216+K218+K221 -> -65 | L222: =L216+L218+L221 -> 4,157 | M222: 6,538 | N222: 9,287 | O222: 8,895 | P222: 8,504 | Q222: 8,112 | R222: 7,720 | S222: 6,025 | T222: 5,122 | U222: 4,204 | V222: 3,709 | W222: 3,287 | X222: 3,169 | Y222: 3,052 | Z222: 2,935 | AA222: 2,818 | AB222: 2,701 | AC222: 2,584 | AD222: 2,071 | AE222: 1,784 | AF222: 1,602 | AG222: 1,475 | AH222: 1,350 | AI222: 1,299 | AJ222: 1,256 | AK222: 1,213 | AL222: 1,170 | AM222: 1,126 | AN222: 1,083 | AO222: 1,040 | AP222: 997 | AQ222: 954 | AR222: 911 | AS222: 868 | AT222: 824 | AU222: 781 | AV222: 738
B224: Distribution to shareholder (equity issue, dividends, equity reimbursement) | I224: =-I222 -> 12,294 | J224: =-J222 -> 1,648 | K224: =-K222 -> 65 | L224: =-L222 -> -4,157 | M224: =-M222 -> -6,538 | N224: -9,287 | O224: -8,895 | P224: -8,504 | Q224: -8,112 | R224: -7,720 | S224: -6,025 | T224: -5,122 | U224: -4,204 | V224: -3,709 | W224: -3,287 | X224: -3,169 | Y224: -3,052 | Z224: -2,935 | AA224: -2,818 | AB224: -2,701 | AC224: -2,584 | AD224: -2,071 | AE224: -1,784 | AF224: -1,602 | AG224: -1,475 | AH224: -1,350 | AI224: -1,299 | AJ224: -1,256 | AK224: -1,213 | AL224: -1,170 | AM224: -1,126 | AN224: -1,083 | AO224: -1,040 | AP224: -997 | AQ224: -954 | AR224: -911 | AS224: -868 | AT224: -824 | AU224: -781 | AV224: -738
I225: =I221+I224 -> 30,621 | J225: 8,464 | K225: 5,585 | L225: -3,412 | M225: -8,579 | N225: -14,916 | O225: -14,524 | P225: -14,133 | Q225: -13,741 | R225: -13,349 | S225: -10,059 | T225: -8,393 | U225: -6,631 | V225: -5,735 | W225: -4,969 | X225: -4,852 | Y225: -4,735 | Z225: -4,618 | AA225: -4,501 | AB225: -4,384 | AC225: -4,267 | AD225: -3,268 | AE225: -2,732 | AF225: -2,409 | AG225: -2,196 | AH225: -1,980 | AI225: -1,919 | AJ225: -1,876 | AK225: -1,833 | AL225: -1,790 | AM225: -1,746 | AN225: -1,703 | AO225: -1,660 | AP225: -1,617 | AQ225: -1,574 | AR225: -1,531 | AS225: -1,488 | AT225: -1,444 | AU225: -1,401 | AV225: -1,358
B227: Variation d'encaisse | I227: =I216+I218+I225 -> 0 | J227: =J216+J218+J225 -> 0 | K227: 0 | L227: 0 | M227: 0 | N227: 0 | O227: 0 | P227: 0 | Q227: 0 | R227: 0 | S227: 0 | T227: 0 | U227: 0 | V227: 0 | W227: 0 | X227: 0 | Y227: 0 | Z227: 0 | AA227: 0 | AB227: 0 | AC227: 0 | AD227: 0 | AE227: 0 | AF227: 0 | AG227: 0 | AH227: 0 | AI227: 0 | AJ227: 0 | AK227: 0 | AL227: 0 | AM227: 0 | AN227: 0 | AO227: 0 | AP227: 0 | AQ227: 0 | AR227: 0 | AS227: 0 | AT227: 0 | AU227: 0 | AV227: 0
A229: 3.4 | B229: IRR, NPV and Break point (impact on rates) | H229: =I229-1 -> 2017 | I229: =$I$22 -> 2018 | J229: =I229+1 -> 2019 | K229: =J229+1 -> 2020 | L229: 2021 | M229: 2022 | N229: 2023 | O229: 2024 | P229: 2025 | Q229: 2026 | R229: 2027 | S229: 2028 | T229: 2029 | U229: 2030 | V229: 2031 | W229: 2032 | X229: 2033 | Y229: 2034 | Z229: 2035 | AA229: 2036 | AB229: 2037 | AC229: 2038 | AD229: 2039 | AE229: 2040 | AF229: 2041 | AG229: 2042 | AH229: 2043 | AI229: 2044 | AJ229: 2045 | AK229: 2046 | AL229: 2047 | AM229: 2048 | AN229: 2049 | AO229: 2050 | AP229: 2051 | AQ229: 2052 | AR229: 2053 | AS229: 2054 | AT229: 2055 | AU229: 2056 | AV229: 2057
B231: Investment | I231: =I218 -> -38,967 | J231: =J218 -> -19,508 | K231: -18,929 | L231: -10,983 | M231: -6,632 | N231: 0 | O231: 0 | P231: 0 | Q231: 0 | R231: 0 | S231: 0 | T231: 0 | U231: 0 | V231: 0 | W231: 0 | X231: 0 | Y231: 0 | Z231: 0 | AA231: 0 | AB231: 0 | AC231: 0 | AD231: 0 | AE231: 0 | AF231: 0 | AG231: 0 | AH231: 0 | AI231: 0 | AJ231: 0 | AK231: 0 | AL231: 0 | AM231: 0 | AN231: 0 | AO231: 0 | AP231: 0 | AQ231: 0 | AR231: 0 | AS231: 0 | AT231: 0 | AU231: 0 | AV231: 0
B232: Income | I232: =I27 -> 4,711 | J232: 11,357 | K232: 16,405 | L232: 19,819 | M232: 22,021 | N232: 22,021 | O232: 22,021 | P232: 22,021 | Q232: 22,021 | R232: 22,021 | S232: 22,021 | T232: 22,021 | U232: 22,021 | V232: 22,021 | W232: 22,021 | X232: 22,021 | Y232: 22,021 | Z232: 22,021 | AA232: 22,021 | AB232: 22,021 | AC232: 22,021 | AD232: 22,021 | AE232: 22,021 | AF232: 22,021 | AG232: 22,021 | AH232: 22,021 | AI232: 22,021 | AJ232: 22,021 | AK232: 22,021 | AL232: 22,021 | AM232: 22,021 | AN232: 22,021 | AO232: 22,021 | AP232: 22,021 | AQ232: 22,021 | AR232: 22,021 | AS232: 22,021 | AT232: 22,021 | AU232: 22,021 | AV232: 22,021
B233: OPEX, tax on utilities and royalties | I233: =I182 -> -2,544 | J233: -3,607 | K233: -4,442 | L233: -4,786 | M233: -5,101 | N233: -4,949 | O233: -4,793 | P233: -4,636 | Q233: -4,480 | R233: -4,323 | S233: -4,211 | T233: -4,121 | U233: -4,053 | V233: -3,997 | W233: -3,950 | X233: -3,903 | Y233: -3,857 | Z233: -3,810 | AA233: -3,763 | AB233: -3,716 | AC233: -3,670 | AD233: -3,636 | AE233: -3,610 | AF233: -3,588 | AG233: -3,568 | AH233: -3,550 | AI233: -3,533 | AJ233: -3,516 | AK233: -3,498 | AL233: -3,481 | AM233: -3,464 | AN233: -3,447 | AO233: -3,430 | AP233: -3,412 | AQ233: -3,395 | AR233: -3,378 | AS233: -3,361 | AT233: -3,343 | AU233: -3,326 | AV233: -3,309
B234: Tax (without liability) | I234: =-I172 -> 780 | J234: 268 | K234: -396 | L234: -1,026 | M234: -1,380 | N234: -1,463 | O234: -1,573 | P234: -1,680 | Q234: -1,784 | R234: -1,884 | S234: -2,764 | T234: -3,219 | U234: -3,706 | V234: -3,966 | W234: -4,193 | X234: -4,246 | Y234: -4,296 | Z234: -4,344 | AA234: -4,390 | AB234: -4,434 | AC234: -4,476 | AD234: -4,512 | AE234: -4,545 | AF234: -4,576 | AG234: -4,604 | AH234: -4,630 | AI234: -4,655 | AJ234: -4,679 | AK234: -4,702 | AL234: -4,723 | AM234: -4,744 | AN234: -4,763 | AO234: -4,782 | AP234: -4,800 | AQ234: -4,817 | AR234: -4,833 | AS234: -4,848 | AT234: -4,863 | AU234: -4,878 | AV234: -4,891
B235: Cash flow | F235: =IFERROR(IRR(H235:AV235),"-") -> 8.30% | H235: =H237 -> -70,388 | I235: =SUM(I231:I234) -> -36,021 | J235: =SUM(J231:J234) -> -11,491 | K235: -7,362 | L235: 3,024 | M235: 8,907 | N235: 15,610 | O235: 15,656 | P235: 15,705 | Q235: 15,757 | R235: 15,813 | S235: 15,046 | T235: 14,681 | U235: 14,262 | V235: 14,058 | W235: 13,878 | X235: 13,872 | Y235: 13,869 | Z235: 13,868 | AA235: 13,869 | AB235: 13,871 | AC235: 13,876 | AD235: 13,873 | AE235: 13,866 | AF235: 13,858 | AG235: 13,850 | AH235: 13,841 | AI235: 13,833 | AJ235: 13,827 | AK235: 13,821 | AL235: 13,817 | AM235: 13,814 | AN235: 13,812 | AO235: 13,810 | AP235: 13,810 | AQ235: 13,810 | AR235: 13,811 | AS235: 13,812 | AT235: 13,815 | AU235: 13,818 | AV235: 13,821
B237: IRR 40 years - Projet | F237: =IFERROR(IRR(H237:AV237),"-") -> 8.30% | H237: =-H200 -> -70,388 | I237: =I183-I181-I172+I218 -> -36,021 | J237: -11,491 | K237: -7,362 | L237: =L183-L181-L172+L218 -> 3,024 | M237: =M183-M181-M172+M218 -> 8,907 | N237: =N183-N181-N172+N218 -> 15,610 | O237: 15,656 | P237: 15,705 | Q237: 15,757 | R237: 15,813 | S237: 15,046 | T237: 14,681 | U237: 14,262 | V237: 14,058 | W237: 13,878 | X237: 13,872 | Y237: 13,869 | Z237: 13,868 | AA237: 13,869 | AB237: 13,871 | AC237: 13,876 | AD237: 13,873 | AE237: 13,866 | AF237: 13,858 | AG237: 13,850 | AH237: 13,841 | AI237: 13,833 | AJ237: 13,827 | AK237: 13,821 | AL237: 13,817 | AM237: 13,814 | AN237: 13,812 | AO237: 13,810 | AP237: 13,810 | AQ237: 13,810 | AR237: 13,811 | AS237: 13,812 | AT237: 13,815 | AU237: 13,818 | AV237: 13,821
E238: Coût du capital
B239: NPV 40 years - Projet ( au coût du capital) | E239: =$F$81 -> 5.28% | F239: =NPV(E239,H237:AV237) -> 61,710.04 $
B241: Break point (impact on rates) | M241: 5 ans | R241: 10 ans | W241: 15 ans | AB241: 20 ans | AG241: 25 ans | AL241: 30 ans | AQ241: 35 ans | AV241: 40 ans
B243: Impact on rates | I243: =I94-I27 -> 8,732 | J243: 5,826 | K243: 4,310 | L243: 2,473 | M243: 1,496 | N243: 872 | O243: 113 | P243: -648 | Q243: -1,414 | R243: -2,185 | S243: -5,773 | T243: -7,656 | U243: -9,572 | V243: -10,582 | W243: -11,436 | X243: -11,636 | Y243: -11,839 | Z243: -12,045 | AA243: -12,254 | AB243: -12,465 | AC243: -12,679 | AD243: -14,081 | AE243: -14,836 | AF243: -15,292 | AG243: -15,593 | AH243: -15,896 | AI243: -15,986 | AJ243: -16,054 | AK243: -16,123 | AL243: -16,194 | AM243: -16,266 | AN243: -16,339 | AO243: -16,413 | AP243: -16,489 | AQ243: -16,566 | AR243: -16,644 | AS243: -16,723 | AT243: -16,802 | AU243: -16,883 | AV243: -16,964
B244: Impact on rates (present value) | E244: =$F$81 -> 5.28% | H244: Ne pas effacer | I244: =I243/(1+$E$244)^I176 -> 8,294 | J244: 5,256 | K244: 3,694 | L244: 2,013 | M244: 1,157 | N244: 640 | O244: 79 | P244: -429 | Q244: -890 | R244: -1,306 | S244: -3,278 | T244: -4,129 | U244: -4,904 | V244: -5,149 | W244: -5,286 | X244: -5,108 | Y244: -4,937 | Z244: -4,771 | AA244: -4,610 | AB244: -4,454 | AC244: -4,304 | AD244: -4,540 | AE244: -4,543 | AF244: -4,448 | AG244: -4,308 | AH244: -4,171 | AI244: -3,985 | AJ244: -3,801 | AK244: -3,626 | AL244: -3,459 | AM244: -3,300 | AN244: -3,149 | AO244: -3,005 | AP244: -2,867 | AQ244: -2,736 | AR244: -2,611 | AS244: -2,492 | AT244: -2,378 | AU244: -2,270 | AV244: -2,166
B245: Cumulative impact on rates (present value) | H245: -1 | I245: =+I244 -> 8,294 | J245: =I245+J244 -> 13,550 | K245: =J245+K244 -> 17,244 | L245: 19,257 | M245: 20,414 | N245: 21,054 | O245: 21,133 | P245: 20,704 | Q245: 19,814 | R245: 18,508 | S245: 15,230 | T245: 11,101 | U245: 6,197 | V245: 1,048 | W245: -4,238 | X245: -9,346 | Y245: -14,282 | Z245: -19,053 | AA245: -23,663 | AB245: -28,117 | AC245: -32,421 | AD245: -36,960 | AE245: -41,503 | AF245: -45,951 | AG245: -50,259 | AH245: -54,431 | AI245: -58,415 | AJ245: -62,216 | AK245: -65,842 | AL245: -69,301 | AM245: -72,602 | AN245: -75,751 | AO245: -78,755 | AP245: -81,622 | AQ245: -84,358 | AR245: -86,969 | AS245: -89,461 | AT245: -91,839 | AU245: -94,109 | AV245: -96,275
B246: Break point | F246: =IF(AND(MAX(I246:AV246)=0,I245<=0),1,MAX(I246:AV246)) -> 14.20 ans | H246: - | I246: =IF(AND(H246="-",OR(AND(H245>0,I245<=0),AND(H245>=0,I245<0))),I$176-1+H245/-I244,IF(H246="-","-","")) -> - | J246: =IF(AND(I246="-",OR(AND(I245>0,J245<=0),AND(I245>=0,J245<0))),J$176-1+I245/-J244,IF(I246="-","-","")) -> - | K246: - | L246: - | M246: - | N246: - | O246: - | P246: - | Q246: - | R246: - | S246: - | T246: - | U246: - | V246: - | W246: 14.20

Sheet GM-9doc4-Q7.1 SMA RES
A1: Model to evaluate the profitability of projects - Version 2016-2017
A2: SMA RES
A3: ($)
B5: Results
B6: IRR 40 years | E6: =$F$237 -> 3.92%
B7: Break point (impact on rates) | E7: =F246 -> 0.0 ans
B8: Impact on rates | D8: Annual | E8: Cumulative net present value.
B9: 1 year | D9: =I$243 -> 21,715 | E9: =I$245 -> 20,626
B10: 2 years | D10: =J$243 -> 17,628 | E10: =J$245 -> 36,531
B11: 3 years | D11: =K$243 -> 15,292 | E11: =K$245 -> 49,635
B12: 4 years | D12: =L$243 -> 11,513 | E12: =L$245 -> 59,007
B13: 5 years | D13: =M$243 -> 8,764 | E13: =M$245 -> 65,782
B14: 10 years | D14: =R$243 -> 6,514 | E14: =R$245 -> 91,755
B15: 15 years | D15: =W$243 -> 3,131 | E15: =W$245 -> 103,524
B16: 20 years | D16: =AB$243 -> -557 | E16: =AB$245 -> 105,540
B17: 30 years | D17: =AL$243 -> -14,470 | E17: =AL$245 -> 77,348
B18: 40 years | D18: =AV$243 -> -16,736 | E18: =AV$245 -> 51,978
A20: Section 1 - Inputs | H20: 0 | I20: 1 | J20: 2 | K20: 3 | L20: 4 | M20: 5 | N20: 6 | O20: 7 | P20: 8 | Q20: 9 | R20: 10 | S20: 11 | T20: 12 | U20: 13 | V20: 14 | W20: 15 | X20: 16 | Y20: 17 | Z20: 18 | AA20: 19 | AB20: 20 | AC20: 21 | AD20: 22 | AE20: 23 | AF20: 24 | AG20: 25 | AH20: 26 | AI20: 27 | AJ20: 28 | AK20: 29 | AL20: 30 | AM20: 31 | AN20: 32 | AO20: 33 | AP20: 34 | AQ20: 35 | AR20: 36 | AS20: 37 | AT20: 38 | AU20: 39 | AV20: 40
A22: 1.1 | B22: Clients - Volumes - Rates - Incomes | I22: 2018 | J22: =I22+1 -> 2019 | K22: =J22+1 -> 2020 | L22: 2021 | M22: 2022 | N22: 2023 | O22: 2024 | P22: 2025 | Q22: 2026 | R22: 2027 | S22: 2028 | T22: 2029 | U22: 2030 | V22: 2031 | W22: 2032 | X22: 2033 | Y22: 2034 | Z22: 2035 | AA22: 2036 | AB22: 2037 | AC22: 2038 | AD22: 2039 | AE22: 2040 | AF22: 2041 | AG22: 2042 | AH22: 2043 | AI22: 2044 | AJ22: 2045 | AK22: 2046 | AL22: 2047 | AM22: 2048 | AN22: 2049 | AO22: 2050 | AP22: 2051 | AQ22: 2052 | AR22: 2053 | AS22: 2054 | AT22: 2055 | AU22: 2056 | AV22: 2057
B24: Number de clients | I24: 15 | J24: 32 | K24: 48 | L24: 58 | M24: 64 | N24: =M24 -> 64 | O24: 64 | P24: 64 | Q24: 64 | R24: =Q24 -> 64 | S24: 64 | T24: 64 | U24: 64 | V24: 64 | W24: 64 | X24: 64 | Y24: 64 | Z24: 64 | AA24: 64 | AB24: 64 | AC24: 64 | AD24: 64 | AE24: 64 | AF24: 64 | AG24: 64 | AH24: 64 | AI24: 64 | AJ24: 64 | AK24: 64 | AL24: 64 | AM24: 64 | AN24: 64 | AO24: 64 | AP24: 64 | AQ24: 64 | AR24: 64 | AS24: 64 | AT24: 64 | AU24: 64 | AV24: 64
B25: Volumes m3 | I25: 11,533 | J25: 33,050 | K25: 54,653 | L25: 71,994 | M25: 81,909 | N25: =M25 -> 81,909 | O25: 81,909 | P25: 81,909 | Q25: 81,909 | R25: =Q25 -> 81,909 | S25: 81,909 | T25: 81,909 | U25: 81,909 | V25: 81,909 | W25: 81,909 | X25: 81,909 | Y25: 81,909 | Z25: 81,909 | AA25: 81,909 | AB25: 81,909 | AC25: 81,909 | AD25: 81,909 | AE25: 81,909 | AF25: 81,909 | AG25: 81,909 | AH25: 81,909 | AI25: 81,909 | AJ25: 81,909 | AK25: 81,909 | AL25: 81,909 | AM25: 81,909 | AN25: 81,909 | AO25: 81,909 | AP25: 81,909 | AQ25: 81,909 | AR25: 81,909 | AS25: 81,909 | AT25: 81,909 | AU25: 81,909 | AV25: 81,909
B26: Distribution rate ( ¢ / m3) | I26: 37.6552 | J26: 38.8303 | K26: 39.2353 | L26: 39.3865 | M26: 39.4571 | N26: =M26 -> 39.4571 | O26: =N26 -> 39.4571 | P26: =O26 -> 39.4571 | Q26: 39.4571 | R26: 39.4571 | S26: 39.4571 | T26: 39.4571 | U26: 39.4571 | V26: 39.4571 | W26: 39.4571 | X26: 39.4571 | Y26: 39.4571 | Z26: 39.4571 | AA26: 39.4571 | AB26: 39.4571 | AC26: 39.4571 | AD26: 39.4571 | AE26: 39.4571 | AF26: 39.4571 | AG26: 39.4571 | AH26: 39.4571 | AI26: 39.4571 | AJ26: 39.4571 | AK26: 39.4571 | AL26: 39.4571 | AM26: 39.4571 | AN26: 39.4571 | AO26: 39.4571 | AP26: 39.4571 | AQ26: 39.4571 | AR26: 39.4571 | AS26: 39.4571 | AT26: 39.4571 | AU26: 39.4571 | AV26: 39.4571
B27: Distribution income | I27: =I26*I25/100 -> 4,343 | J27: 12,834 | K27: 21,443 | L27: 28,356 | M27: 32,319 | N27: 32,319 | O27: 32,319 | P27: 32,319 | Q27: 32,319 | R27: 32,319 | S27: 32,319 | T27: 32,319 | U27: 32,319 | V27: 32,319 | W27: 32,319 | X27: 32,319 | Y27: 32,319 | Z27: 32,319 | AA27: 32,319 | AB27: 32,319 | AC27: 32,319 | AD27: 32,319 | AE27: 32,319 | AF27: 32,319 | AG27: 32,319 | AH27: 32,319 | AI27: 32,319 | AJ27: 32,319 | AK27: 32,319 | AL27: 32,319 | AM27: 32,319 | AN27: 32,319 | AO27: 32,319 | AP27: 32,319 | AQ27: 32,319 | AR27: 32,319 | AS27: 32,319 | AT27: 32,319 | AU27: 32,319 | AV27: 32,319
A29: 1.2 | B29: Capital costs (Capitalizable) | H29: =I29-1 -> 2017 | I29: =$I$22 -> 2018 | J29: =I29+1 -> 2019 | K29: =J29+1 -> 2020 | L29: 2021 | M29: 2022 | N29: 2023 | O29: 2024 | P29: 2025 | Q29: 2026 | R29: 2027 | S29: 2028 | T29: 2029 | U29: 2030 | V29: 2031 | W29: 2032 | X29: 2033 | Y29: 2034 | Z29: 2035 | AA29: 2036 | AB29: 2037 | AC29: 2038 | AD29: 2039 | AE29: 2040 | AF29: 2041 | AG29: 2042 | AH29: 2043 | AI29: 2044 | AJ29: 2045 | AK29: 2046 | AL29: 2047 | AM29: 2048 | AN29: 2049 | AO29: 2050 | AP29: 2051 | AQ29: 2052 | AR29: 2053 | AS29: 2054 | AT29: 2055 | AU29: 2056 | AV29: 2057
D31: Accounting | E31: Fiscal
D32: depreciation | E32: depreciation | F32: Capitalized general expenses
B33: Main line - Base | H33: 120,636 | I33: 0 | AV33: 0
B34: Main line - Contractors fees | H34: 11,803 | I34: 0 | AV34: 0
B35: Main line - Total | D35: =1/2.2538% -> 44 ans | E35: 6.0% | F35: 14.53% | H35: =H33+H34 -> 132,439 | I35: =I33+I34 -> 0 | J35: 0 | K35: 0 | L35: 0 | M35: 0 | N35: 0 | O35: 0 | P35: 0 | Q35: 0 | R35: 0 | S35: 0 | T35: 0 | U35: 0 | V35: 0 | W35: 0 | X35: 0 | Y35: 0 | Z35: 0 | AA35: 0 | AB35: 0 | AC35: 0 | AD35: 0 | AE35: 0 | AF35: 0 | AG35: 0 | AH35: 0 | AI35: 0 | AJ35: 0 | AK35: 0 | AL35: 0 | AM35: 0 | AN35: 0 | AO35: 0 | AP35: 0 | AQ35: 0 | AR35: 0 | AS35: 0 | AT35: 0 | AU35: 0 | AV35: 0
B37: Connection - Base | H37: 45,202 | I37: 27,618 | J37: 27,954 | K37: 16,903 | L37: 8,137 | M37: 5,936 | AV37: 0
B38: Connection - Contractors fees | H38: 5,949 | I38: 3,434 | J38: 3,403 | K38: 1,697 | L38: 335 | M38: 503 | AV38: 0
B39: Connection - Meters | H39: 1,610 | I39: 1,650 | J39: 1,610 | K39: 858 | L39: 343 | M39: 515 | AV39: 0
B40: Connection - Total | D40: =1/4.7554% -> 21 ans | E40: 6.0% | F40: 14.53% | H40: =H37+H38+H39 -> 52,762 | I40: =I37+I38+I39 -> 32,703 | J40: 32,967 | K40: 19,459 | L40: 8,816 | M40: 6,954 | N40: 0 | O40: 0 | P40: 0 | Q40: 0 | R40: 0 | S40: 0 | T40: 0 | U40: 0 | V40: 0 | W40: 0 | X40: 0 | Y40: 0 | Z40: 0 | AA40: 0 | AB40: 0 | AC40: 0 | AD40: 0 | AE40: 0 | AF40: 0 | AG40: 0 | AH40: 0 | AI40: 0 | AJ40: 0 | AK40: 0 | AL40: 0 | AM40: 0 | AN40: 0 | AO40: 0 | AP40: 0 | AQ40: 0 | AR40: 0 | AS40: 0 | AT40: 0 | AU40: 0 | AV40: 0
B41: Compression | D41: 20 ans | E41: 20.0% | F41: 14.53% | H41: 0 | I41: 0 | J41: 0 | K41: 0 | L41: 0 | M41: 0 | N41: 0 | O41: 0 | P41: 0 | Q41: 0 | R41: 0 | S41: 0 | T41: 0 | U41: 0 | V41: 0 | W41: 0 | X41: 0 | Y41: 0 | Z41: 0 | AA41: 0 | AB41: 0 | AC41: 0 | AD41: 0 | AE41: 0 | AF41: 0 | AG41: 0 | AH41: 0 | AI41: 0 | AJ41: 0 | AK41: 0 | AL41: 0 | AM41: 0 | AN41: 0 | AO41: 0 | AP41: 0 | AQ41: 0 | AR41: 0 | AS41: 0 | AT41: 0 | AU41: 0 | AV41: 0
B42: Servitude | D42: 65 ans | E42: 7.0% | F42: 14.53% | H42: 0 | I42: 0 | J42: 0 | K42: 0 | L42: 0 | M42: 0 | N42: 0 | O42: 0 | P42: 0 | Q42: 0 | R42: 0 | S42: 0 | T42: 0 | U42: 0 | V42: 0 | W42: 0 | X42: 0 | Y42: 0 | Z42: 0 | AA42: 0 | AB42: 0 | AC42: 0 | AD42: 0 | AE42: 0 | AF42: 0 | AG42: 0 | AH42: 0 | AI42: 0 | AJ42: 0 | AK42: 0 | AL42: 0 | AM42: 0 | AN42: 0 | AO42: 0 | AP42: 0 | AQ42: 0 | AR42: 0 | AS42: 0 | AT42: 0 | AU42: 0 | AV42: 0
B43: Transport | D43: 65 ans | E43: 8.0% | F43: 14.53% | H43: 0 | I43: 0 | J43: 0 | K43: 0 | L43: 0 | M43: 0 | N43: 0 | O43: 0 | P43: 0 | Q43: 0 | R43: 0 | S43: 0 | T43: 0 | U43: 0 | V43: 0 | W43: 0 | X43: 0 | Y43: 0 | Z43: 0 | AA43: 0 | AB43: 0 | AC43: 0 | AD43: 0 | AE43: 0 | AF43: 0 | AG43: 0 | AH43: 0 | AI43: 0 | AJ43: 0 | AK43: 0 | AL43: 0 | AM43: 0 | AN43: 0 | AO43: 0 | AP43: 0 | AQ43: 0 | AR43: 0 | AS43: 0 | AT43: 0 | AU43: 0 | AV43: 0
B44: Actif non amortissable (terrain) incluant frais généraux | F44: 0.00% | H44: 0 | I44: 0 | J44: 0 | K44: 0 | L44: 0 | M44: 0 | N44: 0 | O44: 0 | P44: 0 | Q44: 0 | R44: 0 | S44: 0 | T44: 0 | U44: 0 | V44: 0 | W44: 0 | X44: 0 | Y44: 0 | Z44: 0 | AA44: 0 | AB44: 0 | AC44: 0 | AD44: 0 | AE44: 0 | AF44: 0 | AG44: 0 | AH44: 0 | AI44: 0 | AJ44: 0 | AK44: 0 | AL44: 0 | AM44: 0 | AN44: 0 | AO44: 0 | AP44: 0 | AQ44: 0 | AR44: 0 | AS44: 0 | AT44: 0 | AU44: 0 | AV44: 0
B45: Fees related to agreements with municipalities | C45: 2.00% | F45: 14.53% | H45: =$C$45*(H33+H37) -> 3,317 | I45: 552 | J45: 559 | K45: 338 | L45: 163 | M45: 119 | N45: 0 | O45: 0 | P45: 0 | Q45: 0 | R45: 0 | S45: 0 | T45: 0 | U45: 0 | V45: 0 | W45: 0 | X45: 0 | Y45: 0 | Z45: 0 | AA45: 0 | AB45: 0 | AC45: 0 | AD45: 0 | AE45: 0 | AF45: 0 | AG45: 0 | AH45: 0 | AI45: 0 | AJ45: 0 | AK45: 0 | AL45: 0 | AM45: 0 | AN45: 0 | AO45: 0 | AP45: 0 | AQ45: 0 | AR45: 0 | AS45: 0 | AT45: 0 | AU45: 0 | AV45: 0
B46: Capitalized general expenses | H46: =$F$35*H35+SUMPRODUCT($F$40:$F$45,H40:H45) -> 27,392 | I46: 4,832 | J46: 4,871 | K46: 2,876 | L46: 1,305 | M46: 1,028 | N46: 0 | O46: 0 | P46: 0 | Q46: 0 | R46: 0 | S46: 0 | T46: 0 | U46: 0 | V46: 0 | W46: 0 | X46: 0 | Y46: 0 | Z46: 0 | AA46: 0 | AB46: 0 | AC46: 0 | AD46: 0 | AE46: 0 | AF46: 0 | AG46: 0 | AH46: 0 | AI46: 0 | AJ46: 0 | AK46: 0 | AL46: 0 | AM46: 0 | AN46: 0 | AO46: 0 | AP46: 0 | AQ46: 0 | AR46: 0 | AS46: 0 | AT46: 0 | AU46: 0 | AV46: 0
H47: =H35+SUM(H40:H46) -> 215,909 | I47: =I35+SUM(I40:I46) -> 38,087 | J47: =J35+SUM(J40:J46) -> 38,397 | K47: 22,673 | L47: 10,283 | M47: 8,100 | N47: 0 | O47: 0 | P47: 0 | Q47: 0 | R47: 0 | S47: 0 | T47: 0 | U47: 0 | V47: 0 | W47: 0 | X47: 0 | Y47: 0 | Z47: 0 | AA47: 0 | AB47: 0 | AC47: 0 | AD47: 0 | AE47: 0 | AF47: 0 | AG47: 0 | AH47: 0 | AI47: 0 | AJ47: 0 | AK47: 0 | AL47: 0 | AM47: 0 | AN47: 0 | AO47: 0 | AP47: 0 | AQ47: 0 | AR47: 0 | AS47: 0 | AT47: 0 | AU47: 0 | AV47: 0
B49: PRC - 5 years | D49: 5 ans | E49: 5 ans | AV49: 0
B50: PRC - 10 years | D50: 10 ans | E50: =D50 -> 10 ans | AV50: 0
B51: CASEP - PRC 10 years | AV51: 0
B52: Contributions related to network connection | I52: -4,527 | J52: -4,936 | K52: -4,882 | L52: -3,018 | M52: -1,609 | AV52: 0
B53: CASEP - Capital | AV53: 0
B54: External contributions | AV54: 0
B55: Client contributions | AV55: 0
B56: Total - Investissement | F56: =SUM(H56:AV56) -> 314,477 | H56: =SUM(H47:H55) -> 215,909 | I56: =SUM(I47:I55) -> 33,560 | J56: =SUM(J47:J55) -> 33,461 | K56: 17,791 | L56: 7,265 | M56: 6,491 | N56: 0 | O56: 0 | P56: 0 | Q56: 0 | R56: 0 | S56: 0 | T56: 0 | U56: 0 | V56: 0 | W56: 0 | X56: 0 | Y56: 0 | Z56: 0 | AA56: 0 | AB56: 0 | AC56: 0 | AD56: 0 | AE56: 0 | AF56: 0 | AG56: 0 | AH56: 0 | AI56: 0 | AJ56: 0 | AK56: 0 | AL56: 0 | AM56: 0 | AN56: 0 | AO56: 0 | AP56: 0 | AQ56: 0 | AR56: 0 | AS56: 0 | AT56: 0 | AU56: 0 | AV56: 0
A58: 1.3 | B58: O&M costs (3867, phase A) | I58: =$I$22 -> 2018 | J58: =I58+1 -> 2019 | K58: =J58+1 -> 2020 | L58: 2021 | M58: 2022 | N58: 2023 | O58: 2024 | P58: 2025 | Q58: 2026 | R58: 2027 | S58: 2028 | T58: 2029 | U58: 2030 | V58: 2031 | W58: 2032 | X58: 2033 | Y58: 2034 | Z58: 2035 | AA58: 2036 | AB58: 2037 | AC58: 2038 | AD58: 2039 | AE58: 2040 | AF58: 2041 | AG58: 2042 | AH58: 2043 | AI58: 2044 | AJ58: 2045 | AK58: 2046 | AL58: 2047 | AM58: 2048 | AN58: 2049 | AO58: 2050 | AP58: 2051 | AQ58: 2052 | AR58: 2053 | AS58: 2054 | AT58: 2055 | AU58: 2056 | AV58: 2057
B60: Opex #1 (157 $/client) | C60: 157 | D60: Statutaire | I60: =$C60*I$24 -> 2,355 | J60: 5,024 | K60: 7,536 | L60: 9,106 | M60: 10,048 | N60: 10,048 | O60: 10,048 | P60: 10,048 | Q60: 10,048 | R60: 10,048 | S60: 10,048 | T60: 10,048 | U60: 10,048 | V60: 10,048 | W60: 10,048 | X60: 10,048 | Y60: 10,048 | Z60: 10,048 | AA60: 10,048 | AB60: 10,048 | AC60: 10,048 | AD60: 10,048 | AE60: 10,048 | AF60: 10,048 | AG60: 10,048 | AH60: 10,048 | AI60: 10,048 | AJ60: 10,048 | AK60: 10,048 | AL60: 10,048 | AM60: 10,048 | AN60: 10,048 | AO60: 10,048 | AP60: 10,048 | AQ60: 10,048 | AR60: 10,048 | AS60: 10,048 | AT60: 10,048 | AU60: 10,048 | AV60: 10,048
B61: Opex #2 | I61: 0 | J61: =I61 -> 0 | K61: =J61 -> 0 | L61: 0 | M61: =L61 -> 0 | N61: =M61 -> 0 | O61: =N61 -> 0 | P61: =O61 -> 0 | Q61: =P61 -> 0 | R61: =Q61 -> 0 | S61: =R61 -> 0 | T61: =S61 -> 0 | U61: =T61 -> 0 | V61: =U61 -> 0 | W61: =V61 -> 0 | X61: =W61 -> 0 | Y61: =X61 -> 0 | Z61: =Y61 -> 0 | AA61: =Z61 -> 0 | AB61: =AA61 -> 0 | AC61: =AB61 -> 0 | AD61: =AC61 -> 0 | AE61: =AD61 -> 0 | AF61: =AE61 -> 0 | AG61: =AF61 -> 0 | AH61: =AG61 -> 0 | AI61: =AH61 -> 0 | AJ61: =AI61 -> 0 | AK61: =AJ61 -> 0 | AL61: =AK61 -> 0 | AM61: =AL61 -> 0 | AN61: =AM61 -> 0 | AO61: =AN61 -> 0 | AP61: =AO61 -> 0 | AQ61: =AP61 -> 0 | AR61: =AQ61 -> 0 | AS61: =AR61 -> 0 | AT61: =AS61 -> 0 | AU61: =AT61 -> 0 | AV61: =AU61 -> 0
B62: Opex #3 | I62: 0 | J62: 0 | K62: 0 | L62: 0 | M62: 0 | N62: 0 | O62: 0 | P62: 0 | Q62: 0 | R62: 0 | S62: 0 | T62: 0 | U62: 0 | V62: 0 | W62: 0 | X62: 0 | Y62: 0 | Z62: 0 | AA62: 0 | AB62: 0 | AC62: 0 | AD62: 0 | AE62: 0 | AF62: 0 | AG62: 0 | AH62: 0 | AI62: 0 | AJ62: 0 | AK62: 0 | AL62: 0 | AM62: 0 | AN62: 0 | AO62: 0 | AP62: 0 | AQ62: 0 | AR62: 0 | AS62: 0 | AT62: 0 | AU62: 0 | AV62: 0
B63: Opex #4 | I63: 0 | J63: 0 | K63: 0 | L63: 0 | M63: 0 | N63: 0 | O63: 0 | P63: 0 | Q63: 0 | R63: 0 | S63: 0 | T63: 0 | U63: 0 | V63: 0 | W63: 0 | X63: 0 | Y63: 0 | Z63: 0 | AA63: 0 | AB63: 0 | AC63: 0 | AD63: 0 | AE63: 0 | AF63: 0 | AG63: 0 | AH63: 0 | AI63: 0 | AJ63: 0 | AK63: 0 | AL63: 0 | AM63: 0 | AN63: 0 | AO63: 0 | AP63: 0 | AQ63: 0 | AR63: 0 | AS63: 0 | AT63: 0 | AU63: 0 | AV63: 0
B64: Opex #5 | I64: 0 | J64: 0 | K64: 0 | L64: 0 | M64: 0 | N64: 0 | O64: 0 | P64: 0 | Q64: 0 | R64: 0 | S64: 0 | T64: 0 | U64: 0 | V64: 0 | W64: 0 | X64: 0 | Y64: 0 | Z64: 0 | AA64: 0 | AB64: 0 | AC64: 0 | AD64: 0 | AE64: 0 | AF64: 0 | AG64: 0 | AH64: 0 | AI64: 0 | AJ64: 0 | AK64: 0 | AL64: 0 | AM64: 0 | AN64: 0 | AO64: 0 | AP64: 0 | AQ64: 0 | AR64: 0 | AS64: 0 | AT64: 0 | AU64: 0 | AV64: 0
B65: Total - O&M costs | I65: =SUM(I60:I64) -> 2,355 | J65: =SUM(J60:J64) -> 5,024 | K65: =SUM(K60:K64) -> 7,536 | L65: 9,106 | M65: 10,048 | N65: 10,048 | O65: 10,048 | P65: 10,048 | Q65: 10,048 | R65: 10,048 | S65: 10,048 | T65: 10,048 | U65: 10,048 | V65: 10,048 | W65: 10,048 | X65: 10,048 | Y65: 10,048 | Z65: 10,048 | AA65: 10,048 | AB65: 10,048 | AC65: 10,048 | AD65: 10,048 | AE65: 10,048 | AF65: 10,048 | AG65: 10,048 | AH65: 10,048 | AI65: 10,048 | AJ65: =SUM(AJ60:AJ64) -> 10,048 | AK65: 10,048 | AL65: 10,048 | AM65: 10,048 | AN65: 10,048 | AO65: 10,048 | AP65: 10,048 | AQ65: 10,048 | AR65: 10,048 | AS65: 10,048 | AT65: 10,048 | AU65: 10,048 | AV65: 10,048
A67: 1.4 | B67: Other operation costs
B69: Tax on utilities | F69: 1.5%
B70: Royalty rate at the Régie de l'énergie ($/103m3) | F70: 0.60455
B71: Royalty rate at the Régie du bâtiment ($/103m3) | F71: 0.45600
B72: Tax rate (CAN. + QC) | F72: 26.9%
A74: 1.5 | B74: Structure of capital - Gaz Métro
B76: Cost of capital | F76: WACC prospective
J77: 2016-2017 parameters
B78: Structure and rate | E78: Structure | F78: Rates | J78: WACC | K78: WACC prospective
B79: Liability | E79: 54.0% | F79: =IF($F$76="WACC",$J$79,IF($F$76="WACC prospective",$K$79,$L$79)) -> 2.820% | I79: Liability | J79: 4.790% | K79: 2.820%
B80: Equity | E80: 46.0% | F80: =IF($F$76="WACC",$J$80,IF($F$76="WACC prospective",$K$80,$L$80)) -> 8.168% | I80: Equity | J80: 8.333% | K80: 8.168%
B81: Weighted average cost of capital (WACC) | F81: =$E79*F79+$E80*F80 -> 5.280% | I81: Weighted average cost of capital | J81: =$E79*J79+$E80*J80 -> 6.420% | K81: =$E79*K79+$E80*K80 -> 5.280%
A84: Section 2 - Calculations | H84: 0 | I84: 1 | J84: 2 | K84: 3 | L84: 4 | M84: 5 | N84: 6 | O84: 7 | P84: 8 | Q84: 9 | R84: 10 | S84: 11 | T84: 12 | U84: 13 | V84: 14 | W84: 15 | X84: 16 | Y84: 17 | Z84: 18 | AA84: 19 | AB84: 20 | AC84: 21 | AD84: 22 | AE84: 23 | AF84: 24 | AG84: 25 | AH84: 26 | AI84: 27 | AJ84: 28 | AK84: 29 | AL84: 30 | AM84: 31 | AN84: 32 | AO84: 33 | AP84: 34 | AQ84: 35 | AR84: 36 | AS84: 37 | AT84: 38 | AU84: 39 | AV84: 40
A86: 2.1 | B86: Cost of service | I86: =$I$22 -> 2018 | J86: =I86+1 -> 2019 | K86: =J86+1 -> 2020 | L86: 2021 | M86: 2022 | N86: 2023 | O86: 2024 | P86: 2025 | Q86: 2026 | R86: 2027 | S86: 2028 | T86: 2029 | U86: 2030 | V86: 2031 | W86: 2032 | X86: 2033 | Y86: 2034 | Z86: 2035 | AA86: 2036 | AB86: 2037 | AC86: 2038 | AD86: 2039 | AE86: 2040 | AF86: 2041 | AG86: 2042 | AH86: 2043 | AI86: 2044 | AJ86: 2045 | AK86: 2046 | AL86: 2047 | AM86: 2048 | AN86: 2049 | AO86: 2050 | AP86: 2051 | AQ86: 2052 | AR86: 2053 | AS86: 2054 | AT86: 2055 | AU86: 2056 | AV86: 2057
B88: OPEX distribution cost | I88: =I65 -> 2,355 | J88: =J65 -> 5,024 | K88: 7,536 | L88: 9,106 | M88: 10,048 | N88: 10,048 | O88: 10,048 | P88: 10,048 | Q88: 10,048 | R88: 10,048 | S88: 10,048 | T88: 10,048 | U88: 10,048 | V88: 10,048 | W88: 10,048 | X88: 10,048 | Y88: 10,048 | Z88: 10,048 | AA88: 10,048 | AB88: 10,048 | AC88: 10,048 | AD88: 10,048 | AE88: 10,048 | AF88: 10,048 | AG88: 10,048 | AH88: 10,048 | AI88: 10,048 | AJ88: 10,048 | AK88: 10,048 | AL88: 10,048 | AM88: 10,048 | AN88: 10,048 | AO88: 10,048 | AP88: 10,048 | AQ88: 10,048 | AR88: 10,048 | AS88: 10,048 | AT88: 10,048 | AU88: 10,048 | AV88: 10,048
B89: Tax on utilities | I89: =$F$69*I144 -> 3,143 | J89: =$F$69*J144 -> 3,526 | K89: 3,884 | L89: 3,994 | M89: 3,942 | N89: 3,873 | O89: 3,706 | P89: 3,540 | Q89: 3,373 | R89: 3,207 | S89: 3,041 | T89: 2,874 | U89: 2,708 | V89: 2,542 | W89: 2,375 | X89: 2,209 | Y89: 2,043 | Z89: 1,876 | AA89: 1,710 | AB89: 1,543 | AC89: 1,377 | AD89: 1,253 | AE89: 1,154 | AF89: 1,079 | AG89: 1,016 | AH89: 959 | AI89: 907 | AJ89: 855 | AK89: 802 | AL89: 750 | AM89: 698 | AN89: 646 | AO89: 594 | AP89: 541 | AQ89: 489 | AR89: 437 | AS89: 385 | AT89: 333 | AU89: 280 | AV89: 228
B90: Royalties | I90: =($F$70+$F$71)*I25/1000 -> 12 | J90: 35 | K90: 58 | L90: 76 | M90: 87 | N90: 87 | O90: 87 | P90: 87 | Q90: 87 | R90: 87 | S90: 87 | T90: 87 | U90: 87 | V90: 87 | W90: 87 | X90: 87 | Y90: 87 | Z90: 87 | AA90: 87 | AB90: 87 | AC90: 87 | AD90: 87 | AE90: 87 | AF90: 87 | AG90: 87 | AH90: 87 | AI90: 87 | AJ90: 87 | AK90: 87 | AL90: 87 | AM90: 87 | AN90: 87 | AO90: 87 | AP90: 87 | AQ90: 87 | AR90: 87 | AS90: 87 | AT90: 87 | AU90: 87 | AV90: 87
B91: Amortissement des immobilisations | I91: =-I141 -> 6,404 | J91: =-J141 -> 8,000 | K91: 9,591 | L91: 10,437 | M91: 10,782 | N91: 11,091 | O91: 11,091 | P91: 11,091 | Q91: 11,091 | R91: 11,091 | S91: 11,091 | T91: 11,091 | U91: 11,091 | V91: 11,091 | W91: 11,091 | X91: 11,091 | Y91: 11,091 | Z91: 11,091 | AA91: 11,091 | AB91: 11,091 | AC91: 11,091 | AD91: 8,252 | AE91: 6,618 | AF91: 5,027 | AG91: 4,159 | AH91: 3,799 | AI91: 3,490 | AJ91: 3,481 | AK91: 3,481 | AL91: 3,481 | AM91: 3,481 | AN91: 3,481 | AO91: 3,481 | AP91: 3,481 | AQ91: 3,481 | AR91: 3,481 | AS91: 3,481 | AT91: 3,481 | AU91: 3,481 | AV91: 3,481
B92: Tax | I92: =I171 -> 2,914 | J92: =J171 -> 1,255 | K92: 1,741 | L92: 1,920 | M92: 2,065 | N92: 2,302 | O92: 2,402 | P92: 2,559 | Q92: 2,698 | R92: 2,818 | S92: 2,923 | T92: 3,012 | U92: 3,086 | V92: 3,147 | W92: 3,195 | X92: 3,231 | Y92: 3,255 | Z92: 3,269 | AA92: 3,273 | AB92: 3,267 | AC92: 3,252 | AD92: 2,205 | AE92: 1,623 | AF92: 1,072 | AG92: 798 | AH92: 712 | AI92: 644 | AJ92: 682 | AK92: 719 | AL92: 750 | AM92: 777 | AN92: 799 | AO92: 817 | AP92: 831 | AQ92: 841 | AR92: 848 | AS92: 852 | AT92: 852 | AU92: 849 | AV92: 844
B93: Return of investment | I93: =$F$81*I105 -> 11,231 | J93: =$F$81*J105 -> 12,623 | K93: 13,925 | L93: 14,336 | M93: 14,159 | N93: 13,924 | O93: 13,339 | P93: 12,753 | Q93: 12,167 | R93: 11,582 | S93: 10,996 | T93: 10,411 | U93: 9,825 | V93: 9,239 | W93: 8,654 | X93: 8,068 | Y93: 7,483 | Z93: 6,897 | AA93: 6,311 | AB93: 5,726 | AC93: 5,140 | AD93: 4,630 | AE93: 4,237 | AF93: 3,930 | AG93: 3,687 | AH93: 3,477 | AI93: 3,284 | AJ93: 3,100 | AK93: 2,917 | AL93: 2,733 | AM93: 2,549 | AN93: 2,365 | AO93: 2,182 | AP93: 1,998 | AQ93: 1,814 | AR93: 1,630 | AS93: 1,446 | AT93: 1,263 | AU93: 1,079 | AV93: 895
B94: Total - Cost of service | I94: =SUM(I88:I93) -> 26,058 | J94: 30,462 | K94: 36,735 | L94: 39,869 | M94: 41,083 | N94: 41,324 | O94: 40,673 | P94: 40,078 | Q94: 39,464 | R94: 38,833 | S94: 38,186 | T94: 37,523 | U94: 36,845 | V94: 36,154 | W94: 35,450 | X94: 34,734 | Y94: 34,006 | Z94: 33,268 | AA94: 32,520 | AB94: 31,762 | AC94: 30,996 | AD94: 26,474 | AE94: 23,767 | AF94: 21,242 | AG94: 19,795 | AH94: 19,083 | AI94: 18,460 | AJ94: 18,253 | AK94: 18,054 | AL94: 17,849 | AM94: 17,640 | AN94: 17,426 | AO94: 17,208 | AP94: 16,986 | AQ94: 16,760 | AR94: 16,531 | AS94: 16,298 | AT94: 16,063 | AU94: 15,824 | AV94: 15,583
B96: Rate related to the cost of service (¢ / m3) | I96: =IFERROR(100*I94/I25,"-") -> 225.943 | J96: 92.168 | K96: 67.215 | L96: 55.379 | M96: 50.156 | N96: 50.451 | O96: 49.656 | P96: 48.930 | Q96: 48.181 | R96: 47.410 | S96: 46.619 | T96: 45.810 | U96: 44.983 | V96: 44.139 | W96: 43.279 | X96: 42.405 | Y96: 41.517 | Z96: 40.616 | AA96: 39.702 | AB96: 38.777 | AC96: 37.841 | AD96: 32.322 | AE96: 29.016 | AF96: 25.934 | AG96: 24.168 | AH96: 23.298 | AI96: 22.537 | AJ96: 22.285 | AK96: 22.041 | AL96: 21.791 | AM96: 21.536 | AN96: 21.275 | AO96: 21.009 | AP96: 20.737 | AQ96: 20.462 | AR96: 20.182 | AS96: 19.898 | AT96: 19.610 | AU96: 19.319 | AV96: 19.025
A98: 2.2 | B98: Rate base | I98: =$I$22 -> 2018 | J98: =I98+1 -> 2019 | K98: =J98+1 -> 2020 | L98: 2021 | M98: 2022 | N98: 2023 | O98: 2024 | P98: 2025 | Q98: 2026 | R98: 2027 | S98: 2028 | T98: 2029 | U98: 2030 | V98: 2031 | W98: 2032 | X98: 2033 | Y98: 2034 | Z98: 2035 | AA98: 2036 | AB98: 2037 | AC98: 2038 | AD98: 2039 | AE98: 2040 | AF98: 2041 | AG98: 2042 | AH98: 2043 | AI98: 2044 | AJ98: 2045 | AK98: 2046 | AL98: 2047 | AM98: 2048 | AN98: 2049 | AO98: 2050 | AP98: 2051 | AQ98: 2052 | AR98: 2053 | AS98: 2054 | AT98: 2055 | AU98: 2056 | AV98: 2057
B100: Equity decrease | I100: =-$E$80*I141/2-$E$80*I129*9/13-$E$80*I130*9/13-$E$80*I131*9/13 -> 1,473 | J100: =-$E$80*I$132+$E$80*I129*9/13+$E$80*I130*9/13+$E$80*I131*9/13-$E$80*I141/2-$E$80*J141/2-$E$80*J129*9/13-$E$80*J130*9/13-$E$80*J131*9/13 -> -12,125 | K100: =-$E$80*J$132+$E$80*J129*9/13+$E$80*J130*9/13+$E$80*J131*9/13-$E$80*J141/2-$E$80*K141/2-$E$80*K129*9/13-$E$80*K130*9/13-$E$80*K131*9/13 -> -11,346 | L100: -3,578 | M100: 1,539 | N100: 2,045 | O100: 5,102 | P100: 5,102 | Q100: 5,102 | R100: 5,102 | S100: 5,102 | T100: 5,102 | U100: 5,102 | V100: 5,102 | W100: 5,102 | X100: 5,102 | Y100: 5,102 | Z100: 5,102 | AA100: 5,102 | AB100: 5,102 | AC100: 5,102 | AD100: 4,449 | AE100: 3,420 | AF100: 2,678 | AG100: 2,113 | AH100: 1,831 | AI100: 1,677 | AJ100: 1,603 | AK100: 1,601 | AL100: 1,601 | AM100: 1,601 | AN100: 1,601 | AO100: 1,601 | AP100: 1,601 | AQ100: 1,601 | AR100: 1,601 | AS100: 1,601 | AT100: 1,601 | AU100: 1,601 | AV100: 1,601
B101: Liability reimbursement | I101: =-$E$79*I141/2-$E$79*I129*9/13-$E$79*I130*9/13-$E$79*I131*9/13 -> 1,729 | J101: =-$E$79*I$132+$E$79*I129*9/13+$E$79*I130*9/13+$E$79*I131*9/13-$E$79*I141/2-$E$79*J141/2-$E$79*J129*9/13-$E$79*J130*9/13-$E$79*J131*9/13 -> -14,233 | K101: =-$E$79*J$132+$E$79*J129*9/13+$E$79*J130*9/13+$E$79*J131*9/13-$E$79*J141/2-$E$79*K141/2-$E$79*K129*9/13-$E$79*K130*9/13-$E$79*K131*9/13 -> -13,319 | L101: -4,200 | M101: 1,806 | N101: 2,401 | O101: 5,989 | P101: 5,989 | Q101: 5,989 | R101: 5,989 | S101: 5,989 | T101: 5,989 | U101: 5,989 | V101: 5,989 | W101: 5,989 | X101: 5,989 | Y101: 5,989 | Z101: 5,989 | AA101: 5,989 | AB101: 5,989 | AC101: 5,989 | AD101: 5,223 | AE101: 4,015 | AF101: 3,144 | AG101: 2,480 | AH101: 2,149 | AI101: 1,968 | AJ101: 1,882 | AK101: 1,880 | AL101: 1,880 | AM101: 1,880 | AN101: 1,880 | AO101: 1,880 | AP101: 1,880 | AQ101: 1,880 | AR101: 1,880 | AS101: 1,880 | AT101: 1,880 | AU101: 1,880 | AV101: 1,880
B103: Equity | H103: =($H$132)*$E$80 -> 99,318 | I103: =H103-I100 -> 97,845 | J103: =I103-J100 -> 109,970 | K103: =J103-K100 -> 121,316 | L103: 124,894 | M103: 123,355 | N103: 121,310 | O103: 116,208 | P103: 111,107 | Q103: 106,005 | R103: 100,903 | S103: 95,801 | T103: 90,699 | U103: 85,597 | V103: 80,495 | W103: 75,393 | X103: 70,292 | Y103: 65,190 | Z103: 60,088 | AA103: 54,986 | AB103: 49,884 | AC103: 44,782 | AD103: 40,333 | AE103: 36,913 | AF103: 34,235 | AG103: 32,122 | AH103: 30,291 | AI103: 28,615 | AJ103: 27,012 | AK103: 25,410 | AL103: 23,809 | AM103: 22,208 | AN103: 20,607 | AO103: 19,006 | AP103: 17,404 | AQ103: 15,803 | AR103: 14,202 | AS103: 12,601 | AT103: 11,000 | AU103: 9,398 | AV103: 7,797
B104: Liability | H104: =($H$132)*$E$79 -> 116,591 | I104: =H104-I101 -> 114,862 | J104: 129,095 | K104: 142,415 | L104: 146,614 | M104: 144,808 | N104: 142,408 | O104: 136,419 | P104: 130,429 | Q104: 124,440 | R104: 118,451 | S104: 112,462 | T104: 106,473 | U104: 100,484 | V104: 94,494 | W104: 88,505 | X104: 82,516 | Y104: 76,527 | Z104: 70,538 | AA104: 64,549 | AB104: 58,560 | AC104: 52,570 | AD104: 47,348 | AE104: 43,333 | AF104: 40,189 | AG104: 37,708 | AH104: 35,559 | AI104: 33,591 | AJ104: 31,709 | AK104: 29,830 | AL104: 27,950 | AM104: 26,070 | AN104: 24,191 | AO104: 22,311 | AP104: 20,431 | AQ104: 18,552 | AR104: 16,672 | AS104: 14,792 | AT104: 12,912 | AU104: 11,033 | AV104: 9,153
B105: Total - Average rate base | H105: =H103+H104 -> 215,909 | I105: =I103+I104 -> 212,707 | J105: =J103+J104 -> 239,065 | K105: =K103+K104 -> 263,731 | L105: 271,508 | M105: 268,164 | N105: 263,718 | O105: 252,627 | P105: 241,536 | Q105: 230,445 | R105: 219,354 | S105: 208,263 | T105: 197,172 | U105: 186,081 | V105: 174,990 | W105: 163,899 | X105: 152,808 | Y105: 141,717 | Z105: 130,626 | AA105: 119,535 | AB105: 108,444 | AC105: 97,353 | AD105: 87,681 | AE105: 80,246 | AF105: 74,423 | AG105: 69,830 | AH105: 65,851 | AI105: 62,206 | AJ105: 58,721 | AK105: 55,240 | AL105: 51,759 | AM105: 48,278 | AN105: 44,797 | AO105: 41,316 | AP105: 37,836 | AQ105: 34,355 | AR105: 30,874 | AS105: 27,393 | AT105: 23,912 | AU105: 20,431 | AV105: 16,950
A107: 2.3 | B107: Accounting and fiscal depreciation | H107: =I107-1 -> 2017 | I107: =$I$22 -> 2018 | J107: =I107+1 -> 2019 | K107: =J107+1 -> 2020 | L107: 2021 | M107: 2022 | N107: 2023 | O107: 2024 | P107: 2025 | Q107: 2026 | R107: 2027 | S107: 2028 | T107: 2029 | U107: 2030 | V107: 2031 | W107: 2032 | X107: 2033 | Y107: 2034 | Z107: 2035 | AA107: 2036 | AB107: 2037 | AC107: 2038 | AD107: 2039 | AE107: 2040 | AF107: 2041 | AG107: 2042 | AH107: 2043 | AI107: 2044 | AJ107: 2045 | AK107: 2046 | AL107: 2047 | AM107: 2048 | AN107: 2049 | AO107: 2050 | AP107: 2051 | AQ107: 2052 | AR107: 2053 | AS107: 2054 | AT107: 2055 | AU107: 2056 | AV107: 2057
B109: Sharing of the capitalized general expenses and contributions
B111: Répartition UMQ - Conduite | H111: =IFERROR(H33/(H33+H37),0) -> 72.7% | I111: 0.0% | J111: 0.0% | K111: 0.0% | L111: 0.0% | M111: 0.0% | N111: 0.0% | O111: 0.0% | P111: 0.0% | Q111: 0.0% | R111: 0.0% | S111: 0.0% | T111: 0.0% | U111: 0.0% | V111: 0.0% | W111: 0.0% | X111: 0.0% | Y111: 0.0% | Z111: 0.0% | AA111: 0.0% | AB111: 0.0% | AC111: 0.0% | AD111: 0.0% | AE111: 0.0% | AF111: 0.0% | AG111: 0.0% | AH111: 0.0% | AI111: 0.0% | AJ111: 0.0% | AK111: 0.0% | AL111: 0.0% | AM111: 0.0% | AN111: 0.0% | AO111: 0.0% | AP111: 0.0% | AQ111: 0.0% | AR111: 0.0% | AS111: 0.0% | AT111: 0.0% | AU111: 0.0% | AV111: 0.0%
B112: Répartition UMQ - Branchement | H112: =IFERROR(H37/(H33+H37),0) -> 27.3% | I112: 100.0% | J112: 100.0% | K112: 100.0% | L112: 100.0% | M112: 100.0% | N112: 0.0% | O112: 0.0% | P112: 0.0% | Q112: 0.0% | R112: 0.0% | S112: 0.0% | T112: 0.0% | U112: 0.0% | V112: 0.0% | W112: 0.0% | X112: 0.0% | Y112: 0.0% | Z112: 0.0% | AA112: 0.0% | AB112: 0.0% | AC112: 0.0% | AD112: 0.0% | AE112: 0.0% | AF112: 0.0% | AG112: 0.0% | AH112: 0.0% | AI112: 0.0% | AJ112: 0.0% | AK112: 0.0% | AL112: 0.0% | AM112: 0.0% | AN112: 0.0% | AO112: 0.0% | AP112: 0.0% | AQ112: 0.0% | AR112: 0.0% | AS112: 0.0% | AT112: 0.0% | AU112: 0.0% | AV112: 0.0%
B114: Sharing of the capitalized general expenses - Main line | H114: =IFERROR((H33+H34+H45*H111)/(H33+H34+H37+H38+H39+H41+H42+H43+H45),0) -> 71.5% | I114: =IFERROR((I33+I34+I45*I111)/(I33+I34+I37+I38+I39+I45),0) -> 0.0% | J114: 0.0% | K114: 0.0% | L114: 0.0% | M114: 0.0% | N114: 0.0% | O114: 0.0% | P114: 0.0% | Q114: 0.0% | R114: 0.0% | S114: 0.0% | T114: 0.0% | U114: 0.0% | V114: 0.0% | W114: 0.0% | X114: 0.0% | Y114: 0.0% | Z114: 0.0% | AA114: 0.0% | AB114: 0.0% | AC114: 0.0% | AD114: 0.0% | AE114: 0.0% | AF114: 0.0% | AG114: 0.0% | AH114: 0.0% | AI114: 0.0% | AJ114: 0.0% | AK114: 0.0% | AL114: 0.0% | AM114: 0.0% | AN114: 0.0% | AO114: 0.0% | AP114: 0.0% | AQ114: 0.0% | AR114: 0.0% | AS114: 0.0% | AT114: 0.0% | AU114: 0.0% | AV114: 0.0%
B115: Sharing of the capitalized general expenses - Connection | H115: =IFERROR((H37+H38+H39+H45*H112)/(H33+H34+H37+H38+H39+H41+H42+H43+H45),0) -> 28.5% | I115: =IFERROR((I37+I38+I39+I45*I112)/(I33+I34+I37+I38+I39+I45),0) -> 100.0% | J115: 100.0% | K115: 100.0% | L115: 100.0% | M115: 100.0% | N115: 0.0% | O115: 0.0% | P115: 0.0% | Q115: 0.0% | R115: 0.0% | S115: 0.0% | T115: 0.0% | U115: 0.0% | V115: 0.0% | W115: 0.0% | X115: 0.0% | Y115: 0.0% | Z115: 0.0% | AA115: 0.0% | AB115: 0.0% | AC115: 0.0% | AD115: 0.0% | AE115: 0.0% | AF115: 0.0% | AG115: 0.0% | AH115: 0.0% | AI115: 0.0% | AJ115: 0.0% | AK115: 0.0% | AL115: 0.0% | AM115: 0.0% | AN115: 0.0% | AO115: 0.0% | AP115: 0.0% | AQ115: 0.0% | AR115: 0.0% | AS115: 0.0% | AT115: 0.0% | AU115: 0.0% | AV115: 0.0%
B116: ="Répartition Fais généraux - "&$B$41 -> Répartition Fais généraux - Compression | H116: =IFERROR(H$41/(H$33+H$34+H$37+H$38+H$39+H$41+H$42+H$43+H$45),0) -> 0.0% | I116: 0.0% | J116: 0.0% | K116: 0.0% | L116: 0.0% | M116: 0.0% | N116: 0.0% | O116: 0.0% | P116: 0.0% | Q116: 0.0% | R116: 0.0% | S116: 0.0% | T116: 0.0% | U116: 0.0% | V116: 0.0% | W116: 0.0% | X116: 0.0% | Y116: 0.0% | Z116: 0.0% | AA116: 0.0% | AB116: 0.0% | AC116: 0.0% | AD116: 0.0% | AE116: 0.0% | AF116: 0.0% | AG116: 0.0% | AH116: 0.0% | AI116: 0.0% | AJ116: 0.0% | AK116: 0.0% | AL116: 0.0% | AM116: 0.0% | AN116: 0.0% | AO116: 0.0% | AP116: 0.0% | AQ116: 0.0% | AR116: 0.0% | AS116: 0.0% | AT116: 0.0% | AU116: 0.0% | AV116: 0.0%
B117: ="Répartition Fais généraux - "&$B$42 -> Répartition Fais généraux - Servitude | H117: =IFERROR(H$42/(H$33+H$34+H$37+H$38+H$39+H$41+H$42+H$43+H$45),0) -> 0.0% | I117: 0.0% | J117: 0.0% | K117: 0.0% | L117: 0.0% | M117: 0.0% | N117: 0.0% | O117: 0.0% | P117: 0.0% | Q117: 0.0% | R117: 0.0% | S117: 0.0% | T117: 0.0% | U117: 0.0% | V117: 0.0% | W117: 0.0% | X117: 0.0% | Y117: 0.0% | Z117: 0.0% | AA117: 0.0% | AB117: 0.0% | AC117: 0.0% | AD117: 0.0% | AE117: 0.0% | AF117: 0.0% | AG117: 0.0% | AH117: 0.0% | AI117: 0.0% | AJ117: 0.0% | AK117: 0.0% | AL117: 0.0% | AM117: 0.0% | AN117: 0.0% | AO117: 0.0% | AP117: 0.0% | AQ117: 0.0% | AR117: 0.0% | AS117: 0.0% | AT117: 0.0% | AU117: 0.0% | AV117: 0.0%
B118: ="Répartition Fais généraux - "&$B$43 -> Répartition Fais généraux - Transport | H118: =IFERROR(H$43/(H$33+H$34+H$37+H$38+H$39+H$41+H$42+H$43+H$45),0) -> 0.0% | I118: 0.0% | J118: 0.0% | K118: 0.0% | L118: 0.0% | M118: 0.0% | N118: 0.0% | O118: 0.0% | P118: 0.0% | Q118: 0.0% | R118: 0.0% | S118: 0.0% | T118: 0.0% | U118: 0.0% | V118: 0.0% | W118: 0.0% | X118: 0.0% | Y118: 0.0% | Z118: 0.0% | AA118: 0.0% | AB118: 0.0% | AC118: 0.0% | AD118: 0.0% | AE118: 0.0% | AF118: 0.0% | AG118: 0.0% | AH118: 0.0% | AI118: 0.0% | AJ118: 0.0% | AK118: 0.0% | AL118: 0.0% | AM118: 0.0% | AN118: 0.0% | AO118: 0.0% | AP118: 0.0% | AQ118: 0.0% | AR118: 0.0% | AS118: 0.0% | AT118: 0.0% | AU118: 0.0% | AV118: 0.0%
B120: Sharing of the contributions - Main line | H120: =(SUM($H$35:$AV$35)+SUMPRODUCT($H$114:$AV$114,$H$46:$AV$46))/(SUM($H$35:$AV$35)+SUM($H$40:$AV$40)+SUM($H$46:$AV$46)) -> 46.3% | I120: 46.3% | J120: 46.3% | K120: 46.3% | L120: 46.3% | M120: 46.3% | N120: 46.3% | O120: 46.3% | P120: 46.3% | Q120: 46.3% | R120: 46.3% | S120: 46.3% | T120: 46.3% | U120: 46.3% | V120: 46.3% | W120: 46.3% | X120: 46.3% | Y120: 46.3% | Z120: 46.3% | AA120: 46.3% | AB120: 46.3% | AC120: 46.3% | AD120: 46.3% | AE120: 46.3% | AF120: 46.3% | AG120: 46.3% | AH120: 46.3% | AI120: 46.3% | AJ120: 46.3% | AK120: 46.3% | AL120: 46.3% | AM120: 46.3% | AN120: 46.3% | AO120: 46.3% | AP120: 46.3% | AQ120: 46.3% | AR120: 46.3% | AS120: 46.3% | AT120: 46.3% | AU120: 46.3% | AV120: 46.3%
B121: Sharing of the contributions - Connection | H121: =(SUM($H$40:$AV$40)+SUMPRODUCT($H$115:$AV$115,$H$46:$AV$46))/(SUM($H$35:$AV$35)+SUM($H$40:$AV$40)+SUM($H$46:$AV$46)) -> 53.7% | I121: 53.7% | J121: 53.7% | K121: 53.7% | L121: 53.7% | M121: 53.7% | N121: 53.7% | O121: 53.7% | P121: 53.7% | Q121: 53.7% | R121: 53.7% | S121: 53.7% | T121: 53.7% | U121: 53.7% | V121: 53.7% | W121: 53.7% | X121: 53.7% | Y121: 53.7% | Z121: 53.7% | AA121: 53.7% | AB121: 53.7% | AC121: 53.7% | AD121: 53.7% | AE121: 53.7% | AF121: 53.7% | AG121: 53.7% | AH121: 53.7% | AI121: 53.7% | AJ121: 53.7% | AK121: 53.7% | AL121: 53.7% | AM121: 53.7% | AN121: 53.7% | AO121: 53.7% | AP121: 53.7% | AQ121: 53.7% | AR121: 53.7% | AS121: 53.7% | AT121: 53.7% | AU121: 53.7% | AV121: 53.7%
F122: Total
B123: =B35 -> Main line - Total | F123: =SUM(H123:AV123) -> 154,445 | H123: =H35+H$111*H$45+H$114*H$46+H$120*(H$53+H$54+H$55) -> 154,445 | I123: 0 | J123: 0 | K123: 0 | L123: 0 | M123: 0 | N123: 0 | O123: 0 | P123: 0 | Q123: 0 | R123: 0 | S123: 0 | T123: 0 | U123: 0 | V123: 0 | W123: 0 | X123: 0 | Y123: 0 | Z123: 0 | AA123: 0 | AB123: 0 | AC123: 0 | AD123: 0 | AE123: 0 | AF123: 0 | AG123: 0 | AH123: 0 | AI123: 0 | AJ123: 0 | AK123: 0 | AL123: 0 | AM123: 0 | AN123: 0 | AO123: 0 | AP123: 0 | AQ123: 0 | AR123: 0 | AS123: 0 | AT123: 0 | AU123: 0 | AV123: 0
B124: =B40 -> Connection - Total | F124: =SUM(H124:AV124) -> 160,032 | H124: =H40+H$112*H$45+H$115*H$46+H$121*(H$53+H$54+H$55)+H$52 -> 61,464 | I124: 33,560 | J124: 33,461 | K124: 17,791 | L124: 7,265 | M124: 6,491 | N124: 0 | O124: 0 | P124: 0 | Q124: 0 | R124: 0 | S124: 0 | T124: 0 | U124: 0 | V124: 0 | W124: 0 | X124: 0 | Y124: 0 | Z124: 0 | AA124: 0 | AB124: 0 | AC124: 0 | AD124: 0 | AE124: 0 | AF124: 0 | AG124: 0 | AH124: 0 | AI124: 0 | AJ124: 0 | AK124: 0 | AL124: 0 | AM124: 0 | AN124: 0 | AO124: 0 | AP124: 0 | AQ124: 0 | AR124: 0 | AS124: 0 | AT124: 0 | AU124: 0 | AV124: 0
B125: =B41 -> Compression | F125: 0 | H125: =H41+H$116*H$46 -> 0 | I125: 0 | J125: 0 | K125: 0 | L125: 0 | M125: 0 | N125: 0 | O125: 0 | P125: 0 | Q125: 0 | R125: 0 | S125: 0 | T125: 0 | U125: 0 | V125: 0 | W125: 0 | X125: 0 | Y125: 0 | Z125: 0 | AA125: 0 | AB125: 0 | AC125: 0 | AD125: 0 | AE125: 0 | AF125: 0 | AG125: 0 | AH125: 0 | AI125: 0 | AJ125: 0 | AK125: 0 | AL125: 0 | AM125: 0 | AN125: 0 | AO125: 0 | AP125: 0 | AQ125: 0 | AR125: 0 | AS125: 0 | AT125: 0 | AU125: 0 | AV125: 0
B126: =B42 -> Servitude | F126: 0 | H126: =H42+H$117*H$46 -> 0 | I126: 0 | J126: 0 | K126: 0 | L126: 0 | M126: 0 | N126: 0 | O126: 0 | P126: 0 | Q126: 0 | R126: 0 | S126: 0 | T126: 0 | U126: 0 | V126: 0 | W126: 0 | X126: 0 | Y126: 0 | Z126: 0 | AA126: 0 | AB126: 0 | AC126: 0 | AD126: 0 | AE126: 0 | AF126: 0 | AG126: 0 | AH126: 0 | AI126: 0 | AJ126: 0 | AK126: 0 | AL126: 0 | AM126: 0 | AN126: 0 | AO126: 0 | AP126: 0 | AQ126: 0 | AR126: 0 | AS126: 0 | AT126: 0 | AU126: 0 | AV126: 0
B127: =B43 -> Transport | F127: 0 | H127: =H43+H$118*H$46 -> 0 | I127: 0 | J127: 0 | K127: 0 | L127: 0 | M127: 0 | N127: 0 | O127: 0 | P127: 0 | Q127: 0 | R127: 0 | S127: 0 | T127: 0 | U127: 0 | V127: 0 | W127: 0 | X127: 0 | Y127: 0 | Z127: 0 | AA127: 0 | AB127: 0 | AC127: 0 | AD127: 0 | AE127: 0 | AF127: 0 | AG127: 0 | AH127: 0 | AI127: 0 | AJ127: 0 | AK127: 0 | AL127: 0 | AM127: 0 | AN127: 0 | AO127: 0 | AP127: 0 | AQ127: 0 | AR127: 0 | AS127: 0 | AT127: 0 | AU127: 0 | AV127: 0
B128: Actif non amortissable (terrain) | F128: =SUM(H128:AV128) -> 0 | H128: =H44*(1+$F44) -> 0 | I128: =I44*(1+$F44) -> 0 | J128: =J44*(1+$F44) -> 0 | K128: 0 | L128: 0 | M128: 0 | N128: 0 | O128: 0 | P128: 0 | Q128: 0 | R128: 0 | S128: 0 | T128: 0 | U128: 0 | V128: 0 | W128: 0 | X128: 0 | Y128: 0 | Z128: 0 | AA128: 0 | AB128: 0 | AC128: 0 | AD128: 0 | AE128: 0 | AF128: 0 | AG128: 0 | AH128: 0 | AI128: 0 | AJ128: 0 | AK128: 0 | AL128: 0 | AM128: 0 | AN128: 0 | AO128: 0 | AP128: 0 | AQ128: 0 | AR128: 0 | AS128: 0 | AT128: 0 | AU128: 0 | AV128: 0
B129: PRC - 5 ans | F129: =SUM(H129:AV129) -> 0 | I129: =I49 -> 0 | J129: 0 | K129: 0 | L129: 0 | M129: 0 | N129: 0 | O129: 0 | P129: 0 | Q129: 0 | R129: 0 | S129: 0 | T129: 0 | U129: 0 | V129: 0 | W129: 0 | X129: 0 | Y129: 0 | Z129: 0 | AA129: 0 | AB129: 0 | AC129: 0 | AD129: 0 | AE129: 0 | AF129: 0 | AG129: 0 | AH129: 0 | AI129: 0 | AJ129: 0 | AK129: 0 | AL129: 0 | AM129: 0 | AN129: 0 | AO129: 0 | AP129: 0 | AQ129: 0 | AR129: 0 | AS129: 0 | AT129: 0 | AU129: 0 | AV129: 0
B130: PRC - 10 ans | F130: =SUM(H130:AV130) -> 0 | I130: =I50 -> 0 | J130: 0 | K130: 0 | L130: 0 | M130: 0 | N130: 0 | O130: 0 | P130: 0 | Q130: 0 | R130: 0 | S130: 0 | T130: 0 | U130: 0 | V130: 0 | W130: 0 | X130: 0 | Y130: 0 | Z130: 0 | AA130: 0 | AB130: 0 | AC130: 0 | AD130: 0 | AE130: 0 | AF130: 0 | AG130: 0 | AH130: 0 | AI130: 0 | AJ130: 0 | AK130: 0 | AL130: 0 | AM130: 0 | AN130: 0 | AO130: 0 | AP130: 0 | AQ130: 0 | AR130: 0 | AS130: 0 | AT130: 0 | AU130: 0 | AV130: 0
B131: CASEP PRC - 10 ans | F131: =SUM(H131:AV131) -> 0 | I131: =I51 -> 0 | J131: 0 | K131: 0 | L131: 0 | M131: 0 | N131: 0 | O131: 0 | P131: 0 | Q131: 0 | R131: 0 | S131: 0 | T131: 0 | U131: 0 | V131: 0 | W131: 0 | X131: 0 | Y131: 0 | Z131: 0 | AA131: 0 | AB131: 0 | AC131: 0 | AD131: 0 | AE131: 0 | AF131: 0 | AG131: 0 | AH131: 0 | AI131: 0 | AJ131: 0 | AK131: 0 | AL131: 0 | AM131: 0 | AN131: 0 | AO131: 0 | AP131: 0 | AQ131: 0 | AR131: 0 | AS131: 0 | AT131: 0 | AU131: 0 | AV131: 0
F132: =SUM(H132:AV132) -> 314,477 | H132: =SUM(H123:H131) -> 215,909 | I132: =SUM(I123:I131) -> 33,560 | J132: =SUM(J123:J131) -> 33,461 | K132: 17,791 | L132: 7,265 | M132: 6,491 | N132: 0 | O132: 0 | P132: 0 | Q132: 0 | R132: 0 | S132: 0 | T132: 0 | U132: 0 | V132: 0 | W132: 0 | X132: 0 | Y132: 0 | Z132: 0 | AA132: 0 | AB132: 0 | AC132: 0 | AD132: 0 | AE132: 0 | AF132: 0 | AG132: 0 | AH132: 0 | AI132: 0 | AJ132: 0 | AK132: 0 | AL132: 0 | AM132: 0 | AN132: 0 | AO132: 0 | AP132: 0 | AQ132: 0 | AR132: 0 | AS132: 0 | AT132: 0 | AU132: 0 | AV132: =SUM(AV123:AV131) -> 0
B133: Accounting depreciation
B134: ="Amort. - "&B35 -> Amort. - Main line - Total | F134: =D35 -> 44.4 ans | I134: =-SUM(OFFSET(H123,0,-MIN(I$84-1,ROUNDDOWN($F134-1,0))):H123)/$F134-IF(I$84>$F134,(OFFSET(H123,0,-ROUNDUP($F134-1,0))-(ROUNDDOWN($F134,0)*(OFFSET(H123,0,-ROUNDUP($F134-1,0))/$F134))),0) -> -3,481 | J134: =-SUM(OFFSET(I123,0,-MIN(J$84-1,ROUNDDOWN($F134-1,0))):I123)/$F134-IF(J$84>$F134,(OFFSET(I123,0,-ROUNDUP($F134-1,0))-(ROUNDDOWN($F134,0)*(OFFSET(I123,0,-ROUNDUP($F134-1,0))/$F134))),0) -> -3,481 | K134: =-SUM(OFFSET(J123,0,-MIN(K$84-1,ROUNDDOWN($F134-1,0))):J123)/$F134-IF(K$84>$F134,(OFFSET(J123,0,-ROUNDUP($F134-1,0))-(ROUNDDOWN($F134,0)*(OFFSET(J123,0,-ROUNDUP($F134-1,0))/$F134))),0) -> -3,481 | L134: =-SUM(OFFSET(K123,0,-MIN(L$84-1,ROUNDDOWN($F134-1,0))):K123)/$F134-IF(L$84>$F134,(OFFSET(K123,0,-ROUNDUP($F134-1,0))-(ROUNDDOWN($F134,0)*(OFFSET(K123,0,-ROUNDUP($F134-1,0))/$F134))),0) -> -3,481 | M134: =-SUM(OFFSET(L123,0,-MIN(M$84-1,ROUNDDOWN($F134-1,0))):L123)/$F134-IF(M$84>$F134,(OFFSET(L123,0,-ROUNDUP($F134-1,0))-(ROUNDDOWN($F134,0)*(OFFSET(L123,0,-ROUNDUP($F134-1,0))/$F134))),0) -> -3,481 | N134: =-SUM(OFFSET(M123,0,-MIN(N$84-1,ROUNDDOWN($F134-1,0))):M123)/$F134-IF(N$84>$F134,(OFFSET(M123,0,-ROUNDUP($F134-1,0))-(ROUNDDOWN($F134,0)*(OFFSET(M123,0,-ROUNDUP($F134-1,0))/$F134))),0) -> -3,481 | O134: =-SUM(OFFSET(N123,0,-MIN(O$84-1,ROUNDDOWN($F134-1,0))):N123)/$F134-IF(O$84>$F134,(OFFSET(N123,0,-ROUNDUP($F134-1,0))-(ROUNDDOWN($F134,0)*(OFFSET(N123,0,-ROUNDUP($F134-1,0))/$F134))),0) -> -3,481 | P134: =-SUM(OFFSET(O123,0,-MIN(P$84-1,ROUNDDOWN($F134-1,0))):O123)/$F134-IF(P$84>$F134,(OFFSET(O123,0,-ROUNDUP($F134-1,0))-(ROUNDDOWN($F134,0)*(OFFSET(O123,0,-ROUNDUP($F134-1,0))/$F134))),0) -> -3,481 | Q134: =-SUM(OFFSET(P123,0,-MIN(Q$84-1,ROUNDDOWN($F134-1,0))):P123)/$F134-IF(Q$84>$F134,(OFFSET(P123,0,-ROUNDUP($F134-1,0))-(ROUNDDOWN($F134,0)*(OFFSET(P123,0,-ROUNDUP($F134-1,0))/$F134))),0) -> -3,481 | R134: =-SUM(OFFSET(Q123,0,-MIN(R$84-1,ROUNDDOWN($F134-1,0))):Q123)/$F134-IF(R$84>$F134,(OFFSET(Q123,0,-ROUNDUP($F134-1,0))-(ROUNDDOWN($F134,0)*(OFFSET(Q123,0,-ROUNDUP($F134-1,0))/$F134))),0) -> -3,481 | S134: =-SUM(OFFSET(R123,0,-MIN(S$84-1,ROUNDDOWN($F134-1,0))):R123)/$F134-IF(S$84>$F134,(OFFSET(R123,0,-ROUNDUP($F134-1,0))-(ROUNDDOWN($F134,0)*(OFFSET(R123,0,-ROUNDUP($F134-1,0))/$F134))),0) -> -3,481 | T134: =-SUM(OFFSET(S123,0,-MIN(T$84-1,ROUNDDOWN($F134-1,0))):S123)/$F134-IF(T$84>$F134,(OFFSET(S123,0,-ROUNDUP($F134-1,0))-(ROUNDDOWN($F134,0)*(OFFSET(S123,0,-ROUNDUP($F134-1,0))/$F134))),0) -> -3,481 | U134: =-SUM(OFFSET(T123,0,-MIN(U$84-1,ROUNDDOWN($F134-1,0))):T123)/$F134-IF(U$84>$F134,(OFFSET(T123,0,-ROUNDUP($F134-1,0))-(ROUNDDOWN($F134,0)*(OFFSET(T123,0,-ROUNDUP($F134-1,0))/$F134))),0) -> -3,481 | V134: =-SUM(OFFSET(U123,0,-MIN(V$84-1,ROUNDDOWN($F134-1,0))):U123)/$F134-IF(V$84>$F134,(OFFSET(U123,0,-ROUNDUP($F134-1,0))-(ROUNDDOWN($F134,0)*(OFFSET(U123,0,-ROUNDUP($F134-1,0))/$F134))),0) -> -3,481 | W134: =-SUM(OFFSET(V123,0,-MIN(W$84-1,ROUNDDOWN($F134-1,0))):V123)/$F134-IF(W$84>$F134,(OFFSET(V123,0,-ROUNDUP($F134-1,0))-(ROUNDDOWN($F134,0)*(OFFSET(V123,0,-ROUNDUP($F134-1,0))/$F134))),0) -> -3,481 | X134: =-SUM(OFFSET(W123,0,-MIN(X$84-1,ROUNDDOWN($F134-1,0))):W123)/$F134-IF(X$84>$F134,(OFFSET(W123,0,-ROUNDUP($F134-1,0))-(ROUNDDOWN($F134,0)*(OFFSET(W123,0,-ROUNDUP($F134-1,0))/$F134))),0) -> -3,481 | Y134: =-SUM(OFFSET(X123,0,-MIN(Y$84-1,ROUNDDOWN($F134-1,0))):X123)/$F134-IF(Y$84>$F134,(OFFSET(X123,0,-ROUNDUP($F134-1,0))-(ROUNDDOWN($F134,0)*(OFFSET(X123,0,-ROUNDUP($F134-1,0))/$F134))),0) -> -3,481 | Z134: =-SUM(OFFSET(Y123,0,-MIN(Z$84-1,ROUNDDOWN($F134-1,0))):Y123)/$F134-IF(Z$84>$F134,(OFFSET(Y123,0,-ROUNDUP($F134-1,0))-(ROUNDDOWN($F134,0)*(OFFSET(Y123,0,-ROUNDUP($F134-1,0))/$F134))),0) -> -3,481 | AA134: =-SUM(OFFSET(Z123,0,-MIN(AA$84-1,ROUNDDOWN($F134-1,0))):Z123)/$F134-IF(AA$84>$F134,(OFFSET(Z123,0,-ROUNDUP($F134-1,0))-(ROUNDDOWN($F134,0)*(OFFSET(Z123,0,-ROUNDUP($F134-1,0))/$F134))),0) -> -3,481 | AB134: =-SUM(OFFSET(AA123,0,-MIN(AB$84-1,ROUNDDOWN($F134-1,0))):AA123)/$F134-IF(AB$84>$F134,(OFFSET(AA123,0,-ROUNDUP($F134-1,0))-(ROUNDDOWN($F134,0)*(OFFSET(AA123,0,-ROUNDUP($F134-1,0))/$F134))),0) -> -3,481 | AC134: =-SUM(OFFSET(AB123,0,-MIN(AC$84-1,ROUNDDOWN($F134-1,0))):AB123)/$F134-IF(AC$84>$F134,(OFFSET(AB123,0,-ROUNDUP($F134-1,0))-(ROUNDDOWN($F134,0)*(OFFSET(AB123,0,-ROUNDUP($F134-1,0))/$F134))),0) -> -3,481 | AD134: =-SUM(OFFSET(AC123,0,-MIN(AD$84-1,ROUNDDOWN($F134-1,0))):AC123)/$F134-IF(AD$84>$F134,(OFFSET(AC123,0,-ROUNDUP($F134-1,0))-(ROUNDDOWN($F134,0)*(OFFSET(AC123,0,-ROUNDUP($F134-1,0))/$F134))),0) -> -3,481 | AE134: =-SUM(OFFSET(AD123,0,-MIN(AE$84-1,ROUNDDOWN($F134-1,0))):AD123)/$F134-IF(AE$84>$F134,(OFFSET(AD123,0,-ROUNDUP($F134-1,0))-(ROUNDDOWN($F134,0)*(OFFSET(AD123,0,-ROUNDUP($F134-1,0))/$F134))),0) -> -3,481 | AF134: =-SUM(OFFSET(AE123,0,-MIN(AF$84-1,ROUNDDOWN($F134-1,0))):AE123)/$F134-IF(AF$84>$F134,(OFFSET(AE123,0,-ROUNDUP($F134-1,0))-(ROUNDDOWN($F134,0)*(OFFSET(AE123,0,-ROUNDUP($F134-1,0))/$F134))),0) -> -3,481 | AG134: =-SUM(OFFSET(AF123,0,-MIN(AG$84-1,ROUNDDOWN($F134-1,0))):AF123)/$F134-IF(AG$84>$F134,(OFFSET(AF123,0,-ROUNDUP($F134-1,0))-(ROUNDDOWN($F134,0)*(OFFSET(AF123,0,-ROUNDUP($F134-1,0))/$F134))),0) -> -3,481 | AH134: =-SUM(OFFSET(AG123,0,-MIN(AH$84-1,ROUNDDOWN($F134-1,0))):AG123)/$F134-IF(AH$84>$F134,(OFFSET(AG123,0,-ROUNDUP($F134-1,0))-(ROUNDDOWN($F134,0)*(OFFSET(AG123,0,-ROUNDUP($F134-1,0))/$F134))),0) -> -3,481 | AI134: =-SUM(OFFSET(AH123,0,-MIN(AI$84-1,ROUNDDOWN($F134-1,0))):AH123)/$F134-IF(AI$84>$F134,(OFFSET(AH123,0,-ROUNDUP($F134-1,0))-(ROUNDDOWN($F134,0)*(OFFSET(AH123,0,-ROUNDUP($F134-1,0))/$F134))),0) -> -3,481 | AJ134: =-SUM(OFFSET(AI123,0,-MIN(AJ$84-1,ROUNDDOWN($F134-1,0))):AI123)/$F134-IF(AJ$84>$F134,(OFFSET(AI123,0,-ROUNDUP($F134-1,0))-(ROUNDDOWN($F134,0)*(OFFSET(AI123,0,-ROUNDUP($F134-1,0))/$F134))),0) -> -3,481 | AK134: =-SUM(OFFSET(AJ123,0,-MIN(AK$84-1,ROUNDDOWN($F134-1,0))):AJ123)/$F134-IF(AK$84>$F134,(OFFSET(AJ123,0,-ROUNDUP($F134-1,0))-(ROUNDDOWN($F134,0)*(OFFSET(AJ123,0,-ROUNDUP($F134-1,0))/$F134))),0) -> -3,481 | AL134: =-SUM(OFFSET(AK123,0,-MIN(AL$84-1,ROUNDDOWN($F134-1,0))):AK123)/$F134-IF(AL$84>$F134,(OFFSET(AK123,0,-ROUNDUP($F134-1,0))-(ROUNDDOWN($F134,0)*(OFFSET(AK123,0,-ROUNDUP($F134-1,0))/$F134))),0) -> -3,481 | AM134: =-SUM(OFFSET(AL123,0,-MIN(AM$84-1,ROUNDDOWN($F134-1,0))):AL123)/$F134-IF(AM$84>$F134,(OFFSET(AL123,0,-ROUNDUP($F134-1,0))-(ROUNDDOWN($F134,0)*(OFFSET(AL123,0,-ROUNDUP($F134-1,0))/$F134))),0) -> -3,481 | AN134: =-SUM(OFFSET(AM123,0,-MIN(AN$84-1,ROUNDDOWN($F134-1,0))):AM123)/$F134-IF(AN$84>$F134,(OFFSET(AM123,0,-ROUNDUP($F134-1,0))-(ROUNDDOWN($F134,0)*(OFFSET(AM123,0,-ROUNDUP($F134-1,0))/$F134))),0) -> -3,481 | AO134: =-SUM(OFFSET(AN123,0,-MIN(AO$84-1,ROUNDDOWN($F134-1,0))):AN123)/$F134-IF(AO$84>$F134,(OFFSET(AN123,0,-ROUNDUP($F134-1,0))-(ROUNDDOWN($F134,0)*(OFFSET(AN123,0,-ROUNDUP($F134-1,0))/$F134))),0) -> -3,481 | AP134: =-SUM(OFFSET(AO123,0,-MIN(AP$84-1,ROUNDDOWN($F134-1,0))):AO123)/$F134-IF(AP$84>$F134,(OFFSET(AO123,0,-ROUNDUP($F134-1,0))-(ROUNDDOWN($F134,0)*(OFFSET(AO123,0,-ROUNDUP($F134-1,0))/$F134))),0) -> -3,481 | AQ134: =-SUM(OFFSET(AP123,0,-MIN(AQ$84-1,ROUNDDOWN($F134-1,0))):AP123)/$F134-IF(AQ$84>$F134,(OFFSET(AP123,0,-ROUNDUP($F134-1,0))-(ROUNDDOWN($F134,0)*(OFFSET(AP123,0,-ROUNDUP($F134-1,0))/$F134))),0) -> -3,481 | AR134: =-SUM(OFFSET(AQ123,0,-MIN(AR$84-1,ROUNDDOWN($F134-1,0))):AQ123)/$F134-IF(AR$84>$F134,(OFFSET(AQ123,0,-ROUNDUP($F134-1,0))-(ROUNDDOWN($F134,0)*(OFFSET(AQ123,0,-ROUNDUP($F134-1,0))/$F134))),0) -> -3,481 | AS134: =-SUM(OFFSET(AR123,0,-MIN(AS$84-1,ROUNDDOWN($F134-1,0))):AR123)/$F134-IF(AS$84>$F134,(OFFSET(AR123,0,-ROUNDUP($F134-1,0))-(ROUNDDOWN($F134,0)*(OFFSET(AR123,0,-ROUNDUP($F134-1,0))/$F134))),0) -> -3,481 | AT134: =-SUM(OFFSET(AS123,0,-MIN(AT$84-1,ROUNDDOWN($F134-1,0))):AS123)/$F134-IF(AT$84>$F134,(OFFSET(AS123,0,-ROUNDUP($F134-1,0))-(ROUNDDOWN($F134,0)*(OFFSET(AS123,0,-ROUNDUP($F134-1,0))/$F134))),0) -> -3,481 | AU134: =-SUM(OFFSET(AT123,0,-MIN(AU$84-1,ROUNDDOWN($F134-1,0))):AT123)/$F134-IF(AU$84>$F134,(OFFSET(AT123,0,-ROUNDUP($F134-1,0))-(ROUNDDOWN($F134,0)*(OFFSET(AT123,0,-ROUNDUP($F134-1,0))/$F134))),0) -> -3,481 | AV134: =-SUM(OFFSET(AU123,0,-MIN(AV$84-1,ROUNDDOWN($F134-1,0))):AU123)/$F134-IF(AV$84>$F134,(OFFSET(AU123,0,-ROUNDUP($F134-1,0))-(ROUNDDOWN($F134,0)*(OFFSET(AU123,0,-ROUNDUP($F134-1,0))/$F134))),0) -> -3,481
B135: ="Amort. - "&B40 -> Amort. - Connection - Total | F135: =D40 -> 21.0 ans | I135: =-SUM(OFFSET(H124,0,-MIN(I$84-1,ROUNDDOWN($F135-1,0))):H124)/$F135-IF(I$84>$F135,(OFFSET(H124,0,-ROUNDUP($F135-1,0))-(ROUNDDOWN($F135,0)*(OFFSET(H124,0,-ROUNDUP($F135-1,0))/$F135))),0) -> -2,923 | J135: =-SUM(OFFSET(I124,0,-MIN(J$84-1,ROUNDDOWN($F135-1,0))):I124)/$F135-IF(J$84>$F135,(OFFSET(I124,0,-ROUNDUP($F135-1,0))-(ROUNDDOWN($F135,0)*(OFFSET(I124,0,-ROUNDUP($F135-1,0))/$F135))),0) -> -4,519 | K135: =-SUM(OFFSET(J124,0,-MIN(K$84-1,ROUNDDOWN($F135-1,0))):J124)/$F135-IF(K$84>$F135,(OFFSET(J124,0,-ROUNDUP($F135-1,0))-(ROUNDDOWN($F135,0)*(OFFSET(J124,0,-ROUNDUP($F135-1,0))/$F135))),0) -> -6,110 | L135: =-SUM(OFFSET(K124,0,-MIN(L$84-1,ROUNDDOWN($F135-1,0))):K124)/$F135-IF(L$84>$F135,(OFFSET(K124,0,-ROUNDUP($F135-1,0))-(ROUNDDOWN($F135,0)*(OFFSET(K124,0,-ROUNDUP($F135-1,0))/$F135))),0) -> -6,956 | M135: =-SUM(OFFSET(L124,0,-MIN(M$84-1,ROUNDDOWN($F135-1,0))):L124)/$F135-IF(M$84>$F135,(OFFSET(L124,0,-ROUNDUP($F135-1,0))-(ROUNDDOWN($F135,0)*(OFFSET(L124,0,-ROUNDUP($F135-1,0))/$F135))),0) -> -7,301 | N135: =-SUM(OFFSET(M124,0,-MIN(N$84-1,ROUNDDOWN($F135-1,0))):M124)/$F135-IF(N$84>$F135,(OFFSET(M124,0,-ROUNDUP($F135-1,0))-(ROUNDDOWN($F135,0)*(OFFSET(M124,0,-ROUNDUP($F135-1,0))/$F135))),0) -> -7,610 | O135: =-SUM(OFFSET(N124,0,-MIN(O$84-1,ROUNDDOWN($F135-1,0))):N124)/$F135-IF(O$84>$F135,(OFFSET(N124,0,-ROUNDUP($F135-1,0))-(ROUNDDOWN($F135,0)*(OFFSET(N124,0,-ROUNDUP($F135-1,0))/$F135))),0) -> -7,610 | P135: =-SUM(OFFSET(O124,0,-MIN(P$84-1,ROUNDDOWN($F135-1,0))):O124)/$F135-IF(P$84>$F135,(OFFSET(O124,0,-ROUNDUP($F135-1,0))-(ROUNDDOWN($F135,0)*(OFFSET(O124,0,-ROUNDUP($F135-1,0))/$F135))),0) -> -7,610 | Q135: =-SUM(OFFSET(P124,0,-MIN(Q$84-1,ROUNDDOWN($F135-1,0))):P124)/$F135-IF(Q$84>$F135,(OFFSET(P124,0,-ROUNDUP($F135-1,0))-(ROUNDDOWN($F135,0)*(OFFSET(P124,0,-ROUNDUP($F135-1,0))/$F135))),0) -> -7,610 | R135: =-SUM(OFFSET(Q124,0,-MIN(R$84-1,ROUNDDOWN($F135-1,0))):Q124)/$F135-IF(R$84>$F135,(OFFSET(Q124,0,-ROUNDUP($F135-1,0))-(ROUNDDOWN($F135,0)*(OFFSET(Q124,0,-ROUNDUP($F135-1,0))/$F135))),0) -> -7,610 | S135: =-SUM(OFFSET(R124,0,-MIN(S$84-1,ROUNDDOWN($F135-1,0))):R124)/$F135-IF(S$84>$F135,(OFFSET(R124,0,-ROUNDUP($F135-1,0))-(ROUNDDOWN($F135,0)*(OFFSET(R124,0,-ROUNDUP($F135-1,0))/$F135))),0) -> -7,610 | T135: =-SUM(OFFSET(S124,0,-MIN(T$84-1,ROUNDDOWN($F135-1,0))):S124)/$F135-IF(T$84>$F135,(OFFSET(S124,0,-ROUNDUP($F135-1,0))-(ROUNDDOWN($F135,0)*(OFFSET(S124,0,-ROUNDUP($F135-1,0))/$F135))),0) -> -7,610 | U135: =-SUM(OFFSET(T124,0,-MIN(U$84-1,ROUNDDOWN($F135-1,0))):T124)/$F135-IF(U$84>$F135,(OFFSET(T124,0,-ROUNDUP($F135-1,0))-(ROUNDDOWN($F135,0)*(OFFSET(T124,0,-ROUNDUP($F135-1,0))/$F135))),0) -> -7,610 | V135: =-SUM(OFFSET(U124,0,-MIN(V$84-1,ROUNDDOWN($F135-1,0))):U124)/$F135-IF(V$84>$F135,(OFFSET(U124,0,-ROUNDUP($F135-1,0))-(ROUNDDOWN($F135,0)*(OFFSET(U124,0,-ROUNDUP($F135-1,0))/$F135))),0) -> -7,610 | W135: =-SUM(OFFSET(V124,0,-MIN(W$84-1,ROUNDDOWN($F135-1,0))):V124)/$F135-IF(W$84>$F135,(OFFSET(V124,0,-ROUNDUP($F135-1,0))-(ROUNDDOWN($F135,0)*(OFFSET(V124,0,-ROUNDUP($F135-1,0))/$F135))),0) -> -7,610 | X135: =-SUM(OFFSET(W124,0,-MIN(X$84-1,ROUNDDOWN($F135-1,0))):W124)/$F135-IF(X$84>$F135,(OFFSET(W124,0,-ROUNDUP($F135-1,0))-(ROUNDDOWN($F135,0)*(OFFSET(W124,0,-ROUNDUP($F135-1,0))/$F135))),0) -> -7,610 | Y135: =-SUM(OFFSET(X124,0,-MIN(Y$84-1,ROUNDDOWN($F135-1,0))):X124)/$F135-IF(Y$84>$F135,(OFFSET(X124,0,-ROUNDUP($F135-1,0))-(ROUNDDOWN($F135,0)*(OFFSET(X124,0,-ROUNDUP($F135-1,0))/$F135))),0) -> -7,610 | Z135: =-SUM(OFFSET(Y124,0,-MIN(Z$84-1,ROUNDDOWN($F135-1,0))):Y124)/$F135-IF(Z$84>$F135,(OFFSET(Y124,0,-ROUNDUP($F135-1,0))-(ROUNDDOWN($F135,0)*(OFFSET(Y124,0,-ROUNDUP($F135-1,0))/$F135))),0) -> -7,610 | AA135: =-SUM(OFFSET(Z124,0,-MIN(AA$84-1,ROUNDDOWN($F135-1,0))):Z124)/$F135-IF(AA$84>$F135,(OFFSET(Z124,0,-ROUNDUP($F135-1,0))-(ROUNDDOWN($F135,0)*(OFFSET(Z124,0,-ROUNDUP($F135-1,0))/$F135))),0) -> -7,610 | AB135: =-SUM(OFFSET(AA124,0,-MIN(AB$84-1,ROUNDDOWN($F135-1,0))):AA124)/$F135-IF(AB$84>$F135,(OFFSET(AA124,0,-ROUNDUP($F135-1,0))-(ROUNDDOWN($F135,0)*(OFFSET(AA124,0,-ROUNDUP($F135-1,0))/$F135))),0) -> -7,610 | AC135: =-SUM(OFFSET(AB124,0,-MIN(AC$84-1,ROUNDDOWN($F135-1,0))):AB124)/$F135-IF(AC$84>$F135,(OFFSET(AB124,0,-ROUNDUP($F135-1,0))-(ROUNDDOWN($F135,0)*(OFFSET(AB124,0,-ROUNDUP($F135-1,0))/$F135))),0) -> -7,610 | AD135: =-SUM(OFFSET(AC124,0,-MIN(AD$84-1,ROUNDDOWN($F135-1,0))):AC124)/$F135-IF(AD$84>$F135,(OFFSET(AC124,0,-ROUNDUP($F135-1,0))-(ROUNDDOWN($F135,0)*(OFFSET(AC124,0,-ROUNDUP($F135-1,0))/$F135))),0) -> -4,771 | AE135: =-SUM(OFFSET(AD124,0,-MIN(AE$84-1,ROUNDDOWN($F135-1,0))):AD124)/$F135-IF(AE$84>$F135,(OFFSET(AD124,0,-ROUNDUP($F135-1,0))-(ROUNDDOWN($F135,0)*(OFFSET(AD124,0,-ROUNDUP($F135-1,0))/$F135))),0) -> -3,137 | AF135: =-SUM(OFFSET(AE124,0,-MIN(AF$84-1,ROUNDDOWN($F135-1,0))):AE124)/$F135-IF(AF$84>$F135,(OFFSET(AE124,0,-ROUNDUP($F135-1,0))-(ROUNDDOWN($F135,0)*(OFFSET(AE124,0,-ROUNDUP($F135-1,0))/$F135))),0) -> -1,546 | AG135: =-SUM(OFFSET(AF124,0,-MIN(AG$84-1,ROUNDDOWN($F135-1,0))):AF124)/$F135-IF(AG$84>$F135,(OFFSET(AF124,0,-ROUNDUP($F135-1,0))-(ROUNDDOWN($F135,0)*(OFFSET(AF124,0,-ROUNDUP($F135-1,0))/$F135))),0) -> -678 | AH135: =-SUM(OFFSET(AG124,0,-MIN(AH$84-1,ROUNDDOWN($F135-1,0))):AG124)/$F135-IF(AH$84>$F135,(OFFSET(AG124,0,-ROUNDUP($F135-1,0))-(ROUNDDOWN($F135,0)*(OFFSET(AG124,0,-ROUNDUP($F135-1,0))/$F135))),0) -> -319 | AI135: =-SUM(OFFSET(AH124,0,-MIN(AI$84-1,ROUNDDOWN($F135-1,0))):AH124)/$F135-IF(AI$84>$F135,(OFFSET(AH124,0,-ROUNDUP($F135-1,0))-(ROUNDDOWN($F135,0)*(OFFSET(AH124,0,-ROUNDUP($F135-1,0))/$F135))),0) -> -9 | AJ135: =-SUM(OFFSET(AI124,0,-MIN(AJ$84-1,ROUNDDOWN($F135-1,0))):AI124)/$F135-IF(AJ$84>$F135,(OFFSET(AI124,0,-ROUNDUP($F135-1,0))-(ROUNDDOWN($F135,0)*(OFFSET(AI124,0,-ROUNDUP($F135-1,0))/$F135))),0) -> 0 | AK135: =-SUM(OFFSET(AJ124,0,-MIN(AK$84-1,ROUNDDOWN($F135-1,0))):AJ124)/$F135-IF(AK$84>$F135,(OFFSET(AJ124,0,-ROUNDUP($F135-1,0))-(ROUNDDOWN($F135,0)*(OFFSET(AJ124,0,-ROUNDUP($F135-1,0))/$F135))),0) -> 0 | AL135: =-SUM(OFFSET(AK124,0,-MIN(AL$84-1,ROUNDDOWN($F135-1,0))):AK124)/$F135-IF(AL$84>$F135,(OFFSET(AK124,0,-ROUNDUP($F135-1,0))-(ROUNDDOWN($F135,0)*(OFFSET(AK124,0,-ROUNDUP($F135-1,0))/$F135))),0) -> 0 | AM135: =-SUM(OFFSET(AL124,0,-MIN(AM$84-1,ROUNDDOWN($F135-1,0))):AL124)/$F135-IF(AM$84>$F135,(OFFSET(AL124,0,-ROUNDUP($F135-1,0))-(ROUNDDOWN($F135,0)*(OFFSET(AL124,0,-ROUNDUP($F135-1,0))/$F135))),0) -> 0 | AN135: =-SUM(OFFSET(AM124,0,-MIN(AN$84-1,ROUNDDOWN($F135-1,0))):AM124)/$F135-IF(AN$84>$F135,(OFFSET(AM124,0,-ROUNDUP($F135-1,0))-(ROUNDDOWN($F135,0)*(OFFSET(AM124,0,-ROUNDUP($F135-1,0))/$F135))),0) -> 0 | AO135: =-SUM(OFFSET(AN124,0,-MIN(AO$84-1,ROUNDDOWN($F135-1,0))):AN124)/$F135-IF(AO$84>$F135,(OFFSET(AN124,0,-ROUNDUP($F135-1,0))-(ROUNDDOWN($F135,0)*(OFFSET(AN124,0,-ROUNDUP($F135-1,0))/$F135))),0) -> 0 | AP135: =-SUM(OFFSET(AO124,0,-MIN(AP$84-1,ROUNDDOWN($F135-1,0))):AO124)/$F135-IF(AP$84>$F135,(OFFSET(AO124,0,-ROUNDUP($F135-1,0))-(ROUNDDOWN($F135,0)*(OFFSET(AO124,0,-ROUNDUP($F135-1,0))/$F135))),0) -> 0 | AQ135: =-SUM(OFFSET(AP124,0,-MIN(AQ$84-1,ROUNDDOWN($F135-1,0))):AP124)/$F135-IF(AQ$84>$F135,(OFFSET(AP124,0,-ROUNDUP($F135-1,0))-(ROUNDDOWN($F135,0)*(OFFSET(AP124,0,-ROUNDUP($F135-1,0))/$F135))),0) -> 0 | AR135: =-SUM(OFFSET(AQ124,0,-MIN(AR$84-1,ROUNDDOWN($F135-1,0))):AQ124)/$F135-IF(AR$84>$F135,(OFFSET(AQ124,0,-ROUNDUP($F135-1,0))-(ROUNDDOWN($F135,0)*(OFFSET(AQ124,0,-ROUNDUP($F135-1,0))/$F135))),0) -> 0 | AS135: =-SUM(OFFSET(AR124,0,-MIN(AS$84-1,ROUNDDOWN($F135-1,0))):AR124)/$F135-IF(AS$84>$F135,(OFFSET(AR124,0,-ROUNDUP($F135-1,0))-(ROUNDDOWN($F135,0)*(OFFSET(AR124,0,-ROUNDUP($F135-1,0))/$F135))),0) -> 0 | AT135: =-SUM(OFFSET(AS124,0,-MIN(AT$84-1,ROUNDDOWN($F135-1,0))):AS124)/$F135-IF(AT$84>$F135,(OFFSET(AS124,0,-ROUNDUP($F135-1,0))-(ROUNDDOWN($F135,0)*(OFFSET(AS124,0,-ROUNDUP($F135-1,0))/$F135))),0) -> 0 | AU135: =-SUM(OFFSET(AT124,0,-MIN(AU$84-1,ROUNDDOWN($F135-1,0))):AT124)/$F135-IF(AU$84>$F135,(OFFSET(AT124,0,-ROUNDUP($F135-1,0))-(ROUNDDOWN($F135,0)*(OFFSET(AT124,0,-ROUNDUP($F135-1,0))/$F135))),0) -> 0 | AV135: =-SUM(OFFSET(AU124,0,-MIN(AV$84-1,ROUNDDOWN($F135-1,0))):AU124)/$F135-IF(AV$84>$F135,(OFFSET(AU124,0,-ROUNDUP($F135-1,0))-(ROUNDDOWN($F135,0)*(OFFSET(AU124,0,-ROUNDUP($F135-1,0))/$F135))),0) -> 0
B136: ="Amort. - "&B41 -> Amort. - Compression | F136: =D41 -> 20.0 ans | I136: =-SUM(OFFSET(H125,0,-MIN(I$84-1,ROUNDDOWN($F136-1,0))):H125)/$F136-IF(I$84>$F136,(OFFSET(H125,0,-ROUNDUP($F136-1,0))-(ROUNDDOWN($F136,0)*(OFFSET(H125,0,-ROUNDUP($F136-1,0))/$F136))),0) -> 0 | J136: =-SUM(OFFSET(I125,0,-MIN(J$84-1,ROUNDDOWN($F136-1,0))):I125)/$F136-IF(J$84>$F136,(OFFSET(I125,0,-ROUNDUP($F136-1,0))-(ROUNDDOWN($F136,0)*(OFFSET(I125,0,-ROUNDUP($F136-1,0))/$F136))),0) -> 0 | K136: =-SUM(OFFSET(J125,0,-MIN(K$84-1,ROUNDDOWN($F136-1,0))):J125)/$F136-IF(K$84>$F136,(OFFSET(J125,0,-ROUNDUP($F136-1,0))-(ROUNDDOWN($F136,0)*(OFFSET(J125,0,-ROUNDUP($F136-1,0))/$F136))),0) -> 0 | L136: =-SUM(OFFSET(K125,0,-MIN(L$84-1,ROUNDDOWN($F136-1,0))):K125)/$F136-IF(L$84>$F136,(OFFSET(K125,0,-ROUNDUP($F136-1,0))-(ROUNDDOWN($F136,0)*(OFFSET(K125,0,-ROUNDUP($F136-1,0))/$F136))),0) -> 0 | M136: =-SUM(OFFSET(L125,0,-MIN(M$84-1,ROUNDDOWN($F136-1,0))):L125)/$F136-IF(M$84>$F136,(OFFSET(L125,0,-ROUNDUP($F136-1,0))-(ROUNDDOWN($F136,0)*(OFFSET(L125,0,-ROUNDUP($F136-1,0))/$F136))),0) -> 0 | N136: =-SUM(OFFSET(M125,0,-MIN(N$84-1,ROUNDDOWN($F136-1,0))):M125)/$F136-IF(N$84>$F136,(OFFSET(M125,0,-ROUNDUP($F136-1,0))-(ROUNDDOWN($F136,0)*(OFFSET(M125,0,-ROUNDUP($F136-1,0))/$F136))),0) -> 0 | O136: =-SUM(OFFSET(N125,0,-MIN(O$84-1,ROUNDDOWN($F136-1,0))):N125)/$F136-IF(O$84>$F136,(OFFSET(N125,0,-ROUNDUP($F136-1,0))-(ROUNDDOWN($F136,0)*(OFFSET(N125,0,-ROUNDUP($F136-1,0))/$F136))),0) -> 0 | P136: =-SUM(OFFSET(O125,0,-MIN(P$84-1,ROUNDDOWN($F136-1,0))):O125)/$F136-IF(P$84>$F136,(OFFSET(O125,0,-ROUNDUP($F136-1,0))-(ROUNDDOWN($F136,0)*(OFFSET(O125,0,-ROUNDUP($F136-1,0))/$F136))),0) -> 0 | Q136: =-SUM(OFFSET(P125,0,-MIN(Q$84-1,ROUNDDOWN($F136-1,0))):P125)/$F136-IF(Q$84>$F136,(OFFSET(P125,0,-ROUNDUP($F136-1,0))-(ROUNDDOWN($F136,0)*(OFFSET(P125,0,-ROUNDUP($F136-1,0))/$F136))),0) -> 0 | R136: =-SUM(OFFSET(Q125,0,-MIN(R$84-1,ROUNDDOWN($F136-1,0))):Q125)/$F136-IF(R$84>$F136,(OFFSET(Q125,0,-ROUNDUP($F136-1,0))-(ROUNDDOWN($F136,0)*(OFFSET(Q125,0,-ROUNDUP($F136-1,0))/$F136))),0) -> 0 | S136: =-SUM(OFFSET(R125,0,-MIN(S$84-1,ROUNDDOWN($F136-1,0))):R125)/$F136-IF(S$84>$F136,(OFFSET(R125,0,-ROUNDUP($F136-1,0))-(ROUNDDOWN($F136,0)*(OFFSET(R125,0,-ROUNDUP($F136-1,0))/$F136))),0) -> 0 | T136: =-SUM(OFFSET(S125,0,-MIN(T$84-1,ROUNDDOWN($F136-1,0))):S125)/$F136-IF(T$84>$F136,(OFFSET(S125,0,-ROUNDUP($F136-1,0))-(ROUNDDOWN($F136,0)*(OFFSET(S125,0,-ROUNDUP($F136-1,0))/$F136))),0) -> 0 | U136: =-SUM(OFFSET(T125,0,-MIN(U$84-1,ROUNDDOWN($F136-1,0))):T125)/$F136-IF(U$84>$F136,(OFFSET(T125,0,-ROUNDUP($F136-1,0))-(ROUNDDOWN($F136,0)*(OFFSET(T125,0,-ROUNDUP($F136-1,0))/$F136))),0) -> 0 | V136: =-SUM(OFFSET(U125,0,-MIN(V$84-1,ROUNDDOWN($F136-1,0))):U125)/$F136-IF(V$84>$F136,(OFFSET(U125,0,-ROUNDUP($F136-1,0))-(ROUNDDOWN($F136,0)*(OFFSET(U125,0,-ROUNDUP($F136-1,0))/$F136))),0) -> 0 | W136: =-SUM(OFFSET(V125,0,-MIN(W$84-1,ROUNDDOWN($F136-1,0))):V125)/$F136-IF(W$84>$F136,(OFFSET(V125,0,-ROUNDUP($F136-1,0))-(ROUNDDOWN($F136,0)*(OFFSET(V125,0,-ROUNDUP($F136-1,0))/$F136))),0) -> 0 | X136: =-SUM(OFFSET(W125,0,-MIN(X$84-1,ROUNDDOWN($F136-1,0))):W125)/$F136-IF(X$84>$F136,(OFFSET(W125,0,-ROUNDUP($F136-1,0))-(ROUNDDOWN($F136,0)*(OFFSET(W125,0,-ROUNDUP($F136-1,0))/$F136))),0) -> 0 | Y136: =-SUM(OFFSET(X125,0,-MIN(Y$84-1,ROUNDDOWN($F136-1,0))):X125)/$F136-IF(Y$84>$F136,(OFFSET(X125,0,-ROUNDUP($F136-1,0))-(ROUNDDOWN($F136,0)*(OFFSET(X125,0,-ROUNDUP($F136-1,0))/$F136))),0) -> 0 | Z136: =-SUM(OFFSET(Y125,0,-MIN(Z$84-1,ROUNDDOWN($F136-1,0))):Y125)/$F136-IF(Z$84>$F136,(OFFSET(Y125,0,-ROUNDUP($F136-1,0))-(ROUNDDOWN($F136,0)*(OFFSET(Y125,0,-ROUNDUP($F136-1,0))/$F136))),0) -> 0 | AA136: =-SUM(OFFSET(Z125,0,-MIN(AA$84-1,ROUNDDOWN($F136-1,0))):Z125)/$F136-IF(AA$84>$F136,(OFFSET(Z125,0,-ROUNDUP($F136-1,0))-(ROUNDDOWN($F136,0)*(OFFSET(Z125,0,-ROUNDUP($F136-1,0))/$F136))),0) -> 0 | AB136: =-SUM(OFFSET(AA125,0,-MIN(AB$84-1,ROUNDDOWN($F136-1,0))):AA125)/$F136-IF(AB$84>$F136,(OFFSET(AA125,0,-ROUNDUP($F136-1,0))-(ROUNDDOWN($F136,0)*(OFFSET(AA125,0,-ROUNDUP($F136-1,0))/$F136))),0) -> 0 | AC136: =-SUM(OFFSET(AB125,0,-MIN(AC$84-1,ROUNDDOWN($F136-1,0))):AB125)/$F136-IF(AC$84>$F136,(OFFSET(AB125,0,-ROUNDUP($F136-1,0))-(ROUNDDOWN($F136,0)*(OFFSET(AB125,0,-ROUNDUP($F136-1,0))/$F136))),0) -> 0 | AD136: =-SUM(OFFSET(AC125,0,-MIN(AD$84-1,ROUNDDOWN($F136-1,0))):AC125)/$F136-IF(AD$84>$F136,(OFFSET(AC125,0,-ROUNDUP($F136-1,0))-(ROUNDDOWN($F136,0)*(OFFSET(AC125,0,-ROUNDUP($F136-1,0))/$F136))),0) -> 0 | AE136: =-SUM(OFFSET(AD125,0,-MIN(AE$84-1,ROUNDDOWN($F136-1,0))):AD125)/$F136-IF(AE$84>$F136,(OFFSET(AD125,0,-ROUNDUP($F136-1,0))-(ROUNDDOWN($F136,0)*(OFFSET(AD125,0,-ROUNDUP($F136-1,0))/$F136))),0) -> 0 | AF136: =-SUM(OFFSET(AE125,0,-MIN(AF$84-1,ROUNDDOWN($F136-1,0))):AE125)/$F136-IF(AF$84>$F136,(OFFSET(AE125,0,-ROUNDUP($F136-1,0))-(ROUNDDOWN($F136,0)*(OFFSET(AE125,0,-ROUNDUP($F136-1,0))/$F136))),0) -> 0 | AG136: =-SUM(OFFSET(AF125,0,-MIN(AG$84-1,ROUNDDOWN($F136-1,0))):AF125)/$F136-IF(AG$84>$F136,(OFFSET(AF125,0,-ROUNDUP($F136-1,0))-(ROUNDDOWN($F136,0)*(OFFSET(AF125,0,-ROUNDUP($F136-1,0))/$F136))),0) -> 0 | AH136: =-SUM(OFFSET(AG125,0,-MIN(AH$84-1,ROUNDDOWN($F136-1,0))):AG125)/$F136-IF(AH$84>$F136,(OFFSET(AG125,0,-ROUNDUP($F136-1,0))-(ROUNDDOWN($F136,0)*(OFFSET(AG125,0,-ROUNDUP($F136-1,0))/$F136))),0) -> 0 | AI136: =-SUM(OFFSET(AH125,0,-MIN(AI$84-1,ROUNDDOWN($F136-1,0))):AH125)/$F136-IF(AI$84>$F136,(OFFSET(AH125,0,-ROUNDUP($F136-1,0))-(ROUNDDOWN($F136,0)*(OFFSET(AH125,0,-ROUNDUP($F136-1,0))/$F136))),0) -> 0 | AJ136: =-SUM(OFFSET(AI125,0,-MIN(AJ$84-1,ROUNDDOWN($F136-1,0))):AI125)/$F136-IF(AJ$84>$F136,(OFFSET(AI125,0,-ROUNDUP($F136-1,0))-(ROUNDDOWN($F136,0)*(OFFSET(AI125,0,-ROUNDUP($F136-1,0))/$F136))),0) -> 0 | AK136: =-SUM(OFFSET(AJ125,0,-MIN(AK$84-1,ROUNDDOWN($F136-1,0))):AJ125)/$F136-IF(AK$84>$F136,(OFFSET(AJ125,0,-ROUNDUP($F136-1,0))-(ROUNDDOWN($F136,0)*(OFFSET(AJ125,0,-ROUNDUP($F136-1,0))/$F136))),0) -> 0 | AL136: =-SUM(OFFSET(AK125,0,-MIN(AL$84-1,ROUNDDOWN($F136-1,0))):AK125)/$F136-IF(AL$84>$F136,(OFFSET(AK125,0,-ROUNDUP($F136-1,0))-(ROUNDDOWN($F136,0)*(OFFSET(AK125,0,-ROUNDUP($F136-1,0))/$F136))),0) -> 0 | AM136: =-SUM(OFFSET(AL125,0,-MIN(AM$84-1,ROUNDDOWN($F136-1,0))):AL125)/$F136-IF(AM$84>$F136,(OFFSET(AL125,0,-ROUNDUP($F136-1,0))-(ROUNDDOWN($F136,0)*(OFFSET(AL125,0,-ROUNDUP($F136-1,0))/$F136))),0) -> 0 | AN136: =-SUM(OFFSET(AM125,0,-MIN(AN$84-1,ROUNDDOWN($F136-1,0))):AM125)/$F136-IF(AN$84>$F136,(OFFSET(AM125,0,-ROUNDUP($F136-1,0))-(ROUNDDOWN($F136,0)*(OFFSET(AM125,0,-ROUNDUP($F136-1,0))/$F136))),0) -> 0 | AO136: =-SUM(OFFSET(AN125,0,-MIN(AO$84-1,ROUNDDOWN($F136-1,0))):AN125)/$F136-IF(AO$84>$F136,(OFFSET(AN125,0,-ROUNDUP($F136-1,0))-(ROUNDDOWN($F136,0)*(OFFSET(AN125,0,-ROUNDUP($F136-1,0))/$F136))),0) -> 0 | AP136: =-SUM(OFFSET(AO125,0,-MIN(AP$84-1,ROUNDDOWN($F136-1,0))):AO125)/$F136-IF(AP$84>$F136,(OFFSET(AO125,0,-ROUNDUP($F136-1,0))-(ROUNDDOWN($F136,0)*(OFFSET(AO125,0,-ROUNDUP($F136-1,0))/$F136))),0) -> 0 | AQ136: =-SUM(OFFSET(AP125,0,-MIN(AQ$84-1,ROUNDDOWN($F136-1,0))):AP125)/$F136-IF(AQ$84>$F136,(OFFSET(AP125,0,-ROUNDUP($F136-1,0))-(ROUNDDOWN($F136,0)*(OFFSET(AP125,0,-ROUNDUP($F136-1,0))/$F136))),0) -> 0 | AR136: =-SUM(OFFSET(AQ125,0,-MIN(AR$84-1,ROUNDDOWN($F136-1,0))):AQ125)/$F136-IF(AR$84>$F136,(OFFSET(AQ125,0,-ROUNDUP($F136-1,0))-(ROUNDDOWN($F136,0)*(OFFSET(AQ125,0,-ROUNDUP($F136-1,0))/$F136))),0) -> 0 | AS136: =-SUM(OFFSET(AR125,0,-MIN(AS$84-1,ROUNDDOWN($F136-1,0))):AR125)/$F136-IF(AS$84>$F136,(OFFSET(AR125,0,-ROUNDUP($F136-1,0))-(ROUNDDOWN($F136,0)*(OFFSET(AR125,0,-ROUNDUP($F136-1,0))/$F136))),0) -> 0 | AT136: =-SUM(OFFSET(AS125,0,-MIN(AT$84-1,ROUNDDOWN($F136-1,0))):AS125)/$F136-IF(AT$84>$F136,(OFFSET(AS125,0,-ROUNDUP($F136-1,0))-(ROUNDDOWN($F136,0)*(OFFSET(AS125,0,-ROUNDUP($F136-1,0))/$F136))),0) -> 0 | AU136: =-SUM(OFFSET(AT125,0,-MIN(AU$84-1,ROUNDDOWN($F136-1,0))):AT125)/$F136-IF(AU$84>$F136,(OFFSET(AT125,0,-ROUNDUP($F136-1,0))-(ROUNDDOWN($F136,0)*(OFFSET(AT125,0,-ROUNDUP($F136-1,0))/$F136))),0) -> 0 | AV136: =-SUM(OFFSET(AU125,0,-MIN(AV$84-1,ROUNDDOWN($F136-1,0))):AU125)/$F136-IF(AV$84>$F136,(OFFSET(AU125,0,-ROUNDUP($F136-1,0))-(ROUNDDOWN($F136,0)*(OFFSET(AU125,0,-ROUNDUP($F136-1,0))/$F136))),0) -> 0
B137: ="Amort. - "&B42 -> Amort. - Servitude | F137: =D42 -> 65.0 ans | I137: =-SUM(OFFSET(H126,0,-MIN(I$84-1,$F137-1)):H126)/$F137 -> 0 | J137: =-SUM(OFFSET(I126,0,-MIN(J$84-1,$F137-1)):I126)/$F137 -> 0 | K137: =-SUM(OFFSET(J126,0,-MIN(K$84-1,$F137-1)):J126)/$F137 -> 0 | L137: =-SUM(OFFSET(K126,0,-MIN(L$84-1,ROUNDDOWN($F137-1,0))):K126)/$F137-IF(L$84>$F137,(OFFSET(K126,0,-ROUNDUP($F137-1,0))-(ROUNDDOWN($F137,0)*(OFFSET(K126,0,-ROUNDUP($F137-1,0))/$F137))),0) -> 0 | M137: =-SUM(OFFSET(L126,0,-MIN(M$84-1,ROUNDDOWN($F137-1,0))):L126)/$F137-IF(M$84>$F137,(OFFSET(L126,0,-ROUNDUP($F137-1,0))-(ROUNDDOWN($F137,0)*(OFFSET(L126,0,-ROUNDUP($F137-1,0))/$F137))),0) -> 0 | N137: =-SUM(OFFSET(M126,0,-MIN(N$84-1,ROUNDDOWN($F137-1,0))):M126)/$F137-IF(N$84>$F137,(OFFSET(M126,0,-ROUNDUP($F137-1,0))-(ROUNDDOWN($F137,0)*(OFFSET(M126,0,-ROUNDUP($F137-1,0))/$F137))),0) -> 0 | O137: =-SUM(OFFSET(N126,0,-MIN(O$84-1,ROUNDDOWN($F137-1,0))):N126)/$F137-IF(O$84>$F137,(OFFSET(N126,0,-ROUNDUP($F137-1,0))-(ROUNDDOWN($F137,0)*(OFFSET(N126,0,-ROUNDUP($F137-1,0))/$F137))),0) -> 0 | P137: =-SUM(OFFSET(O126,0,-MIN(P$84-1,ROUNDDOWN($F137-1,0))):O126)/$F137-IF(P$84>$F137,(OFFSET(O126,0,-ROUNDUP($F137-1,0))-(ROUNDDOWN($F137,0)*(OFFSET(O126,0,-ROUNDUP($F137-1,0))/$F137))),0) -> 0 | Q137: =-SUM(OFFSET(P126,0,-MIN(Q$84-1,ROUNDDOWN($F137-1,0))):P126)/$F137-IF(Q$84>$F137,(OFFSET(P126,0,-ROUNDUP($F137-1,0))-(ROUNDDOWN($F137,0)*(OFFSET(P126,0,-ROUNDUP($F137-1,0))/$F137))),0) -> 0 | R137: =-SUM(OFFSET(Q126,0,-MIN(R$84-1,ROUNDDOWN($F137-1,0))):Q126)/$F137-IF(R$84>$F137,(OFFSET(Q126,0,-ROUNDUP($F137-1,0))-(ROUNDDOWN($F137,0)*(OFFSET(Q126,0,-ROUNDUP($F137-1,0))/$F137))),0) -> 0 | S137: =-SUM(OFFSET(R126,0,-MIN(S$84-1,ROUNDDOWN($F137-1,0))):R126)/$F137-IF(S$84>$F137,(OFFSET(R126,0,-ROUNDUP($F137-1,0))-(ROUNDDOWN($F137,0)*(OFFSET(R126,0,-ROUNDUP($F137-1,0))/$F137))),0) -> 0 | T137: =-SUM(OFFSET(S126,0,-MIN(T$84-1,ROUNDDOWN($F137-1,0))):S126)/$F137-IF(T$84>$F137,(OFFSET(S126,0,-ROUNDUP($F137-1,0))-(ROUNDDOWN($F137,0)*(OFFSET(S126,0,-ROUNDUP($F137-1,0))/$F137))),0) -> 0 | U137: =-SUM(OFFSET(T126,0,-MIN(U$84-1,ROUNDDOWN($F137-1,0))):T126)/$F137-IF(U$84>$F137,(OFFSET(T126,0,-ROUNDUP($F137-1,0))-(ROUNDDOWN($F137,0)*(OFFSET(T126,0,-ROUNDUP($F137-1,0))/$F137))),0) -> 0 | V137: =-SUM(OFFSET(U126,0,-MIN(V$84-1,ROUNDDOWN($F137-1,0))):U126)/$F137-IF(V$84>$F137,(OFFSET(U126,0,-ROUNDUP($F137-1,0))-(ROUNDDOWN($F137,0)*(OFFSET(U126,0,-ROUNDUP($F137-1,0))/$F137))),0) -> 0 | W137: =-SUM(OFFSET(V126,0,-MIN(W$84-1,ROUNDDOWN($F137-1,0))):V126)/$F137-IF(W$84>$F137,(OFFSET(V126,0,-ROUNDUP($F137-1,0))-(ROUNDDOWN($F137,0)*(OFFSET(V126,0,-ROUNDUP($F137-1,0))/$F137))),0) -> 0 | X137: =-SUM(OFFSET(W126,0,-MIN(X$84-1,ROUNDDOWN($F137-1,0))):W126)/$F137-IF(X$84>$F137,(OFFSET(W126,0,-ROUNDUP($F137-1,0))-(ROUNDDOWN($F137,0)*(OFFSET(W126,0,-ROUNDUP($F137-1,0))/$F137))),0) -> 0 | Y137: =-SUM(OFFSET(X126,0,-MIN(Y$84-1,ROUNDDOWN($F137-1,0))):X126)/$F137-IF(Y$84>$F137,(OFFSET(X126,0,-ROUNDUP($F137-1,0))-(ROUNDDOWN($F137,0)*(OFFSET(X126,0,-ROUNDUP($F137-1,0))/$F137))),0) -> 0 | Z137: =-SUM(OFFSET(Y126,0,-MIN(Z$84-1,ROUNDDOWN($F137-1,0))):Y126)/$F137-IF(Z$84>$F137,(OFFSET(Y126,0,-ROUNDUP($F137-1,0))-(ROUNDDOWN($F137,0)*(OFFSET(Y126,0,-ROUNDUP($F137-1,0))/$F137))),0) -> 0 | AA137: =-SUM(OFFSET(Z126,0,-MIN(AA$84-1,ROUNDDOWN($F137-1,0))):Z126)/$F137-IF(AA$84>$F137,(OFFSET(Z126,0,-ROUNDUP($F137-1,0))-(ROUNDDOWN($F137,0)*(OFFSET(Z126,0,-ROUNDUP($F137-1,0))/$F137))),0) -> 0 | AB137: =-SUM(OFFSET(AA126,0,-MIN(AB$84-1,ROUNDDOWN($F137-1,0))):AA126)/$F137-IF(AB$84>$F137,(OFFSET(AA126,0,-ROUNDUP($F137-1,0))-(ROUNDDOWN($F137,0)*(OFFSET(AA126,0,-ROUNDUP($F137-1,0))/$F137))),0) -> 0 | AC137: =-SUM(OFFSET(AB126,0,-MIN(AC$84-1,ROUNDDOWN($F137-1,0))):AB126)/$F137-IF(AC$84>$F137,(OFFSET(AB126,0,-ROUNDUP($F137-1,0))-(ROUNDDOWN($F137,0)*(OFFSET(AB126,0,-ROUNDUP($F137-1,0))/$F137))),0) -> 0 | AD137: =-SUM(OFFSET(AC126,0,-MIN(AD$84-1,ROUNDDOWN($F137-1,0))):AC126)/$F137-IF(AD$84>$F137,(OFFSET(AC126,0,-ROUNDUP($F137-1,0))-(ROUNDDOWN($F137,0)*(OFFSET(AC126,0,-ROUNDUP($F137-1,0))/$F137))),0) -> 0 | AE137: =-SUM(OFFSET(AD126,0,-MIN(AE$84-1,ROUNDDOWN($F137-1,0))):AD126)/$F137-IF(AE$84>$F137,(OFFSET(AD126,0,-ROUNDUP($F137-1,0))-(ROUNDDOWN($F137,0)*(OFFSET(AD126,0,-ROUNDUP($F137-1,0))/$F137))),0) -> 0 | AF137: =-SUM(OFFSET(AE126,0,-MIN(AF$84-1,ROUNDDOWN($F137-1,0))):AE126)/$F137-IF(AF$84>$F137,(OFFSET(AE126,0,-ROUNDUP($F137-1,0))-(ROUNDDOWN($F137,0)*(OFFSET(AE126,0,-ROUNDUP($F137-1,0))/$F137))),0) -> 0 | AG137: =-SUM(OFFSET(AF126,0,-MIN(AG$84-1,ROUNDDOWN($F137-1,0))):AF126)/$F137-IF(AG$84>$F137,(OFFSET(AF126,0,-ROUNDUP($F137-1,0))-(ROUNDDOWN($F137,0)*(OFFSET(AF126,0,-ROUNDUP($F137-1,0))/$F137))),0) -> 0 | AH137: =-SUM(OFFSET(AG126,0,-MIN(AH$84-1,ROUNDDOWN($F137-1,0))):AG126)/$F137-IF(AH$84>$F137,(OFFSET(AG126,0,-ROUNDUP($F137-1,0))-(ROUNDDOWN($F137,0)*(OFFSET(AG126,0,-ROUNDUP($F137-1,0))/$F137))),0) -> 0 | AI137: =-SUM(OFFSET(AH126,0,-MIN(AI$84-1,ROUNDDOWN($F137-1,0))):AH126)/$F137-IF(AI$84>$F137,(OFFSET(AH126,0,-ROUNDUP($F137-1,0))-(ROUNDDOWN($F137,0)*(OFFSET(AH126,0,-ROUNDUP($F137-1,0))/$F137))),0) -> 0 | AJ137: =-SUM(OFFSET(AI126,0,-MIN(AJ$84-1,ROUNDDOWN($F137-1,0))):AI126)/$F137-IF(AJ$84>$F137,(OFFSET(AI126,0,-ROUNDUP($F137-1,0))-(ROUNDDOWN($F137,0)*(OFFSET(AI126,0,-ROUNDUP($F137-1,0))/$F137))),0) -> 0 | AK137: =-SUM(OFFSET(AJ126,0,-MIN(AK$84-1,ROUNDDOWN($F137-1,0))):AJ126)/$F137-IF(AK$84>$F137,(OFFSET(AJ126,0,-ROUNDUP($F137-1,0))-(ROUNDDOWN($F137,0)*(OFFSET(AJ126,0,-ROUNDUP($F137-1,0))/$F137))),0) -> 0 | AL137: =-SUM(OFFSET(AK126,0,-MIN(AL$84-1,ROUNDDOWN($F137-1,0))):AK126)/$F137-IF(AL$84>$F137,(OFFSET(AK126,0,-ROUNDUP($F137-1,0))-(ROUNDDOWN($F137,0)*(OFFSET(AK126,0,-ROUNDUP($F137-1,0))/$F137))),0) -> 0 | AM137: =-SUM(OFFSET(AL126,0,-MIN(AM$84-1,ROUNDDOWN($F137-1,0))):AL126)/$F137-IF(AM$84>$F137,(OFFSET(AL126,0,-ROUNDUP($F137-1,0))-(ROUNDDOWN($F137,0)*(OFFSET(AL126,0,-ROUNDUP($F137-1,0))/$F137))),0) -> 0 | AN137: =-SUM(OFFSET(AM126,0,-MIN(AN$84-1,ROUNDDOWN($F137-1,0))):AM126)/$F137-IF(AN$84>$F137,(OFFSET(AM126,0,-ROUNDUP($F137-1,0))-(ROUNDDOWN($F137,0)*(OFFSET(AM126,0,-ROUNDUP($F137-1,0))/$F137))),0) -> 0 | AO137: =-SUM(OFFSET(AN126,0,-MIN(AO$84-1,ROUNDDOWN($F137-1,0))):AN126)/$F137-IF(AO$84>$F137,(OFFSET(AN126,0,-ROUNDUP($F137-1,0))-(ROUNDDOWN($F137,0)*(OFFSET(AN126,0,-ROUNDUP($F137-1,0))/$F137))),0) -> 0 | AP137: =-SUM(OFFSET(AO126,0,-MIN(AP$84-1,ROUNDDOWN($F137-1,0))):AO126)/$F137-IF(AP$84>$F137,(OFFSET(AO126,0,-ROUNDUP($F137-1,0))-(ROUNDDOWN($F137,0)*(OFFSET(AO126,0,-ROUNDUP($F137-1,0))/$F137))),0) -> 0 | AQ137: =-SUM(OFFSET(AP126,0,-MIN(AQ$84-1,ROUNDDOWN($F137-1,0))):AP126)/$F137-IF(AQ$84>$F137,(OFFSET(AP126,0,-ROUNDUP($F137-1,0))-(ROUNDDOWN($F137,0)*(OFFSET(AP126,0,-ROUNDUP($F137-1,0))/$F137))),0) -> 0 | AR137: =-SUM(OFFSET(AQ126,0,-MIN(AR$84-1,ROUNDDOWN($F137-1,0))):AQ126)/$F137-IF(AR$84>$F137,(OFFSET(AQ126,0,-ROUNDUP($F137-1,0))-(ROUNDDOWN($F137,0)*(OFFSET(AQ126,0,-ROUNDUP($F137-1,0))/$F137))),0) -> 0 | AS137: =-SUM(OFFSET(AR126,0,-MIN(AS$84-1,ROUNDDOWN($F137-1,0))):AR126)/$F137-IF(AS$84>$F137,(OFFSET(AR126,0,-ROUNDUP($F137-1,0))-(ROUNDDOWN($F137,0)*(OFFSET(AR126,0,-ROUNDUP($F137-1,0))/$F137))),0) -> 0 | AT137: =-SUM(OFFSET(AS126,0,-MIN(AT$84-1,ROUNDDOWN($F137-1,0))):AS126)/$F137-IF(AT$84>$F137,(OFFSET(AS126,0,-ROUNDUP($F137-1,0))-(ROUNDDOWN($F137,0)*(OFFSET(AS126,0,-ROUNDUP($F137-1,0))/$F137))),0) -> 0 | AU137: =-SUM(OFFSET(AT126,0,-MIN(AU$84-1,ROUNDDOWN($F137-1,0))):AT126)/$F137-IF(AU$84>$F137,(OFFSET(AT126,0,-ROUNDUP($F137-1,0))-(ROUNDDOWN($F137,0)*(OFFSET(AT126,0,-ROUNDUP($F137-1,0))/$F137))),0) -> 0 | AV137: =-SUM(OFFSET(AU126,0,-MIN(AV$84-1,ROUNDDOWN($F137-1,0))):AU126)/$F137-IF(AV$84>$F137,(OFFSET(AU126,0,-ROUNDUP($F137-1,0))-(ROUNDDOWN($F137,0)*(OFFSET(AU126,0,-ROUNDUP($F137-1,0))/$F137))),0) -> 0
B138: ="Amort. - "&B43 -> Amort. - Transport | F138: =D43 -> 65.0 ans | I138: =-SUM(OFFSET(H127,0,-MIN(I$84-1,$F138-1)):H127)/$F138 -> 0 | J138: =-SUM(OFFSET(I127,0,-MIN(J$84-1,$F138-1)):I127)/$F138 -> 0 | K138: =-SUM(OFFSET(J127,0,-MIN(K$84-1,$F138-1)):J127)/$F138 -> 0 | L138: =-SUM(OFFSET(K127,0,-MIN(L$84-1,ROUNDDOWN($F138-1,0))):K127)/$F138-IF(L$84>$F138,(OFFSET(K127,0,-ROUNDUP($F138-1,0))-(ROUNDDOWN($F138,0)*(OFFSET(K127,0,-ROUNDUP($F138-1,0))/$F138))),0) -> 0 | M138: =-SUM(OFFSET(L127,0,-MIN(M$84-1,ROUNDDOWN($F138-1,0))):L127)/$F138-IF(M$84>$F138,(OFFSET(L127,0,-ROUNDUP($F138-1,0))-(ROUNDDOWN($F138,0)*(OFFSET(L127,0,-ROUNDUP($F138-1,0))/$F138))),0) -> 0 | N138: =-SUM(OFFSET(M127,0,-MIN(N$84-1,ROUNDDOWN($F138-1,0))):M127)/$F138-IF(N$84>$F138,(OFFSET(M127,0,-ROUNDUP($F138-1,0))-(ROUNDDOWN($F138,0)*(OFFSET(M127,0,-ROUNDUP($F138-1,0))/$F138))),0) -> 0 | O138: =-SUM(OFFSET(N127,0,-MIN(O$84-1,ROUNDDOWN($F138-1,0))):N127)/$F138-IF(O$84>$F138,(OFFSET(N127,0,-ROUNDUP($F138-1,0))-(ROUNDDOWN($F138,0)*(OFFSET(N127,0,-ROUNDUP($F138-1,0))/$F138))),0) -> 0 | P138: =-SUM(OFFSET(O127,0,-MIN(P$84-1,ROUNDDOWN($F138-1,0))):O127)/$F138-IF(P$84>$F138,(OFFSET(O127,0,-ROUNDUP($F138-1,0))-(ROUNDDOWN($F138,0)*(OFFSET(O127,0,-ROUNDUP($F138-1,0))/$F138))),0) -> 0 | Q138: =-SUM(OFFSET(P127,0,-MIN(Q$84-1,ROUNDDOWN($F138-1,0))):P127)/$F138-IF(Q$84>$F138,(OFFSET(P127,0,-ROUNDUP($F138-1,0))-(ROUNDDOWN($F138,0)*(OFFSET(P127,0,-ROUNDUP($F138-1,0))/$F138))),0) -> 0 | R138: =-SUM(OFFSET(Q127,0,-MIN(R$84-1,ROUNDDOWN($F138-1,0))):Q127)/$F138-IF(R$84>$F138,(OFFSET(Q127,0,-ROUNDUP($F138-1,0))-(ROUNDDOWN($F138,0)*(OFFSET(Q127,0,-ROUNDUP($F138-1,0))/$F138))),0) -> 0 | S138: =-SUM(OFFSET(R127,0,-MIN(S$84-1,ROUNDDOWN($F138-1,0))):R127)/$F138-IF(S$84>$F138,(OFFSET(R127,0,-ROUNDUP($F138-1,0))-(ROUNDDOWN($F138,0)*(OFFSET(R127,0,-ROUNDUP($F138-1,0))/$F138))),0) -> 0 | T138: =-SUM(OFFSET(S127,0,-MIN(T$84-1,ROUNDDOWN($F138-1,0))):S127)/$F138-IF(T$84>$F138,(OFFSET(S127,0,-ROUNDUP($F138-1,0))-(ROUNDDOWN($F138,0)*(OFFSET(S127,0,-ROUNDUP($F138-1,0))/$F138))),0) -> 0 | U138: =-SUM(OFFSET(T127,0,-MIN(U$84-1,ROUNDDOWN($F138-1,0))):T127)/$F138-IF(U$84>$F138,(OFFSET(T127,0,-ROUNDUP($F138-1,0))-(ROUNDDOWN($F138,0)*(OFFSET(T127,0,-ROUNDUP($F138-1,0))/$F138))),0) -> 0 | V138: =-SUM(OFFSET(U127,0,-MIN(V$84-1,ROUNDDOWN($F138-1,0))):U127)/$F138-IF(V$84>$F138,(OFFSET(U127,0,-ROUNDUP($F138-1,0))-(ROUNDDOWN($F138,0)*(OFFSET(U127,0,-ROUNDUP($F138-1,0))/$F138))),0) -> 0 | W138: =-SUM(OFFSET(V127,0,-MIN(W$84-1,ROUNDDOWN($F138-1,0))):V127)/$F138-IF(W$84>$F138,(OFFSET(V127,0,-ROUNDUP($F138-1,0))-(ROUNDDOWN($F138,0)*(OFFSET(V127,0,-ROUNDUP($F138-1,0))/$F138))),0) -> 0 | X138: =-SUM(OFFSET(W127,0,-MIN(X$84-1,ROUNDDOWN($F138-1,0))):W127)/$F138-IF(X$84>$F138,(OFFSET(W127,0,-ROUNDUP($F138-1,0))-(ROUNDDOWN($F138,0)*(OFFSET(W127,0,-ROUNDUP($F138-1,0))/$F138))),0) -> 0 | Y138: =-SUM(OFFSET(X127,0,-MIN(Y$84-1,ROUNDDOWN($F138-1,0))):X127)/$F138-IF(Y$84>$F138,(OFFSET(X127,0,-ROUNDUP($F138-1,0))-(ROUNDDOWN($F138,0)*(OFFSET(X127,0,-ROUNDUP($F138-1,0))/$F138))),0) -> 0 | Z138: =-SUM(OFFSET(Y127,0,-MIN(Z$84-1,ROUNDDOWN($F138-1,0))):Y127)/$F138-IF(Z$84>$F138,(OFFSET(Y127,0,-ROUNDUP($F138-1,0))-(ROUNDDOWN($F138,0)*(OFFSET(Y127,0,-ROUNDUP($F138-1,0))/$F138))),0) -> 0 | AA138: =-SUM(OFFSET(Z127,0,-MIN(AA$84-1,ROUNDDOWN($F138-1,0))):Z127)/$F138-IF(AA$84>$F138,(OFFSET(Z127,0,-ROUNDUP($F138-1,0))-(ROUNDDOWN($F138,0)*(OFFSET(Z127,0,-ROUNDUP($F138-1,0))/$F138))),0) -> 0 | AB138: =-SUM(OFFSET(AA127,0,-MIN(AB$84-1,ROUNDDOWN($F138-1,0))):AA127)/$F138-IF(AB$84>$F138,(OFFSET(AA127,0,-ROUNDUP($F138-1,0))-(ROUNDDOWN($F138,0)*(OFFSET(AA127,0,-ROUNDUP($F138-1,0))/$F138))),0) -> 0 | AC138: =-SUM(OFFSET(AB127,0,-MIN(AC$84-1,ROUNDDOWN($F138-1,0))):AB127)/$F138-IF(AC$84>$F138,(OFFSET(AB127,0,-ROUNDUP($F138-1,0))-(ROUNDDOWN($F138,0)*(OFFSET(AB127,0,-ROUNDUP($F138-1,0))/$F138))),0) -> 0 | AD138: =-SUM(OFFSET(AC127,0,-MIN(AD$84-1,ROUNDDOWN($F138-1,0))):AC127)/$F138-IF(AD$84>$F138,(OFFSET(AC127,0,-ROUNDUP($F138-1,0))-(ROUNDDOWN($F138,0)*(OFFSET(AC127,0,-ROUNDUP($F138-1,0))/$F138))),0) -> 0 | AE138: =-SUM(OFFSET(AD127,0,-MIN(AE$84-1,ROUNDDOWN($F138-1,0))):AD127)/$F138-IF(AE$84>$F138,(OFFSET(AD127,0,-ROUNDUP($F138-1,0))-(ROUNDDOWN($F138,0)*(OFFSET(AD127,0,-ROUNDUP($F138-1,0))/$F138))),0) -> 0 | AF138: =-SUM(OFFSET(AE127,0,-MIN(AF$84-1,ROUNDDOWN($F138-1,0))):AE127)/$F138-IF(AF$84>$F138,(OFFSET(AE127,0,-ROUNDUP($F138-1,0))-(ROUNDDOWN($F138,0)*(OFFSET(AE127,0,-ROUNDUP($F138-1,0))/$F138))),0) -> 0 | AG138: =-SUM(OFFSET(AF127,0,-MIN(AG$84-1,ROUNDDOWN($F138-1,0))):AF127)/$F138-IF(AG$84>$F138,(OFFSET(AF127,0,-ROUNDUP($F138-1,0))-(ROUNDDOWN($F138,0)*(OFFSET(AF127,0,-ROUNDUP($F138-1,0))/$F138))),0) -> 0 | AH138: =-SUM(OFFSET(AG127,0,-MIN(AH$84-1,ROUNDDOWN($F138-1,0))):AG127)/$F138-IF(AH$84>$F138,(OFFSET(AG127,0,-ROUNDUP($F138-1,0))-(ROUNDDOWN($F138,0)*(OFFSET(AG127,0,-ROUNDUP($F138-1,0))/$F138))),0) -> 0 | AI138: =-SUM(OFFSET(AH127,0,-MIN(AI$84-1,ROUNDDOWN($F138-1,0))):AH127)/$F138-IF(AI$84>$F138,(OFFSET(AH127,0,-ROUNDUP($F138-1,0))-(ROUNDDOWN($F138,0)*(OFFSET(AH127,0,-ROUNDUP($F138-1,0))/$F138))),0) -> 0 | AJ138: =-SUM(OFFSET(AI127,0,-MIN(AJ$84-1,ROUNDDOWN($F138-1,0))):AI127)/$F138-IF(AJ$84>$F138,(OFFSET(AI127,0,-ROUNDUP($F138-1,0))-(ROUNDDOWN($F138,0)*(OFFSET(AI127,0,-ROUNDUP($F138-1,0))/$F138))),0) -> 0 | AK138: =-SUM(OFFSET(AJ127,0,-MIN(AK$84-1,ROUNDDOWN($F138-1,0))):AJ127)/$F138-IF(AK$84>$F138,(OFFSET(AJ127,0,-ROUNDUP($F138-1,0))-(ROUNDDOWN($F138,0)*(OFFSET(AJ127,0,-ROUNDUP($F138-1,0))/$F138))),0) -> 0 | AL138: =-SUM(OFFSET(AK127,0,-MIN(AL$84-1,ROUNDDOWN($F138-1,0))):AK127)/$F138-IF(AL$84>$F138,(OFFSET(AK127,0,-ROUNDUP($F138-1,0))-(ROUNDDOWN($F138,0)*(OFFSET(AK127,0,-ROUNDUP($F138-1,0))/$F138))),0) -> 0 | AM138: =-SUM(OFFSET(AL127,0,-MIN(AM$84-1,ROUNDDOWN($F138-1,0))):AL127)/$F138-IF(AM$84>$F138,(OFFSET(AL127,0,-ROUNDUP($F138-1,0))-(ROUNDDOWN($F138,0)*(OFFSET(AL127,0,-ROUNDUP($F138-1,0))/$F138))),0) -> 0 | AN138: =-SUM(OFFSET(AM127,0,-MIN(AN$84-1,ROUNDDOWN($F138-1,0))):AM127)/$F138-IF(AN$84>$F138,(OFFSET(AM127,0,-ROUNDUP($F138-1,0))-(ROUNDDOWN($F138,0)*(OFFSET(AM127,0,-ROUNDUP($F138-1,0))/$F138))),0) -> 0 | AO138: =-SUM(OFFSET(AN127,0,-MIN(AO$84-1,ROUNDDOWN($F138-1,0))):AN127)/$F138-IF(AO$84>$F138,(OFFSET(AN127,0,-ROUNDUP($F138-1,0))-(ROUNDDOWN($F138,0)*(OFFSET(AN127,0,-ROUNDUP($F138-1,0))/$F138))),0) -> 0 | AP138: =-SUM(OFFSET(AO127,0,-MIN(AP$84-1,ROUNDDOWN($F138-1,0))):AO127)/$F138-IF(AP$84>$F138,(OFFSET(AO127,0,-ROUNDUP($F138-1,0))-(ROUNDDOWN($F138,0)*(OFFSET(AO127,0,-ROUNDUP($F138-1,0))/$F138))),0) -> 0 | AQ138: =-SUM(OFFSET(AP127,0,-MIN(AQ$84-1,ROUNDDOWN($F138-1,0))):AP127)/$F138-IF(AQ$84>$F138,(OFFSET(AP127,0,-ROUNDUP($F138-1,0))-(ROUNDDOWN($F138,0)*(OFFSET(AP127,0,-ROUNDUP($F138-1,0))/$F138))),0) -> 0 | AR138: =-SUM(OFFSET(AQ127,0,-MIN(AR$84-1,ROUNDDOWN($F138-1,0))):AQ127)/$F138-IF(AR$84>$F138,(OFFSET(AQ127,0,-ROUNDUP($F138-1,0))-(ROUNDDOWN($F138,0)*(OFFSET(AQ127,0,-ROUNDUP($F138-1,0))/$F138))),0) -> 0 | AS138: =-SUM(OFFSET(AR127,0,-MIN(AS$84-1,ROUNDDOWN($F138-1,0))):AR127)/$F138-IF(AS$84>$F138,(OFFSET(AR127,0,-ROUNDUP($F138-1,0))-(ROUNDDOWN($F138,0)*(OFFSET(AR127,0,-ROUNDUP($F138-1,0))/$F138))),0) -> 0 | AT138: =-SUM(OFFSET(AS127,0,-MIN(AT$84-1,ROUNDDOWN($F138-1,0))):AS127)/$F138-IF(AT$84>$F138,(OFFSET(AS127,0,-ROUNDUP($F138-1,0))-(ROUNDDOWN($F138,0)*(OFFSET(AS127,0,-ROUNDUP($F138-1,0))/$F138))),0) -> 0 | AU138: =-SUM(OFFSET(AT127,0,-MIN(AU$84-1,ROUNDDOWN($F138-1,0))):AT127)/$F138-IF(AU$84>$F138,(OFFSET(AT127,0,-ROUNDUP($F138-1,0))-(ROUNDDOWN($F138,0)*(OFFSET(AT127,0,-ROUNDUP($F138-1,0))/$F138))),0) -> 0 | AV138: =-SUM(OFFSET(AU127,0,-MIN(AV$84-1,ROUNDDOWN($F138-1,0))):AU127)/$F138-IF(AV$84>$F138,(OFFSET(AU127,0,-ROUNDUP($F138-1,0))-(ROUNDDOWN($F138,0)*(OFFSET(AU127,0,-ROUNDUP($F138-1,0))/$F138))),0) -> 0
B139: Amort. - PRC 5ans | F139: =D49 -> 5.0 ans | I139: =-SUM(OFFSET(I129,0,-MIN(I$84-1,$F139-1)):I129)/$F139 -> 0 | J139: =-SUM(OFFSET(J129,0,-MIN(J$84-1,$F139-1)):J129)/$F139 -> 0 | K139: =-SUM(OFFSET(K129,0,-MIN(K$84-1,$F139-1)):K129)/$F139 -> 0 | L139: =-SUM(OFFSET(L129,0,-MIN(L$84-1,$F139-1)):L129)/$F139 -> 0 | M139: =-SUM(OFFSET(M129,0,-MIN(M$84-1,$F139-1)):M129)/$F139 -> 0 | N139: =-SUM(OFFSET(N129,0,-MIN(N$84-1,$F139-1)):N129)/$F139 -> 0 | O139: =-SUM(OFFSET(O129,0,-MIN(O$84-1,$F139-1)):O129)/$F139 -> 0 | P139: =-SUM(OFFSET(P129,0,-MIN(P$84-1,$F139-1)):P129)/$F139 -> 0 | Q139: =-SUM(OFFSET(Q129,0,-MIN(Q$84-1,$F139-1)):Q129)/$F139 -> 0 | R139: =-SUM(OFFSET(R129,0,-MIN(R$84-1,$F139-1)):R129)/$F139 -> 0 | S139: =-SUM(OFFSET(S129,0,-MIN(S$84-1,$F139-1)):S129)/$F139 -> 0 | T139: =-SUM(OFFSET(T129,0,-MIN(T$84-1,$F139-1)):T129)/$F139 -> 0 | U139: =-SUM(OFFSET(U129,0,-MIN(U$84-1,$F139-1)):U129)/$F139 -> 0 | V139: =-SUM(OFFSET(V129,0,-MIN(V$84-1,$F139-1)):V129)/$F139 -> 0 | W139: =-SUM(OFFSET(W129,0,-MIN(W$84-1,$F139-1)):W129)/$F139 -> 0 | X139: =-SUM(OFFSET(X129,0,-MIN(X$84-1,$F139-1)):X129)/$F139 -> 0 | Y139: =-SUM(OFFSET(Y129,0,-MIN(Y$84-1,$F139-1)):Y129)/$F139 -> 0 | Z139: =-SUM(OFFSET(Z129,0,-MIN(Z$84-1,$F139-1)):Z129)/$F139 -> 0 | AA139: =-SUM(OFFSET(AA129,0,-MIN(AA$84-1,$F139-1)):AA129)/$F139 -> 0 | AB139: =-SUM(OFFSET(AB129,0,-MIN(AB$84-1,$F139-1)):AB129)/$F139 -> 0 | AC139: =-SUM(OFFSET(AC129,0,-MIN(AC$84-1,$F139-1)):AC129)/$F139 -> 0 | AD139: =-SUM(OFFSET(AD129,0,-MIN(AD$84-1,$F139-1)):AD129)/$F139 -> 0 | AE139: =-SUM(OFFSET(AE129,0,-MIN(AE$84-1,$F139-1)):AE129)/$F139 -> 0 | AF139: =-SUM(OFFSET(AF129,0,-MIN(AF$84-1,$F139-1)):AF129)/$F139 -> 0 | AG139: =-SUM(OFFSET(AG129,0,-MIN(AG$84-1,$F139-1)):AG129)/$F139 -> 0 | AH139: =-SUM(OFFSET(AH129,0,-MIN(AH$84-1,$F139-1)):AH129)/$F139 -> 0 | AI139: =-SUM(OFFSET(AI129,0,-MIN(AI$84-1,$F139-1)):AI129)/$F139 -> 0 | AJ139: =-SUM(OFFSET(AJ129,0,-MIN(AJ$84-1,$F139-1)):AJ129)/$F139 -> 0 | AK139: =-SUM(OFFSET(AK129,0,-MIN(AK$84-1,$F139-1)):AK129)/$F139 -> 0 | AL139: =-SUM(OFFSET(AL129,0,-MIN(AL$84-1,$F139-1)):AL129)/$F139 -> 0 | AM139: =-SUM(OFFSET(AM129,0,-MIN(AM$84-1,$F139-1)):AM129)/$F139 -> 0 | AN139: =-SUM(OFFSET(AN129,0,-MIN(AN$84-1,$F139-1)):AN129)/$F139 -> 0 | AO139: =-SUM(OFFSET(AO129,0,-MIN(AO$84-1,$F139-1)):AO129)/$F139 -> 0 | AP139: =-SUM(OFFSET(AP129,0,-MIN(AP$84-1,$F139-1)):AP129)/$F139 -> 0 | AQ139: =-SUM(OFFSET(AQ129,0,-MIN(AQ$84-1,$F139-1)):AQ129)/$F139 -> 0 | AR139: =-SUM(OFFSET(AR129,0,-MIN(AR$84-1,$F139-1)):AR129)/$F139 -> 0 | AS139: =-SUM(OFFSET(AS129,0,-MIN(AS$84-1,$F139-1)):AS129)/$F139 -> 0 | AT139: =-SUM(OFFSET(AT129,0,-MIN(AT$84-1,$F139-1)):AT129)/$F139 -> 0 | AU139: =-SUM(OFFSET(AU129,0,-MIN(AU$84-1,$F139-1)):AU129)/$F139 -> 0 | AV139: =-SUM(OFFSET(AV129,0,-MIN(AV$84-1,$F139-1)):AV129)/$F139 -> 0
B140: Amort. - PRC 10 ans (including CASEP PRC - 10 ans) | F140: =D50 -> 10.0 ans | I140: =-SUM(OFFSET(I130,0,-MIN(I$84-1,$F140-1)):I130)/$F140-SUM(OFFSET(I131,0,-MIN(I$84-1,$F140-1)):I131)/$F140 -> 0 | J140: =-SUM(OFFSET(J130,0,-MIN(J$84-1,$F140-1)):J130)/$F140-SUM(OFFSET(J131,0,-MIN(J$84-1,$F140-1)):J131)/$F140 -> 0 | K140: =-SUM(OFFSET(K130,0,-MIN(K$84-1,$F140-1)):K130)/$F140-SUM(OFFSET(K131,0,-MIN(K$84-1,$F140-1)):K131)/$F140 -> 0 | L140: =-SUM(OFFSET(L130,0,-MIN(L$84-1,$F140-1)):L130)/$F140-SUM(OFFSET(L131,0,-MIN(L$84-1,$F140-1)):L131)/$F140 -> 0 | M140: =-SUM(OFFSET(M130,0,-MIN(M$84-1,$F140-1)):M130)/$F140-SUM(OFFSET(M131,0,-MIN(M$84-1,$F140-1)):M131)/$F140 -> 0 | N140: =-SUM(OFFSET(N130,0,-MIN(N$84-1,$F140-1)):N130)/$F140-SUM(OFFSET(N131,0,-MIN(N$84-1,$F140-1)):N131)/$F140 -> 0 | O140: =-SUM(OFFSET(O130,0,-MIN(O$84-1,$F140-1)):O130)/$F140-SUM(OFFSET(O131,0,-MIN(O$84-1,$F140-1)):O131)/$F140 -> 0 | P140: =-SUM(OFFSET(P130,0,-MIN(P$84-1,$F140-1)):P130)/$F140-SUM(OFFSET(P131,0,-MIN(P$84-1,$F140-1)):P131)/$F140 -> 0 | Q140: =-SUM(OFFSET(Q130,0,-MIN(Q$84-1,$F140-1)):Q130)/$F140-SUM(OFFSET(Q131,0,-MIN(Q$84-1,$F140-1)):Q131)/$F140 -> 0 | R140: =-SUM(OFFSET(R130,0,-MIN(R$84-1,$F140-1)):R130)/$F140-SUM(OFFSET(R131,0,-MIN(R$84-1,$F140-1)):R131)/$F140 -> 0 | S140: =-SUM(OFFSET(S130,0,-MIN(S$84-1,$F140-1)):S130)/$F140-SUM(OFFSET(S131,0,-MIN(S$84-1,$F140-1)):S131)/$F140 -> 0 | T140: =-SUM(OFFSET(T130,0,-MIN(T$84-1,$F140-1)):T130)/$F140-SUM(OFFSET(T131,0,-MIN(T$84-1,$F140-1)):T131)/$F140 -> 0 | U140: =-SUM(OFFSET(U130,0,-MIN(U$84-1,$F140-1)):U130)/$F140-SUM(OFFSET(U131,0,-MIN(U$84-1,$F140-1)):U131)/$F140 -> 0 | V140: =-SUM(OFFSET(V130,0,-MIN(V$84-1,$F140-1)):V130)/$F140-SUM(OFFSET(V131,0,-MIN(V$84-1,$F140-1)):V131)/$F140 -> 0 | W140: =-SUM(OFFSET(W130,0,-MIN(W$84-1,$F140-1)):W130)/$F140-SUM(OFFSET(W131,0,-MIN(W$84-1,$F140-1)):W131)/$F140 -> 0 | X140: =-SUM(OFFSET(X130,0,-MIN(X$84-1,$F140-1)):X130)/$F140-SUM(OFFSET(X131,0,-MIN(X$84-1,$F140-1)):X131)/$F140 -> 0 | Y140: =-SUM(OFFSET(Y130,0,-MIN(Y$84-1,$F140-1)):Y130)/$F140-SUM(OFFSET(Y131,0,-MIN(Y$84-1,$F140-1)):Y131)/$F140 -> 0 | Z140: =-SUM(OFFSET(Z130,0,-MIN(Z$84-1,$F140-1)):Z130)/$F140-SUM(OFFSET(Z131,0,-MIN(Z$84-1,$F140-1)):Z131)/$F140 -> 0 | AA140: =-SUM(OFFSET(AA130,0,-MIN(AA$84-1,$F140-1)):AA130)/$F140-SUM(OFFSET(AA131,0,-MIN(AA$84-1,$F140-1)):AA131)/$F140 -> 0 | AB140: =-SUM(OFFSET(AB130,0,-MIN(AB$84-1,$F140-1)):AB130)/$F140-SUM(OFFSET(AB131,0,-MIN(AB$84-1,$F140-1)):AB131)/$F140 -> 0 | AC140: =-SUM(OFFSET(AC130,0,-MIN(AC$84-1,$F140-1)):AC130)/$F140-SUM(OFFSET(AC131,0,-MIN(AC$84-1,$F140-1)):AC131)/$F140 -> 0 | AD140: =-SUM(OFFSET(AD130,0,-MIN(AD$84-1,$F140-1)):AD130)/$F140-SUM(OFFSET(AD131,0,-MIN(AD$84-1,$F140-1)):AD131)/$F140 -> 0 | AE140: =-SUM(OFFSET(AE130,0,-MIN(AE$84-1,$F140-1)):AE130)/$F140-SUM(OFFSET(AE131,0,-MIN(AE$84-1,$F140-1)):AE131)/$F140 -> 0 | AF140: =-SUM(OFFSET(AF130,0,-MIN(AF$84-1,$F140-1)):AF130)/$F140-SUM(OFFSET(AF131,0,-MIN(AF$84-1,$F140-1)):AF131)/$F140 -> 0 | AG140: =-SUM(OFFSET(AG130,0,-MIN(AG$84-1,$F140-1)):AG130)/$F140-SUM(OFFSET(AG131,0,-MIN(AG$84-1,$F140-1)):AG131)/$F140 -> 0 | AH140: =-SUM(OFFSET(AH130,0,-MIN(AH$84-1,$F140-1)):AH130)/$F140-SUM(OFFSET(AH131,0,-MIN(AH$84-1,$F140-1)):AH131)/$F140 -> 0 | AI140: =-SUM(OFFSET(AI130,0,-MIN(AI$84-1,$F140-1)):AI130)/$F140-SUM(OFFSET(AI131,0,-MIN(AI$84-1,$F140-1)):AI131)/$F140 -> 0 | AJ140: =-SUM(OFFSET(AJ130,0,-MIN(AJ$84-1,$F140-1)):AJ130)/$F140-SUM(OFFSET(AJ131,0,-MIN(AJ$84-1,$F140-1)):AJ131)/$F140 -> 0 | AK140: =-SUM(OFFSET(AK130,0,-MIN(AK$84-1,$F140-1)):AK130)/$F140-SUM(OFFSET(AK131,0,-MIN(AK$84-1,$F140-1)):AK131)/$F140 -> 0 | AL140: =-SUM(OFFSET(AL130,0,-MIN(AL$84-1,$F140-1)):AL130)/$F140-SUM(OFFSET(AL131,0,-MIN(AL$84-1,$F140-1)):AL131)/$F140 -> 0 | AM140: =-SUM(OFFSET(AM130,0,-MIN(AM$84-1,$F140-1)):AM130)/$F140-SUM(OFFSET(AM131,0,-MIN(AM$84-1,$F140-1)):AM131)/$F140 -> 0 | AN140: =-SUM(OFFSET(AN130,0,-MIN(AN$84-1,$F140-1)):AN130)/$F140-SUM(OFFSET(AN131,0,-MIN(AN$84-1,$F140-1)):AN131)/$F140 -> 0 | AO140: =-SUM(OFFSET(AO130,0,-MIN(AO$84-1,$F140-1)):AO130)/$F140-SUM(OFFSET(AO131,0,-MIN(AO$84-1,$F140-1)):AO131)/$F140 -> 0 | AP140: =-SUM(OFFSET(AP130,0,-MIN(AP$84-1,$F140-1)):AP130)/$F140-SUM(OFFSET(AP131,0,-MIN(AP$84-1,$F140-1)):AP131)/$F140 -> 0 | AQ140: =-SUM(OFFSET(AQ130,0,-MIN(AQ$84-1,$F140-1)):AQ130)/$F140-SUM(OFFSET(AQ131,0,-MIN(AQ$84-1,$F140-1)):AQ131)/$F140 -> 0 | AR140: =-SUM(OFFSET(AR130,0,-MIN(AR$84-1,$F140-1)):AR130)/$F140-SUM(OFFSET(AR131,0,-MIN(AR$84-1,$F140-1)):AR131)/$F140 -> 0 | AS140: =-SUM(OFFSET(AS130,0,-MIN(AS$84-1,$F140-1)):AS130)/$F140-SUM(OFFSET(AS131,0,-MIN(AS$84-1,$F140-1)):AS131)/$F140 -> 0 | AT140: =-SUM(OFFSET(AT130,0,-MIN(AT$84-1,$F140-1)):AT130)/$F140-SUM(OFFSET(AT131,0,-MIN(AT$84-1,$F140-1)):AT131)/$F140 -> 0 | AU140: =-SUM(OFFSET(AU130,0,-MIN(AU$84-1,$F140-1)):AU130)/$F140-SUM(OFFSET(AU131,0,-MIN(AU$84-1,$F140-1)):AU131)/$F140 -> 0 | AV140: =-SUM(OFFSET(AV130,0,-MIN(AV$84-1,$F140-1)):AV130)/$F140-SUM(OFFSET(AV131,0,-MIN(AV$84-1,$F140-1)):AV131)/$F140 -> 0
I141: =SUM(I134:I140) -> -6,404 | J141: =SUM(J134:J140) -> -8,000 | K141: -9,591 | L141: -10,437 | M141: -10,782 | N141: -11,091 | O141: -11,091 | P141: -11,091 | Q141: -11,091 | R141: -11,091 | S141: -11,091 | T141: -11,091 | U141: -11,091 | V141: -11,091 | W141: -11,091 | X141: -11,091 | Y141: -11,091 | Z141: -11,091 | AA141: -11,091 | AB141: -11,091 | AC141: -11,091 | AD141: -8,252 | AE141: -6,618 | AF141: -5,027 | AG141: -4,159 | AH141: -3,799 | AI141: -3,490 | AJ141: -3,481 | AK141: -3,481 | AL141: -3,481 | AM141: -3,481 | AN141: -3,481 | AO141: -3,481 | AP141: -3,481 | AQ141: -3,481 | AR141: -3,481 | AS141: -3,481 | AT141: -3,481 | AU141: -3,481 | AV141: -3,481
B143: Net amortized balance | H143: =+H132 -> 215,909 | I143: =H143+I132+I141 -> 243,065 | J143: =I143+J132+J141 -> 268,526 | K143: 276,727 | L143: 273,555 | M143: 269,263 | N143: 258,172 | O143: 247,081 | P143: 235,990 | Q143: 224,899 | R143: 213,808 | S143: 202,717 | T143: 191,626 | U143: 180,535 | V143: 169,444 | W143: 158,353 | X143: 147,262 | Y143: 136,171 | Z143: 125,080 | AA143: 113,989 | AB143: 102,898 | AC143: 91,807 | AD143: 83,555 | AE143: 76,937 | AF143: 71,910 | AG143: 67,751 | AH143: 63,951 | AI143: 60,461 | AJ143: 56,980 | AK143: 53,500 | AL143: 50,019 | AM143: 46,538 | AN143: 43,057 | AO143: 39,576 | AP143: 36,095 | AQ143: 32,614 | AR143: 29,133 | AS143: 25,652 | AT143: 22,172 | AU143: 18,691 | AV143: 15,210
B144: Immobilisations nettes finales pour calcul de la TSP | I144: =H144+SUM(H123:H127)+I129+I130+I131+I141 -> 209,505 | J144: =I144+SUM(I123:I127)+J129+J130+J131+J141 -> 235,065 | K144: =J144+SUM(J123:J127)+K129+K130+K131+K141 -> 258,935 | L144: 266,290 | M144: 262,772 | N144: 258,172 | O144: 247,081 | P144: 235,990 | Q144: 224,899 | R144: 213,808 | S144: 202,717 | T144: 191,626 | U144: 180,535 | V144: 169,444 | W144: 158,353 | X144: 147,262 | Y144: 136,171 | Z144: 125,080 | AA144: 113,989 | AB144: 102,898 | AC144: 91,807 | AD144: 83,555 | AE144: 76,937 | AF144: 71,910 | AG144: 67,751 | AH144: 63,951 | AI144: 60,461 | AJ144: 56,980 | AK144: 53,500 | AL144: 50,019 | AM144: 46,538 | AN144: 43,057 | AO144: 39,576 | AP144: 36,095 | AQ144: 32,614 | AR144: 29,133 | AS144: 25,652 | AT144: 22,172 | AU144: 18,691 | AV144: 15,210
B146: ="FNACC - "&B35 -> FNACC - Main line - Total | H146: =H123 -> 154,445 | I146: =H146+I153 -> 149,812 | J146: =I146+J153+I123 -> 140,823 | K146: 132,374 | L146: 124,431 | M146: 116,966 | N146: 109,948 | O146: 103,351 | P146: 97,150 | Q146: 91,321 | R146: 85,841 | S146: 80,691 | T146: 75,850 | U146: 71,299 | V146: 67,021 | W146: 62,999 | X146: 59,219 | Y146: 55,666 | Z146: 52,326 | AA146: 49,187 | AB146: 46,236 | AC146: 43,461 | AD146: 40,854 | AE146: 38,402 | AF146: 36,098 | AG146: 33,932 | AH146: 31,896 | AI146: 29,983 | AJ146: 28,184 | AK146: 26,493 | AL146: 24,903 | AM146: 23,409 | AN146: 22,004 | AO146: 20,684 | AP146: 19,443 | AQ146: 18,277 | AR146: 17,180 | AS146: 16,149 | AT146: 15,180 | AU146: 14,269 | AV146: 13,413
B147: ="FNACC - "&B40 -> FNACC - Connection - Total | H147: =H124 -> 61,464 | I147: =H147+I154 -> 59,620 | J147: =I147+J154+I124 -> 88,595 | K147: 115,737 | L147: 126,050 | M147: 125,534 | N147: 124,298 | O147: 116,841 | P147: 109,830 | Q147: 103,240 | R147: 97,046 | S147: 91,223 | T147: 85,750 | U147: 80,605 | V147: 75,768 | W147: 71,222 | X147: 66,949 | Y147: 62,932 | Z147: 59,156 | AA147: 55,607 | AB147: 52,270 | AC147: 49,134 | AD147: 46,186 | AE147: 43,415 | AF147: 40,810 | AG147: 38,361 | AH147: 36,060 | AI147: 33,896 | AJ147: 31,862 | AK147: 29,951 | AL147: 28,154 | AM147: 26,464 | AN147: 24,877 | AO147: 23,384 | AP147: 21,981 | AQ147: 20,662 | AR147: 19,422 | AS147: 18,257 | AT147: 17,162 | AU147: 16,132 | AV147: 15,164
B148: ="FNACC - "&B41 -> FNACC - Compression | H148: =H125 -> 0 | I148: =H148+I155 -> 0 | J148: =I148+J155+I125 -> 0 | K148: 0 | L148: 0 | M148: 0 | N148: 0 | O148: 0 | P148: 0 | Q148: 0 | R148: 0 | S148: 0 | T148: 0 | U148: 0 | V148: 0 | W148: 0 | X148: 0 | Y148: 0 | Z148: 0 | AA148: 0 | AB148: 0 | AC148: 0 | AD148: 0 | AE148: 0 | AF148: 0 | AG148: 0 | AH148: 0 | AI148: 0 | AJ148: 0 | AK148: 0 | AL148: 0 | AM148: 0 | AN148: 0 | AO148: 0 | AP148: 0 | AQ148: 0 | AR148: 0 | AS148: 0 | AT148: 0 | AU148: 0 | AV148: 0
B149: ="FNACC - "&B42 -> FNACC - Servitude | H149: =H126*$E$156 -> 0 | I149: =H149+I156 -> 0 | J149: =I149+J156+$E$156*I126 -> 0 | K149: 0 | L149: 0 | M149: 0 | N149: 0 | O149: 0 | P149: 0 | Q149: 0 | R149: 0 | S149: 0 | T149: 0 | U149: 0 | V149: 0 | W149: 0 | X149: 0 | Y149: 0 | Z149: 0 | AA149: 0 | AB149: 0 | AC149: 0 | AD149: 0 | AE149: 0 | AF149: 0 | AG149: 0 | AH149: 0 | AI149: 0 | AJ149: 0 | AK149: 0 | AL149: 0 | AM149: 0 | AN149: 0 | AO149: 0 | AP149: 0 | AQ149: 0 | AR149: 0 | AS149: 0 | AT149: 0 | AU149: 0 | AV149: 0
B150: ="FNACC - "&B43 -> FNACC - Transport | H150: =H127 -> 0 | I150: =H150+I157 -> 0 | J150: =I150+J157+I127 -> 0 | K150: 0 | L150: 0 | M150: 0 | N150: 0 | O150: 0 | P150: 0 | Q150: 0 | R150: 0 | S150: 0 | T150: 0 | U150: 0 | V150: 0 | W150: 0 | X150: 0 | Y150: 0 | Z150: 0 | AA150: 0 | AB150: 0 | AC150: 0 | AD150: 0 | AE150: 0 | AF150: 0 | AG150: 0 | AH150: 0 | AI150: 0 | AJ150: 0 | AK150: 0 | AL150: 0 | AM150: 0 | AN150: 0 | AO150: 0 | AP150: 0 | AQ150: 0 | AR150: 0 | AS150: 0 | AT150: 0 | AU150: 0 | AV150: 0
H151: =SUM(H146:H150) -> 215,909 | I151: 209,432 | J151: 229,419 | K151: 248,110 | L151: 250,482 | M151: 242,500 | N151: 234,246 | O151: 220,191 | P151: 206,980 | Q151: 194,561 | R151: 182,887 | S151: 171,914 | T151: 161,599 | U151: 151,903 | V151: 142,789 | W151: 134,222 | X151: 126,168 | Y151: 118,598 | Z151: 111,482 | AA151: 104,794 | AB151: 98,506 | AC151: 92,596 | AD151: 87,040 | AE151: 81,817 | AF151: 76,908 | AG151: 72,294 | AH151: 67,956 | AI151: 63,879 | AJ151: 60,046 | AK151: 56,443 | AL151: 53,057 | AM151: 49,873 | AN151: 46,881 | AO151: 44,068 | AP151: 41,424 | AQ151: 38,939 | AR151: 36,602 | AS151: 34,406 | AT151: 32,342 | AU151: 30,401 | AV151: 28,577
B152: Fiscal depreciation | E152: Base d'imposition | F152: Rate
B153: ="Amort. fiscal - "&B35 -> Amort. fiscal - Main line - Total | E153: =IFERROR(IF(SEARCH("servit",$B$35,1),75%,100%),100%) -> 100.0% | F153: =E35 -> 6.0% | I153: =-H146*$F153/2 -> -4,633 | J153: =-I146*$F153-I123*$F153/2 -> -8,989 | K153: -8,449 | L153: -7,942 | M153: -7,466 | N153: -7,018 | O153: -6,597 | P153: -6,201 | Q153: -5,829 | R153: -5,479 | S153: -5,150 | T153: -4,841 | U153: -4,551 | V153: -4,278 | W153: -4,021 | X153: -3,780 | Y153: -3,553 | Z153: -3,340 | AA153: -3,140 | AB153: -2,951 | AC153: -2,774 | AD153: -2,608 | AE153: -2,451 | AF153: -2,304 | AG153: -2,166 | AH153: -2,036 | AI153: -1,914 | AJ153: -1,799 | AK153: -1,691 | AL153: -1,590 | AM153: -1,494 | AN153: -1,405 | AO153: -1,320 | AP153: -1,241 | AQ153: -1,167 | AR153: -1,097 | AS153: -1,031 | AT153: -969 | AU153: -911 | AV153: -856
B154: ="Amort. fiscal - "&B40 -> Amort. fiscal - Connection - Total | E154: =IFERROR(IF(SEARCH("servit",$B$40,1),75%,100%),100%) -> 100.0% | F154: =E40 -> 6.0% | I154: =-H147*$F154/2 -> -1,844 | J154: =-I147*$F154-I124*$F154/2 -> -4,584 | K154: -6,320 | L154: -7,478 | M154: -7,781 | N154: -7,727 | O154: -7,458 | P154: -7,010 | Q154: -6,590 | R154: -6,194 | S154: -5,823 | T154: -5,473 | U154: -5,145 | V154: -4,836 | W154: -4,546 | X154: -4,273 | Y154: -4,017 | Z154: -3,776 | AA154: -3,549 | AB154: -3,336 | AC154: -3,136 | AD154: -2,948 | AE154: -2,771 | AF154: -2,605 | AG154: -2,449 | AH154: -2,302 | AI154: -2,164 | AJ154: -2,034 | AK154: -1,912 | AL154: -1,797 | AM154: -1,689 | AN154: -1,588 | AO154: -1,493 | AP154: -1,403 | AQ154: -1,319 | AR154: -1,240 | AS154: -1,165 | AT154: -1,095 | AU154: -1,030 | AV154: -968
B155: ="Amort. fiscal - "&B41 -> Amort. fiscal - Compression | E155: =IFERROR(IF(SEARCH("servit",$B$41,1),75%,100%),100%) -> 100.0% | F155: =E41 -> 20.0% | I155: =-H148*$F155/2 -> 0 | J155: =-I148*$F155-I125*$F155/2 -> 0 | K155: 0 | L155: 0 | M155: 0 | N155: 0 | O155: 0 | P155: 0 | Q155: 0 | R155: 0 | S155: 0 | T155: 0 | U155: 0 | V155: 0 | W155: 0 | X155: 0 | Y155: 0 | Z155: 0 | AA155: 0 | AB155: 0 | AC155: 0 | AD155: 0 | AE155: 0 | AF155: 0 | AG155: 0 | AH155: 0 | AI155: 0 | AJ155: 0 | AK155: 0 | AL155: 0 | AM155: 0 | AN155: 0 | AO155: 0 | AP155: 0 | AQ155: 0 | AR155: 0 | AS155: 0 | AT155: 0 | AU155: 0 | AV155: 0
B156: ="Amort. fiscal - "&B42 -> Amort. fiscal - Servitude | E156: =IFERROR(IF(SEARCH("servit",$B$42,1),75%,100%),100%) -> 75.0% | F156: =E42 -> 7.0% | I156: =-H149*$F156/2 -> 0 | J156: =-I149*$F156-$E$156*I126*$F156/2 -> 0 | K156: 0 | L156: 0 | M156: 0 | N156: 0 | O156: 0 | P156: 0 | Q156: 0 | R156: 0 | S156: 0 | T156: 0 | U156: 0 | V156: 0 | W156: 0 | X156: 0 | Y156: 0 | Z156: 0 | AA156: 0 | AB156: 0 | AC156: 0 | AD156: 0 | AE156: 0 | AF156: 0 | AG156: 0 | AH156: 0 | AI156: 0 | AJ156: 0 | AK156: 0 | AL156: 0 | AM156: 0 | AN156: 0 | AO156: 0 | AP156: 0 | AQ156: 0 | AR156: 0 | AS156: 0 | AT156: 0 | AU156: 0 | AV156: 0
B157: ="Amort. fiscal - "&B43 -> Amort. fiscal - Transport | E157: =IFERROR(IF(SEARCH("servit",$B$43,1),75%,100%),100%) -> 100.0% | F157: =E43 -> 8.0% | I157: =-H150*$F157/2 -> 0 | J157: =-I150*$F157-I127*$F157/2 -> 0 | K157: 0 | L157: 0 | M157: 0 | N157: 0 | O157: 0 | P157: 0 | Q157: 0 | R157: 0 | S157: 0 | T157: 0 | U157: 0 | V157: 0 | W157: 0 | X157: 0 | Y157: 0 | Z157: 0 | AA157: 0 | AB157: 0 | AC157: 0 | AD157: 0 | AE157: 0 | AF157: 0 | AG157: 0 | AH157: 0 | AI157: 0 | AJ157: 0 | AK157: 0 | AL157: 0 | AM157: 0 | AN157: 0 | AO157: 0 | AP157: 0 | AQ157: 0 | AR157: 0 | AS157: 0 | AT157: 0 | AU157: 0 | AV157: 0
B158: Amort. fiscal - PRC 5 ans | F158: =E49 -> 5.0 ans | I158: =I139 -> 0 | J158: =J139 -> 0 | K158: 0 | L158: 0 | M158: 0 | N158: 0 | O158: 0 | P158: 0 | Q158: 0 | R158: 0 | S158: 0 | T158: 0 | U158: 0 | V158: 0 | W158: 0 | X158: 0 | Y158: 0 | Z158: 0 | AA158: 0 | AB158: 0 | AC158: 0 | AD158: 0 | AE158: 0 | AF158: 0 | AG158: 0 | AH158: 0 | AI158: 0 | AJ158: 0 | AK158: 0 | AL158: 0 | AM158: 0 | AN158: 0 | AO158: 0 | AP158: 0 | AQ158: 0 | AR158: 0 | AS158: 0 | AT158: 0 | AU158: 0 | AV158: 0
B159: Amort. fiscal - PRC 10 ans | F159: =E50 -> 10.0 ans | I159: =I140 -> 0 | J159: 0 | K159: 0 | L159: 0 | M159: 0 | N159: 0 | O159: 0 | P159: 0 | Q159: 0 | R159: 0 | S159: 0 | T159: 0 | U159: 0 | V159: 0 | W159: 0 | X159: 0 | Y159: 0 | Z159: 0 | AA159: 0 | AB159: 0 | AC159: 0 | AD159: 0 | AE159: 0 | AF159: 0 | AG159: 0 | AH159: 0 | AI159: 0 | AJ159: 0 | AK159: 0 | AL159: 0 | AM159: 0 | AN159: 0 | AO159: 0 | AP159: 0 | AQ159: 0 | AR159: 0 | AS159: 0 | AT159: 0 | AU159: 0 | AV159: 0
I160: =SUM(I153:I159) -> -6,477 | J160: =SUM(J153:J159) -> -13,573 | K160: -14,769 | L160: -15,420 | M160: -15,247 | N160: -14,745 | O160: -14,055 | P160: -13,211 | Q160: -12,419 | R160: -11,674 | S160: -10,973 | T160: -10,315 | U160: -9,696 | V160: -9,114 | W160: -8,567 | X160: -8,053 | Y160: -7,570 | Z160: -7,116 | AA160: -6,689 | AB160: -6,288 | AC160: -5,910 | AD160: -5,556 | AE160: -5,222 | AF160: -4,909 | AG160: -4,615 | AH160: -4,338 | AI160: -4,077 | AJ160: -3,833 | AK160: -3,603 | AL160: -3,387 | AM160: -3,183 | AN160: -2,992 | AO160: -2,813 | AP160: -2,644 | AQ160: -2,485 | AR160: -2,336 | AS160: -2,196 | AT160: -2,064 | AU160: -1,941 | AV160: -1,824
A162: 2.4 | B162: Tax | I162: =$I$22 -> 2018 | J162: =I162+1 -> 2019 | K162: =J162+1 -> 2020 | L162: 2021 | M162: 2022 | N162: 2023 | O162: 2024 | P162: 2025 | Q162: 2026 | R162: 2027 | S162: 2028 | T162: 2029 | U162: 2030 | V162: 2031 | W162: 2032 | X162: 2033 | Y162: 2034 | Z162: 2035 | AA162: 2036 | AB162: 2037 | AC162: 2038 | AD162: 2039 | AE162: 2040 | AF162: 2041 | AG162: 2042 | AH162: 2043 | AI162: 2044 | AJ162: 2045 | AK162: 2046 | AL162: 2047 | AM162: 2048 | AN162: 2049 | AO162: 2050 | AP162: 2051 | AQ162: 2052 | AR162: 2053 | AS162: 2054 | AT162: 2055 | AU162: 2056 | AV162: 2057
B164: Net income | I164: =$F$80*I103 -> 7,992 | J164: 8,982 | K164: 9,909 | L164: 10,201 | M164: 10,075 | N164: 9,908 | O164: 9,492 | P164: 9,075 | Q164: 8,658 | R164: 8,242 | S164: 7,825 | T164: 7,408 | U164: 6,991 | V164: 6,575 | W164: 6,158 | X164: 5,741 | Y164: 5,325 | Z164: 4,908 | AA164: 4,491 | AB164: 4,074 | AC164: 3,658 | AD164: 3,294 | AE164: 3,015 | AF164: 2,796 | AG164: 2,624 | AH164: 2,474 | AI164: 2,337 | AJ164: 2,206 | AK164: 2,075 | AL164: 1,945 | AM164: 1,814 | AN164: 1,683 | AO164: 1,552 | AP164: 1,422 | AQ164: 1,291 | AR164: 1,160 | AS164: 1,029 | AT164: 898 | AU164: 768 | AV164: 637
B166: Accounting depreciation | I166: =+I141 -> -6,404 | J166: -8,000 | K166: -9,591 | L166: -10,437 | M166: -10,782 | N166: -11,091 | O166: -11,091 | P166: -11,091 | Q166: -11,091 | R166: -11,091 | S166: -11,091 | T166: -11,091 | U166: -11,091 | V166: -11,091 | W166: -11,091 | X166: -11,091 | Y166: -11,091 | Z166: -11,091 | AA166: -11,091 | AB166: -11,091 | AC166: -11,091 | AD166: -8,252 | AE166: -6,618 | AF166: -5,027 | AG166: -4,159 | AH166: -3,799 | AI166: -3,490 | AJ166: -3,481 | AK166: -3,481 | AL166: -3,481 | AM166: -3,481 | AN166: -3,481 | AO166: -3,481 | AP166: -3,481 | AQ166: -3,481 | AR166: -3,481 | AS166: -3,481 | AT166: -3,481 | AU166: -3,481 | AV166: -3,481
B167: Fiscal depreciation | I167: =I160 -> -6,477 | J167: -13,573 | K167: -14,769 | L167: -15,420 | M167: -15,247 | N167: -14,745 | O167: -14,055 | P167: -13,211 | Q167: -12,419 | R167: -11,674 | S167: -10,973 | T167: -10,315 | U167: -9,696 | V167: -9,114 | W167: -8,567 | X167: -8,053 | Y167: -7,570 | Z167: -7,116 | AA167: -6,689 | AB167: -6,288 | AC167: -5,910 | AD167: -5,556 | AE167: -5,222 | AF167: -4,909 | AG167: -4,615 | AH167: -4,338 | AI167: -4,077 | AJ167: -3,833 | AK167: -3,603 | AL167: -3,387 | AM167: -3,183 | AN167: -2,992 | AO167: -2,813 | AP167: -2,644 | AQ167: -2,485 | AR167: -2,336 | AS167: -2,196 | AT167: -2,064 | AU167: -1,941 | AV167: -1,824
B169: 1 - Tax rate | I169: =1-$F$72 -> 73.10% | J169: =I169 -> 73.10% | K169: =J169 -> 73.10% | L169: =K169 -> 73.10% | M169: 73.10% | N169: 73.10% | O169: 73.10% | P169: 73.10% | Q169: 73.10% | R169: 73.10% | S169: 73.10% | T169: 73.10% | U169: 73.10% | V169: 73.10% | W169: 73.10% | X169: 73.10% | Y169: 73.10% | Z169: 73.10% | AA169: 73.10% | AB169: 73.10% | AC169: 73.10% | AD169: 73.10% | AE169: 73.10% | AF169: 73.10% | AG169: 73.10% | AH169: 73.10% | AI169: 73.10% | AJ169: 73.10% | AK169: 73.10% | AL169: 73.10% | AM169: 73.10% | AN169: 73.10% | AO169: 73.10% | AP169: 73.10% | AQ169: 73.10% | AR169: 73.10% | AS169: 73.10% | AT169: 73.10% | AU169: 73.10% | AV169: 73.10%
B171: Tax (gross up) | I171: =((I164-I166+I167)/I169)-(I164-I166+I167) -> 2,914 | J171: =((J164-J166+J167)/J169)-(J164-J166+J167) -> 1,255 | K171: =((K164-K166+K167)/K169)-(K164-K166+K167) -> 1,741 | L171: 1,920 | M171: 2,065 | N171: 2,302 | O171: 2,402 | P171: 2,559 | Q171: 2,698 | R171: 2,818 | S171: 2,923 | T171: 3,012 | U171: 3,086 | V171: 3,147 | W171: 3,195 | X171: 3,231 | Y171: 3,255 | Z171: 3,269 | AA171: 3,273 | AB171: 3,267 | AC171: 3,252 | AD171: 2,205 | AE171: 1,623 | AF171: 1,072 | AG171: 798 | AH171: 712 | AI171: 644 | AJ171: 682 | AK171: 719 | AL171: 750 | AM171: 777 | AN171: 799 | AO171: 817 | AP171: 831 | AQ171: 841 | AR171: 848 | AS171: 852 | AT171: 852 | AU171: 849 | AV171: 844
B172: Tax (without liability) | I172: =(1-I$169)*(I27-I88-I89-I90+I167) -> -2,056 | J172: -2,508 | K172: -1,292 | L172: -65 | M172: 806 | N172: 960 | O172: 1,190 | P172: 1,461 | Q172: 1,719 | R172: 1,965 | S172: 2,198 | T172: 2,420 | U172: 2,631 | V172: 2,832 | W172: 3,024 | X172: 3,207 | Y172: 3,382 | Z172: 3,549 | AA172: 3,708 | AB172: 3,861 | AC172: 4,007 | AD172: 4,136 | AE172: 4,252 | AF172: 4,357 | AG172: 4,453 | AH172: 4,543 | AI172: 4,627 | AJ172: 4,707 | AK172: 4,783 | AL172: 4,855 | AM172: 4,923 | AN172: 4,989 | AO172: 5,051 | AP172: 5,111 | AQ172: 5,167 | AR172: 5,222 | AS172: 5,273 | AT172: 5,323 | AU172: 5,370 | AV172: 5,416
B174: États financiers pro forma
A176: Section 3 - Financial statement | H176: 0 | I176: 1 | J176: 2 | K176: 3 | L176: 4 | M176: 5 | N176: 6 | O176: 7 | P176: 8 | Q176: 9 | R176: 10 | S176: 11 | T176: 12 | U176: 13 | V176: 14 | W176: 15 | X176: 16 | Y176: 17 | Z176: 18 | AA176: 19 | AB176: 20 | AC176: 21 | AD176: 22 | AE176: 23 | AF176: 24 | AG176: 25 | AH176: 26 | AI176: 27 | AJ176: 28 | AK176: 29 | AL176: 30 | AM176: 31 | AN176: 32 | AO176: 33 | AP176: 34 | AQ176: 35 | AR176: 36 | AS176: 37 | AT176: 38 | AU176: 39 | AV176: 40
A178: 3.1 | B178: Income statement | I178: =$I$22 -> 2018 | J178: =+I178+1 -> 2019 | K178: 2020 | L178: 2021 | M178: 2022 | N178: 2023 | O178: 2024 | P178: 2025 | Q178: 2026 | R178: 2027 | S178: 2028 | T178: 2029 | U178: 2030 | V178: 2031 | W178: 2032 | X178: 2033 | Y178: 2034 | Z178: 2035 | AA178: 2036 | AB178: 2037 | AC178: 2038 | AD178: 2039 | AE178: 2040 | AF178: 2041 | AG178: 2042 | AH178: 2043 | AI178: 2044 | AJ178: 2045 | AK178: 2046 | AL178: 2047 | AM178: 2048 | AN178: 2049 | AO178: 2050 | AP178: 2051 | AQ178: 2052 | AR178: 2053 | AS178: 2054 | AT178: 2055 | AU178: 2056 | AV178: 2057
B180: Income of the project | E180: Rev. requis ou Rev. tarifaire ? | F180: Revenu requis | I180: =I27 -> 4,343 | J180: 12,834 | K180: 21,443 | L180: 28,356 | M180: 32,319 | N180: 32,319 | O180: 32,319 | P180: 32,319 | Q180: 32,319 | R180: 32,319 | S180: 32,319 | T180: 32,319 | U180: 32,319 | V180: 32,319 | W180: 32,319 | X180: 32,319 | Y180: 32,319 | Z180: 32,319 | AA180: 32,319 | AB180: 32,319 | AC180: 32,319 | AD180: 32,319 | AE180: 32,319 | AF180: 32,319 | AG180: 32,319 | AH180: 32,319 | AI180: 32,319 | AJ180: 32,319 | AK180: 32,319 | AL180: 32,319 | AM180: 32,319 | AN180: 32,319 | AO180: 32,319 | AP180: 32,319 | AQ180: 32,319 | AR180: 32,319 | AS180: 32,319 | AT180: 32,319 | AU180: 32,319 | AV180: 32,319
B181: Revenu requirement needed | I181: =I94-I180 -> 21,715 | J181: 17,628 | K181: 15,292 | L181: 11,513 | M181: 8,764 | N181: 9,005 | O181: 8,354 | P181: 7,759 | Q181: 7,145 | R181: 6,514 | S181: 5,867 | T181: 5,204 | U181: 4,526 | V181: 3,835 | W181: 3,131 | X181: 2,415 | Y181: 1,687 | Z181: 949 | AA181: 201 | AB181: -557 | AC181: -1,323 | AD181: -5,845 | AE181: -8,552 | AF181: -11,077 | AG181: -12,524 | AH181: -13,236 | AI181: -13,859 | AJ181: -14,066 | AK181: -14,265 | AL181: -14,470 | AM181: -14,679 | AN181: -14,893 | AO181: -15,111 | AP181: -15,333 | AQ181: -15,559 | AR181: -15,788 | AS181: -16,021 | AT181: -16,256 | AU181: -16,495 | AV181: -16,736
B182: OPEX | I182: =-(I88+I89+I90) -> -5,510 | J182: -8,585 | K182: -11,478 | L182: -13,177 | M182: -14,076 | N182: -14,007 | O182: -13,841 | P182: -13,675 | Q182: -13,508 | R182: -13,342 | S182: -13,176 | T182: -13,009 | U182: -12,843 | V182: -12,677 | W182: -12,510 | X182: -12,344 | Y182: -12,177 | Z182: -12,011 | AA182: -11,845 | AB182: -11,678 | AC182: -11,512 | AD182: -11,388 | AE182: -11,289 | AF182: -11,214 | AG182: -11,151 | AH182: -11,094 | AI182: -11,042 | AJ182: -10,990 | AK182: -10,937 | AL182: -10,885 | AM182: -10,833 | AN182: -10,781 | AO182: -10,729 | AP182: -10,676 | AQ182: -10,624 | AR182: -10,572 | AS182: -10,520 | AT182: -10,467 | AU182: -10,415 | AV182: -10,363
B183: EBITDA | I183: =+I180+I181+I182 -> 20,549 | J183: =+J180+J181+J182 -> 21,877 | K183: 25,257 | L183: 26,693 | M183: =+M180+M181+M182 -> 27,006 | N183: =+N180+N181+N182 -> 27,317 | O183: =+O180+O181+O182 -> 26,832 | P183: =+P180+P181+P182 -> 26,403 | Q183: =+Q180+Q181+Q182 -> 25,956 | R183: =+R180+R181+R182 -> 25,491 | S183: =+S180+S181+S182 -> 25,010 | T183: =+T180+T181+T182 -> 24,513 | U183: =+U180+U181+U182 -> 24,002 | V183: =+V180+V181+V182 -> 23,477 | W183: =+W180+W181+W182 -> 22,940 | X183: =+X180+X181+X182 -> 22,390 | Y183: =+Y180+Y181+Y182 -> 21,829 | Z183: =+Z180+Z181+Z182 -> 21,257 | AA183: =+AA180+AA181+AA182 -> 20,675 | AB183: =+AB180+AB181+AB182 -> 20,084 | AC183: =+AC180+AC181+AC182 -> 19,484 | AD183: =+AD180+AD181+AD182 -> 15,086 | AE183: =+AE180+AE181+AE182 -> 12,478 | AF183: =+AF180+AF181+AF182 -> 10,029 | AG183: =+AG180+AG181+AG182 -> 8,644 | AH183: =+AH180+AH181+AH182 -> 7,989 | AI183: =+AI180+AI181+AI182 -> 7,418 | AJ183: =+AJ180+AJ181+AJ182 -> 7,264 | AK183: =+AK180+AK181+AK182 -> 7,116 | AL183: =+AL180+AL181+AL182 -> 6,964 | AM183: =+AM180+AM181+AM182 -> 6,807 | AN183: =+AN180+AN181+AN182 -> 6,645 | AO183: =+AO180+AO181+AO182 -> 6,479 | AP183: =+AP180+AP181+AP182 -> 6,310 | AQ183: =+AQ180+AQ181+AQ182 -> 6,136 | AR183: =+AR180+AR181+AR182 -> 5,959 | AS183: =+AS180+AS181+AS182 -> 5,779 | AT183: =+AT180+AT181+AT182 -> 5,595 | AU183: =+AU180+AU181+AU182 -> 5,409 | AV183: =+AV180+AV181+AV182 -> 5,220
B184: Depreciation | I184: =-I91 -> -6,404 | J184: -8,000 | K184: -9,591 | L184: -10,437 | M184: -10,782 | N184: -11,091 | O184: -11,091 | P184: -11,091 | Q184: -11,091 | R184: -11,091 | S184: -11,091 | T184: -11,091 | U184: -11,091 | V184: -11,091 | W184: -11,091 | X184: -11,091 | Y184: -11,091 | Z184: -11,091 | AA184: -11,091 | AB184: -11,091 | AC184: -11,091 | AD184: -8,252 | AE184: -6,618 | AF184: -5,027 | AG184: -4,159 | AH184: -3,799 | AI184: -3,490 | AJ184: -3,481 | AK184: -3,481 | AL184: -3,481 | AM184: -3,481 | AN184: -3,481 | AO184: -3,481 | AP184: -3,481 | AQ184: -3,481 | AR184: -3,481 | AS184: -3,481 | AT184: -3,481 | AU184: -3,481 | AV184: -3,481
B185: EBIT | I185: =+I183+I184 -> 14,145 | J185: =+J183+J184 -> 13,877 | K185: 15,666 | L185: =+L183+L184 -> 16,256 | M185: =+M183+M184 -> 16,224 | N185: =+N183+N184 -> 16,226 | O185: =+O183+O184 -> 15,741 | P185: =+P183+P184 -> 15,312 | Q185: =+Q183+Q184 -> 14,865 | R185: =+R183+R184 -> 14,400 | S185: =+S183+S184 -> 13,919 | T185: =+T183+T184 -> 13,422 | U185: =+U183+U184 -> 12,911 | V185: =+V183+V184 -> 12,386 | W185: =+W183+W184 -> 11,849 | X185: =+X183+X184 -> 11,299 | Y185: =+Y183+Y184 -> 10,738 | Z185: =+Z183+Z184 -> 10,166 | AA185: =+AA183+AA184 -> 9,584 | AB185: =+AB183+AB184 -> 8,993 | AC185: =+AC183+AC184 -> 8,393 | AD185: =+AD183+AD184 -> 6,834 | AE185: =+AE183+AE184 -> 5,860 | AF185: =+AF183+AF184 -> 5,002 | AG185: =+AG183+AG184 -> 4,485 | AH185: =+AH183+AH184 -> 4,189 | AI185: =+AI183+AI184 -> 3,928 | AJ185: =+AJ183+AJ184 -> 3,783 | AK185: =+AK183+AK184 -> 3,636 | AL185: =+AL183+AL184 -> 3,483 | AM185: =+AM183+AM184 -> 3,326 | AN185: =+AN183+AN184 -> 3,164 | AO185: =+AO183+AO184 -> 2,999 | AP185: =+AP183+AP184 -> 2,829 | AQ185: =+AQ183+AQ184 -> 2,655 | AR185: =+AR183+AR184 -> 2,478 | AS185: =+AS183+AS184 -> 2,298 | AT185: =+AT183+AT184 -> 2,114 | AU185: =+AU183+AU184 -> 1,928 | AV185: =+AV183+AV184 -> 1,739
B186: Interests on the liability | I186: =-$F$79*$E$79*I105 -> -3,239 | J186: -3,640 | K186: -4,016 | L186: -4,135 | M186: -4,084 | N186: -4,016 | O186: -3,847 | P186: -3,678 | Q186: -3,509 | R186: -3,340 | S186: -3,171 | T186: -3,003 | U186: -2,834 | V186: -2,665 | W186: -2,496 | X186: -2,327 | Y186: -2,158 | Z186: -1,989 | AA186: -1,820 | AB186: -1,651 | AC186: -1,482 | AD186: -1,335 | AE186: -1,222 | AF186: -1,133 | AG186: -1,063 | AH186: -1,003 | AI186: -947 | AJ186: -894 | AK186: -841 | AL186: -788 | AM186: -735 | AN186: -682 | AO186: -629 | AP186: -576 | AQ186: -523 | AR186: -470 | AS186: -417 | AT186: -364 | AU186: -311 | AV186: -258
B187: Tax | I187: =-I171 -> -2,914 | J187: =-J171 -> -1,255 | K187: -1,741 | L187: =-L171 -> -1,920 | M187: -2,065 | N187: -2,302 | O187: -2,402 | P187: -2,559 | Q187: -2,698 | R187: -2,818 | S187: -2,923 | T187: -3,012 | U187: -3,086 | V187: -3,147 | W187: -3,195 | X187: -3,231 | Y187: -3,255 | Z187: -3,269 | AA187: -3,273 | AB187: -3,267 | AC187: -3,252 | AD187: -2,205 | AE187: -1,623 | AF187: -1,072 | AG187: -798 | AH187: -712 | AI187: -644 | AJ187: -682 | AK187: -719 | AL187: -750 | AM187: -777 | AN187: -799 | AO187: -817 | AP187: -831 | AQ187: -841 | AR187: -848 | AS187: -852 | AT187: -852 | AU187: -849 | AV187: -844
B188: Net income | I188: =+I185+I186+I187 -> 7,992 | J188: =+J185+J186+J187 -> 8,982 | K188: 9,909 | L188: =+L185+L186+L187 -> 10,201 | M188: =+M185+M186+M187 -> 10,075 | N188: =+N185+N186+N187 -> 9,908 | O188: =+O185+O186+O187 -> 9,492 | P188: =+P185+P186+P187 -> 9,075 | Q188: =+Q185+Q186+Q187 -> 8,658 | R188: =+R185+R186+R187 -> 8,242 | S188: =+S185+S186+S187 -> 7,825 | T188: =+T185+T186+T187 -> 7,408 | U188: =+U185+U186+U187 -> 6,991 | V188: =+V185+V186+V187 -> 6,575 | W188: =+W185+W186+W187 -> 6,158 | X188: =+X185+X186+X187 -> 5,741 | Y188: =+Y185+Y186+Y187 -> 5,325 | Z188: =+Z185+Z186+Z187 -> 4,908 | AA188: =+AA185+AA186+AA187 -> 4,491 | AB188: =+AB185+AB186+AB187 -> 4,074 | AC188: =+AC185+AC186+AC187 -> 3,658 | AD188: =+AD185+AD186+AD187 -> 3,294 | AE188: =+AE185+AE186+AE187 -> 3,015 | AF188: =+AF185+AF186+AF187 -> 2,796 | AG188: =+AG185+AG186+AG187 -> 2,624 | AH188: =+AH185+AH186+AH187 -> 2,474 | AI188: =+AI185+AI186+AI187 -> 2,337 | AJ188: =+AJ185+AJ186+AJ187 -> 2,206 | AK188: =+AK185+AK186+AK187 -> 2,075 | AL188: =+AL185+AL186+AL187 -> 1,945 | AM188: =+AM185+AM186+AM187 -> 1,814 | AN188: =+AN185+AN186+AN187 -> 1,683 | AO188: =+AO185+AO186+AO187 -> 1,552 | AP188: =+AP185+AP186+AP187 -> 1,422 | AQ188: =+AQ185+AQ186+AQ187 -> 1,291 | AR188: =+AR185+AR186+AR187 -> 1,160 | AS188: =+AS185+AS186+AS187 -> 1,029 | AT188: =+AT185+AT186+AT187 -> 898 | AU188: =+AU185+AU186+AU187 -> 768 | AV188: =+AV185+AV186+AV187 -> 637
B190: ROE -Proof | I190: =IFERROR(I188/(I105*$E$80),"-") -> 8.17% | J190: 8.17% | K190: 8.17% | L190: 8.17% | M190: 8.17% | N190: 8.17% | O190: 8.17% | P190: 8.17% | Q190: 8.17% | R190: 8.17% | S190: 8.17% | T190: 8.17% | U190: 8.17% | V190: 8.17% | W190: 8.17% | X190: 8.17% | Y190: 8.17% | Z190: 8.17% | AA190: 8.17% | AB190: 8.17% | AC190: 8.17% | AD190: 8.17% | AE190: 8.17% | AF190: 8.17% | AG190: 8.17% | AH190: 8.17% | AI190: 8.17% | AJ190: 8.17% | AK190: 8.17% | AL190: 8.17% | AM190: 8.17% | AN190: 8.17% | AO190: 8.17% | AP190: 8.17% | AQ190: 8.17% | AR190: 8.17% | AS190: 8.17% | AT190: 8.17% | AU190: 8.17% | AV190: 8.17%
A192: 3.2 | B192: Balance sheet | H192: =I192-1 -> 2017 | I192: =$I$22 -> 2018 | J192: =I192+1 -> 2019 | K192: =J192+1 -> 2020 | L192: 2021 | M192: 2022 | N192: 2023 | O192: 2024 | P192: 2025 | Q192: 2026 | R192: 2027 | S192: 2028 | T192: 2029 | U192: 2030 | V192: 2031 | W192: 2032 | X192: 2033 | Y192: 2034 | Z192: 2035 | AA192: 2036 | AB192: 2037 | AC192: 2038 | AD192: 2039 | AE192: 2040 | AF192: 2041 | AG192: 2042 | AH192: 2043 | AI192: 2044 | AJ192: 2045 | AK192: 2046 | AL192: 2047 | AM192: 2048 | AN192: 2049 | AO192: 2050 | AP192: 2051 | AQ192: 2052 | AR192: 2053 | AS192: 2054 | AT192: 2055 | AU192: 2056 | AV192: 2057
B194: Assets
B195: Cash | H195: 0 | I195: =H195+I227 -> 0 | J195: 0 | K195: 0 | L195: 0 | M195: 0 | N195: 0 | O195: 0 | P195: 0 | Q195: 0 | R195: 0 | S195: 0 | T195: 0 | U195: 0 | V195: 0 | W195: 0 | X195: 0 | Y195: 0 | Z195: 0 | AA195: 0 | AB195: 0 | AC195: 0 | AD195: 0 | AE195: 0 | AF195: 0 | AG195: 0 | AH195: 0 | AI195: 0 | AJ195: 0 | AK195: 0 | AL195: 0 | AM195: 0 | AN195: 0 | AO195: 0 | AP195: 0 | AQ195: 0 | AR195: 0 | AS195: 0 | AT195: 0 | AU195: 0 | AV195: 0
B196: Investments | H196: =$H143 -> 215,909 | I196: =H196+I132 -> 249,468 | J196: 282,929 | K196: 300,721 | L196: 307,986 | M196: 314,477 | N196: 314,477 | O196: 314,477 | P196: 314,477 | Q196: 314,477 | R196: 314,477 | S196: 314,477 | T196: 314,477 | U196: 314,477 | V196: 314,477 | W196: 314,477 | X196: 314,477 | Y196: 314,477 | Z196: 314,477 | AA196: 314,477 | AB196: 314,477 | AC196: 314,477 | AD196: 314,477 | AE196: 314,477 | AF196: 314,477 | AG196: 314,477 | AH196: 314,477 | AI196: 314,477 | AJ196: 314,477 | AK196: 314,477 | AL196: 314,477 | AM196: 314,477 | AN196: 314,477 | AO196: 314,477 | AP196: 314,477 | AQ196: 314,477 | AR196: 314,477 | AS196: 314,477 | AT196: 314,477 | AU196: 314,477 | AV196: 314,477
B197: Cumulative depreciation | H197: 0 | I197: =+H197+I184 -> -6,404 | J197: =+I197+J184 -> -14,403 | K197: -23,994 | L197: -34,431 | M197: -45,213 | N197: -56,304 | O197: -67,395 | P197: -78,486 | Q197: -89,578 | R197: -100,669 | S197: -111,760 | T197: -122,851 | U197: -133,942 | V197: -145,033 | W197: -156,124 | X197: -167,215 | Y197: -178,306 | Z197: -189,397 | AA197: -200,488 | AB197: -211,579 | AC197: -222,670 | AD197: -230,922 | AE197: -237,540 | AF197: -242,567 | AG197: -246,726 | AH197: -250,526 | AI197: -254,016 | AJ197: -257,496 | AK197: -260,977 | AL197: -264,458 | AM197: -267,939 | AN197: -271,420 | AO197: -274,901 | AP197: -278,382 | AQ197: -281,863 | AR197: -285,344 | AS197: -288,824 | AT197: -292,305 | AU197: -295,786 | AV197: -299,267
B198: Net investments | H198: =+H196+H197 -> 215,909 | I198: =+I196+I197 -> 243,065 | J198: 268,526 | K198: 276,727 | L198: 273,555 | M198: 269,263 | N198: 258,172 | O198: 247,081 | P198: 235,990 | Q198: 224,899 | R198: 213,808 | S198: 202,717 | T198: 191,626 | U198: 180,535 | V198: 169,444 | W198: 158,353 | X198: 147,262 | Y198: 136,171 | Z198: 125,080 | AA198: 113,989 | AB198: 102,898 | AC198: 91,807 | AD198: 83,555 | AE198: 76,937 | AF198: 71,910 | AG198: 67,751 | AH198: 63,951 | AI198: 60,461 | AJ198: 56,980 | AK198: 53,500 | AL198: 50,019 | AM198: 46,538 | AN198: 43,057 | AO198: 39,576 | AP198: 36,095 | AQ198: 32,614 | AR198: 29,133 | AS198: 25,652 | AT198: 22,172 | AU198: 18,691 | AV198: 15,210
B200: Total - Assets | H200: =+H195+H198 -> 215,909 | I200: 243,065 | J200: 268,526 | K200: 276,727 | L200: 273,555 | M200: 269,263 | N200: 258,172 | O200: 247,081 | P200: 235,990 | Q200: 224,899 | R200: 213,808 | S200: 202,717 | T200: 191,626 | U200: 180,535 | V200: 169,444 | W200: 158,353 | X200: 147,262 | Y200: 136,171 | Z200: 125,080 | AA200: 113,989 | AB200: 102,898 | AC200: 91,807 | AD200: 83,555 | AE200: 76,937 | AF200: 71,910 | AG200: 67,751 | AH200: 63,951 | AI200: 60,461 | AJ200: 56,980 | AK200: 53,500 | AL200: 50,019 | AM200: 46,538 | AN200: 43,057 | AO200: 39,576 | AP200: 36,095 | AQ200: 32,614 | AR200: 29,133 | AS200: 25,652 | AT200: 22,172 | AU200: 18,691 | AV200: 15,210
B202: Liability and equity
B203: Liability | H203: =$E$79*(H196+H197) -> 116,591 | I203: 131,255 | J203: 145,004 | K203: 149,432 | L203: 147,720 | M203: 145,402 | N203: 139,413 | O203: 133,424 | P203: 127,435 | Q203: 121,446 | R203: 115,456 | S203: 109,467 | T203: 103,478 | U203: 97,489 | V203: 91,500 | W203: 85,511 | X203: 79,522 | Y203: 73,532 | Z203: 67,543 | AA203: 61,554 | AB203: 55,565 | AC203: 49,576 | AD203: 45,120 | AE203: 41,546 | AF203: 38,831 | AG203: 36,585 | AH203: 34,534 | AI203: 32,649 | AJ203: 30,769 | AK203: 28,890 | AL203: 27,010 | AM203: 25,130 | AN203: 23,251 | AO203: 21,371 | AP203: 19,491 | AQ203: 17,612 | AR203: 15,732 | AS203: 13,852 | AT203: 11,973 | AU203: 10,093 | AV203: 8,213
B204: Equity | H204: =$E$80*(H196+H197) -> 99,318 | I204: =H204+I188+I224 -> 111,810 | J204: =I204+J188+J224 -> 123,522 | K204: 127,294 | L204: 125,835 | M204: 123,861 | N204: 118,759 | O204: 113,657 | P204: 108,556 | Q204: 103,454 | R204: 98,352 | S204: 93,250 | T204: 88,148 | U204: 83,046 | V204: 77,944 | W204: 72,842 | X204: 67,741 | Y204: 62,639 | Z204: 57,537 | AA204: 52,435 | AB204: 47,333 | AC204: 42,231 | AD204: 38,435 | AE204: 35,391 | AF204: 33,079 | AG204: 31,165 | AH204: 29,418 | AI204: 27,812 | AJ204: 26,211 | AK204: 24,610 | AL204: 23,009 | AM204: 21,407 | AN204: 19,806 | AO204: 18,205 | AP204: 16,604 | AQ204: 15,003 | AR204: 13,401 | AS204: 11,800 | AT204: 10,199 | AU204: 8,598 | AV204: 6,996
B206: Total - Liability and equity | H206: =+H203+H204 -> 215,909 | I206: =+I203+I204 -> 243,065 | J206: =+J203+J204 -> 268,526 | K206: 276,727 | L206: 273,555 | M206: 269,263 | N206: 258,172 | O206: 247,081 | P206: 235,990 | Q206: 224,899 | R206: 213,808 | S206: 202,717 | T206: 191,626 | U206: 180,535 | V206: 169,444 | W206: 158,353 | X206: 147,262 | Y206: 136,171 | Z206: 125,080 | AA206: 113,989 | AB206: 102,898 | AC206: 91,807 | AD206: 83,555 | AE206: 76,937 | AF206: 71,910 | AG206: 67,751 | AH206: 63,951 | AI206: 60,461 | AJ206: 56,980 | AK206: 53,500 | AL206: 50,019 | AM206: 46,538 | AN206: 43,057 | AO206: 39,576 | AP206: 36,095 | AQ206: 32,614 | AR206: 29,133 | AS206: 25,652 | AT206: 22,172 | AU206: 18,691 | AV206: 15,210
E207: Contrôle | F207: =IF(SUM(H207:AV207)=0,"ok",SUM(H207:AV207)) -> ok | H207: =+H200-H206 -> 0 | I207: 0 | J207: 0 | K207: 0 | L207: 0 | M207: 0 | N207: 0 | O207: 0 | P207: 0 | Q207: 0 | R207: 0 | S207: 0 | T207: 0 | U207: 0 | V207: 0 | W207: 0 | X207: 0 | Y207: 0 | Z207: 0 | AA207: 0 | AB207: 0 | AC207: 0 | AD207: 0 | AE207: 0 | AF207: 0 | AG207: 0 | AH207: 0 | AI207: 0 | AJ207: 0 | AK207: 0 | AL207: 0 | AM207: 0 | AN207: 0 | AO207: 0 | AP207: 0 | AQ207: 0 | AR207: 0 | AS207: 0 | AT207: 0 | AU207: 0 | AV207: 0
B208: Financial structure liability - proof | H208: =IFERROR(H203/(H$203+H$204),"-") -> 54.00% | I208: =IFERROR(I203/(I$203+I$204),"-") -> 54.00% | J208: 54.00% | K208: =IFERROR(K203/(K$203+K$204),"-") -> 54.00% | L208: 54.00% | M208: 54.00% | N208: 54.00% | O208: 54.00% | P208: 54.00% | Q208: 54.00% | R208: 54.00% | S208: 54.00% | T208: 54.00% | U208: 54.00% | V208: 54.00% | W208: 54.00% | X208: 54.00% | Y208: 54.00% | Z208: 54.00% | AA208: 54.00% | AB208: 54.00% | AC208: 54.00% | AD208: 54.00% | AE208: 54.00% | AF208: 54.00% | AG208: 54.00% | AH208: 54.00% | AI208: 54.00% | AJ208: 54.00% | AK208: 54.00% | AL208: 54.00% | AM208: 54.00% | AN208: 54.00% | AO208: 54.00% | AP208: 54.00% | AQ208: 54.00% | AR208: 54.00% | AS208: 54.00% | AT208: 54.00% | AU208: 54.00% | AV208: 54.00%
B209: Financial structure equity - proof | H209: =IFERROR(H204/(H$203+H$204),"-") -> 46.00% | I209: =IFERROR(I204/(I$203+I$204),"-") -> 46.00% | J209: 46.00% | K209: 46.00% | L209: 46.00% | M209: 46.00% | N209: 46.00% | O209: 46.00% | P209: 46.00% | Q209: 46.00% | R209: 46.00% | S209: 46.00% | T209: 46.00% | U209: 46.00% | V209: 46.00% | W209: 46.00% | X209: 46.00% | Y209: 46.00% | Z209: 46.00% | AA209: 46.00% | AB209: 46.00% | AC209: 46.00% | AD209: 46.00% | AE209: 46.00% | AF209: 46.00% | AG209: 46.00% | AH209: 46.00% | AI209: 46.00% | AJ209: 46.00% | AK209: 46.00% | AL209: 46.00% | AM209: 46.00% | AN209: 46.00% | AO209: 46.00% | AP209: 46.00% | AQ209: 46.00% | AR209: 46.00% | AS209: 46.00% | AT209: 46.00% | AU209: 46.00% | AV209: 46.00%
A211: 3.3 | B211: Cash flow statement | I211: =$I$22 -> 2018 | J211: =I211+1 -> 2019 | K211: =J211+1 -> 2020 | L211: 2021 | M211: 2022 | N211: 2023 | O211: 2024 | P211: 2025 | Q211: 2026 | R211: 2027 | S211: 2028 | T211: 2029 | U211: 2030 | V211: 2031 | W211: 2032 | X211: 2033 | Y211: 2034 | Z211: 2035 | AA211: 2036 | AB211: 2037 | AC211: 2038 | AD211: 2039 | AE211: 2040 | AF211: 2041 | AG211: 2042 | AH211: 2043 | AI211: 2044 | AJ211: 2045 | AK211: 2046 | AL211: 2047 | AM211: 2048 | AN211: 2049 | AO211: 2050 | AP211: 2051 | AQ211: 2052 | AR211: 2053 | AS211: 2054 | AT211: 2055 | AU211: 2056 | AV211: 2057
B213: Operations
B214: Net income | I214: =+I188 -> 7,992 | J214: =+J188 -> 8,982 | K214: 9,909 | L214: 10,201 | M214: 10,075 | N214: 9,908 | O214: 9,492 | P214: 9,075 | Q214: 8,658 | R214: 8,242 | S214: 7,825 | T214: 7,408 | U214: 6,991 | V214: 6,575 | W214: 6,158 | X214: 5,741 | Y214: 5,325 | Z214: 4,908 | AA214: 4,491 | AB214: 4,074 | AC214: 3,658 | AD214: 3,294 | AE214: 3,015 | AF214: 2,796 | AG214: 2,624 | AH214: 2,474 | AI214: 2,337 | AJ214: 2,206 | AK214: 2,075 | AL214: 1,945 | AM214: 1,814 | AN214: 1,683 | AO214: 1,552 | AP214: 1,422 | AQ214: 1,291 | AR214: 1,160 | AS214: 1,029 | AT214: 898 | AU214: 768 | AV214: 637
B215: Plus: Depreciation | I215: =-I184 -> 6,404 | J215: =-J184 -> 8,000 | K215: 9,591 | L215: 10,437 | M215: 10,782 | N215: 11,091 | O215: 11,091 | P215: 11,091 | Q215: 11,091 | R215: 11,091 | S215: 11,091 | T215: 11,091 | U215: 11,091 | V215: 11,091 | W215: 11,091 | X215: 11,091 | Y215: 11,091 | Z215: 11,091 | AA215: 11,091 | AB215: 11,091 | AC215: 11,091 | AD215: 8,252 | AE215: 6,618 | AF215: 5,027 | AG215: 4,159 | AH215: 3,799 | AI215: 3,490 | AJ215: 3,481 | AK215: 3,481 | AL215: 3,481 | AM215: 3,481 | AN215: 3,481 | AO215: 3,481 | AP215: 3,481 | AQ215: 3,481 | AR215: 3,481 | AS215: 3,481 | AT215: 3,481 | AU215: 3,481 | AV215: 3,481
B216: Total - Operation | I216: =SUM(I214:I215) -> 14,396 | J216: =SUM(J214:J215) -> 16,982 | K216: 19,500 | L216: 20,638 | M216: 20,858 | N216: 20,999 | O216: 20,583 | P216: 20,166 | Q216: 19,749 | R216: 19,333 | S216: 18,916 | T216: 18,499 | U216: 18,082 | V216: 17,666 | W216: 17,249 | X216: 16,832 | Y216: 16,416 | Z216: 15,999 | AA216: 15,582 | AB216: 15,165 | AC216: 14,749 | AD216: 11,546 | AE216: 9,633 | AF216: 7,823 | AG216: 6,783 | AH216: 6,274 | AI216: 5,827 | AJ216: 5,687 | AK216: 5,556 | AL216: 5,426 | AM216: 5,295 | AN216: 5,164 | AO216: 5,033 | AP216: 4,902 | AQ216: 4,772 | AR216: 4,641 | AS216: 4,510 | AT216: 4,379 | AU216: 4,249 | AV216: 4,118
B218: Investing activities | I218: =-I132 -> -33,560 | J218: =-J132 -> -33,461 | K218: -17,791 | L218: -7,265 | M218: -6,491 | N218: 0 | O218: 0 | P218: 0 | Q218: 0 | R218: 0 | S218: 0 | T218: 0 | U218: 0 | V218: 0 | W218: 0 | X218: 0 | Y218: 0 | Z218: 0 | AA218: 0 | AB218: 0 | AC218: 0 | AD218: 0 | AE218: 0 | AF218: 0 | AG218: 0 | AH218: 0 | AI218: 0 | AJ218: 0 | AK218: 0 | AL218: 0 | AM218: 0 | AN218: 0 | AO218: 0 | AP218: 0 | AQ218: 0 | AR218: 0 | AS218: 0 | AT218: 0 | AU218: 0 | AV218: 0
B220: Financing activities
B221: Liability variation | I221: =I203-H203 -> 14,664 | J221: 13,749 | K221: 4,428 | L221: -1,713 | M221: -2,317 | N221: -5,989 | O221: -5,989 | P221: -5,989 | Q221: -5,989 | R221: -5,989 | S221: -5,989 | T221: -5,989 | U221: -5,989 | V221: -5,989 | W221: -5,989 | X221: -5,989 | Y221: -5,989 | Z221: -5,989 | AA221: -5,989 | AB221: -5,989 | AC221: -5,989 | AD221: -4,456 | AE221: -3,574 | AF221: -2,714 | AG221: -2,246 | AH221: -2,052 | AI221: -1,884 | AJ221: -1,880 | AK221: -1,880 | AL221: -1,880 | AM221: -1,880 | AN221: -1,880 | AO221: -1,880 | AP221: -1,880 | AQ221: -1,880 | AR221: -1,880 | AS221: -1,880 | AT221: -1,880 | AU221: -1,880 | AV221: -1,880
B222: Distributable to shareholders | I222: =I216+I218+I221 -> -4,500 | J222: =J216+J218+J221 -> -2,730 | K222: =K216+K218+K221 -> 6,137 | L222: =L216+L218+L221 -> 11,660 | M222: 12,049 | N222: 15,010 | O222: 14,594 | P222: 14,177 | Q222: 13,760 | R222: 13,343 | S222: 12,927 | T222: 12,510 | U222: 12,093 | V222: 11,677 | W222: 11,260 | X222: 10,843 | Y222: 10,426 | Z222: 10,010 | AA222: 9,593 | AB222: 9,176 | AC222: 8,760 | AD222: 7,090 | AE222: 6,059 | AF222: 5,109 | AG222: 4,537 | AH222: 4,222 | AI222: 3,942 | AJ222: 3,807 | AK222: 3,677 | AL222: 3,546 | AM222: 3,415 | AN222: 3,284 | AO222: 3,154 | AP222: 3,023 | AQ222: 2,892 | AR222: 2,761 | AS222: 2,630 | AT222: 2,500 | AU222: 2,369 | AV222: 2,238
B224: Distribution to shareholder (equity issue, dividends, equity reimbursement) | I224: =-I222 -> 4,500 | J224: =-J222 -> 2,730 | K224: =-K222 -> -6,137 | L224: =-L222 -> -11,660 | M224: =-M222 -> -12,049 | N224: -15,010 | O224: -14,594 | P224: -14,177 | Q224: -13,760 | R224: -13,343 | S224: -12,927 | T224: -12,510 | U224: -12,093 | V224: -11,677 | W224: -11,260 | X224: -10,843 | Y224: -10,426 | Z224: -10,010 | AA224: -9,593 | AB224: -9,176 | AC224: -8,760 | AD224: -7,090 | AE224: -6,059 | AF224: -5,109 | AG224: -4,537 | AH224: -4,222 | AI224: -3,942 | AJ224: -3,807 | AK224: -3,677 | AL224: -3,546 | AM224: -3,415 | AN224: -3,284 | AO224: -3,154 | AP224: -3,023 | AQ224: -2,892 | AR224: -2,761 | AS224: -2,630 | AT224: -2,500 | AU224: -2,369 | AV224: -2,238
I225: =I221+I224 -> 19,164 | J225: 16,479 | K225: -1,708 | L225: -13,373 | M225: -14,367 | N225: -20,999 | O225: -20,583 | P225: -20,166 | Q225: -19,749 | R225: -19,333 | S225: -18,916 | T225: -18,499 | U225: -18,082 | V225: -17,666 | W225: -17,249 | X225: -16,832 | Y225: -16,416 | Z225: -15,999 | AA225: -15,582 | AB225: -15,165 | AC225: -14,749 | AD225: -11,546 | AE225: -9,633 | AF225: -7,823 | AG225: -6,783 | AH225: -6,274 | AI225: -5,827 | AJ225: -5,687 | AK225: -5,556 | AL225: -5,426 | AM225: -5,295 | AN225: -5,164 | AO225: -5,033 | AP225: -4,902 | AQ225: -4,772 | AR225: -4,641 | AS225: -4,510 | AT225: -4,379 | AU225: -4,249 | AV225: -4,118
B227: Variation d'encaisse | I227: =I216+I218+I225 -> 0 | J227: =J216+J218+J225 -> 0 | K227: 0 | L227: 0 | M227: 0 | N227: 0 | O227: 0 | P227: 0 | Q227: 0 | R227: 0 | S227: 0 | T227: 0 | U227: 0 | V227: 0 | W227: 0 | X227: 0 | Y227: 0 | Z227: 0 | AA227: 0 | AB227: 0 | AC227: 0 | AD227: 0 | AE227: 0 | AF227: 0 | AG227: 0 | AH227: 0 | AI227: 0 | AJ227: 0 | AK227: 0 | AL227: 0 | AM227: 0 | AN227: 0 | AO227: 0 | AP227: 0 | AQ227: 0 | AR227: 0 | AS227: 0 | AT227: 0 | AU227: 0 | AV227: 0
A229: 3.4 | B229: IRR, NPV and Break point (impact on rates) | H229: =I229-1 -> 2017 | I229: =$I$22 -> 2018 | J229: =I229+1 -> 2019 | K229: =J229+1 -> 2020 | L229: =K229+1 -> 2021 | M229: =L229+1 -> 2022 | N229: =M229+1 -> 2023 | O229: =N229+1 -> 2024 | P229: =O229+1 -> 2025 | Q229: =P229+1 -> 2026 | R229: =Q229+1 -> 2027 | S229: =R229+1 -> 2028 | T229: =S229+1 -> 2029 | U229: =T229+1 -> 2030 | V229: =U229+1 -> 2031 | W229: =V229+1 -> 2032 | X229: =W229+1 -> 2033 | Y229: =X229+1 -> 2034 | Z229: =Y229+1 -> 2035 | AA229: =Z229+1 -> 2036 | AB229: =AA229+1 -> 2037 | AC229: =AB229+1 -> 2038 | AD229: =AC229+1 -> 2039 | AE229: =AD229+1 -> 2040 | AF229: =AE229+1 -> 2041 | AG229: =AF229+1 -> 2042 | AH229: =AG229+1 -> 2043 | AI229: =AH229+1 -> 2044 | AJ229: =AI229+1 -> 2045 | AK229: =AJ229+1 -> 2046 | AL229: =AK229+1 -> 2047 | AM229: =AL229+1 -> 2048 | AN229: =AM229+1 -> 2049 | AO229: =AN229+1 -> 2050 | AP229: =AO229+1 -> 2051 | AQ229: =AP229+1 -> 2052 | AR229: =AQ229+1 -> 2053 | AS229: =AR229+1 -> 2054 | AT229: =AS229+1 -> 2055 | AU229: =AT229+1 -> 2056 | AV229: =AU229+1 -> 2057
B231: Investment | I231: =I218 -> -33,560 | J231: =J218 -> -33,461 | K231: -17,791 | L231: -7,265 | M231: -6,491 | N231: 0 | O231: 0 | P231: 0 | Q231: 0 | R231: 0 | S231: 0 | T231: 0 | U231: 0 | V231: 0 | W231: 0 | X231: 0 | Y231: 0 | Z231: 0 | AA231: 0 | AB231: 0 | AC231: 0 | AD231: 0 | AE231: 0 | AF231: 0 | AG231: 0 | AH231: 0 | AI231: 0 | AJ231: 0 | AK231: 0 | AL231: 0 | AM231: 0 | AN231: 0 | AO231: 0 | AP231: 0 | AQ231: 0 | AR231: 0 | AS231: 0 | AT231: 0 | AU231: 0 | AV231: 0
B232: Income | I232: =I27 -> 4,343 | J232: 12,834 | K232: 21,443 | L232: 28,356 | M232: 32,319 | N232: 32,319 | O232: 32,319 | P232: 32,319 | Q232: 32,319 | R232: 32,319 | S232: 32,319 | T232: 32,319 | U232: 32,319 | V232: 32,319 | W232: 32,319 | X232: 32,319 | Y232: 32,319 | Z232: 32,319 | AA232: 32,319 | AB232: 32,319 | AC232: 32,319 | AD232: 32,319 | AE232: 32,319 | AF232: 32,319 | AG232: 32,319 | AH232: 32,319 | AI232: 32,319 | AJ232: 32,319 | AK232: 32,319 | AL232: 32,319 | AM232: 32,319 | AN232: 32,319 | AO232: 32,319 | AP232: 32,319 | AQ232: 32,319 | AR232: 32,319 | AS232: 32,319 | AT232: 32,319 | AU232: 32,319 | AV232: 32,319
B233: OPEX, tax on utilities and royalties | I233: =I182 -> -5,510 | J233: -8,585 | K233: -11,478 | L233: -13,177 | M233: -14,076 | N233: -14,007 | O233: -13,841 | P233: -13,675 | Q233: -13,508 | R233: -13,342 | S233: -13,176 | T233: -13,009 | U233: -12,843 | V233: -12,677 | W233: -12,510 | X233: -12,344 | Y233: -12,177 | Z233: -12,011 | AA233: -11,845 | AB233: -11,678 | AC233: -11,512 | AD233: -11,388 | AE233: -11,289 | AF233: -11,214 | AG233: -11,151 | AH233: -11,094 | AI233: -11,042 | AJ233: -10,990 | AK233: -10,937 | AL233: -10,885 | AM233: -10,833 | AN233: -10,781 | AO233: -10,729 | AP233: -10,676 | AQ233: -10,624 | AR233: -10,572 | AS233: -10,520 | AT233: -10,467 | AU233: -10,415 | AV233: -10,363
B234: Tax (without liability) | I234: =-I172 -> 2,056 | J234: 2,508 | K234: 1,292 | L234: 65 | M234: -806 | N234: -960 | O234: -1,190 | P234: -1,461 | Q234: -1,719 | R234: -1,965 | S234: -2,198 | T234: -2,420 | U234: -2,631 | V234: -2,832 | W234: -3,024 | X234: -3,207 | Y234: -3,382 | Z234: -3,549 | AA234: -3,708 | AB234: -3,861 | AC234: -4,007 | AD234: -4,136 | AE234: -4,252 | AF234: -4,357 | AG234: -4,453 | AH234: -4,543 | AI234: -4,627 | AJ234: -4,707 | AK234: -4,783 | AL234: -4,855 | AM234: -4,923 | AN234: -4,989 | AO234: -5,051 | AP234: -5,111 | AQ234: -5,167 | AR234: -5,222 | AS234: -5,273 | AT234: -5,323 | AU234: -5,370 | AV234: -5,416
B235: Cash flow | F235: =IFERROR(IRR(H235:AV235),"-") -> 3.92% | H235: =H237 -> -215,909 | I235: =SUM(I231:I234) -> -32,670 | J235: =SUM(J231:J234) -> -26,704 | K235: -6,534 | L235: 7,979 | M235: 10,946 | N235: 17,352 | O235: 17,288 | P235: 17,183 | Q235: 17,091 | R235: 17,012 | S235: 16,946 | T235: 16,890 | U235: 16,845 | V235: 16,810 | W235: 16,785 | X235: 16,768 | Y235: 16,760 | Z235: 16,759 | AA235: 16,766 | AB235: 16,780 | AC235: 16,800 | AD235: 16,795 | AE235: 16,778 | AF235: 16,749 | AG235: 16,715 | AH235: 16,682 | AI235: 16,651 | AJ235: 16,623 | AK235: 16,599 | AL235: 16,579 | AM235: 16,563 | AN235: 16,550 | AO235: 16,539 | AP235: 16,532 | AQ235: 16,528 | AR235: 16,526 | AS235: 16,526 | AT235: 16,529 | AU235: 16,534 | AV235: 16,541
B237: IRR 40 years - Projet | F237: =IFERROR(IRR(H237:AV237),"-") -> 3.92% | H237: =-H200 -> -215,909 | I237: =I183-I181-I172+I218 -> -32,670 | J237: -26,704 | K237: -6,534 | L237: =L183-L181-L172+L218 -> 7,979 | M237: =M183-M181-M172+M218 -> 10,946 | N237: =N183-N181-N172+N218 -> 17,352 | O237: 17,288 | P237: 17,183 | Q237: 17,091 | R237: 17,012 | S237: 16,946 | T237: 16,890 | U237: 16,845 | V237: 16,810 | W237: 16,785 | X237: 16,768 | Y237: 16,760 | Z237: 16,759 | AA237: 16,766 | AB237: 16,780 | AC237: 16,800 | AD237: 16,795 | AE237: 16,778 | AF237: 16,749 | AG237: 16,715 | AH237: 16,682 | AI237: 16,651 | AJ237: 16,623 | AK237: 16,599 | AL237: 16,579 | AM237: 16,563 | AN237: 16,550 | AO237: 16,539 | AP237: 16,532 | AQ237: 16,528 | AR237: 16,526 | AS237: 16,526 | AT237: 16,529 | AU237: 16,534 | AV237: 16,541
E238: Coût du capital
B239: NPV 40 years - Projet ( au coût du capital) | E239: =$F$81 -> 5.28% | F239: =NPV(E239,H237:AV237) -> (52,791.17 $)
B241: Break point (impact on rates) | M241: 5 ans | R241: 10 ans | W241: 15 ans | AB241: 20 ans | AG241: 25 ans | AL241: 30 ans | AQ241: 35 ans | AV241: 40 ans
B243: Impact on rates | I243: =I94-I27 -> 21,715 | J243: 17,628 | K243: 15,292 | L243: 11,513 | M243: 8,764 | N243: 9,005 | O243: 8,354 | P243: 7,759 | Q243: 7,145 | R243: 6,514 | S243: 5,867 | T243: 5,204 | U243: 4,526 | V243: 3,835 | W243: 3,131 | X243: 2,415 | Y243: 1,687 | Z243: 949 | AA243: 201 | AB243: -557 | AC243: -1,323 | AD243: -5,845 | AE243: -8,552 | AF243: -11,077 | AG243: -12,524 | AH243: -13,236 | AI243: -13,859 | AJ243: -14,066 | AK243: -14,265 | AL243: -14,470 | AM243: -14,679 | AN243: -14,893 | AO243: -15,111 | AP243: -15,333 | AQ243: -15,559 | AR243: -15,788 | AS243: -16,021 | AT243: -16,256 | AU243: -16,495 | AV243: -16,736
B244: Impact on rates (present value) | E244: =$F$81 -> 5.28% | H244: Ne pas effacer | I244: =I243/(1+$E$244)^I176 -> 20,626 | J244: 15,904 | K244: 13,104 | L244: 9,372 | M244: 6,776 | N244: 6,613 | O244: 5,827 | P244: 5,141 | Q244: 4,497 | R244: 3,894 | S244: 3,331 | T244: 2,806 | U244: 2,319 | V244: 1,866 | W244: 1,447 | X244: 1,060 | Y244: 703 | Z244: 376 | AA244: 75 | AB244: -199 | AC244: -449 | AD244: -1,884 | AE244: -2,619 | AF244: -3,222 | AG244: -3,460 | AH244: -3,474 | AI244: -3,455 | AJ244: -3,330 | AK244: -3,208 | AL244: -3,091 | AM244: -2,978 | AN244: -2,870 | AO244: -2,766 | AP244: -2,666 | AQ244: -2,570 | AR244: -2,477 | AS244: -2,387 | AT244: -2,301 | AU244: -2,217 | AV244: -2,137
B245: Cumulative impact on rates (present value) | H245: -1 | I245: =+I244 -> 20,626 | J245: =I245+J244 -> 36,531 | K245: =J245+K244 -> 49,635 | L245: 59,007 | M245: 65,782 | N245: 72,396 | O245: 78,223 | P245: 83,364 | Q245: 87,861 | R245: 91,755 | S245: 95,086 | T245: 97,893 | U245: 100,211 | V245: 102,077 | W245: 103,524 | X245: 104,584 | Y245: 105,287 | Z245: =Y245+Z244 -> 105,663 | AA245: =Z245+AA244 -> 105,739 | AB245: =AA245+AB244 -> 105,540 | AC245: =AB245+AC244 -> 105,091 | AD245: =AC245+AD244 -> 103,206 | AE245: =AD245+AE244 -> 100,587 | AF245: =AE245+AF244 -> 97,365 | AG245: =AF245+AG244 -> 93,905 | AH245: =AG245+AH244 -> 90,432 | AI245: =AH245+AI244 -> 86,977 | AJ245: =AI245+AJ244 -> 83,647 | AK245: =AJ245+AK244 -> 80,439 | AL245: =AK245+AL244 -> 77,348 | AM245: =AL245+AM244 -> 74,370 | AN245: =AM245+AN244 -> 71,499 | AO245: =AN245+AO244 -> 68,733 | AP245: =AO245+AP244 -> 66,067 | AQ245: =AP245+AQ244 -> 63,497 | AR245: =AQ245+AR244 -> 61,021 | AS245: =AR245+AS244 -> 58,633 | AT245: =AS245+AT244 -> 56,333 | AU245: =AT245+AU244 -> 54,115 | AV245: =AU245+AV244 -> 51,978
B246: Break point | F246: =IF(AND(MAX(I246:AV246)=0,I245<=0),1,MAX(I246:AV246)) -> 0.00 ans | H246: - | I246: =IF(AND(H246="-",OR(AND(H245>0,I245<=0),AND(H245>=0,I245<0))),I$176-1+H245/-I244,IF(H246="-","-","")) -> - | J246: =IF(AND(I246="-",OR(AND(I245>0,J245<=0),AND(I245>=0,J245<0))),J$176-1+I245/-J244,IF(I246="-","-","")) -> - | K246: - | L246: - | M246: - | N246: - | O246: - | P246: - | Q246: - | R246: - | S246: - | T246: - | U246: - | V246: - | W246: - | X246: - | Y246: - | Z246: - | AA246: - | AB246: - | AC246: - | AD246: - | AE246: - | AF246: - | AG246: - | AH246: - | AI246: - | AJ246: - | AK246: - | AL246: - | AM246: - | AN246: - | AO246: =IF(AND(AN246="-",OR(AND(AN245>0,AO245<=0),AND(AN245>=0,AO245<0))),AO$176-1+AN245/-AO244,IF(AN246="-","-","")) -> - | AP246: =IF(AND(AO246="-",OR(AND(AO245>0,AP245<=0),AND(AO245>=0,AP245<0))),AP$176-1+AO245/-AP244,IF(AO246="-","-","")) -> - | AQ246: =IF(AND(AP246="-",OR(AND(AP245>0,AQ245<=0),AND(AP245>=0,AQ245<0))),AQ$176-1+AP245/-AQ244,IF(AP246="-","-","")) -> - | AR246: =IF(AND(AQ246="-",OR(AND(AQ245>0,AR245<=0),AND(AQ245>=0,AR245<0))),AR$176-1+AQ245/-AR244,IF(AQ246="-","-","")) -> - | AS246: =IF(AND(AR246="-",OR(AND(AR245>0,AS245<=0),AND(AR245>=0,AS245<0))),AS$176-1+AR245/-AS244,IF(AR246="-","-","")) -> - | AT246: =IF(AND(AS246="-",OR(AND(AS245>0,AT245<=0),AND(AS245>=0,AT245<0))),AT$176-1+AS245/-AT244,IF(AS246="-","-","")) -> - | AU246: =IF(AND(AT246="-",OR(AND(AT245>0,AU245<=0),AND(AT245>=0,AU245<0))),AU$176-1+AT245/-AU244,IF(AT246="-","-","")) -> - | AV246: =IF(AND(AU246="-",OR(AND(AU245>0,AV245<=0),AND(AU245>=0,AV245<0))),AV$176-1+AU245/-AV244,IF(AU246="-","-","")) -> -

Sheet GM-9doc4-Q7.1 Rentable CII
A1: Model to evaluate the profitability of projects - Version 2016-2017
A2: Rentable CII
A3: ($)
B5: Results
B6: IRR 40 years | E6: =$F$237 -> 8.30%
B7: Break point (impact on rates) | E7: =F246 -> 1.6 ans
B8: Impact on rates | D8: Annual | E8: Cumulative net present value.
B9: 1 year | D9: =I$243 -> 642 | E9: =I$245 -> 610
B10: 2 years | D10: =J$243 -> -1,108 | E10: =J$245 -> -389
B11: 3 years | D11: =K$243 -> -1,813 | E11: =K$245 -> -1,943
B12: 4 years | D12: =L$243 -> -2,051 | E12: =L$245 -> -3,612
B13: 5 years | D13: =M$243 -> -2,236 | E13: =M$245 -> -5,341
B14: 10 years | D14: =R$243 -> -3,146 | E14: =R$245 -> -14,479
B15: 15 years | D15: =W$243 -> -4,333 | E15: =W$245 -> -24,494
B16: 20 years | D16: =AB$243 -> -5,381 | E16: =AB$245 -> -34,291
B17: 30 years | D17: =AL$243 -> -8,782 | E17: =AL$245 -> -56,071
B18: 40 years | D18: =AV$243 -> -9,876 | E18: =AV$245 -> -71,250
A20: Section 1 - Inputs | H20: 0 | I20: 1 | J20: 2 | K20: 3 | L20: 4 | M20: 5 | N20: 6 | O20: 7 | P20: 8 | Q20: 9 | R20: 10 | S20: 11 | T20: 12 | U20: 13 | V20: 14 | W20: 15 | X20: 16 | Y20: 17 | Z20: 18 | AA20: 19 | AB20: 20 | AC20: 21 | AD20: 22 | AE20: 23 | AF20: 24 | AG20: 25 | AH20: 26 | AI20: 27 | AJ20: 28 | AK20: 29 | AL20: 30 | AM20: 31 | AN20: 32 | AO20: 33 | AP20: 34 | AQ20: 35 | AR20: 36 | AS20: 37 | AT20: 38 | AU20: 39 | AV20: 40
A22: 1.1 | B22: Clients - Volumes - Rates - Incomes | I22: 2018 | J22: =I22+1 -> 2019 | K22: 2020 | L22: 2021 | M22: 2022 | N22: 2023 | O22: 2024 | P22: 2025 | Q22: 2026 | R22: 2027 | S22: 2028 | T22: 2029 | U22: 2030 | V22: 2031 | W22: 2032 | X22: 2033 | Y22: 2034 | Z22: 2035 | AA22: 2036 | AB22: 2037 | AC22: 2038 | AD22: 2039 | AE22: 2040 | AF22: 2041 | AG22: 2042 | AH22: 2043 | AI22: 2044 | AJ22: 2045 | AK22: 2046 | AL22: 2047 | AM22: 2048 | AN22: 2049 | AO22: 2050 | AP22: 2051 | AQ22: 2052 | AR22: 2053 | AS22: 2054 | AT22: 2055 | AU22: 2056 | AV22: 2057
B24: Number de clients | I24: 2 | J24: 2 | K24: 2 | L24: 2 | M24: 2 | N24: =M24 -> 2 | O24: 2 | P24: 2 | Q24: 2 | R24: 2 | S24: 2 | T24: 2 | U24: 2 | V24: 2 | W24: 2 | X24: 2 | Y24: 2 | Z24: 2 | AA24: 2 | AB24: 2 | AC24: 2 | AD24: 2 | AE24: 2 | AF24: 2 | AG24: 2 | AH24: 2 | AI24: 2 | AJ24: 2 | AK24: 2 | AL24: 2 | AM24: 2 | AN24: 2 | AO24: 2 | AP24: 2 | AQ24: 2 | AR24: 2 | AS24: 2 | AT24: 2 | AU24: 2 | AV24: 2
B25: Volumes m3 | I25: 118,530 | J25: 122,643 | K25: 131,924 | L25: 133,506 | M25: 133,843 | N25: =M25 -> 133,843 | O25: 133,843 | P25: 133,843 | Q25: 133,843 | R25: 133,843 | S25: 133,843 | T25: 133,843 | U25: 133,843 | V25: 133,843 | W25: 133,843 | X25: 133,843 | Y25: 133,843 | Z25: 133,843 | AA25: 133,843 | AB25: 133,843 | AC25: 133,843 | AD25: 133,843 | AE25: 133,843 | AF25: 133,843 | AG25: 133,843 | AH25: 133,843 | AI25: 133,843 | AJ25: 133,843 | AK25: 133,843 | AL25: 133,843 | AM25: 133,843 | AN25: 133,843 | AO25: 133,843 | AP25: 133,843 | AQ25: 133,843 | AR25: 133,843 | AS25: 133,843 | AT25: 133,843 | AU25: 133,843 | AV25: 133,843
B26: Distribution rate ( ¢ / m3) | I26: 9.7487 | J26: 9.8939 | K26: 9.6653 | L26: 9.6190 | M26: 9.6124 | N26: =M26 -> 9.6124 | O26: 9.6124 | P26: 9.6124 | Q26: 9.6124 | R26: 9.6124 | S26: 9.6124 | T26: 9.6124 | U26: 9.6124 | V26: 9.6124 | W26: 9.6124 | X26: 9.6124 | Y26: 9.6124 | Z26: 9.6124 | AA26: 9.6124 | AB26: 9.6124 | AC26: 9.6124 | AD26: 9.6124 | AE26: 9.6124 | AF26: 9.6124 | AG26: 9.6124 | AH26: 9.6124 | AI26: 9.6124 | AJ26: 9.6124 | AK26: 9.6124 | AL26: 9.6124 | AM26: 9.6124 | AN26: 9.6124 | AO26: 9.6124 | AP26: 9.6124 | AQ26: 9.6124 | AR26: 9.6124 | AS26: 9.6124 | AT26: 9.6124 | AU26: 9.6124 | AV26: 9.6124
B27: Distribution income | I27: =I26*I25/100 -> 11,555 | J27: 12,134 | K27: 12,751 | L27: 12,842 | M27: 12,865 | N27: 12,865 | O27: 12,865 | P27: 12,865 | Q27: 12,865 | R27: 12,865 | S27: 12,865 | T27: 12,865 | U27: 12,865 | V27: 12,865 | W27: 12,865 | X27: 12,865 | Y27: 12,865 | Z27: 12,865 | AA27: 12,865 | AB27: 12,865 | AC27: 12,865 | AD27: 12,865 | AE27: 12,865 | AF27: 12,865 | AG27: 12,865 | AH27: 12,865 | AI27: 12,865 | AJ27: 12,865 | AK27: 12,865 | AL27: 12,865 | AM27: 12,865 | AN27: 12,865 | AO27: 12,865 | AP27: 12,865 | AQ27: 12,865 | AR27: 12,865 | AS27: 12,865 | AT27: 12,865 | AU27: 12,865 | AV27: 12,865
A29: 1.2 | B29: Capital costs (Capitalizable) | H29: =I29-1 -> 2017 | I29: =$I$22 -> 2018 | J29: =I29+1 -> 2019 | K29: 2020 | L29: 2021 | M29: 2022 | N29: 2023 | O29: 2024 | P29: 2025 | Q29: 2026 | R29: 2027 | S29: 2028 | T29: 2029 | U29: 2030 | V29: 2031 | W29: 2032 | X29: 2033 | Y29: 2034 | Z29: 2035 | AA29: 2036 | AB29: 2037 | AC29: 2038 | AD29: 2039 | AE29: 2040 | AF29: 2041 | AG29: 2042 | AH29: 2043 | AI29: 2044 | AJ29: 2045 | AK29: 2046 | AL29: 2047 | AM29: 2048 | AN29: 2049 | AO29: 2050 | AP29: 2051 | AQ29: 2052 | AR29: 2053 | AS29: 2054 | AT29: 2055 | AU29: 2056 | AV29: 2057
D31: Accounting | E31: Fiscal
D32: depreciation | E32: depreciation | F32: Capitalized general expenses
B33: Main line - Base | H33: 58,167 | I33: 0 | AV33: 0
B34: Main line - Contractors fees | H34: 10,020 | I34: 0 | AV34: 0
B35: Main line - Total | D35: =1/2.2538% -> 44 ans | E35: 6.0% | F35: 14.53% | H35: =H33+H34 -> 68,187 | I35: 0 | J35: 0 | K35: 0 | L35: 0 | M35: 0 | N35: 0 | O35: 0 | P35: 0 | Q35: 0 | R35: 0 | S35: 0 | T35: 0 | U35: 0 | V35: 0 | W35: 0 | X35: 0 | Y35: 0 | Z35: 0 | AA35: 0 | AB35: 0 | AC35: 0 | AD35: 0 | AE35: 0 | AF35: 0 | AG35: 0 | AH35: 0 | AI35: 0 | AJ35: 0 | AK35: 0 | AL35: 0 | AM35: 0 | AN35: 0 | AO35: 0 | AP35: 0 | AQ35: 0 | AR35: 0 | AS35: 0 | AT35: 0 | AU35: 0 | AV35: 0
B37: Connection - Base | H37: 27,931 | I37: 551 | AV37: 0
B38: Connection - Contractors fees | H38: 4,977 | I38: 13 | AV38: 0
B39: Connection - Meters | H39: 961 | I39: 3 | AV39: 0
B40: Connection - Total | D40: =1/4.7554% -> 21 ans | E40: 6.0% | F40: 14.53% | H40: =H37+H38+H39 -> 33,869 | I40: 567 | J40: 0 | K40: 0 | L40: 0 | M40: 0 | N40: 0 | O40: 0 | P40: 0 | Q40: 0 | R40: 0 | S40: 0 | T40: 0 | U40: 0 | V40: 0 | W40: 0 | X40: 0 | Y40: 0 | Z40: 0 | AA40: 0 | AB40: 0 | AC40: 0 | AD40: 0 | AE40: 0 | AF40: 0 | AG40: 0 | AH40: 0 | AI40: 0 | AJ40: 0 | AK40: 0 | AL40: 0 | AM40: 0 | AN40: 0 | AO40: 0 | AP40: 0 | AQ40: 0 | AR40: 0 | AS40: 0 | AT40: 0 | AU40: 0 | AV40: 0
B41: Compression | D41: 20 ans | E41: 20.0% | F41: 14.53% | H41: 0 | I41: 0 | J41: 0 | K41: 0 | L41: 0 | M41: 0 | N41: 0 | O41: 0 | P41: 0 | Q41: 0 | R41: 0 | S41: 0 | T41: 0 | U41: 0 | V41: 0 | W41: 0 | X41: 0 | Y41: 0 | Z41: 0 | AA41: 0 | AB41: 0 | AC41: 0 | AD41: 0 | AE41: 0 | AF41: 0 | AG41: 0 | AH41: 0 | AI41: 0 | AJ41: 0 | AK41: 0 | AL41: 0 | AM41: 0 | AN41: 0 | AO41: 0 | AP41: 0 | AQ41: 0 | AR41: 0 | AS41: 0 | AT41: 0 | AU41: 0 | AV41: 0
B42: Servitude | D42: 65 ans | E42: 7.0% | F42: 14.53% | H42: 0 | I42: 0 | J42: 0 | K42: 0 | L42: 0 | M42: 0 | N42: 0 | O42: 0 | P42: 0 | Q42: 0 | R42: 0 | S42: 0 | T42: 0 | U42: 0 | V42: 0 | W42: 0 | X42: 0 | Y42: 0 | Z42: 0 | AA42: 0 | AB42: 0 | AC42: 0 | AD42: 0 | AE42: 0 | AF42: 0 | AG42: 0 | AH42: 0 | AI42: 0 | AJ42: 0 | AK42: 0 | AL42: 0 | AM42: 0 | AN42: 0 | AO42: 0 | AP42: 0 | AQ42: 0 | AR42: 0 | AS42: 0 | AT42: 0 | AU42: 0 | AV42: 0
B43: Transport | D43: 65 ans | E43: 8.0% | F43: 14.53% | H43: 0 | I43: 0 | J43: 0 | K43: 0 | L43: 0 | M43: 0 | N43: 0 | O43: 0 | P43: 0 | Q43: 0 | R43: 0 | S43: 0 | T43: 0 | U43: 0 | V43: 0 | W43: 0 | X43: 0 | Y43: 0 | Z43: 0 | AA43: 0 | AB43: 0 | AC43: 0 | AD43: 0 | AE43: 0 | AF43: 0 | AG43: 0 | AH43: 0 | AI43: 0 | AJ43: 0 | AK43: 0 | AL43: 0 | AM43: 0 | AN43: 0 | AO43: 0 | AP43: 0 | AQ43: 0 | AR43: 0 | AS43: 0 | AT43: 0 | AU43: 0 | AV43: 0
B44: Actif non amortissable (terrain) incluant frais généraux | F44: 0.00% | H44: 0 | I44: 0 | J44: 0 | K44: 0 | L44: 0 | M44: 0 | N44: 0 | O44: 0 | P44: 0 | Q44: 0 | R44: 0 | S44: 0 | T44: 0 | U44: 0 | V44: 0 | W44: 0 | X44: 0 | Y44: 0 | Z44: 0 | AA44: 0 | AB44: 0 | AC44: 0 | AD44: 0 | AE44: 0 | AF44: 0 | AG44: 0 | AH44: 0 | AI44: 0 | AJ44: 0 | AK44: 0 | AL44: 0 | AM44: 0 | AN44: 0 | AO44: 0 | AP44: 0 | AQ44: 0 | AR44: 0 | AS44: 0 | AT44: 0 | AU44: 0 | AV44: 0
B45: Fees related to agreements with municipalities | C45: 2.00% | F45: 14.53% | H45: =$C$45*(H33+H37) -> 1,722 | I45: 11 | J45: 0 | K45: 0 | L45: 0 | M45: 0 | N45: 0 | O45: 0 | P45: 0 | Q45: 0 | R45: 0 | S45: 0 | T45: 0 | U45: 0 | V45: 0 | W45: 0 | X45: 0 | Y45: 0 | Z45: 0 | AA45: 0 | AB45: 0 | AC45: 0 | AD45: 0 | AE45: 0 | AF45: 0 | AG45: 0 | AH45: 0 | AI45: 0 | AJ45: 0 | AK45: 0 | AL45: 0 | AM45: 0 | AN45: 0 | AO45: 0 | AP45: 0 | AQ45: 0 | AR45: 0 | AS45: 0 | AT45: 0 | AU45: 0 | AV45: 0
B46: Capitalized general expenses | H46: =$F$35*H35+SUMPRODUCT($F$40:$F$45,H40:H45) -> 15,079 | I46: 84 | J46: 0 | K46: 0 | L46: 0 | M46: 0 | N46: 0 | O46: 0 | P46: 0 | Q46: 0 | R46: 0 | S46: 0 | T46: 0 | U46: 0 | V46: 0 | W46: 0 | X46: 0 | Y46: 0 | Z46: 0 | AA46: 0 | AB46: 0 | AC46: 0 | AD46: 0 | AE46: 0 | AF46: 0 | AG46: 0 | AH46: 0 | AI46: 0 | AJ46: 0 | AK46: 0 | AL46: 0 | AM46: 0 | AN46: 0 | AO46: 0 | AP46: 0 | AQ46: 0 | AR46: 0 | AS46: 0 | AT46: 0 | AU46: 0 | AV46: 0
H47: =H35+SUM(H40:H46) -> 118,857 | I47: 662 | J47: 0 | K47: 0 | L47: 0 | M47: 0 | N47: 0 | O47: 0 | P47: 0 | Q47: 0 | R47: 0 | S47: 0 | T47: 0 | U47: 0 | V47: 0 | W47: 0 | X47: 0 | Y47: 0 | Z47: 0 | AA47: 0 | AB47: 0 | AC47: 0 | AD47: 0 | AE47: 0 | AF47: 0 | AG47: 0 | AH47: 0 | AI47: 0 | AJ47: 0 | AK47: 0 | AL47: 0 | AM47: 0 | AN47: 0 | AO47: 0 | AP47: 0 | AQ47: 0 | AR47: 0 | AS47: 0 | AT47: 0 | AU47: 0 | AV47: 0
B49: PRC - 5 years | D49: 5 ans | E49: 5 ans | AV49: 0
B50: PRC - 10 years | D50: 10 ans | E50: =D50 -> 10 ans | I50: 1,548 | J50: 452 | K50: 291 | AV50: 0
B51: CASEP - PRC 10 years | I51: -102 | AV51: 0
B52: Contributions related to network connection | I52: -119 | J52: -14 | AV52: 0
B53: CASEP - Capital | H53: -4,699 | AV53: 0
B54: External contributions | AV54: 0
B55: Client contributions | H55: -10,513 | AV55: 0
B56: Total - Investissement | F56: =SUM(H56:AV56) -> 106,362 | H56: =SUM(H47:H55) -> 103,644 | I56: 1,989 | J56: 438 | K56: 291 | L56: 0 | M56: 0 | N56: 0 | O56: 0 | P56: 0 | Q56: 0 | R56: 0 | S56: 0 | T56: 0 | U56: 0 | V56: 0 | W56: 0 | X56: 0 | Y56: 0 | Z56: 0 | AA56: 0 | AB56: 0 | AC56: 0 | AD56: 0 | AE56: 0 | AF56: 0 | AG56: 0 | AH56: 0 | AI56: 0 | AJ56: 0 | AK56: 0 | AL56: 0 | AM56: 0 | AN56: 0 | AO56: 0 | AP56: 0 | AQ56: 0 | AR56: 0 | AS56: 0 | AT56: 0 | AU56: 0 | AV56: 0
A58: 1.3 | B58: O&M costs (3867, phase A) | I58: =$I$22 -> 2018 | J58: =I58+1 -> 2019 | K58: 2020 | L58: 2021 | M58: 2022 | N58: 2023 | O58: 2024 | P58: 2025 | Q58: 2026 | R58: 2027 | S58: 2028 | T58: 2029 | U58: 2030 | V58: 2031 | W58: 2032 | X58: 2033 | Y58: 2034 | Z58: 2035 | AA58: 2036 | AB58: 2037 | AC58: 2038 | AD58: 2039 | AE58: 2040 | AF58: 2041 | AG58: 2042 | AH58: 2043 | AI58: 2044 | AJ58: 2045 | AK58: 2046 | AL58: 2047 | AM58: 2048 | AN58: 2049 | AO58: 2050 | AP58: 2051 | AQ58: 2052 | AR58: 2053 | AS58: 2054 | AT58: 2055 | AU58: 2056 | AV58: 2057
B60: Opex #1 (157 $/client) | C60: 157 | D60: Statutaire | I60: =$C60*I$24 -> 314 | J60: 314 | K60: 314 | L60: 314 | M60: 314 | N60: 314 | O60: 314 | P60: 314 | Q60: 314 | R60: 314 | S60: 314 | T60: 314 | U60: 314 | V60: 314 | W60: 314 | X60: 314 | Y60: 314 | Z60: 314 | AA60: 314 | AB60: 314 | AC60: 314 | AD60: 314 | AE60: 314 | AF60: 314 | AG60: 314 | AH60: 314 | AI60: 314 | AJ60: 314 | AK60: 314 | AL60: 314 | AM60: 314 | AN60: 314 | AO60: 314 | AP60: 314 | AQ60: 314 | AR60: 314 | AS60: 314 | AT60: 314 | AU60: 314 | AV60: 314
B61: Opex #2 | I61: 0 | J61: =I61 -> 0 | K61: 0 | L61: 0 | M61: 0 | N61: 0 | O61: 0 | P61: 0 | Q61: 0 | R61: 0 | S61: 0 | T61: 0 | U61: 0 | V61: 0 | W61: 0 | X61: 0 | Y61: 0 | Z61: 0 | AA61: 0 | AB61: 0 | AC61: 0 | AD61: 0 | AE61: 0 | AF61: 0 | AG61: 0 | AH61: 0 | AI61: 0 | AJ61: 0 | AK61: 0 | AL61: 0 | AM61: 0 | AN61: 0 | AO61: 0 | AP61: 0 | AQ61: 0 | AR61: 0 | AS61: 0 | AT61: 0 | AU61: 0 | AV61: 0
B62: Opex #3 | I62: 0 | J62: 0 | K62: 0 | L62: 0 | M62: 0 | N62: 0 | O62: 0 | P62: 0 | Q62: 0 | R62: 0 | S62: 0 | T62: 0 | U62: 0 | V62: 0 | W62: 0 | X62: 0 | Y62: 0 | Z62: 0 | AA62: 0 | AB62: 0 | AC62: 0 | AD62: 0 | AE62: 0 | AF62: 0 | AG62: 0 | AH62: 0 | AI62: 0 | AJ62: 0 | AK62: 0 | AL62: 0 | AM62: 0 | AN62: 0 | AO62: 0 | AP62: 0 | AQ62: 0 | AR62: 0 | AS62: 0 | AT62: 0 | AU62: 0 | AV62: 0
B63: Opex #4 | I63: 0 | J63: 0 | K63: 0 | L63: 0 | M63: 0 | N63: 0 | O63: 0 | P63: 0 | Q63: 0 | R63: 0 | S63: 0 | T63: 0 | U63: 0 | V63: 0 | W63: 0 | X63: 0 | Y63: 0 | Z63: 0 | AA63: 0 | AB63: 0 | AC63: 0 | AD63: 0 | AE63: 0 | AF63: 0 | AG63: 0 | AH63: 0 | AI63: 0 | AJ63: 0 | AK63: 0 | AL63: 0 | AM63: 0 | AN63: 0 | AO63: 0 | AP63: 0 | AQ63: 0 | AR63: 0 | AS63: 0 | AT63: 0 | AU63: 0 | AV63: 0
B64: Opex #5 | I64: 0 | J64: 0 | K64: 0 | L64: 0 | M64: 0 | N64: 0 | O64: 0 | P64: 0 | Q64: 0 | R64: 0 | S64: 0 | T64: 0 | U64: 0 | V64: 0 | W64: 0 | X64: 0 | Y64: 0 | Z64: 0 | AA64: 0 | AB64: 0 | AC64: 0 | AD64: 0 | AE64: 0 | AF64: 0 | AG64: 0 | AH64: 0 | AI64: 0 | AJ64: 0 | AK64: 0 | AL64: 0 | AM64: 0 | AN64: 0 | AO64: 0 | AP64: 0 | AQ64: 0 | AR64: 0 | AS64: 0 | AT64: 0 | AU64: 0 | AV64: 0
B65: Total - O&M costs | I65: =SUM(I60:I64) -> 314 | J65: 314 | K65: 314 | L65: 314 | M65: 314 | N65: 314 | O65: 314 | P65: 314 | Q65: 314 | R65: 314 | S65: 314 | T65: 314 | U65: 314 | V65: 314 | W65: 314 | X65: 314 | Y65: 314 | Z65: 314 | AA65: 314 | AB65: 314 | AC65: 314 | AD65: 314 | AE65: 314 | AF65: 314 | AG65: 314 | AH65: 314 | AI65: 314 | AJ65: 314 | AK65: 314 | AL65: 314 | AM65: 314 | AN65: 314 | AO65: 314 | AP65: 314 | AQ65: 314 | AR65: 314 | AS65: 314 | AT65: 314 | AU65: 314 | AV65: 314
A67: 1.4 | B67: Other operation costs
B69: Tax on utilities | F69: 1.5%
B70: Royalty rate at the Régie de l'énergie ($/103m3) | F70: 0.60455
B71: Royalty rate at the Régie du bâtiment ($/103m3) | F71: 0.45600
B72: Tax rate (CAN. + QC) | F72: 26.9%
A74: 1.5 | B74: Structure of capital - Gaz Métro
B76: Cost of capital | F76: WACC prospective
J77: 2016-2017 parameters
B78: Structure and rate | E78: Structure | F78: Rates | J78: WACC | K78: WACC prospective
B79: Liability | E79: 54.0% | F79: =IF($F$76="WACC",$J$79,IF($F$76="WACC prospective",$K$79,$L$79)) -> 2.820% | I79: Liability | J79: 4.790% | K79: 2.820%
B80: Equity | E80: 46.0% | F80: =IF($F$76="WACC",$J$80,IF($F$76="WACC prospective",$K$80,$L$80)) -> 8.168% | I80: Equity | J80: 8.333% | K80: 8.168%
B81: Weighted average cost of capital (WACC) | F81: =$E79*F79+$E80*F80 -> 5.280% | I81: Weighted average cost of capital | J81: =$E79*J79+$E80*J80 -> 6.420% | K81: =$E79*K79+$E80*K80 -> 5.280%
A84: Section 2 - Calculations | H84: 0 | I84: 1 | J84: 2 | K84: 3 | L84: 4 | M84: 5 | N84: 6 | O84: 7 | P84: 8 | Q84: 9 | R84: 10 | S84: 11 | T84: 12 | U84: 13 | V84: 14 | W84: 15 | X84: 16 | Y84: 17 | Z84: 18 | AA84: 19 | AB84: 20 | AC84: 21 | AD84: 22 | AE84: 23 | AF84: 24 | AG84: 25 | AH84: 26 | AI84: 27 | AJ84: 28 | AK84: 29 | AL84: 30 | AM84: 31 | AN84: 32 | AO84: 33 | AP84: 34 | AQ84: 35 | AR84: 36 | AS84: 37 | AT84: 38 | AU84: 39 | AV84: 40
A86: 2.1 | B86: Cost of service | I86: =$I$22 -> 2018 | J86: =I86+1 -> 2019 | K86: 2020 | L86: 2021 | M86: 2022 | N86: 2023 | O86: 2024 | P86: 2025 | Q86: 2026 | R86: 2027 | S86: 2028 | T86: 2029 | U86: 2030 | V86: 2031 | W86: 2032 | X86: 2033 | Y86: 2034 | Z86: 2035 | AA86: 2036 | AB86: 2037 | AC86: 2038 | AD86: 2039 | AE86: 2040 | AF86: 2041 | AG86: 2042 | AH86: 2043 | AI86: 2044 | AJ86: 2045 | AK86: 2046 | AL86: 2047 | AM86: 2048 | AN86: 2049 | AO86: 2050 | AP86: 2051 | AQ86: 2052 | AR86: 2053 | AS86: 2054 | AT86: 2055 | AU86: 2056 | AV86: 2057
B88: OPEX distribution cost | I88: =I65 -> 314 | J88: 314 | K88: 314 | L88: 314 | M88: 314 | N88: 314 | O88: 314 | P88: 314 | Q88: 314 | R88: 314 | S88: 314 | T88: 314 | U88: 314 | V88: 314 | W88: 314 | X88: 314 | Y88: 314 | Z88: 314 | AA88: 314 | AB88: 314 | AC88: 314 | AD88: 314 | AE88: 314 | AF88: 314 | AG88: 314 | AH88: 314 | AI88: 314 | AJ88: 314 | AK88: 314 | AL88: 314 | AM88: 314 | AN88: 314 | AO88: 314 | AP88: 314 | AQ88: 314 | AR88: 314 | AS88: 314 | AT88: 314 | AU88: 314 | AV88: 314
B89: Tax on utilities | I89: =$F$69*I144 -> 1,526 | J89: 1,490 | K89: 1,443 | L89: 1,391 | M89: 1,339 | N89: 1,288 | O89: 1,236 | P89: 1,185 | Q89: 1,133 | R89: 1,082 | S89: 1,032 | T89: 983 | U89: 935 | V89: 887 | W89: 839 | X89: 790 | Y89: 742 | Z89: 694 | AA89: 645 | AB89: 597 | AC89: 549 | AD89: 524 | AE89: 501 | AF89: 477 | AG89: 454 | AH89: 430 | AI89: 407 | AJ89: 384 | AK89: 360 | AL89: 337 | AM89: 313 | AN89: 290 | AO89: 266 | AP89: 243 | AQ89: 220 | AR89: 196 | AS89: 173 | AT89: 149 | AU89: 126 | AV89: 102
B90: Royalties | I90: =($F$70+$F$71)*I25/1000 -> 126 | J90: 130 | K90: 140 | L90: 142 | M90: 142 | N90: 142 | O90: 142 | P90: 142 | Q90: 142 | R90: 142 | S90: 142 | T90: 142 | U90: 142 | V90: 142 | W90: 142 | X90: 142 | Y90: 142 | Z90: 142 | AA90: 142 | AB90: 142 | AC90: 142 | AD90: 142 | AE90: 142 | AF90: 142 | AG90: 142 | AH90: 142 | AI90: 142 | AJ90: 142 | AK90: 142 | AL90: 142 | AM90: 142 | AN90: 142 | AO90: 142 | AP90: 142 | AQ90: 142 | AR90: 142 | AS90: 142 | AT90: 142 | AU90: 142 | AV90: 142
B91: Amortissement des immobilisations | I91: =-I141 -> 3,339 | J91: 3,410 | K91: 3,439 | L91: 3,439 | M91: 3,439 | N91: 3,439 | O91: 3,439 | P91: 3,439 | Q91: 3,439 | R91: 3,439 | S91: 3,294 | T91: 3,249 | U91: 3,220 | V91: 3,220 | W91: 3,220 | X91: 3,220 | Y91: 3,220 | Z91: 3,220 | AA91: 3,220 | AB91: 3,220 | AC91: 3,220 | AD91: 1,634 | AE91: 1,562 | AF91: 1,562 | AG91: 1,562 | AH91: 1,562 | AI91: 1,562 | AJ91: 1,562 | AK91: 1,562 | AL91: 1,562 | AM91: 1,562 | AN91: 1,562 | AO91: 1,562 | AP91: 1,562 | AQ91: 1,562 | AR91: 1,562 | AS91: 1,562 | AT91: 1,562 | AU91: 1,562 | AV91: 1,562
B92: Tax | I92: =I171 -> 1,455 | J92: 354 | K92: 439 | L92: 519 | M92: 590 | N92: 653 | O92: 710 | P92: 761 | Q92: 806 | R92: 845 | S92: 880 | T92: 912 | U92: 939 | V92: 962 | W92: 982 | X92: 997 | Y92: 1,009 | Z92: 1,017 | AA92: 1,022 | AB92: 1,025 | AC92: 1,024 | AD92: 448 | AE92: 439 | AF92: 454 | AG92: 466 | AH92: 477 | AI92: 486 | AJ92: 493 | AK92: 498 | AL92: 501 | AM92: 504 | AN92: 504 | AO92: 503 | AP92: 502 | AQ92: 498 | AR92: 494 | AS92: 489 | AT92: 483 | AU92: 476 | AV92: 468
B93: Return of investment | I93: =$F$81*I105 -> 5,437 | J93: 5,328 | K93: 5,164 | L93: 4,987 | M93: 4,806 | N93: 4,624 | O93: 4,443 | P93: 4,261 | Q93: 4,079 | R93: 3,898 | S93: 3,720 | T93: 3,547 | U93: 3,377 | V93: 3,207 | W93: 3,037 | X93: 2,867 | Y93: 2,697 | Z93: 2,527 | AA93: 2,357 | AB93: 2,187 | AC93: 2,017 | AD93: 1,888 | AE93: 1,804 | AF93: 1,722 | AG93: 1,639 | AH93: 1,557 | AI93: 1,474 | AJ93: 1,392 | AK93: 1,309 | AL93: 1,227 | AM93: 1,144 | AN93: 1,062 | AO93: 979 | AP93: 897 | AQ93: 814 | AR93: 732 | AS93: 649 | AT93: 567 | AU93: 484 | AV93: 402
B94: Total - Cost of service | I94: =SUM(I88:I93) -> 12,197 | J94: 11,026 | K94: 10,938 | L94: 10,791 | M94: 10,629 | N94: 10,460 | O94: 10,284 | P94: 10,101 | Q94: 9,913 | R94: 9,719 | S94: 9,382 | T94: 9,147 | U94: 8,927 | V94: 8,732 | W94: 8,532 | X94: 8,330 | Y94: 8,123 | Z94: 7,913 | AA94: 7,700 | AB94: 7,484 | AC94: 7,265 | AD94: 4,951 | AE94: 4,762 | AF94: 4,671 | AG94: 4,578 | AH94: 4,482 | AI94: 4,385 | AJ94: 4,286 | AK94: 4,185 | AL94: 4,083 | AM94: 3,979 | AN94: 3,874 | AO94: 3,767 | AP94: 3,659 | AQ94: 3,550 | AR94: 3,440 | AS94: 3,329 | AT94: 3,217 | AU94: 3,104 | AV94: 2,990
B96: Rate related to the cost of service (¢ / m3) | I96: =IFERROR(100*I94/I25,"-") -> 10.291 | J96: 8.991 | K96: 8.291 | L96: 8.083 | M96: 7.942 | N96: 7.815 | O96: 7.683 | P96: 7.547 | Q96: 7.406 | R96: 7.262 | S96: 7.010 | T96: 6.834 | U96: 6.669 | V96: 6.524 | W96: 6.375 | X96: 6.223 | Y96: 6.069 | Z96: 5.912 | AA96: 5.753 | AB96: 5.592 | AC96: 5.428 | AD96: 3.699 | AE96: 3.558 | AF96: 3.490 | AG96: 3.420 | AH96: 3.349 | AI96: 3.276 | AJ96: 3.202 | AK96: 3.127 | AL96: 3.051 | AM96: 2.973 | AN96: 2.894 | AO96: 2.815 | AP96: 2.734 | AQ96: 2.653 | AR96: 2.570 | AS96: 2.487 | AT96: 2.403 | AU96: 2.319 | AV96: 2.234
A98: 2.2 | B98: Rate base | I98: =$I$22 -> 2018 | J98: =I98+1 -> 2019 | K98: 2020 | L98: 2021 | M98: 2022 | N98: 2023 | O98: 2024 | P98: 2025 | Q98: 2026 | R98: 2027 | S98: 2028 | T98: 2029 | U98: 2030 | V98: 2031 | W98: 2032 | X98: 2033 | Y98: 2034 | Z98: 2035 | AA98: 2036 | AB98: 2037 | AC98: 2038 | AD98: 2039 | AE98: 2040 | AF98: 2041 | AG98: 2042 | AH98: 2043 | AI98: 2044 | AJ98: 2045 | AK98: 2046 | AL98: 2047 | AM98: 2048 | AN98: 2049 | AO98: 2050 | AP98: 2051 | AQ98: 2052 | AR98: 2053 | AS98: 2054 | AT98: 2055 | AU98: 2056 | AV98: 2057
B100: Equity decrease | I100: =-$E$80*I141/2-$E$80*I129*9/13-$E$80*I130*9/13-$E$80*I131*9/13 -> 308 | J100: =-$E$80*I$132+$E$80*I129*9/13+$E$80*I130*9/13+$E$80*I131*9/13-$E$80*I141/2-$E$80*J141/2-$E$80*J129*9/13-$E$80*J130*9/13-$E$80*J131*9/13 -> 954 | K100: 1,425 | L100: 1,541 | M100: 1,582 | N100: 1,582 | O100: 1,582 | P100: 1,582 | Q100: 1,582 | R100: 1,582 | S100: 1,549 | T100: 1,505 | U100: 1,488 | V100: 1,481 | W100: 1,481 | X100: 1,481 | Y100: 1,481 | Z100: 1,481 | AA100: 1,481 | AB100: 1,481 | AC100: 1,481 | AD100: 1,116 | AE100: 735 | AF100: 719 | AG100: 719 | AH100: 719 | AI100: 719 | AJ100: 719 | AK100: 719 | AL100: 719 | AM100: 719 | AN100: 719 | AO100: 719 | AP100: 719 | AQ100: 719 | AR100: 719 | AS100: 719 | AT100: 719 | AU100: 719 | AV100: 719
B101: Liability reimbursement | I101: =-$E$79*I141/2-$E$79*I129*9/13-$E$79*I130*9/13-$E$79*I131*9/13 -> 361 | J101: =-$E$79*I$132+$E$79*I129*9/13+$E$79*I130*9/13+$E$79*I131*9/13-$E$79*I141/2-$E$79*J141/2-$E$79*J129*9/13-$E$79*J130*9/13-$E$79*J131*9/13 -> 1,120 | K101: 1,673 | L101: 1,809 | M101: 1,857 | N101: 1,857 | O101: 1,857 | P101: 1,857 | Q101: 1,857 | R101: 1,857 | S101: 1,818 | T101: 1,767 | U101: 1,747 | V101: 1,739 | W101: 1,739 | X101: 1,739 | Y101: 1,739 | Z101: 1,739 | AA101: 1,739 | AB101: 1,739 | AC101: 1,739 | AD101: 1,311 | AE101: 863 | AF101: 844 | AG101: 844 | AH101: 844 | AI101: 844 | AJ101: 844 | AK101: 844 | AL101: 844 | AM101: 844 | AN101: 844 | AO101: 844 | AP101: 844 | AQ101: 844 | AR101: 844 | AS101: 844 | AT101: 844 | AU101: 844 | AV101: 844
B103: Equity | H103: =($H$132)*$E$80 -> 47,676 | I103: =H103-I100 -> 47,369 | J103: 46,415 | K103: 44,990 | L103: 43,449 | M103: 41,867 | N103: 40,286 | O103: 38,704 | P103: 37,122 | Q103: 35,540 | R103: 33,959 | S103: 32,410 | T103: 30,905 | U103: 29,417 | V103: 27,936 | W103: 26,455 | X103: 24,974 | Y103: 23,493 | Z103: 22,012 | AA103: 20,531 | AB103: 19,050 | AC103: 17,569 | AD103: 16,452 | AE103: 15,717 | AF103: 14,998 | AG103: 14,279 | AH103: 13,561 | AI103: 12,842 | AJ103: 12,123 | AK103: 11,405 | AL103: 10,686 | AM103: 9,967 | AN103: 9,249 | AO103: 8,530 | AP103: 7,811 | AQ103: 7,093 | AR103: 6,374 | AS103: 5,656 | AT103: 4,937 | AU103: 4,218 | AV103: 3,500
B104: Liability | H104: =($H$132)*$E$79 -> 55,968 | I104: =H104-I101 -> 55,607 | J104: 54,487 | K104: 52,814 | L104: 51,006 | M104: 49,149 | N104: 47,292 | O104: 45,435 | P104: 43,578 | Q104: 41,721 | R104: 39,864 | S104: 38,047 | T104: 36,280 | U104: 34,533 | V104: 32,795 | W104: 31,056 | X104: 29,317 | Y104: 27,579 | Z104: 25,840 | AA104: 24,101 | AB104: 22,363 | AC104: 20,624 | AD104: 19,313 | AE104: 18,450 | AF104: 17,606 | AG104: 16,763 | AH104: 15,919 | AI104: 15,076 | AJ104: 14,232 | AK104: 13,388 | AL104: 12,545 | AM104: 11,701 | AN104: 10,857 | AO104: 10,014 | AP104: 9,170 | AQ104: 8,326 | AR104: 7,483 | AS104: 6,639 | AT104: 5,795 | AU104: 4,952 | AV104: 4,108
B105: Total - Average rate base | H105: =H103+H104 -> 103,644 | I105: 102,975 | J105: 100,902 | K105: 97,804 | L105: 94,455 | M105: 91,016 | N105: 87,578 | O105: 84,139 | P105: 80,700 | Q105: 77,262 | R105: 73,823 | S105: 70,457 | T105: 67,185 | U105: 63,951 | V105: 60,731 | W105: 57,511 | X105: 54,291 | Y105: 51,072 | Z105: 47,852 | AA105: 44,632 | AB105: 41,412 | AC105: 38,192 | AD105: 35,765 | AE105: 34,167 | AF105: 32,605 | AG105: 31,042 | AH105: 29,480 | AI105: 27,918 | AJ105: 26,355 | AK105: 24,793 | AL105: 23,231 | AM105: 21,668 | AN105: 20,106 | AO105: 18,544 | AP105: 16,982 | AQ105: 15,419 | AR105: 13,857 | AS105: 12,295 | AT105: 10,732 | AU105: 9,170 | AV105: 7,608
A107: 2.3 | B107: Accounting and fiscal depreciation | H107: =I107-1 -> 2017 | I107: =$I$22 -> 2018 | J107: =I107+1 -> 2019 | K107: 2020 | L107: 2021 | M107: 2022 | N107: 2023 | O107: 2024 | P107: 2025 | Q107: 2026 | R107: 2027 | S107: 2028 | T107: 2029 | U107: 2030 | V107: 2031 | W107: 2032 | X107: 2033 | Y107: 2034 | Z107: 2035 | AA107: 2036 | AB107: 2037 | AC107: 2038 | AD107: 2039 | AE107: 2040 | AF107: 2041 | AG107: 2042 | AH107: 2043 | AI107: 2044 | AJ107: 2045 | AK107: 2046 | AL107: 2047 | AM107: 2048 | AN107: 2049 | AO107: 2050 | AP107: 2051 | AQ107: 2052 | AR107: 2053 | AS107: 2054 | AT107: 2055 | AU107: 2056 | AV107: 2057
B109: Sharing of the capitalized general expenses and contributions
B111: Répartition UMQ - Conduite | H111: =IFERROR(H33/(H33+H37),0) -> 67.6% | I111: 0.0% | J111: 0.0% | K111: 0.0% | L111: 0.0% | M111: 0.0% | N111: 0.0% | O111: 0.0% | P111: 0.0% | Q111: 0.0% | R111: 0.0% | S111: 0.0% | T111: 0.0% | U111: 0.0% | V111: 0.0% | W111: 0.0% | X111: 0.0% | Y111: 0.0% | Z111: 0.0% | AA111: 0.0% | AB111: 0.0% | AC111: 0.0% | AD111: 0.0% | AE111: 0.0% | AF111: 0.0% | AG111: 0.0% | AH111: 0.0% | AI111: 0.0% | AJ111: 0.0% | AK111: 0.0% | AL111: 0.0% | AM111: 0.0% | AN111: 0.0% | AO111: 0.0% | AP111: 0.0% | AQ111: 0.0% | AR111: 0.0% | AS111: 0.0% | AT111: 0.0% | AU111: 0.0% | AV111: 0.0%
B112: Répartition UMQ - Branchement | H112: =IFERROR(H37/(H33+H37),0) -> 32.4% | I112: 100.0% | J112: 0.0% | K112: 0.0% | L112: 0.0% | M112: 0.0% | N112: 0.0% | O112: 0.0% | P112: 0.0% | Q112: 0.0% | R112: 0.0% | S112: 0.0% | T112: 0.0% | U112: 0.0% | V112: 0.0% | W112: 0.0% | X112: 0.0% | Y112: 0.0% | Z112: 0.0% | AA112: 0.0% | AB112: 0.0% | AC112: 0.0% | AD112: 0.0% | AE112: 0.0% | AF112: 0.0% | AG112: 0.0% | AH112: 0.0% | AI112: 0.0% | AJ112: 0.0% | AK112: 0.0% | AL112: 0.0% | AM112: 0.0% | AN112: 0.0% | AO112: 0.0% | AP112: 0.0% | AQ112: 0.0% | AR112: 0.0% | AS112: 0.0% | AT112: 0.0% | AU112: 0.0% | AV112: 0.0%
B114: Sharing of the capitalized general expenses - Main line | H114: =IFERROR((H33+H34+H45*H111)/(H33+H34+H37+H38+H39+H41+H42+H43+H45),0) -> 66.8% | I114: =IFERROR((I33+I34+I45*I111)/(I33+I34+I37+I38+I39+I45),0) -> 0.0% | J114: 0.0% | K114: 0.0% | L114: 0.0% | M114: 0.0% | N114: 0.0% | O114: 0.0% | P114: 0.0% | Q114: 0.0% | R114: 0.0% | S114: 0.0% | T114: 0.0% | U114: 0.0% | V114: 0.0% | W114: 0.0% | X114: 0.0% | Y114: 0.0% | Z114: 0.0% | AA114: 0.0% | AB114: 0.0% | AC114: 0.0% | AD114: 0.0% | AE114: 0.0% | AF114: 0.0% | AG114: 0.0% | AH114: 0.0% | AI114: 0.0% | AJ114: 0.0% | AK114: 0.0% | AL114: 0.0% | AM114: 0.0% | AN114: 0.0% | AO114: 0.0% | AP114: 0.0% | AQ114: 0.0% | AR114: 0.0% | AS114: 0.0% | AT114: 0.0% | AU114: 0.0% | AV114: 0.0%
B115: Sharing of the capitalized general expenses - Connection | H115: =IFERROR((H37+H38+H39+H45*H112)/(H33+H34+H37+H38+H39+H41+H42+H43+H45),0) -> 33.2% | I115: =IFERROR((I37+I38+I39+I45*I112)/(I33+I34+I37+I38+I39+I45),0) -> 100.0% | J115: 0.0% | K115: 0.0% | L115: 0.0% | M115: 0.0% | N115: 0.0% | O115: 0.0% | P115: 0.0% | Q115: 0.0% | R115: 0.0% | S115: 0.0% | T115: 0.0% | U115: 0.0% | V115: 0.0% | W115: 0.0% | X115: 0.0% | Y115: 0.0% | Z115: 0.0% | AA115: 0.0% | AB115: 0.0% | AC115: 0.0% | AD115: 0.0% | AE115: 0.0% | AF115: 0.0% | AG115: 0.0% | AH115: 0.0% | AI115: 0.0% | AJ115: 0.0% | AK115: 0.0% | AL115: 0.0% | AM115: 0.0% | AN115: 0.0% | AO115: 0.0% | AP115: 0.0% | AQ115: 0.0% | AR115: 0.0% | AS115: 0.0% | AT115: 0.0% | AU115: 0.0% | AV115: 0.0%
B116: ="Répartition Fais généraux - "&$B$41 -> Répartition Fais généraux - Compression | H116: =IFERROR(H$41/(H$33+H$34+H$37+H$38+H$39+H$41+H$42+H$43+H$45),0) -> 0.0% | I116: 0.0% | J116: 0.0% | K116: 0.0% | L116: 0.0% | M116: 0.0% | N116: 0.0% | O116: 0.0% | P116: 0.0% | Q116: 0.0% | R116: 0.0% | S116: 0.0% | T116: 0.0% | U116: 0.0% | V116: 0.0% | W116: 0.0% | X116: 0.0% | Y116: 0.0% | Z116: 0.0% | AA116: 0.0% | AB116: 0.0% | AC116: 0.0% | AD116: 0.0% | AE116: 0.0% | AF116: 0.0% | AG116: 0.0% | AH116: 0.0% | AI116: 0.0% | AJ116: 0.0% | AK116: 0.0% | AL116: 0.0% | AM116: 0.0% | AN116: 0.0% | AO116: 0.0% | AP116: 0.0% | AQ116: 0.0% | AR116: 0.0% | AS116: 0.0% | AT116: 0.0% | AU116: 0.0% | AV116: 0.0%
B117: ="Répartition Fais généraux - "&$B$42 -> Répartition Fais généraux - Servitude | H117: =IFERROR(H$42/(H$33+H$34+H$37+H$38+H$39+H$41+H$42+H$43+H$45),0) -> 0.0% | I117: 0.0% | J117: 0.0% | K117: 0.0% | L117: 0.0% | M117: 0.0% | N117: 0.0% | O117: 0.0% | P117: 0.0% | Q117: 0.0% | R117: 0.0% | S117: 0.0% | T117: 0.0% | U117: 0.0% | V117: 0.0% | W117: 0.0% | X117: 0.0% | Y117: 0.0% | Z117: 0.0% | AA117: 0.0% | AB117: 0.0% | AC117: 0.0% | AD117: 0.0% | AE117: 0.0% | AF117: 0.0% | AG117: 0.0% | AH117: 0.0% | AI117: 0.0% | AJ117: 0.0% | AK117: 0.0% | AL117: 0.0% | AM117: 0.0% | AN117: 0.0% | AO117: 0.0% | AP117: 0.0% | AQ117: 0.0% | AR117: 0.0% | AS117: 0.0% | AT117: 0.0% | AU117: 0.0% | AV117: 0.0%
B118: ="Répartition Fais généraux - "&$B$43 -> Répartition Fais généraux - Transport | H118: =IFERROR(H$43/(H$33+H$34+H$37+H$38+H$39+H$41+H$42+H$43+H$45),0) -> 0.0% | I118: 0.0% | J118: 0.0% | K118: 0.0% | L118: 0.0% | M118: 0.0% | N118: 0.0% | O118: 0.0% | P118: 0.0% | Q118: 0.0% | R118: 0.0% | S118: 0.0% | T118: 0.0% | U118: 0.0% | V118: 0.0% | W118: 0.0% | X118: 0.0% | Y118: 0.0% | Z118: 0.0% | AA118: 0.0% | AB118: 0.0% | AC118: 0.0% | AD118: 0.0% | AE118: 0.0% | AF118: 0.0% | AG118: 0.0% | AH118: 0.0% | AI118: 0.0% | AJ118: 0.0% | AK118: 0.0% | AL118: 0.0% | AM118: 0.0% | AN118: 0.0% | AO118: 0.0% | AP118: 0.0% | AQ118: 0.0% | AR118: 0.0% | AS118: 0.0% | AT118: 0.0% | AU118: 0.0% | AV118: 0.0%
B120: Sharing of the contributions - Main line | H120: =(SUM($H$35:$AV$35)+SUMPRODUCT($H$114:$AV$114,$H$46:$AV$46))/(SUM($H$35:$AV$35)+SUM($H$40:$AV$40)+SUM($H$46:$AV$46)) -> 66.4% | I120: 66.4% | J120: 66.4% | K120: 66.4% | L120: 66.4% | M120: 66.4% | N120: 66.4% | O120: 66.4% | P120: 66.4% | Q120: 66.4% | R120: 66.4% | S120: 66.4% | T120: 66.4% | U120: 66.4% | V120: 66.4% | W120: 66.4% | X120: 66.4% | Y120: 66.4% | Z120: 66.4% | AA120: 66.4% | AB120: 66.4% | AC120: 66.4% | AD120: 66.4% | AE120: 66.4% | AF120: 66.4% | AG120: 66.4% | AH120: 66.4% | AI120: 66.4% | AJ120: 66.4% | AK120: 66.4% | AL120: 66.4% | AM120: 66.4% | AN120: 66.4% | AO120: 66.4% | AP120: 66.4% | AQ120: 66.4% | AR120: 66.4% | AS120: 66.4% | AT120: 66.4% | AU120: 66.4% | AV120: 66.4%
B121: Sharing of the contributions - Connection | H121: =(SUM($H$40:$AV$40)+SUMPRODUCT($H$115:$AV$115,$H$46:$AV$46))/(SUM($H$35:$AV$35)+SUM($H$40:$AV$40)+SUM($H$46:$AV$46)) -> 33.6% | I121: 33.6% | J121: 33.6% | K121: 33.6% | L121: 33.6% | M121: 33.6% | N121: 33.6% | O121: 33.6% | P121: 33.6% | Q121: 33.6% | R121: 33.6% | S121: 33.6% | T121: 33.6% | U121: 33.6% | V121: 33.6% | W121: 33.6% | X121: 33.6% | Y121: 33.6% | Z121: 33.6% | AA121: 33.6% | AB121: 33.6% | AC121: 33.6% | AD121: 33.6% | AE121: 33.6% | AF121: 33.6% | AG121: 33.6% | AH121: 33.6% | AI121: 33.6% | AJ121: 33.6% | AK121: 33.6% | AL121: 33.6% | AM121: 33.6% | AN121: 33.6% | AO121: 33.6% | AP121: 33.6% | AQ121: 33.6% | AR121: 33.6% | AS121: 33.6% | AT121: 33.6% | AU121: 33.6% | AV121: 33.6%
F122: Total
B123: =B35 -> Main line - Total | F123: =SUM(H123:AV123) -> 69,319 | H123: =H35+H$111*H$45+H$114*H$46+H$120*(H$53+H$54+H$55) -> 69,319 | I123: 0 | J123: 0 | K123: 0 | L123: 0 | M123: 0 | N123: 0 | O123: 0 | P123: 0 | Q123: 0 | R123: 0 | S123: 0 | T123: 0 | U123: 0 | V123: 0 | W123: 0 | X123: 0 | Y123: 0 | Z123: 0 | AA123: 0 | AB123: 0 | AC123: 0 | AD123: 0 | AE123: 0 | AF123: 0 | AG123: 0 | AH123: 0 | AI123: 0 | AJ123: 0 | AK123: 0 | AL123: 0 | AM123: 0 | AN123: 0 | AO123: 0 | AP123: 0 | AQ123: 0 | AR123: 0 | AS123: 0 | AT123: 0 | AU123: 0 | AV123: 0
B124: =B40 -> Connection - Total | F124: 34,855 | H124: =H40+H$112*H$45+H$115*H$46+H$121*(H$53+H$54+H$55)+H$52 -> 34,325 | I124: 544 | J124: -14 | K124: 0 | L124: 0 | M124: 0 | N124: 0 | O124: 0 | P124: 0 | Q124: 0 | R124: 0 | S124: 0 | T124: 0 | U124: 0 | V124: 0 | W124: 0 | X124: 0 | Y124: 0 | Z124: 0 | AA124: 0 | AB124: 0 | AC124: 0 | AD124: 0 | AE124: 0 | AF124: 0 | AG124: 0 | AH124: 0 | AI124: 0 | AJ124: 0 | AK124: 0 | AL124: 0 | AM124: 0 | AN124: 0 | AO124: 0 | AP124: 0 | AQ124: 0 | AR124: 0 | AS124: 0 | AT124: 0 | AU124: 0 | AV124: 0
B125: =B41 -> Compression | F125: 0 | H125: =H41+H$116*H$46 -> 0 | I125: 0 | J125: 0 | K125: 0 | L125: 0 | M125: 0 | N125: 0 | O125: 0 | P125: 0 | Q125: 0 | R125: 0 | S125: 0 | T125: 0 | U125: 0 | V125: 0 | W125: 0 | X125: 0 | Y125: 0 | Z125: 0 | AA125: 0 | AB125: 0 | AC125: 0 | AD125: 0 | AE125: 0 | AF125: 0 | AG125: 0 | AH125: 0 | AI125: 0 | AJ125: 0 | AK125: 0 | AL125: 0 | AM125: 0 | AN125: 0 | AO125: 0 | AP125: 0 | AQ125: 0 | AR125: 0 | AS125: 0 | AT125: 0 | AU125: 0 | AV125: 0
B126: =B42 -> Servitude | F126: 0 | H126: =H42+H$117*H$46 -> 0 | I126: 0 | J126: 0 | K126: 0 | L126: 0 | M126: 0 | N126: 0 | O126: 0 | P126: 0 | Q126: 0 | R126: 0 | S126: 0 | T126: 0 | U126: 0 | V126: 0 | W126: 0 | X126: 0 | Y126: 0 | Z126: 0 | AA126: 0 | AB126: 0 | AC126: 0 | AD126: 0 | AE126: 0 | AF126: 0 | AG126: 0 | AH126: 0 | AI126: 0 | AJ126: 0 | AK126: 0 | AL126: 0 | AM126: 0 | AN126: 0 | AO126: 0 | AP126: 0 | AQ126: 0 | AR126: 0 | AS126: 0 | AT126: 0 | AU126: 0 | AV126: 0
